Workbook

Sheet MN_7_REDHEAD
B1: Overall Lap by Division Race Report as of 10/18/2022 3:23:32 PM
A3: Rider # | B3: Place | C3: Total Points | D3: Team Division | E3: Name | F3: Team Name | G3: Cateogry | H3: Comment | I3: Rider # | J3: Plate | K3: Laps | L3: Adjust | M3: Total | N3: Lap 1 | O3: Lap 2 | P3: Lap 3 | Q3: Lap 4 | R3: Points | S3: All Team Extra Points
A4: 100388196 | B4: 1 | C4: =+S4+R4 -> 550 | D4: =VLOOKUP(F4,Sheet3!$D$3:$E$91,2,FALSE) -> 1 | E4: DANIEL DEWEY | F4: Cloquet-Esko-Carlton | G4: 6th Grade Boys D1 | I4: 100388196 | J4: 8029 | K4: 1 | L4: 00:00:00.000 | M4: 00:18:36.129 | N4: 00:18:36.129 | R4: 500 | S4: 50
A5: 100405726 | B5: 2 | C5: 539 | D5: =VLOOKUP(F5,Sheet3!$D$3:$E$91,2,FALSE) -> 1 | E5: GUS LAYMAN | F5: Rock Ridge Composite | G5: 6th Grade Boys D1 | I5: 100405726 | J5: 8115 | K5: 1 | L5: 00:00:00.000 | M5: 00:20:30.911 | N5: 00:20:30.911 | R5: 490 | S5: 49
A6: 100405356 | B6: 3 | C6: 529 | D6: =VLOOKUP(F6,Sheet3!$D$3:$E$91,2,FALSE) -> 1 | E6: JACKSON RUNCK | F6: Minnetonka High School | G6: 6th Grade Boys D1 | I6: 100405356 | J6: 8076 | K6: 1 | L6: 00:00:00.000 | M6: 00:20:58.718 | N6: 00:20:58.718 | R6: 481 | S6: 48
A7: 100406264 | B7: 4 | C7: 519 | D7: =VLOOKUP(F7,Sheet3!$D$3:$E$91,2,FALSE) -> 1 | E7: TEDDY SANDERSON | F7: Stillwater Mountain Bike | G7: 6th Grade Boys D1 | I7: 100406264 | J7: 8152 | K7: 1 | L7: 00:00:00.000 | M7: 00:21:04.028 | N7: 00:21:04.028 | R7: 472 | S7: 47
A8: 100418932 | B8: 5 | C8: 510 | D8: =VLOOKUP(F8,Sheet3!$D$3:$E$91,2,FALSE) -> 1 | E8: CARTER OSVOLD | F8: Cloquet-Esko-Carlton | G8: 6th Grade Boys D1 | I8: 100418932 | J8: 8033 | K8: 1 | L8: 00:00:00.000 | M8: 00:21:08.048 | N8: 00:21:08.048 | R8: 464 | S8: 46
A9: 100409698 | B9: 6 | C9: 501 | D9: =VLOOKUP(F9,Sheet3!$D$3:$E$91,2,FALSE) -> 1 | E9: LUCAS TRUCKENMILLER | F9: East Ridge High School | G9: 6th Grade Boys D1 | I9: 100409698 | J9: 8097 | K9: 1 | L9: 00:00:00.000 | M9: 00:21:21.528 | N9: 00:21:21.528 | R9: 456 | S9: 45
A10: 100411092 | B10: 7 | C10: 492 | D10: =VLOOKUP(F10,Sheet3!$D$3:$E$91,2,FALSE) -> 1 | E10: OWEN LAWSON | F10: East Ridge High School | G10: 6th Grade Boys D1 | I10: 100411092 | J10: 8040 | K10: 1 | L10: 00:00:00.000 | M10: 00:21:21.620 | N10: 00:21:21.620 | R10: 448 | S10: 44
A11: 100408914 | B11: 8 | C11: 484 | D11: =VLOOKUP(F11,Sheet3!$D$3:$E$91,2,FALSE) -> 1 | E11: HUDSON LUEDERS | F11: East Ridge High School | G11: 6th Grade Boys D1 | I11: 100408914 | J11: 8041 | K11: 1 | L11: 00:00:00.000 | M11: 00:21:26.045 | N11: 00:21:26.045 | R11: 441 | S11: 43
A12: 100427835 | B12: 9 | C12: 476 | D12: =VLOOKUP(F12,Sheet3!$D$3:$E$91,2,FALSE) -> 1 | E12: CHARLIE HUGHES | F12: Cloquet-Esko-Carlton | G12: 6th Grade Boys D1 | I12: 100427835 | J12: 8032 | K12: 1 | L12: 00:00:00.000 | M12: 00:21:43.061 | N12: 00:21:43.061 | R12: 434 | S12: 42
A13: 100430928 | B13: 10 | C13: 468 | D13: =VLOOKUP(F13,Sheet3!$D$3:$E$91,2,FALSE) -> 1 | E13: LANDON HAGEN | F13: Brainerd High School | G13: 6th Grade Boys D1 | I13: 100430928 | J13: 8016 | K13: 1 | L13: 00:00:00.000 | M13: 00:21:45.520 | N13: 00:21:45.520 | R13: 427 | S13: 41
A14: 100390211 | B14: 11 | C14: 460 | D14: =VLOOKUP(F14,Sheet3!$D$3:$E$91,2,FALSE) -> 1 | E14: AKSEL DREVLOW | F14: East Ridge High School | G14: 6th Grade Boys D1 | I14: 100390211 | J14: 8038 | K14: 1 | L14: 00:00:00.000 | M14: 00:22:10.400 | N14: 00:22:10.400 | R14: 420 | S14: 40
A15: 100416467 | B15: 12 | C15: 453 | D15: =VLOOKUP(F15,Sheet3!$D$3:$E$91,2,FALSE) -> 1 | E15: HENRY WEIS | F15: Stillwater Mountain Bike | G15: 6th Grade Boys D1 | I15: 100416467 | J15: 8155 | K15: 1 | L15: 00:00:00.000 | M15: 00:22:12.754 | N15: 00:22:12.754 | R15: 414 | S15: 39
A16: 100390041 | B16: 13 | C16: 446 | D16: =VLOOKUP(F16,Sheet3!$D$3:$E$91,2,FALSE) -> 1 | E16: BECKETT CRAINE | F16: Crosby-Ironton High School | G16: 6th Grade Boys D1 | I16: 100390041 | J16: 8035 | K16: 1 | L16: 00:00:00.000 | M16: 00:22:25.017 | N16: 00:22:25.017 | R16: 408 | S16: 38
A17: 100420516 | B17: 14 | C17: 439 | D17: =VLOOKUP(F17,Sheet3!$D$3:$E$91,2,FALSE) -> 1 | E17: DJ SEVERSON | F17: Edina Cycling | G17: 6th Grade Boys D1 | I17: 100420516 | J17: 8047 | K17: 1 | L17: 00:00:00.000 | M17: 00:22:44.987 | N17: 00:22:44.987 | R17: 402 | S17: 37
A18: 100432243 | B18: 15 | C18: 432 | D18: =VLOOKUP(F18,Sheet3!$D$3:$E$91,2,FALSE) -> 1 | E18: AUGUST MAYER | F18: Chaska High School | G18: 6th Grade Boys D1 | I18: 100432243 | J18: 8023 | K18: 1 | L18: 00:00:00.000 | M18: 00:23:27.784 | N18: 00:23:27.784 | R18: 396 | S18: 36
A19: 100409471 | B19: 16 | C19: 425 | D19: =VLOOKUP(F19,Sheet3!$D$3:$E$91,2,FALSE) -> 1 | E19: LEVI WILLIAMS | F19: Burnsville High School | G19: 6th Grade Boys D1 | I19: 100409471 | J19: 8020 | K19: 1 | L19: 00:00:00.000 | M19: 00:23:48.267 | N19: 00:23:48.267 | R19: 390 | S19: 35
A20: 100429514 | B20: 17 | C20: 419 | D20: =VLOOKUP(F20,Sheet3!$D$3:$E$91,2,FALSE) -> 1 | E20: JONATHAN BERTELSON | F20: Wayzata Mountain Bike | G20: 6th Grade Boys D1 | I20: 100429514 | J20: 8170 | K20: 1 | L20: 00:00:00.000 | M20: 00:23:51.727 | N20: 00:23:51.727 | R20: 385 | S20: 34
A21: 100420382 | B21: 18 | C21: 413 | D21: =VLOOKUP(F21,Sheet3!$D$3:$E$91,2,FALSE) -> 1 | E21: MYLES INGVALSON | F21: Lakeville North High School | G21: 6th Grade Boys D1 | I21: 100420382 | J21: 8062 | K21: 1 | L21: 00:00:00.000 | M21: 00:24:08.105 | N21: 00:24:08.105 | R21: 380 | S21: 33
A22: 100407440 | B22: 19 | C22: 407 | D22: =VLOOKUP(F22,Sheet3!$D$3:$E$91,2,FALSE) -> 1 | E22: FINN SOFTICH | F22: Rock Ridge Composite | G22: 6th Grade Boys D1 | I22: 100407440 | J22: 8120 | K22: 1 | L22: 00:00:00.000 | M22: 00:24:18.176 | N22: 00:24:18.176 | R22: 375 | S22: 32
A23: 100427273 | B23: 20 | C23: 401 | D23: =VLOOKUP(F23,Sheet3!$D$3:$E$91,2,FALSE) -> 1 | E23: GRAHAM BERNU | F23: Champlin Park High School | G23: 6th Grade Boys D1 | I23: 100427273 | J23: 8021 | K23: 1 | L23: 00:00:00.000 | M23: 00:24:31.295 | N23: 00:24:31.295 | R23: 370 | S23: 31
A24: 100406494 | B24: 21 | C24: 395 | D24: =VLOOKUP(F24,Sheet3!$D$3:$E$91,2,FALSE) -> 1 | E24: BENNETT SCHMIDT | F24: Minnetonka High School | G24: 6th Grade Boys D1 | I24: 100406494 | J24: 8077 | K24: 1 | L24: 00:00:00.000 | M24: 00:24:31.301 | N24: 00:24:31.301 | R24: 365 | S24: 30
A25: 100428895 | B25: 22 | C25: 389 | D25: =VLOOKUP(F25,Sheet3!$D$3:$E$91,2,FALSE) -> 1 | E25: TYLER HASSIS | F25: Armstrong Cycle | G25: 6th Grade Boys D1 | I25: 100428895 | J25: 8005 | K25: 1 | L25: 00:00:00.000 | M25: 00:24:33.017 | N25: 00:24:33.017 | R25: 360 | S25: 29
A26: 100418066 | B26: 23 | C26: 384 | D26: =VLOOKUP(F26,Sheet3!$D$3:$E$91,2,FALSE) -> 1 | E26: THEODORE JUFFER | F26: Minneapolis Southwest | G26: 6th Grade Boys D1 | I26: 100418066 | J26: 8090 | K26: 1 | L26: 00:00:00.000 | M26: 00:24:36.498 | N26: 00:24:36.498 | R26: 356 | S26: 28
A27: 100419609 | B27: 24 | C27: 379 | D27: =VLOOKUP(F27,Sheet3!$D$3:$E$91,2,FALSE) -> 1 | E27: ARNAV SINGH | F27: Minneapolis Southwest | G27: 6th Grade Boys D1 | I27: 100419609 | J27: 8091 | K27: 1 | L27: 00:00:00.000 | M27: 00:24:39.018 | N27: 00:24:39.018 | R27: 352 | S27: 27
A28: 100421262 | B28: 25 | C28: 374 | D28: =VLOOKUP(F28,Sheet3!$D$3:$E$91,2,FALSE) -> 1 | E28: MAKAI LUND | F28: Shakopee High School | G28: 6th Grade Boys D1 | I28: 100421262 | J28: 8130 | K28: 1 | L28: 00:00:00.000 | M28: 00:24:43.377 | N28: 00:24:43.377 | R28: 348 | S28: 26
A29: 100405255 | B29: 26 | C29: 369 | D29: =VLOOKUP(F29,Sheet3!$D$3:$E$91,2,FALSE) -> 1 | E29: FINN KOHLMYER | F29: Minnetonka High School | G29: 6th Grade Boys D1 | I29: 100405255 | J29: 8074 | K29: 1 | L29: 00:00:00.000 | M29: 00:24:45.948 | N29: 00:24:45.948 | R29: 344 | S29: 25
A30: 100429282 | B30: 27 | C30: 364 | D30: =VLOOKUP(F30,Sheet3!$D$3:$E$91,2,FALSE) -> 1 | E30: ETHAN REID | F30: Brainerd High School | G30: 6th Grade Boys D1 | I30: 100429282 | J30: 8017 | K30: 1 | L30: 00:00:00.000 | M30: 00:24:55.949 | N30: 00:24:55.949 | R30: 340 | S30: 24
A31: 100420497 | B31: 28 | C31: 359 | D31: =VLOOKUP(F31,Sheet3!$D$3:$E$91,2,FALSE) -> 1 | E31: NOAH DAHN | F31: New Prague Middle and High School | G31: 6th Grade Boys D1 | I31: 100420497 | J31: 8093 | K31: 1 | L31: 00:00:00.000 | M31: 00:24:59.387 | N31: 00:24:59.387 | R31: 336 | S31: 23
A32: 100433849 | B32: 29 | C32: 354 | D32: =VLOOKUP(F32,Sheet3!$D$3:$E$91,2,FALSE) -> 1 | E32: NOLAN STRUVE | F32: Wayzata Mountain Bike | G32: 6th Grade Boys D1 | I32: 100433849 | J32: 8183 | K32: 1 | L32: 00:00:00.000 | M32: 00:25:03.793 | N32: 00:25:03.793 | R32: 332 | S32: 22
A33: 100421645 | B33: 30 | C33: 350 | D33: =VLOOKUP(F33,Sheet3!$D$3:$E$91,2,FALSE) -> 1 | E33: CHARLIE HITCHIN | F33: Minneapolis Southwest | G33: 6th Grade Boys D1 | I33: 100421645 | J33: 8089 | K33: 1 | L33: 00:00:00.000 | M33: 00:25:06.632 | N33: 00:25:06.632 | R33: 329 | S33: 21
A34: 100427391 | B34: 31 | C34: 346 | D34: =VLOOKUP(F34,Sheet3!$D$3:$E$91,2,FALSE) -> 1 | E34: CHARLIE ELLICKSON | F34: Wayzata Mountain Bike | G34: 6th Grade Boys D1 | I34: 100427391 | J34: 8171 | K34: 1 | L34: 00:00:00.000 | M34: 00:25:33.520 | N34: 00:25:33.520 | R34: 326 | S34: 20
A35: 100429681 | B35: 32 | C35: 342 | D35: =VLOOKUP(F35,Sheet3!$D$3:$E$91,2,FALSE) -> 1 | E35: RAPHAEL ACHARYA | F35: Wayzata Mountain Bike | G35: 6th Grade Boys D1 | I35: 100429681 | J35: 8167 | K35: 1 | L35: 00:00:00.000 | M35: 00:26:20.646 | N35: 00:26:20.646 | R35: 323 | S35: 19
A36: 100421956 | B36: 33 | C36: 338 | D36: =VLOOKUP(F36,Sheet3!$D$3:$E$91,2,FALSE) -> 1 | E36: OLIVER SCHOENECK | F36: Washburn High School | G36: 6th Grade Boys D1 | I36: 100421956 | J36: 8165 | K36: 1 | L36: 00:00:00.000 | M36: 00:26:30.066 | N36: 00:26:30.066 | R36: 320 | S36: 18
A37: 100418378 | B37: 34 | C37: 334 | D37: =VLOOKUP(F37,Sheet3!$D$3:$E$91,2,FALSE) -> 1 | E37: NOLAN HEMMINGER | F37: Stillwater Mountain Bike | G37: 6th Grade Boys D1 | I37: 100418378 | J37: 8150 | K37: 1 | L37: 00:00:00.000 | M37: 00:26:43.577 | N37: 00:26:43.577 | R37: 317 | S37: 17
A38: 100407448 | B38: 35 | C38: 330 | D38: =VLOOKUP(F38,Sheet3!$D$3:$E$91,2,FALSE) -> 1 | E38: JACOB SCHNORR | F38: Shakopee High School | G38: 6th Grade Boys D1 | I38: 100407448 | J38: 8132 | K38: 1 | L38: 00:00:00.000 | M38: 00:27:44.503 | N38: 00:27:44.503 | R38: 314 | S38: 16
A39: 100407570 | B39: 36 | C39: 326 | D39: =VLOOKUP(F39,Sheet3!$D$3:$E$91,2,FALSE) -> 1 | E39: KIERAN ROARK | F39: Rock Ridge Composite | G39: 6th Grade Boys D1 | I39: 100407570 | J39: 8118 | K39: 1 | L39: 00:00:00.000 | M39: 00:28:10.499 | N39: 00:28:10.499 | R39: 311 | S39: 15
A40: 100391716 | B40: 37 | C40: 322 | D40: =VLOOKUP(F40,Sheet3!$D$3:$E$91,2,FALSE) -> 1 | E40: EZRA METSA | F40: Rock Ridge Composite | G40: 6th Grade Boys D1 | I40: 100391716 | J40: 8116 | K40: 1 | L40: 00:00:00.000 | M40: 00:28:22.364 | N40: 00:28:22.364 | R40: 308 | S40: 14
A41: 100427535 | B41: 38 | C41: 319 | D41: =VLOOKUP(F41,Sheet3!$D$3:$E$91,2,FALSE) -> 1 | E41: BROCK BARLAGE | F41: New Prague Middle and High School | G41: 6th Grade Boys D1 | I41: 100427535 | J41: 8092 | K41: 1 | L41: 00:00:00.000 | M41: 00:28:24.021 | N41: 00:28:24.021 | R41: 306 | S41: 13
A42: 100420233 | B42: 39 | C42: 316 | D42: =VLOOKUP(F42,Sheet3!$D$3:$E$91,2,FALSE) -> 1 | E42: PATRICK GRAMM | F42: Rock Ridge Composite | G42: 6th Grade Boys D1 | I42: 100420233 | J42: 8113 | K42: 1 | L42: 00:00:00.000 | M42: 00:28:51.138 | N42: 00:28:51.138 | R42: 304 | S42: 12
A43: 100426756 | B43: 40 | C43: 313 | D43: =VLOOKUP(F43,Sheet3!$D$3:$E$91,2,FALSE) -> 1 | E43: LUCAS JOHNSON | F43: Wayzata Mountain Bike | G43: 6th Grade Boys D1 | I43: 100426756 | J43: 8173 | K43: 1 | L43: 00:00:00.000 | M43: 00:28:58.248 | N43: 00:28:58.248 | R43: 302 | S43: 11
A44: 100405277 | B44: 41 | C44: 310 | D44: =VLOOKUP(F44,Sheet3!$D$3:$E$91,2,FALSE) -> 1 | E44: CONNOR STRICKLAND | F44: Minnetonka High School | G44: 6th Grade Boys D1 | I44: 100405277 | J44: 8080 | K44: 1 | L44: 00:00:00.000 | M44: 00:29:04.143 | N44: 00:29:04.143 | R44: 300 | S44: 10
A45: 100419508 | B45: 42 | C45: 307 | D45: =VLOOKUP(F45,Sheet3!$D$3:$E$91,2,FALSE) -> 1 | E45: HUDSON HOLSTE | F45: Lakeville North High School | G45: 6th Grade Boys D1 | I45: 100419508 | J45: 8061 | K45: 1 | L45: 00:00:00.000 | M45: 00:29:13.697 | N45: 00:29:13.697 | R45: 298 | S45: 9
A46: 100422015 | B46: 44 | C46: 301 | D46: =VLOOKUP(F46,Sheet3!$D$3:$E$91,2,FALSE) -> 1 | E46: CADEL GRAHAM | F46: Minneapolis Southwest | G46: 6th Grade Boys D1 | I46: 100422015 | J46: 8087 | K46: 1 | L46: 00:00:00.000 | M46: 00:29:20.204 | N46: 00:29:20.204 | R46: 294 | S46: 7
A47: 100430439 | B47: 45 | C47: 298 | D47: =VLOOKUP(F47,Sheet3!$D$3:$E$91,2,FALSE) -> 1 | E47: CHRISTIAN BEECHER | F47: Wayzata Mountain Bike | G47: 6th Grade Boys D1 | I47: 100430439 | J47: 8169 | K47: 1 | L47: 00:00:00.000 | M47: 00:30:02.143 | N47: 00:30:02.143 | R47: 292 | S47: 6
A48: 100416195 | B48: 46 | C48: 295 | D48: =VLOOKUP(F48,Sheet3!$D$3:$E$91,2,FALSE) -> 1 | E48: ALEX KLUKKEN | F48: Minnetonka High School | G48: 6th Grade Boys D1 | I48: 100416195 | J48: 8073 | K48: 1 | L48: 00:00:00.000 | M48: 00:30:12.401 | N48: 00:30:12.401 | R48: 290 | S48: 5
A49: 100426015 | B49: 47 | C49: 293 | D49: =VLOOKUP(F49,Sheet3!$D$3:$E$91,2,FALSE) -> 1 | E49: NOAH RIVERS | F49: Burnsville High School | G49: 6th Grade Boys D1 | I49: 100426015 | J49: 8019 | K49: 1 | L49: 00:00:00.000 | M49: 00:33:40.401 | N49: 00:33:40.401 | R49: 289 | S49: 4
A50: 100406084 | B50: 48 | C50: 0 | D50: =VLOOKUP(F50,Sheet3!$D$3:$E$91,2,FALSE) -> 1 | E50: CAMERON HYSONG | F50: Mounds View High School | G50: 6th Grade Boys D1 | H50: DNF Medical | I50: 100406084 | J50: 8083 | K50: 0 | L50: 00:00:00.000 | R50: 0 | S50: 0
A51: 100430527 | B51: 49 | C51: 0 | D51: =VLOOKUP(F51,Sheet3!$D$3:$E$91,2,FALSE) -> 1 | E51: OLIVER ASRANI | F51: Wayzata Mountain Bike | G51: 6th Grade Boys D1 | H51: DNF | I51: 100430527 | J51: 8168 | K51: 0 | L51: 00:00:00.000 | R51: 0 | S51: 0
A52: 100427085 | B52: 43 | C52: 304 | D52: =VLOOKUP(F52,Sheet3!$D$3:$E$91,2,FALSE) -> 1 | E52: JAMES STEPHAN | F52: Stillwater Mountain Bike | G52: 6th Grade Boys D1 | I52: 100427085 | J52: 8154 | K52: 1 | L52: 00:00:00.000 | M52: 00:29:17.600 | N52: 00:29:17.600 | R52: 296 | S52: 8
A53: 100429379 | B53: 1 | C53: 550 | D53: =VLOOKUP(F53,Sheet3!$D$3:$E$91,2,FALSE) -> 2 | E53: MAX LARSEN | F53: St Cloud Area Composite | G53: 6th Grade Boys D2 | I53: 100429379 | J53: 8134 | K53: 1 | L53: 00:00:00.000 | M53: 00:20:47.943 | N53: 00:20:47.943 | R53: 500 | S53: 50
A54: 100414551 | B54: 2 | C54: 539 | D54: =VLOOKUP(F54,Sheet3!$D$3:$E$91,2,FALSE) -> 2 | E54: JACK MCKEAND | F54: Orono High School | G54: 6th Grade Boys D2 | I54: 100414551 | J54: 8095 | K54: 1 | L54: 00:00:00.000 | M54: 00:21:50.849 | N54: 00:21:50.849 | R54: 490 | S54: 49
A55: 100422586 | B55: 3 | C55: 529 | D55: =VLOOKUP(F55,Sheet3!$D$3:$E$91,2,FALSE) -> 2 | E55: GARRETT NELSON | F55: Osseo Composite | G55: 6th Grade Boys D2 | I55: 100422586 | J55: 8096 | K55: 1 | L55: 00:00:00.000 | M55: 00:22:04.569 | N55: 00:22:04.569 | R55: 481 | S55: 48
A56: 100425959 | B56: 4 | C56: 519 | D56: =VLOOKUP(F56,Sheet3!$D$3:$E$91,2,FALSE) -> 2 | E56: BENNY RUZEK | F56: St Louis Park High School | G56: 6th Grade Boys D2 | I56: 100425959 | J56: 8141 | K56: 1 | L56: 00:00:00.000 | M56: 00:22:28.491 | N56: 00:22:28.491 | R56: 472 | S56: 47
A57: 100432445 | B57: 5 | C57: 510 | D57: =VLOOKUP(F57,Sheet3!$D$3:$E$91,2,FALSE) -> 2 | E57: HENRY MURPHY | F57: St Paul Central | G57: 6th Grade Boys D2 | I57: 100432445 | J57: 8147 | K57: 1 | L57: 00:00:00.000 | M57: 00:22:49.341 | N57: 00:22:49.341 | R57: 464 | S57: 46
A58: 100407380 | B58: 6 | C58: 501 | D58: =VLOOKUP(F58,Sheet3!$D$3:$E$91,2,FALSE) -> 2 | E58: HENRY STEPHENSON | F58: Hudson High School | G58: 6th Grade Boys D2 | I58: 100407380 | J58: 8057 | K58: 1 | L58: 00:00:00.000 | M58: 00:23:03.721 | N58: 00:23:03.721 | R58: 456 | S58: 45
A59: 100389720 | B59: 7 | C59: 492 | D59: =VLOOKUP(F59,Sheet3!$D$3:$E$91,2,FALSE) -> 2 | E59: CARTER BOLSTER | F59: Minnesota Valley Composite | G59: 6th Grade Boys D2 | I59: 100389720 | J59: 8069 | K59: 1 | L59: 00:00:00.000 | M59: 00:23:35.495 | N59: 00:23:35.495 | R59: 448 | S59: 44
A60: 100426687 | B60: 8 | C60: 484 | D60: =VLOOKUP(F60,Sheet3!$D$3:$E$91,2,FALSE) -> 2 | E60: SHANER FITZPATRICK | F60: St Louis Park High School | G60: 6th Grade Boys D2 | I60: 100426687 | J60: 8137 | K60: 1 | L60: 00:00:00.000 | M60: 00:24:37.569 | N60: 00:24:37.569 | R60: 441 | S60: 43
A61: 100421670 | B61: 9 | C61: 476 | D61: =VLOOKUP(F61,Sheet3!$D$3:$E$91,2,FALSE) -> 2 | E61: LANDON MAUL | F61: Breck/Blake | G61: 6th Grade Boys D2 | I61: 100421670 | J61: 8009 | K61: 1 | L61: 00:00:00.000 | M61: 00:24:41.977 | N61: 00:24:41.977 | R61: 434 | S61: 42
A62: 100391752 | B62: 10 | C62: 468 | D62: =VLOOKUP(F62,Sheet3!$D$3:$E$91,2,FALSE) -> 2 | E62: FRANKLIN MILLER | F62: Highland Park St Paul | G62: 6th Grade Boys D2 | I62: 100391752 | J62: 8054 | K62: 1 | L62: 00:00:00.000 | M62: 00:25:12.395 | N62: 00:25:12.395 | R62: 427 | S62: 41
A63: 100426351 | B63: 11 | C63: 460 | D63: =VLOOKUP(F63,Sheet3!$D$3:$E$91,2,FALSE) -> 2 | E63: ERIK OEN | F63: St Michael / Albertville Composite | G63: 6th Grade Boys D2 | I63: 100426351 | J63: 8143 | K63: 1 | L63: 00:00:00.000 | M63: 00:25:34.346 | N63: 00:25:34.346 | R63: 420 | S63: 40
A64: 100430812 | B64: 12 | C64: 453 | D64: =VLOOKUP(F64,Sheet3!$D$3:$E$91,2,FALSE) -> 2 | E64: GRADY ANDERSON | F64: Borealis Composite | G64: 6th Grade Boys D2 | I64: 100430812 | J64: 8015 | K64: 1 | L64: 00:00:00.000 | M64: 00:25:42.543 | N64: 00:25:42.543 | R64: 414 | S64: 39
A65: 100417652 | B65: 13 | C65: 446 | D65: =VLOOKUP(F65,Sheet3!$D$3:$E$91,2,FALSE) -> 2 | E65: MYLES KELLY | F65: St Louis Park High School | G65: 6th Grade Boys D2 | I65: 100417652 | J65: 8140 | K65: 1 | L65: 00:00:00.000 | M65: 00:26:13.300 | N65: 00:26:13.300 | R65: 408 | S65: 38
A66: 100410387 | B66: 14 | C66: 439 | D66: =VLOOKUP(F66,Sheet3!$D$3:$E$91,2,FALSE) -> 2 | E66: ALEXANDER MCNAMARA | F66: Totino Grace High School | G66: 6th Grade Boys D2 | I66: 100410387 | J66: 8157 | K66: 1 | L66: 00:00:00.000 | M66: 00:26:17.762 | N66: 00:26:17.762 | R66: 402 | S66: 37
A67: 100428523 | B67: 15 | C67: 432 | D67: =VLOOKUP(F67,Sheet3!$D$3:$E$91,2,FALSE) -> 2 | E67: EDWARD “EJ” NIELSEN | F67: Chisago Lakes Composite | G67: 6th Grade Boys D2 | I67: 100428523 | J67: 8027 | K67: 1 | L67: 00:00:00.000 | M67: 00:26:19.599 | N67: 00:26:19.599 | R67: 396 | S67: 36
A68: 100408482 | B68: 16 | C68: =+S68+R68 -> 425 | D68: =VLOOKUP(F68,Sheet3!$D$3:$E$91,2,FALSE) -> 2 | E68: NICO MENDEZ | F68: Roosevelt High School | G68: 6th Grade Boys D2 | I68: 100408482 | J68: 8124 | K68: 1 | L68: 00:00:00.000 | M68: 00:27:24.190 | N68: 00:27:24.190 | R68: 390 | S68: 35
A69: 100406155 | B69: 17 | C69: 419 | D69: =VLOOKUP(F69,Sheet3!$D$3:$E$91,2,FALSE) -> 2 | E69: PAUL GRZESIK | F69: Mahtomedi High School | G69: 6th Grade Boys D2 | I69: 100406155 | J69: 8066 | K69: 1 | L69: 00:00:00.000 | M69: 00:27:47.393 | N69: 00:27:47.393 | R69: 385 | S69: 34
A70: 100408099 | B70: 18 | C70: 413 | D70: =VLOOKUP(F70,Sheet3!$D$3:$E$91,2,FALSE) -> 2 | E70: XAVIER OLSON | F70: Minnesota Valley Composite | G70: 6th Grade Boys D2 | I70: 100408099 | J70: 8071 | K70: 1 | L70: 00:00:00.000 | M70: 00:28:01.580 | N70: 00:28:01.580 | R70: 380 | S70: 33
A71: 100428265 | B71: 19 | C71: 407 | D71: =VLOOKUP(F71,Sheet3!$D$3:$E$91,2,FALSE) -> 2 | E71: WILLIAM PALUMBO | F71: Rogers High School | G71: 6th Grade Boys D2 | I71: 100428265 | J71: 8123 | K71: 1 | L71: 00:00:00.000 | M71: 00:28:07.569 | N71: 00:28:07.569 | R71: 375 | S71: 32
A72: 100427381 | B72: 20 | C72: 401 | D72: =VLOOKUP(F72,Sheet3!$D$3:$E$91,2,FALSE) -> 2 | E72: BAEK MARTIN-KOHLS | F72: St. Paul Composite - North | G72: 6th Grade Boys D2 | I72: 100427381 | J72: 8149 | K72: 1 | L72: 00:00:00.000 | M72: 00:30:51.693 | N72: 00:30:51.693 | R72: 370 | S72: 31
A73: 100432397 | B73: 21 | C73: 0 | D73: =VLOOKUP(F73,Sheet3!$D$3:$E$91,2,FALSE) -> 2 | E73: CASH CONNELLY | F73: Tioga Trailblazers | G73: 6th Grade Boys D2 | H73: DNF Medical | I73: 100432397 | J73: 8156 | K73: 0 | L73: 00:00:00.000 | R73: 0 | S73: 0
A74: 100430601 | B74: 1 | C74: 550 | D74: =VLOOKUP(F74,Sheet3!$D$3:$E$91,2,FALSE) -> 2 | E74: PHOEBE HACKENSACK | F74: St Cloud Area Composite | G74: 6th Grade Girls | I74: 100430601 | J74: 9067 | K74: 1 | L74: 00:00:00.000 | M74: 00:21:06.803 | N74: 00:21:06.803 | R74: 500 | S74: 50
A75: 100405792 | B75: 2 | C75: 539 | D75: =VLOOKUP(F75,Sheet3!$D$3:$E$91,2,FALSE) -> 2 | E75: ELEANOR MEYER | F75: St. Paul Composite - South | G75: 6th Grade Girls | I75: 100405792 | J75: 9070 | K75: 1 | L75: 00:00:00.000 | M75: 00:22:15.427 | N75: 00:22:15.427 | R75: 490 | S75: 49
A76: 100405867 | B76: 3 | C76: 529 | D76: =VLOOKUP(F76,Sheet3!$D$3:$E$91,2,FALSE) -> 1 | E76: ELLIOT LUNDE | F76: Burnsville High School | G76: 6th Grade Girls | I76: 100405867 | J76: 9016 | K76: 1 | L76: 00:00:00.000 | M76: 00:22:16.764 | N76: 00:22:16.764 | R76: 481 | S76: 48
A77: 100406516 | B77: 4 | C77: 519 | D77: =VLOOKUP(F77,Sheet3!$D$3:$E$91,2,FALSE) -> 1 | E77: CIERAH MCKIBBON | F77: Cloquet-Esko-Carlton | G77: 6th Grade Girls | I77: 100406516 | J77: 9023 | K77: 1 | L77: 00:00:00.000 | M77: 00:22:24.450 | N77: 00:22:24.450 | R77: 472 | S77: 47
A78: 100427867 | B78: 5 | C78: 510 | D78: =VLOOKUP(F78,Sheet3!$D$3:$E$91,2,FALSE) -> 2 | E78: HANNAH MOORE | F78: Maple Grove High School | G78: 6th Grade Girls | I78: 100427867 | J78: 9040 | K78: 1 | L78: 00:00:00.000 | M78: 00:22:47.442 | N78: 00:22:47.442 | R78: 464 | S78: 46
A79: 100408926 | B79: 6 | C79: 501 | D79: =VLOOKUP(F79,Sheet3!$D$3:$E$91,2,FALSE) -> 1 | E79: NARA BLACK | F79: Minneapolis Southwest | G79: 6th Grade Girls | I79: 100408926 | J79: 9044 | K79: 1 | L79: 00:00:00.000 | M79: 00:23:10.051 | N79: 00:23:10.051 | R79: 456 | S79: 45
A80: 100406949 | B80: 7 | C80: 492 | D80: =VLOOKUP(F80,Sheet3!$D$3:$E$91,2,FALSE) -> 1 | E80: SELAH BEUKEMA | F80: Rock Ridge Composite | G80: 6th Grade Girls | I80: 100406949 | J80: 9056 | K80: 1 | L80: 00:00:00.000 | M80: 00:23:18.102 | N80: 00:23:18.102 | R80: 448 | S80: 44
A81: 100408191 | B81: 8 | C81: 484 | D81: =VLOOKUP(F81,Sheet3!$D$3:$E$91,2,FALSE) -> 1 | E81: GRACE MAKOSKY | F81: Minneapolis Southwest | G81: 6th Grade Girls | I81: 100408191 | J81: 9045 | K81: 1 | L81: 00:00:00.000 | M81: 00:23:52.065 | N81: 00:23:52.065 | R81: 441 | S81: 43
A82: 100431804 | B82: 9 | C82: 476 | D82: =VLOOKUP(F82,Sheet3!$D$3:$E$91,2,FALSE) -> 1 | E82: STELLA MUSEUS | F82: Brainerd High School | G82: 6th Grade Girls | I82: 100431804 | J82: 9015 | K82: 1 | L82: 00:00:00.000 | M82: 00:24:11.818 | N82: 00:24:11.818 | R82: 434 | S82: 42
A83: 100428934 | B83: 10 | C83: 468 | D83: =VLOOKUP(F83,Sheet3!$D$3:$E$91,2,FALSE) -> 2 | E83: GEMMA BANKS | F83: Elk River Composite | G83: 6th Grade Girls | I83: 100428934 | J83: 9028 | K83: 1 | L83: 00:00:00.000 | M83: 00:24:35.498 | N83: 00:24:35.498 | R83: 427 | S83: 41
A84: 100408226 | B84: 11 | C84: 460 | D84: =VLOOKUP(F84,Sheet3!$D$3:$E$91,2,FALSE) -> 1 | E84: RYLIN CONVERSE | F84: Alexandria Area Youth Cycling | G84: 6th Grade Girls | I84: 100408226 | J84: 9001 | K84: 1 | L84: 00:00:00.000 | M84: 00:24:54.204 | N84: 00:24:54.204 | R84: 420 | S84: 40
A85: 100421499 | B85: 12 | C85: 453 | D85: =VLOOKUP(F85,Sheet3!$D$3:$E$91,2,FALSE) -> 1 | E85: PEYTON STAMSCHROR | F85: Prior Lake High School | G85: 6th Grade Girls | I85: 100421499 | J85: 9053 | K85: 1 | L85: 00:00:00.000 | M85: 00:24:57.577 | N85: 00:24:57.577 | R85: 414 | S85: 39
A86: 100408211 | B86: 13 | C86: 446 | D86: =VLOOKUP(F86,Sheet3!$D$3:$E$91,2,FALSE) -> 1 | E86: LILY MAKOSKY | F86: Minneapolis Southwest | G86: 6th Grade Girls | I86: 100408211 | J86: 9046 | K86: 1 | L86: 00:00:00.000 | M86: 00:25:30.602 | N86: 00:25:30.602 | R86: 408 | S86: 38
A87: 100406281 | B87: 14 | C87: 439 | D87: =VLOOKUP(F87,Sheet3!$D$3:$E$91,2,FALSE) -> 2 | E87: CLARA OACHS | F87: Woodbury Composite | G87: 6th Grade Girls | I87: 100406281 | J87: 9078 | K87: 1 | L87: 00:00:00.000 | M87: 00:26:10.030 | N87: 00:26:10.030 | R87: 402 | S87: 37
A88: 100411928 | B88: 15 | C88: 432 | D88: =VLOOKUP(F88,Sheet3!$D$3:$E$91,2,FALSE) -> 1 | E88: EVELYN HOPPE | F88: Edina Cycling | G88: 6th Grade Girls | I88: 100411928 | J88: 9026 | K88: 1 | L88: 00:00:00.000 | M88: 00:26:23.163 | N88: 00:26:23.163 | R88: 396 | S88: 36
A89: 100418807 | B89: 16 | C89: 425 | D89: =VLOOKUP(F89,Sheet3!$D$3:$E$91,2,FALSE) -> 1 | E89: LUCIA ARNESON | F89: Washburn High School | G89: 6th Grade Girls | I89: 100418807 | J89: 9075 | K89: 1 | L89: 00:00:00.000 | M89: 00:26:31.456 | N89: 00:26:31.456 | R89: 390 | S89: 35
A90: 100412430 | B90: 17 | C90: 419 | D90: =VLOOKUP(F90,Sheet3!$D$3:$E$91,2,FALSE) -> 1 | E90: MEGAN FRITZEN | F90: Prior Lake High School | G90: 6th Grade Girls | I90: 100412430 | J90: 9049 | K90: 1 | L90: 00:00:00.000 | M90: 00:26:42.893 | N90: 00:26:42.893 | R90: 385 | S90: 34
A91: 100406069 | B91: 18 | C91: 413 | D91: =VLOOKUP(F91,Sheet3!$D$3:$E$91,2,FALSE) -> 1 | E91: NORA PULFORD | F91: Cloquet-Esko-Carlton | G91: 6th Grade Girls | I91: 100406069 | J91: 9024 | K91: 1 | L91: 00:00:00.000 | M91: 00:26:45.615 | N91: 00:26:45.615 | R91: 380 | S91: 33
A92: 100405948 | B92: 19 | C92: 407 | D92: =VLOOKUP(F92,Sheet3!$D$3:$E$91,2,FALSE) -> 2 | E92: GRACEANN OLSON | F92: Hastings Area Composite | G92: 6th Grade Girls | I92: 100405948 | J92: 9032 | K92: 1 | L92: 00:00:00.000 | M92: 00:26:59.184 | N92: 00:26:59.184 | R92: 375 | S92: 32
A93: 100422393 | B93: 20 | C93: 401 | D93: =VLOOKUP(F93,Sheet3!$D$3:$E$91,2,FALSE) -> 1 | E93: ADELINE METZGER | F93: Burnsville High School | G93: 6th Grade Girls | I93: 100422393 | J93: 9017 | K93: 1 | L93: 00:00:00.000 | M93: 00:27:12.422 | N93: 00:27:12.422 | R93: 370 | S93: 31
A94: 100422621 | B94: 21 | C94: 395 | D94: =VLOOKUP(F94,Sheet3!$D$3:$E$91,2,FALSE) -> 2 | E94: ADDISON KANNAS | F94: Borealis Composite | G94: 6th Grade Girls | I94: 100422621 | J94: 9013 | K94: 1 | L94: 00:00:00.000 | M94: 00:27:37.857 | N94: 00:27:37.857 | R94: 365 | S94: 30
A95: 100420622 | B95: 22 | C95: 389 | D95: =VLOOKUP(F95,Sheet3!$D$3:$E$91,2,FALSE) -> 2 | E95: GRACE BERSETH | F95: Roosevelt High School | G95: 6th Grade Girls | I95: 100420622 | J95: 9060 | K95: 1 | L95: 00:00:00.000 | M95: 00:28:21.773 | N95: 00:28:21.773 | R95: 360 | S95: 29
A96: 100409750 | B96: 23 | C96: 384 | D96: =VLOOKUP(F96,Sheet3!$D$3:$E$91,2,FALSE) -> 2 | E96: AMELIA HALVORSON | F96: River Falls High School | G96: 6th Grade Girls | I96: 100409750 | J96: 9054 | K96: 1 | L96: 00:00:00.000 | M96: 00:29:02.880 | N96: 00:29:02.880 | R96: 356 | S96: 28
A97: 100422932 | B97: 24 | C97: 379 | D97: =VLOOKUP(F97,Sheet3!$D$3:$E$91,2,FALSE) -> 2 | E97: NATALIE MCCORMACK | F97: Elk River Composite | G97: 6th Grade Girls | I97: 100422932 | J97: 9029 | K97: 1 | L97: 00:00:00.000 | M97: 00:29:21.255 | N97: 00:29:21.255 | R97: 352 | S97: 27
A98: 100400794 | B98: 25 | C98: 374 | D98: =VLOOKUP(F98,Sheet3!$D$3:$E$91,2,FALSE) -> 2 | E98: CORA METELAK | F98: Tioga Trailblazers | G98: 6th Grade Girls | I98: 100400794 | J98: 9074 | K98: 1 | L98: 00:00:00.000 | M98: 00:30:31.106 | N98: 00:30:31.106 | R98: 348 | S98: 26
A99: 100423613 | B99: 26 | C99: 369 | D99: =VLOOKUP(F99,Sheet3!$D$3:$E$91,2,FALSE) -> 1 | E99: AVA JOHNSON | F99: Stillwater Mountain Bike | G99: 6th Grade Girls | I99: 100423613 | J99: 9071 | K99: 1 | L99: 00:00:00.000 | M99: 00:33:31.209 | N99: 00:33:31.209 | R99: 344 | S99: 25
A100: 100427613 | B100: 27 | C100: 364 | D100: =VLOOKUP(F100,Sheet3!$D$3:$E$91,2,FALSE) -> 1 | E100: QUINN MILLER | F100: Minnetonka High School | G100: 6th Grade Girls | I100: 100427613 | J100: 9042 | K100: 1 | L100: 00:00:00.000 | M100: 00:34:30.078 | N100: 00:34:30.078 | R100: 340 | S100: 24
A101: 100431651 | B101: 28 | C101: 359 | D101: =VLOOKUP(F101,Sheet3!$D$3:$E$91,2,FALSE) -> 1 | E101: SAGE LARSON | F101: Crosby-Ironton High School | G101: 6th Grade Girls | I101: 100431651 | J101: 9025 | K101: 1 | L101: 00:00:00.000 | M101: 00:35:07.354 | N101: 00:35:07.354 | R101: 336 | S101: 23
A102: 100392947 | B102: 29 | C102: 354 | D102: =VLOOKUP(F102,Sheet3!$D$3:$E$91,2,FALSE) -> 1 | E102: LANEY TYMINSKI | F102: Rock Ridge Composite | G102: 6th Grade Girls | I102: 100392947 | J102: 9059 | K102: 1 | L102: 00:00:00.000 | M102: 00:36:02.233 | N102: 00:36:02.233 | R102: 332 | S102: 22
A103: 100405954 | B103: 30 | C103: 350 | D103: =VLOOKUP(F103,Sheet3!$D$3:$E$91,2,FALSE) -> 2 | E103: PAIGE SUNDBERG | F103: Hudson High School | G103: 6th Grade Girls | I103: 100405954 | J103: 9037 | K103: 1 | L103: 00:00:00.000 | M103: 00:36:42.366 | N103: 00:36:42.366 | R103: 329 | S103: 21
A104: 100405929 | B104: 31 | C104: 346 | D104: =VLOOKUP(F104,Sheet3!$D$3:$E$91,2,FALSE) -> 2 | E104: REESE JEREMIASON | F104: Orono High School | G104: 6th Grade Girls | I104: 100405929 | J104: 9048 | K104: 1 | L104: 00:00:00.000 | M104: 00:40:32.662 | N104: 00:40:32.662 | R104: 326 | S104: 20
A105: 100410724 | B105: 32 | C105: 0 | D105: =VLOOKUP(F105,Sheet3!$D$3:$E$91,2,FALSE) -> 2 | E105: ESMAE HARVEY | F105: River Falls High School | G105: 6th Grade Girls | H105: DNF | I105: 100410724 | J105: 9055 | K105: 0 | L105: 00:00:00.000 | R105: 0 | S105: 0
A106: 100431613 | B106: 33 | C106: 0 | D106: =VLOOKUP(F106,Sheet3!$D$3:$E$91,2,FALSE) -> 1 | E106: CLEMENTINE HANDLER | F106: Hopkins High School | G106: 6th Grade Girls | H106: DNF | I106: 100431613 | J106: 9034 | K106: 0 | L106: 00:00:00.000 | R106: 0 | S106: 0
A107: 100405762 | B107: 34 | C107: 0 | D107: =VLOOKUP(F107,Sheet3!$D$3:$E$91,2,FALSE) -> 1 | E107: HAZEL MARCH | F107: Stillwater Mountain Bike | G107: 6th Grade Girls | H107: DNF | I107: 100405762 | J107: 9072 | K107: 0 | L107: 00:00:00.000 | R107: 0 | S107: 0
A108: 100392330 | B108: 1 | C108: 550 | D108: =VLOOKUP(F108,Sheet3!$D$3:$E$91,2,FALSE) -> 1 | E108: OWEN RITTER | F108: Crosby-Ironton High School | G108: 7th Grade Boys D1 | I108: 100392330 | J108: 6564 | K108: 1 | L108: 00:00:00.000 | M108: 00:17:32.031 | N108: 00:17:32.031 | R108: 500 | S108: 50
A109: 100392456 | B109: 2 | C109: 539 | D109: =VLOOKUP(F109,Sheet3!$D$3:$E$91,2,FALSE) -> 1 | E109: BENNO SASANFAR | F109: Minnetonka High School | G109: 7th Grade Boys D1 | I109: 100392456 | J109: 6626 | K109: 1 | L109: 00:00:00.000 | M109: 00:18:08.500 | N109: 00:18:08.500 | R109: 490 | S109: 49
A110: 100429671 | B110: 3 | C110: 529 | D110: =VLOOKUP(F110,Sheet3!$D$3:$E$91,2,FALSE) -> 1 | E110: RYLAN O'HEARN | F110: Brainerd High School | G110: 7th Grade Boys D1 | I110: 100429671 | J110: 6531 | K110: 1 | L110: 00:00:00.000 | M110: 00:18:16.146 | N110: 00:18:16.146 | R110: 481 | S110: 48
A111: 100390997 | B111: 4 | C111: 519 | D111: =VLOOKUP(F111,Sheet3!$D$3:$E$91,2,FALSE) -> 1 | E111: EZRA JACOBSON | F111: Crosby-Ironton High School | G111: 7th Grade Boys D1 | I111: 100390997 | J111: 6563 | K111: 1 | L111: 00:00:00.000 | M111: 00:18:36.125 | N111: 00:18:36.125 | R111: 472 | S111: 47
A112: 100392597 | B112: 5 | C112: 510 | D112: =VLOOKUP(F112,Sheet3!$D$3:$E$91,2,FALSE) -> 1 | E112: NICK SHIELD | F112: East Ridge High School | G112: 7th Grade Boys D1 | I112: 100392597 | J112: 6572 | K112: 1 | L112: 00:00:00.000 | M112: 00:18:37.645 | N112: 00:18:37.645 | R112: 464 | S112: 46
A113: 100391198 | B113: 6 | C113: 501 | D113: =VLOOKUP(F113,Sheet3!$D$3:$E$91,2,FALSE) -> 1 | E113: ROENEN KING-ELLISON | F113: Wayzata Mountain Bike | G113: 7th Grade Boys D1 | I113: 100391198 | J113: 6779 | K113: 1 | L113: 00:00:00.000 | M113: 00:18:43.955 | N113: 00:18:43.955 | R113: 456 | S113: 45
A114: 100392227 | B114: 7 | C114: 492 | D114: =VLOOKUP(F114,Sheet3!$D$3:$E$91,2,FALSE) -> 1 | E114: RIGEL PRIOR | F114: Wayzata Mountain Bike | G114: 7th Grade Boys D1 | I114: 100392227 | J114: 6784 | K114: 1 | L114: 00:00:00.000 | M114: 00:18:50.856 | N114: 00:18:50.856 | R114: 448 | S114: 44
A115: 100390206 | B115: 8 | C115: 484 | D115: =VLOOKUP(F115,Sheet3!$D$3:$E$91,2,FALSE) -> 1 | E115: STEFFAN DREKONJA | F115: Washburn High School | G115: 7th Grade Boys D1 | I115: 100390206 | J115: 6766 | K115: 1 | L115: 00:00:00.000 | M115: 00:18:55.897 | N115: 00:18:55.897 | R115: 441 | S115: 43
A116: 100392775 | B116: 9 | C116: 476 | D116: =VLOOKUP(F116,Sheet3!$D$3:$E$91,2,FALSE) -> 1 | E116: LINCOLN STUBER | F116: New Prague Middle and High School | G116: 7th Grade Boys D1 | I116: 100392775 | J116: 6656 | K116: 1 | L116: 00:00:00.000 | M116: 00:19:08.792 | N116: 00:19:08.792 | R116: 434 | S116: 42
A117: 100391153 | B117: 10 | C117: 468 | D117: =VLOOKUP(F117,Sheet3!$D$3:$E$91,2,FALSE) -> 1 | E117: CASEY KELLY | F117: New Prague Middle and High School | G117: 7th Grade Boys D1 | I117: 100391153 | J117: 6653 | K117: 1 | L117: 00:00:00.000 | M117: 00:19:24.968 | N117: 00:19:24.968 | R117: 427 | S117: 41
A118: 100392417 | B118: 11 | C118: 460 | D118: =VLOOKUP(F118,Sheet3!$D$3:$E$91,2,FALSE) -> 1 | E118: PATRICK RYAN | F118: Brainerd High School | G118: 7th Grade Boys D1 | I118: 100392417 | J118: 6533 | K118: 1 | L118: 00:00:00.000 | M118: 00:19:25.381 | N118: 00:19:25.381 | R118: 420 | S118: 40
A119: 100391462 | B119: 12 | C119: 453 | D119: =VLOOKUP(F119,Sheet3!$D$3:$E$91,2,FALSE) -> 1 | E119: ETHAN LI | F119: Wayzata Mountain Bike | G119: 7th Grade Boys D1 | I119: 100391462 | J119: 6780 | K119: 1 | L119: 00:00:00.000 | M119: 00:19:26.325 | N119: 00:19:26.325 | R119: 414 | S119: 39
A120: 100432632 | B120: 13 | C120: 446 | D120: =VLOOKUP(F120,Sheet3!$D$3:$E$91,2,FALSE) -> 1 | E120: AIDEN PRETTYMAN | F120: Brainerd High School | G120: 7th Grade Boys D1 | I120: 100432632 | J120: 6532 | K120: 1 | L120: 00:00:00.000 | M120: 00:19:27.524 | N120: 00:19:27.524 | R120: 408 | S120: 38
A121: 100392267 | B121: 14 | C121: 439 | D121: =VLOOKUP(F121,Sheet3!$D$3:$E$91,2,FALSE) -> 1 | E121: BEN RASMUSSEN | F121: New Prague Middle and High School | G121: 7th Grade Boys D1 | I121: 100392267 | J121: 6655 | K121: 1 | L121: 00:00:00.000 | M121: 00:19:30.587 | N121: 00:19:30.587 | R121: 402 | S121: 37
A122: 100391877 | B122: 15 | C122: 432 | D122: =VLOOKUP(F122,Sheet3!$D$3:$E$91,2,FALSE) -> 1 | E122: ALEXANDER NELSON | F122: Cloquet-Esko-Carlton | G122: 7th Grade Boys D1 | I122: 100391877 | J122: 6555 | K122: 1 | L122: 00:00:00.000 | M122: 00:19:50.924 | N122: 00:19:50.924 | R122: 396 | S122: 36
A123: 100393144 | B123: 16 | C123: 425 | D123: =VLOOKUP(F123,Sheet3!$D$3:$E$91,2,FALSE) -> 1 | E123: GRAHAM WILDER | F123: Cloquet-Esko-Carlton | G123: 7th Grade Boys D1 | I123: 100393144 | J123: 6560 | K123: 1 | L123: 00:00:00.000 | M123: 00:20:04.649 | N123: 00:20:04.649 | R123: 390 | S123: 35
A124: 100405947 | B124: 17 | C124: 419 | D124: =VLOOKUP(F124,Sheet3!$D$3:$E$91,2,FALSE) -> 1 | E124: NOLAN HENDRICKSON | F124: Cloquet-Esko-Carlton | G124: 7th Grade Boys D1 | I124: 100405947 | J124: 6553 | K124: 1 | L124: 00:00:00.000 | M124: 00:20:12.072 | N124: 00:20:12.072 | R124: 385 | S124: 34
A125: 100413120 | B125: 18 | C125: 413 | D125: =VLOOKUP(F125,Sheet3!$D$3:$E$91,2,FALSE) -> 1 | E125: MASON DEALWIS | F125: Chanhassen High School | G125: 7th Grade Boys D1 | I125: 100413120 | J125: 6539 | K125: 1 | L125: 00:00:00.000 | M125: 00:20:14.655 | N125: 00:20:14.655 | R125: 380 | S125: 33
A126: 100390223 | B126: 19 | C126: 407 | D126: =VLOOKUP(F126,Sheet3!$D$3:$E$91,2,FALSE) -> 1 | E126: TRUMAN DUEHR | F126: Shakopee High School | G126: 7th Grade Boys D1 | I126: 100390223 | J126: 6723 | K126: 1 | L126: 00:00:00.000 | M126: 00:20:25.464 | N126: 00:20:25.464 | R126: 375 | S126: 32
A127: 100390860 | B127: 20 | C127: 401 | D127: =VLOOKUP(F127,Sheet3!$D$3:$E$91,2,FALSE) -> 1 | E127: LEIGHTON HINES | F127: Chaska High School | G127: 7th Grade Boys D1 | I127: 100390860 | J127: 6546 | K127: 1 | L127: 00:00:00.000 | M127: 00:20:29.547 | N127: 00:20:29.547 | R127: 370 | S127: 31
A128: 100410505 | B128: 21 | C128: 395 | D128: =VLOOKUP(F128,Sheet3!$D$3:$E$91,2,FALSE) -> 1 | E128: ELLIOT ZIGICH | F128: Cloquet-Esko-Carlton | G128: 7th Grade Boys D1 | I128: 100410505 | J128: 6561 | K128: 1 | L128: 00:00:00.000 | M128: 00:20:31.650 | N128: 00:20:31.650 | R128: 365 | S128: 30
A129: 100420454 | B129: 22 | C129: 389 | D129: =VLOOKUP(F129,Sheet3!$D$3:$E$91,2,FALSE) -> 1 | E129: GRIFFIN WOESTE | F129: Hopkins High School | G129: 7th Grade Boys D1 | I129: 100420454 | J129: 6600 | K129: 1 | L129: 00:00:00.000 | M129: 00:20:49.383 | N129: 00:20:49.383 | R129: 360 | S129: 29
A130: 100391518 | B130: 23 | C130: 384 | D130: =VLOOKUP(F130,Sheet3!$D$3:$E$91,2,FALSE) -> 1 | E130: BENJAMIN LUESSI | F130: Minnetonka High School | G130: 7th Grade Boys D1 | I130: 100391518 | J130: 6622 | K130: 1 | L130: 00:00:00.000 | M130: 00:20:52.881 | N130: 00:20:52.881 | R130: 356 | S130: 28
A131: 100390768 | B131: 24 | C131: 379 | D131: =VLOOKUP(F131,Sheet3!$D$3:$E$91,2,FALSE) -> 1 | E131: ELIJAH HAYES | F131: Brainerd High School | G131: 7th Grade Boys D1 | I131: 100390768 | J131: 6530 | K131: 1 | L131: 00:00:00.000 | M131: 00:20:53.708 | N131: 00:20:53.708 | R131: 352 | S131: 27
A132: 100390620 | B132: 25 | C132: =+S132+R132 -> 374 | D132: =VLOOKUP(F132,Sheet3!$D$3:$E$91,2,FALSE) -> 1 | E132: CHARLIE GRUHN | F132: Hopkins High School | G132: 7th Grade Boys D1 | I132: 100390620 | J132: 6597 | K132: 1 | L132: 00:00:00.000 | M132: 00:20:58.273 | N132: 00:20:58.273 | R132: 348 | S132: 26
A133: 100391038 | B133: 26 | C133: 369 | D133: =VLOOKUP(F133,Sheet3!$D$3:$E$91,2,FALSE) -> 1 | E133: ANDREW JOHNSON | F133: Shakopee High School | G133: 7th Grade Boys D1 | I133: 100391038 | J133: 6728 | K133: 1 | L133: 00:00:00.000 | M133: 00:21:01.162 | N133: 00:21:01.162 | R133: 344 | S133: 25
A134: 100392257 | B134: 27 | C134: 364 | D134: =VLOOKUP(F134,Sheet3!$D$3:$E$91,2,FALSE) -> 1 | E134: LEVI RAISANEN | F134: Cloquet-Esko-Carlton | G134: 7th Grade Boys D1 | I134: 100392257 | J134: 6557 | K134: 1 | L134: 00:00:00.000 | M134: 00:21:03.125 | N134: 00:21:03.125 | R134: 340 | S134: 24
A135: 100429319 | B135: 28 | C135: 359 | D135: =VLOOKUP(F135,Sheet3!$D$3:$E$91,2,FALSE) -> 1 | E135: HUNTER HOLLINBECK | F135: Armstrong Cycle | G135: 7th Grade Boys D1 | I135: 100429319 | J135: 6512 | K135: 1 | L135: 00:00:00.000 | M135: 00:21:04.595 | N135: 00:21:04.595 | R135: 336 | S135: 23
A136: 100390010 | B136: 29 | C136: 354 | D136: =VLOOKUP(F136,Sheet3!$D$3:$E$91,2,FALSE) -> 1 | E136: BROOKS CONRAD | F136: Chanhassen High School | G136: 7th Grade Boys D1 | I136: 100390010 | J136: 6538 | K136: 1 | L136: 00:00:00.000 | M136: 00:21:06.655 | N136: 00:21:06.655 | R136: 332 | S136: 22
A137: 100429897 | B137: 30 | C137: 350 | D137: =VLOOKUP(F137,Sheet3!$D$3:$E$91,2,FALSE) -> 1 | E137: KAI NELSON | F137: Champlin Park High School | G137: 7th Grade Boys D1 | I137: 100429897 | J137: 6537 | K137: 1 | L137: 00:00:00.000 | M137: 00:21:11.658 | N137: 00:21:11.658 | R137: 329 | S137: 21
A138: 100391871 | B138: 31 | C138: 346 | D138: =VLOOKUP(F138,Sheet3!$D$3:$E$91,2,FALSE) -> 1 | E138: MILO NEEDHAM | F138: Mounds View High School | G138: 7th Grade Boys D1 | I138: 100391871 | J138: 6637 | K138: 1 | L138: 00:00:00.000 | M138: 00:21:27.242 | N138: 00:21:27.242 | R138: 326 | S138: 20
A139: 100390927 | B139: 32 | C139: 342 | D139: =VLOOKUP(F139,Sheet3!$D$3:$E$91,2,FALSE) -> 1 | E139: DANIEL HORTER | F139: Prior Lake High School | G139: 7th Grade Boys D1 | I139: 100390927 | J139: 6673 | K139: 1 | L139: 00:00:00.000 | M139: 00:21:34.150 | N139: 00:21:34.150 | R139: 323 | S139: 19
A140: 100390638 | B140: 33 | C140: 338 | D140: =VLOOKUP(F140,Sheet3!$D$3:$E$91,2,FALSE) -> 1 | E140: CHARLIE GUSTAFSON | F140: Wayzata Mountain Bike | G140: 7th Grade Boys D1 | I140: 100390638 | J140: 6778 | K140: 1 | L140: 00:00:00.000 | M140: 00:21:42.873 | N140: 00:21:42.873 | R140: 320 | S140: 18
A141: 100392872 | B141: 34 | C141: 334 | D141: =VLOOKUP(F141,Sheet3!$D$3:$E$91,2,FALSE) -> 1 | E141: ISAIHA TILBURY | F141: Burnsville High School | G141: 7th Grade Boys D1 | I141: 100392872 | J141: 6534 | K141: 1 | L141: 00:00:00.000 | M141: 00:21:43.512 | N141: 00:21:43.512 | R141: 317 | S141: 17
A142: 100391056 | B142: 35 | C142: 330 | D142: =VLOOKUP(F142,Sheet3!$D$3:$E$91,2,FALSE) -> 1 | E142: DOMINICK JOHNSON | F142: Bloomington Jefferson | G142: 7th Grade Boys D1 | I142: 100391056 | J142: 6523 | K142: 1 | L142: 00:00:00.000 | M142: 00:21:48.317 | N142: 00:21:48.317 | R142: 314 | S142: 16
A143: 100409209 | B143: 36 | C143: 326 | D143: =VLOOKUP(F143,Sheet3!$D$3:$E$91,2,FALSE) -> 1 | E143: COLBY ERICKSON | F143: Shakopee High School | G143: 7th Grade Boys D1 | H143: Relegate 1/Deviation | I143: 100409209 | J143: 6724 | K143: 1 | L143: 00:00:00.000 | M143: 00:21:48.320 | N143: 00:21:48.320 | R143: 311 | S143: 15
A144: 100421102 | B144: 37 | C144: 322 | D144: =VLOOKUP(F144,Sheet3!$D$3:$E$91,2,FALSE) -> 1 | E144: MILES HILKER | F144: Minnetonka High School | G144: 7th Grade Boys D1 | I144: 100421102 | J144: 6621 | K144: 1 | L144: 00:00:00.000 | M144: 00:21:49.156 | N144: 00:21:49.156 | R144: 308 | S144: 14
A145: 100392336 | B145: 38 | C145: 319 | D145: =VLOOKUP(F145,Sheet3!$D$3:$E$91,2,FALSE) -> 1 | E145: AEDAN ROACH | F145: Stillwater Mountain Bike | G145: 7th Grade Boys D1 | I145: 100392336 | J145: 6756 | K145: 1 | L145: 00:00:00.000 | M145: 00:21:49.555 | N145: 00:21:49.555 | R145: 306 | S145: 13
A146: 100404805 | B146: 39 | C146: 316 | D146: =VLOOKUP(F146,Sheet3!$D$3:$E$91,2,FALSE) -> 1 | E146: IAN GIFFORD | F146: Minnetonka High School | G146: 7th Grade Boys D1 | I146: 100404805 | J146: 6619 | K146: 1 | L146: 00:00:00.000 | M146: 00:21:50.569 | N146: 00:21:50.569 | R146: 304 | S146: 12
A147: 100390030 | B147: 40 | C147: 313 | D147: =VLOOKUP(F147,Sheet3!$D$3:$E$91,2,FALSE) -> 1 | E147: SAM CORBETT | F147: Wayzata Mountain Bike | G147: 7th Grade Boys D1 | I147: 100390030 | J147: 6777 | K147: 1 | L147: 00:00:00.000 | M147: 00:21:52.344 | N147: 00:21:52.344 | R147: 302 | S147: 11
A148: 100432168 | B148: 41 | C148: 310 | D148: =VLOOKUP(F148,Sheet3!$D$3:$E$91,2,FALSE) -> 1 | E148: LEVI TURNER | F148: Crosby-Ironton High School | G148: 7th Grade Boys D1 | I148: 100432168 | J148: 6565 | K148: 1 | L148: 00:00:00.000 | M148: 00:22:14.764 | N148: 00:22:14.764 | R148: 300 | S148: 10
A149: 100390666 | B149: 42 | C149: 307 | D149: =VLOOKUP(F149,Sheet3!$D$3:$E$91,2,FALSE) -> 1 | E149: MACKEAN HAINES | F149: Brainerd High School | G149: 7th Grade Boys D1 | I149: 100390666 | J149: 6529 | K149: 1 | L149: 00:00:00.000 | M149: 00:22:22.638 | N149: 00:22:22.638 | R149: 298 | S149: 9
A150: 100392981 | B150: 43 | C150: 304 | D150: =VLOOKUP(F150,Sheet3!$D$3:$E$91,2,FALSE) -> 1 | E150: SAM VAN HORN | F150: Hopkins High School | G150: 7th Grade Boys D1 | I150: 100392981 | J150: 6599 | K150: 1 | L150: 00:00:00.000 | M150: 00:22:29.925 | N150: 00:22:29.925 | R150: 296 | S150: 8
A151: 100421584 | B151: 44 | C151: 301 | D151: =VLOOKUP(F151,Sheet3!$D$3:$E$91,2,FALSE) -> 1 | E151: JASPER NELSEN | F151: Minneapolis Southwest | G151: 7th Grade Boys D1 | I151: 100421584 | J151: 6645 | K151: 1 | L151: 00:00:00.000 | M151: 00:22:36.335 | N151: 00:22:36.335 | R151: 294 | S151: 7
A152: 100409323 | B152: 45 | C152: 298 | D152: =VLOOKUP(F152,Sheet3!$D$3:$E$91,2,FALSE) -> 1 | E152: ISAAC TRACHTENBERG | F152: Minneapolis Southwest | G152: 7th Grade Boys D1 | I152: 100409323 | J152: 6650 | K152: 1 | L152: 00:00:00.000 | M152: 00:22:37.503 | N152: 00:22:37.503 | R152: 292 | S152: 6
A153: 100393072 | B153: 46 | C153: 295 | D153: =VLOOKUP(F153,Sheet3!$D$3:$E$91,2,FALSE) -> 1 | E153: EDDIE WEBSTER | F153: Chaska High School | G153: 7th Grade Boys D1 | I153: 100393072 | J153: 6548 | K153: 1 | L153: 00:00:00.000 | M153: 00:22:38.173 | N153: 00:22:38.173 | R153: 290 | S153: 5
A154: 100391499 | B154: 47 | C154: 293 | D154: =VLOOKUP(F154,Sheet3!$D$3:$E$91,2,FALSE) -> 1 | E154: CONNOR LONG | F154: Prior Lake High School | G154: 7th Grade Boys D1 | I154: 100391499 | J154: 6674 | K154: 1 | L154: 00:00:00.000 | M154: 00:22:47.281 | N154: 00:22:47.281 | R154: 289 | S154: 4
A155: 100429402 | B155: 48 | C155: 291 | D155: =VLOOKUP(F155,Sheet3!$D$3:$E$91,2,FALSE) -> 1 | E155: PARKER CHEN | F155: Wayzata Mountain Bike | G155: 7th Grade Boys D1 | I155: 100429402 | J155: 6776 | K155: 1 | L155: 00:00:00.000 | M155: 00:22:53.510 | N155: 00:22:53.510 | R155: 288 | S155: 3
A156: 100390049 | B156: 49 | C156: 289 | D156: =VLOOKUP(F156,Sheet3!$D$3:$E$91,2,FALSE) -> 1 | E156: CALEB CROWSER | F156: Alexandria Area Youth Cycling | G156: 7th Grade Boys D1 | I156: 100390049 | J156: 6504 | K156: 1 | L156: 00:00:00.000 | M156: 00:23:36.776 | N156: 00:23:36.776 | R156: 287 | S156: 2
A157: 100412148 | B157: 50 | C157: 287 | D157: =VLOOKUP(F157,Sheet3!$D$3:$E$91,2,FALSE) -> 1 | E157: BLAKE ORRBEN | F157: Shakopee High School | G157: 7th Grade Boys D1 | I157: 100412148 | J157: 6732 | K157: 1 | L157: 00:00:00.000 | M157: 00:23:39.194 | N157: 00:23:39.194 | R157: 286 | S157: 1
A158: 100406311 | B158: 51 | C158: 286 | D158: =VLOOKUP(F158,Sheet3!$D$3:$E$91,2,FALSE) -> 1 | E158: JOSHUA HENDERSON | F158: Mounds View High School | G158: 7th Grade Boys D1 | I158: 100406311 | J158: 6809 | K158: 1 | L158: 00:00:00.000 | M158: 00:23:47.301 | N158: 00:23:47.301 | R158: 285 | S158: 1
A159: 100389829 | B159: 52 | C159: 285 | D159: =VLOOKUP(F159,Sheet3!$D$3:$E$91,2,FALSE) -> 1 | E159: GRIFFEN BUGHER | F159: Alexandria Area Youth Cycling | G159: 7th Grade Boys D1 | I159: 100389829 | J159: 6503 | K159: 1 | L159: 00:00:00.000 | M159: 00:23:48.565 | N159: 00:23:48.565 | R159: 284 | S159: 1
A160: 100389394 | B160: 53 | C160: 284 | D160: =VLOOKUP(F160,Sheet3!$D$3:$E$91,2,FALSE) -> 1 | E160: GRIFFIN AHLBAUM | F160: Champlin Park High School | G160: 7th Grade Boys D1 | I160: 100389394 | J160: 6536 | K160: 1 | L160: 00:00:00.000 | M160: 00:23:58.467 | N160: 00:23:58.467 | R160: 283 | S160: 1
A161: 100432376 | B161: 54 | C161: 283 | D161: =VLOOKUP(F161,Sheet3!$D$3:$E$91,2,FALSE) -> 1 | E161: KONRAD WIDENBRANT | F161: Stillwater Mountain Bike | G161: 7th Grade Boys D1 | I161: 100432376 | J161: 6757 | K161: 1 | L161: 00:00:00.000 | M161: 00:24:00.170 | N161: 00:24:00.170 | R161: 282 | S161: 1
A162: 100389379 | B162: 55 | C162: 282 | D162: =VLOOKUP(F162,Sheet3!$D$3:$E$91,2,FALSE) -> 1 | E162: JAMES AAKER | F162: Wayzata Mountain Bike | G162: 7th Grade Boys D1 | I162: 100389379 | J162: 6774 | K162: 1 | L162: 00:00:00.000 | M162: 00:24:08.223 | N162: 00:24:08.223 | R162: 281 | S162: 1
A163: 100391535 | B163: 56 | C163: 281 | D163: =VLOOKUP(F163,Sheet3!$D$3:$E$91,2,FALSE) -> 1 | E163: NOLAN MACMILLAN | F163: Wayzata Mountain Bike | G163: 7th Grade Boys D1 | I163: 100391535 | J163: 6782 | K163: 1 | L163: 00:00:00.000 | M163: 00:24:21.065 | N163: 00:24:21.065 | R163: 280 | S163: 1
A164: 100426269 | B164: 57 | C164: 280 | D164: =VLOOKUP(F164,Sheet3!$D$3:$E$91,2,FALSE) -> 1 | E164: JOSH MOHR | F164: Wayzata Mountain Bike | G164: 7th Grade Boys D1 | I164: 100426269 | J164: 6783 | K164: 1 | L164: 00:00:00.000 | M164: 00:24:24.128 | N164: 00:24:24.128 | R164: 279 | S164: 1
A165: 100429334 | B165: 58 | C165: 279 | D165: =VLOOKUP(F165,Sheet3!$D$3:$E$91,2,FALSE) -> 1 | E165: PATRICK JOHNSON | F165: Hopkins High School | G165: 7th Grade Boys D1 | I165: 100429334 | J165: 6598 | K165: 1 | L165: 00:00:00.000 | M165: 00:24:26.223 | N165: 00:24:26.223 | R165: 278 | S165: 1
A166: 100392773 | B166: 59 | C166: 278 | D166: =VLOOKUP(F166,Sheet3!$D$3:$E$91,2,FALSE) -> 1 | E166: AVERY STRUCKMANN | F166: Rochester Century High School | G166: 7th Grade Boys D1 | I166: 100392773 | J166: 6692 | K166: 1 | L166: 00:00:00.000 | M166: 00:24:39.524 | N166: 00:24:39.524 | R166: 277 | S166: 1
A167: 100392549 | B167: 60 | C167: 277 | D167: =VLOOKUP(F167,Sheet3!$D$3:$E$91,2,FALSE) -> 1 | E167: OTTO SCHUSTER | F167: Minneapolis Southwest | G167: 7th Grade Boys D1 | I167: 100392549 | J167: 6648 | K167: 1 | L167: 00:00:00.000 | M167: 00:24:58.788 | N167: 00:24:58.788 | R167: 276 | S167: 1
A168: 100391141 | B168: 61 | C168: 276 | D168: =VLOOKUP(F168,Sheet3!$D$3:$E$91,2,FALSE) -> 1 | E168: LANCE KAREL | F168: Mounds View High School | G168: 7th Grade Boys D1 | I168: 100391141 | J168: 6635 | K168: 1 | L168: 00:00:00.000 | M168: 00:25:06.951 | N168: 00:25:06.951 | R168: 275 | S168: 1
A169: 100424393 | B169: 62 | C169: 275 | D169: =VLOOKUP(F169,Sheet3!$D$3:$E$91,2,FALSE) -> 1 | E169: OWEN HIGGINS | F169: Minnetonka High School | G169: 7th Grade Boys D1 | I169: 100424393 | J169: 6620 | K169: 1 | L169: 00:00:00.000 | M169: 00:25:12.778 | N169: 00:25:12.778 | R169: 274 | S169: 1
A170: 100390494 | B170: 63 | C170: 274 | D170: =VLOOKUP(F170,Sheet3!$D$3:$E$91,2,FALSE) -> 1 | E170: LOGAN GAMACHE | F170: Cloquet-Esko-Carlton | G170: 7th Grade Boys D1 | I170: 100390494 | J170: 6551 | K170: 1 | L170: 00:00:00.000 | M170: 00:25:19.534 | N170: 00:25:19.534 | R170: 273 | S170: 1
A171: 100406760 | B171: 64 | C171: 273 | D171: =VLOOKUP(F171,Sheet3!$D$3:$E$91,2,FALSE) -> 1 | E171: CARLO CALBONE | F171: Bloomington Jefferson | G171: 7th Grade Boys D1 | I171: 100406760 | J171: 6521 | K171: 1 | L171: 00:00:00.000 | M171: 00:25:41.813 | N171: 00:25:41.813 | R171: 272 | S171: 1
A172: 100426483 | B172: 65 | C172: 272 | D172: =VLOOKUP(F172,Sheet3!$D$3:$E$91,2,FALSE) -> 1 | E172: WESTON GRABER | F172: New Prague Middle and High School | G172: 7th Grade Boys D1 | I172: 100426483 | J172: 6652 | K172: 1 | L172: 00:00:00.000 | M172: 00:25:57.735 | N172: 00:25:57.735 | R172: 271 | S172: 1
A173: 100418426 | B173: 66 | C173: 271 | D173: =VLOOKUP(F173,Sheet3!$D$3:$E$91,2,FALSE) -> 1 | E173: RYAN GLICK | F173: White Bear Lake High School | G173: 7th Grade Boys D1 | I173: 100418426 | J173: 6787 | K173: 1 | L173: 00:00:00.000 | M173: 00:26:21.750 | N173: 00:26:21.750 | R173: 270 | S173: 1
A174: 100419059 | B174: 67 | C174: 270 | D174: =VLOOKUP(F174,Sheet3!$D$3:$E$91,2,FALSE) -> 1 | E174: SETH VLIEGER | F174: White Bear Lake High School | G174: 7th Grade Boys D1 | I174: 100419059 | J174: 6789 | K174: 1 | L174: 00:00:00.000 | M174: 00:26:21.771 | N174: 00:26:21.771 | R174: 269 | S174: 1
A175: 100391335 | B175: 68 | C175: 269 | D175: =VLOOKUP(F175,Sheet3!$D$3:$E$91,2,FALSE) -> 1 | E175: BRAYDEN LAMB | F175: Stillwater Mountain Bike | G175: 7th Grade Boys D1 | I175: 100391335 | J175: 6754 | K175: 1 | L175: 00:00:00.000 | M175: 00:27:22.445 | N175: 00:27:22.445 | R175: 268 | S175: 1
A176: 100389433 | B176: 69 | C176: 268 | D176: =VLOOKUP(F176,Sheet3!$D$3:$E$91,2,FALSE) -> 1 | E176: PIKE AMUNDSON | F176: Alexandria Area Youth Cycling | G176: 7th Grade Boys D1 | I176: 100389433 | J176: 6501 | K176: 1 | L176: 00:00:00.000 | M176: 00:27:52.249 | N176: 00:27:52.249 | R176: 267 | S176: 1
A177: 100421685 | B177: 70 | C177: 267 | D177: =VLOOKUP(F177,Sheet3!$D$3:$E$91,2,FALSE) -> 1 | E177: COLLIN CRAWFORD | F177: Washburn High School | G177: 7th Grade Boys D1 | I177: 100421685 | J177: 6765 | K177: 1 | L177: 00:00:00.000 | M177: 00:28:17.803 | N177: 00:28:17.803 | R177: 266 | S177: 1
A178: 100413369 | B178: 71 | C178: 266 | D178: =VLOOKUP(F178,Sheet3!$D$3:$E$91,2,FALSE) -> 1 | E178: FRANK SNIDER | F178: Minnetonka High School | G178: 7th Grade Boys D1 | I178: 100413369 | J178: 6627 | K178: 1 | L178: 00:00:00.000 | M178: 00:28:46.482 | N178: 00:28:46.482 | R178: 265 | S178: 1
A179: 100430594 | B179: 72 | C179: 265 | D179: =VLOOKUP(F179,Sheet3!$D$3:$E$91,2,FALSE) -> 1 | E179: BARRETT DOWNER | F179: Alexandria Area Youth Cycling | G179: 7th Grade Boys D1 | I179: 100430594 | J179: 6506 | K179: 1 | L179: 00:00:00.000 | M179: 00:29:09.543 | N179: 00:29:09.543 | R179: 264 | S179: 1
A180: 100407725 | B180: 73 | C180: 264 | D180: =VLOOKUP(F180,Sheet3!$D$3:$E$91,2,FALSE) -> 1 | E180: LIAM PATREK | F180: Mounds View High School | G180: 7th Grade Boys D1 | I180: 100407725 | J180: 6638 | K180: 1 | L180: 00:00:00.000 | M180: 00:29:51.629 | N180: 00:29:51.629 | R180: 263 | S180: 1
A181: 100416102 | B181: 74 | C181: 263 | D181: =VLOOKUP(F181,Sheet3!$D$3:$E$91,2,FALSE) -> 1 | E181: WILLIAM JOHNSON | F181: Cloquet-Esko-Carlton | G181: 7th Grade Boys D1 | I181: 100416102 | J181: 6554 | K181: 1 | L181: 00:00:00.000 | M181: 00:29:55.433 | N181: 00:29:55.433 | R181: 262 | S181: 1
A182: 100391415 | B182: 75 | C182: 262 | D182: =VLOOKUP(F182,Sheet3!$D$3:$E$91,2,FALSE) -> 1 | E182: JACKSON LEGER | F182: Winona | G182: 7th Grade Boys D1 | I182: 100391415 | J182: 6790 | K182: 1 | L182: 00:00:00.000 | M182: 00:30:14.280 | N182: 00:30:14.280 | R182: 261 | S182: 1
A183: 100408841 | B183: 76 | C183: 261 | D183: =VLOOKUP(F183,Sheet3!$D$3:$E$91,2,FALSE) -> 1 | E183: LEVI FROYUM | F183: Shakopee High School | G183: 7th Grade Boys D1 | I183: 100408841 | J183: 6725 | K183: 1 | L183: 00:00:00.000 | M183: 00:30:21.111 | N183: 00:30:21.111 | R183: 260 | S183: 1
A184: 100417298 | B184: 77 | C184: 260 | D184: =VLOOKUP(F184,Sheet3!$D$3:$E$91,2,FALSE) -> 1 | E184: GUNNAR RADCLIFFE | F184: Stillwater Mountain Bike | G184: 7th Grade Boys D1 | I184: 100417298 | J184: 6755 | K184: 1 | L184: 00:00:00.000 | M184: 00:30:22.554 | N184: 00:30:22.554 | R184: 259 | S184: 1
A185: 100392727 | B185: 78 | C185: 259 | D185: =VLOOKUP(F185,Sheet3!$D$3:$E$91,2,FALSE) -> 1 | E185: JAXTON STARK | F185: Shakopee High School | G185: 7th Grade Boys D1 | I185: 100392727 | J185: 6736 | K185: 1 | L185: 00:00:00.000 | M185: 00:30:32.521 | N185: 00:30:32.521 | R185: 258 | S185: 1
A186: 100391504 | B186: 79 | C186: 258 | D186: =VLOOKUP(F186,Sheet3!$D$3:$E$91,2,FALSE) -> 1 | E186: JACOB LOOMAN | F186: Winona | G186: 7th Grade Boys D1 | I186: 100391504 | J186: 6791 | K186: 1 | L186: 00:00:00.000 | M186: 00:31:07.302 | N186: 00:31:07.302 | R186: 257 | S186: 1
A187: 100413335 | B187: 80 | C187: 257 | D187: =VLOOKUP(F187,Sheet3!$D$3:$E$91,2,FALSE) -> 1 | E187: LOGAN WALDO | F187: Cloquet-Esko-Carlton | G187: 7th Grade Boys D1 | I187: 100413335 | J187: 6559 | K187: 1 | L187: 00:00:00.000 | M187: 00:31:59.911 | N187: 00:31:59.911 | R187: 256 | S187: 1
A188: 100393057 | B188: 81 | C188: 256 | D188: =VLOOKUP(F188,Sheet3!$D$3:$E$91,2,FALSE) -> 1 | E188: JACOB WARD | F188: Washburn High School | G188: 7th Grade Boys D1 | I188: 100393057 | J188: 6773 | K188: 1 | L188: 00:00:00.000 | M188: 00:32:33.595 | N188: 00:32:33.595 | R188: 255 | S188: 1
A189: 100390950 | B189: 82 | C189: 255 | D189: =VLOOKUP(F189,Sheet3!$D$3:$E$91,2,FALSE) -> 1 | E189: ROCK HUMMEL | F189: Shakopee High School | G189: 7th Grade Boys D1 | I189: 100390950 | J189: 6727 | K189: 1 | L189: 00:00:00.000 | M189: 00:37:05.406 | N189: 00:37:05.406 | R189: 254 | S189: 1
A190: 100428699 | B190: 1 | C190: 550 | D190: =VLOOKUP(F190,Sheet3!$D$3:$E$91,2,FALSE) -> 2 | E190: REID HAMLIN | F190: Chisago Lakes Composite | G190: 7th Grade Boys D2 | I190: 100428699 | J190: 6549 | K190: 1 | L190: 00:00:00.000 | M190: 00:19:05.239 | N190: 00:19:05.239 | R190: 500 | S190: 50
A191: 100434885 | B191: 2 | C191: 539 | D191: =VLOOKUP(F191,Sheet3!$D$3:$E$91,2,FALSE) -> 2 | E191: CHARLIE WILLIAMSON | F191: St. Paul Composite - North | G191: 7th Grade Boys D2 | I191: 100434885 | J191: 6805 | K191: 1 | L191: 00:00:00.000 | M191: 00:19:16.273 | N191: 00:19:16.273 | R191: 490 | S191: 49
A192: 100389410 | B192: 3 | C192: 529 | D192: =VLOOKUP(F192,Sheet3!$D$3:$E$91,2,FALSE) -> 2 | E192: SAM ALLAN | F192: Rosemount High School | G192: 7th Grade Boys D2 | I192: 100389410 | J192: 6716 | K192: 1 | L192: 00:00:00.000 | M192: 00:19:20.227 | N192: 00:19:20.227 | R192: 481 | S192: 48
A193: 100391366 | B193: 4 | C193: 519 | D193: =VLOOKUP(F193,Sheet3!$D$3:$E$91,2,FALSE) -> 2 | E193: JACK LARSEN | F193: St Cloud Area Composite | G193: 7th Grade Boys D2 | I193: 100391366 | J193: 6739 | K193: 1 | L193: 00:00:00.000 | M193: 00:19:21.544 | N193: 00:19:21.544 | R193: 472 | S193: 47
A194: 100389947 | B194: 5 | C194: 510 | D194: =VLOOKUP(F194,Sheet3!$D$3:$E$91,2,FALSE) -> 2 | E194: ALEX CHOUANARD | F194: St Michael / Albertville Composite | G194: 7th Grade Boys D2 | I194: 100389947 | J194: 6743 | K194: 1 | L194: 00:00:00.000 | M194: 00:19:24.483 | N194: 00:19:24.483 | R194: 464 | S194: 46
A195: 100410036 | B195: 6 | C195: 501 | D195: =VLOOKUP(F195,Sheet3!$D$3:$E$91,2,FALSE) -> 2 | E195: ELI MEISER | F195: Roosevelt High School | G195: 7th Grade Boys D2 | I195: 100410036 | J195: 6714 | K195: 1 | L195: 00:00:00.000 | M195: 00:19:39.172 | N195: 00:19:39.172 | R195: 456 | S195: 45
A196: 100392926 | B196: 7 | C196: =+S196+R196 -> 492 | D196: =VLOOKUP(F196,Sheet3!$D$3:$E$91,2,FALSE) -> 2 | E196: KHANH TRUONG | F196: St Paul Central | G196: 7th Grade Boys D2 | I196: 100392926 | J196: 6750 | K196: 1 | L196: 00:00:00.000 | M196: 00:19:58.409 | N196: 00:19:58.409 | R196: 448 | S196: 44
A197: 100390397 | B197: 8 | C197: 484 | D197: =VLOOKUP(F197,Sheet3!$D$3:$E$91,2,FALSE) -> 2 | E197: ISAAC FOLEY | F197: Eden Prairie High School | G197: 7th Grade Boys D2 | I197: 100390397 | J197: 6576 | K197: 1 | L197: 00:00:00.000 | M197: 00:20:03.617 | N197: 00:20:03.617 | R197: 441 | S197: 43
A198: 100391421 | B198: 9 | C198: 476 | D198: =VLOOKUP(F198,Sheet3!$D$3:$E$91,2,FALSE) -> 2 | E198: ISAAC LEISETH | F198: Northwest Composite | G198: 7th Grade Boys D2 | I198: 100391421 | J198: 6660 | K198: 1 | L198: 00:00:00.000 | M198: 00:20:06.410 | N198: 00:20:06.410 | R198: 434 | S198: 42
A199: 100392277 | B199: 10 | C199: 468 | D199: =VLOOKUP(F199,Sheet3!$D$3:$E$91,2,FALSE) -> 2 | E199: FRANKLIN RECH | F199: Hutchinson High School | G199: 7th Grade Boys D2 | I199: 100392277 | J199: 6607 | K199: 1 | L199: 00:00:00.000 | M199: 00:20:14.866 | N199: 00:20:14.866 | R199: 427 | S199: 41
A200: 100391529 | B200: 11 | C200: 460 | D200: =VLOOKUP(F200,Sheet3!$D$3:$E$91,2,FALSE) -> 2 | E200: CALEB LYON | F200: Eagan High School | G200: 7th Grade Boys D2 | I200: 100391529 | J200: 6570 | K200: 1 | L200: 00:00:00.000 | M200: 00:20:16.746 | N200: 00:20:16.746 | R200: 420 | S200: 40
A201: 100391759 | B201: 12 | C201: 453 | D201: =VLOOKUP(F201,Sheet3!$D$3:$E$91,2,FALSE) -> 2 | E201: JACK MILTON | F201: St Louis Park High School | G201: 7th Grade Boys D2 | I201: 100391759 | J201: 6741 | K201: 1 | L201: 00:00:00.000 | M201: 00:20:17.878 | N201: 00:20:17.878 | R201: 414 | S201: 39
... 1190 more rows

Sheet Sheet3
D2: Team | E2: Div | G2: Team | H2: Div | J2: Team | K2: Div
B3: Cloquet-Esko-Carlton | D3: =B3 -> Cloquet-Esko-Carlton | E3: =VLOOKUP(D3,Divisions!$P$4:$Q$95,2,FALSE) -> 1 | G3: Alexandria Area Youth Cycling | H3: 1 | J3: Apple Valley High School | K3: 2
B4: Rock Ridge Composite | D4: =nextUnique($B$3:$B$1390,$D$3:D3) -> Rock Ridge Composite | E4: =VLOOKUP(D4,Divisions!$P$4:$Q$95,2,FALSE) -> 1 | G4: Armstrong Cycle | H4: 1 | J4: Austin High School | K4: 2
B5: Minnetonka High School | D5: =nextUnique($B$3:$B$1390,$D$3:D4) -> Minnetonka High School | E5: =VLOOKUP(D5,Divisions!$P$4:$Q$95,2,FALSE) -> 1 | G5: Bloomington Jefferson | H5: 1 | J5: Bemidji Composite | K5: 2
B6: Stillwater Mountain Bike | D6: =nextUnique($B$3:$B$1390,$D$3:D5) -> Stillwater Mountain Bike | E6: =VLOOKUP(D6,Divisions!$P$4:$Q$95,2,FALSE) -> 1 | G6: Brainerd High School | H6: 1 | J6: Benilde St Margaret | K6: 2
B7: Cloquet-Esko-Carlton | D7: =nextUnique($B$3:$B$1390,$D$3:D6) -> East Ridge High School | E7: =VLOOKUP(D7,Divisions!$P$4:$Q$95,2,FALSE) -> 1 | G7: Burnsville High School | H7: 1 | J7: Bloomington Composite | K7: 2
B8: East Ridge High School | D8: =nextUnique($B$3:$B$1390,$D$3:D7) -> Brainerd High School | E8: =VLOOKUP(D8,Divisions!$P$4:$Q$95,2,FALSE) -> 1 | G8: Champlin Park High School | H8: 1 | J8: Borealis Composite | K8: 2
B9: East Ridge High School | D9: =nextUnique($B$3:$B$1390,$D$3:D8) -> Crosby-Ironton High School | E9: =VLOOKUP(D9,Divisions!$P$4:$Q$95,2,FALSE) -> 1 | G9: Chanhassen High School | H9: 1 | J9: Breck/Blake | K9: 2
B10: East Ridge High School | D10: =nextUnique($B$3:$B$1390,$D$3:D9) -> Edina Cycling | E10: =VLOOKUP(D10,Divisions!$P$4:$Q$95,2,FALSE) -> 1 | G10: Chaska High School | H10: 1 | J10: Cannon Valley Composite | K10: 2
B11: Cloquet-Esko-Carlton | D11: =nextUnique($B$3:$B$1390,$D$3:D10) -> Chaska High School | E11: =VLOOKUP(D11,Divisions!$P$4:$Q$95,2,FALSE) -> 1 | G11: Cloquet-Esko-Carlton | H11: 1 | J11: Chisago Lakes Composite | K11: 2
B12: Brainerd High School | D12: =nextUnique($B$3:$B$1390,$D$3:D11) -> Burnsville High School | E12: =VLOOKUP(D12,Divisions!$P$4:$Q$95,2,FALSE) -> 1 | G12: Crosby-Ironton High School | H12: 1 | J12: Duluth Composite | K12: 2
B13: East Ridge High School | D13: =nextUnique($B$3:$B$1390,$D$3:D12) -> Wayzata Mountain Bike | E13: =VLOOKUP(D13,Divisions!$P$4:$Q$95,2,FALSE) -> 1 | G13: Duluth East High School | H13: 1 | J13: Eagan High School | K13: 2
B14: Stillwater Mountain Bike | D14: =nextUnique($B$3:$B$1390,$D$3:D13) -> Lakeville North High School | E14: =VLOOKUP(D14,Divisions!$P$4:$Q$95,2,FALSE) -> 1 | G14: East Ridge High School | H14: 1 | J14: Eastview High School | K14: 2
B15: Crosby-Ironton High School | D15: =nextUnique($B$3:$B$1390,$D$3:D14) -> Champlin Park High School | E15: =VLOOKUP(D15,Divisions!$P$4:$Q$95,2,FALSE) -> 1 | G15: Edina Cycling | H15: 1 | J15: Eden Prairie High School | K15: 2
B16: Edina Cycling | D16: =nextUnique($B$3:$B$1390,$D$3:D15) -> Armstrong Cycle | E16: =VLOOKUP(D16,Divisions!$P$4:$Q$95,2,FALSE) -> 1 | G16: Hopkins High School | H16: 1 | J16: Elk River Composite | K16: 2
B17: Chaska High School | D17: =nextUnique($B$3:$B$1390,$D$3:D16) -> Minneapolis Southwest | E17: =VLOOKUP(D17,Divisions!$P$4:$Q$95,2,FALSE) -> 1 | G17: Lakeville North High School | H17: 1 | J17: Hastings Area Composite | K17: 2
B18: Burnsville High School | D18: =nextUnique($B$3:$B$1390,$D$3:D17) -> Shakopee High School | E18: =VLOOKUP(D18,Divisions!$P$4:$Q$95,2,FALSE) -> 1 | G18: Minneapolis Southwest | H18: 1 | J18: Hermantown-Proctor | K18: 2
B19: Wayzata Mountain Bike | D19: =nextUnique($B$3:$B$1390,$D$3:D18) -> New Prague Middle and High School | E19: =VLOOKUP(D19,Divisions!$P$4:$Q$95,2,FALSE) -> 1 | G19: Minnetonka High School | H19: 1 | J19: Highland Park St Paul | K19: 2
B20: Lakeville North High School | D20: =nextUnique($B$3:$B$1390,$D$3:D19) -> Washburn High School | E20: =VLOOKUP(D20,Divisions!$P$4:$Q$95,2,FALSE) -> 1 | G20: Mounds View High School | H20: 1 | J20: Hudson High School | K20: 2
B21: Rock Ridge Composite | D21: =nextUnique($B$3:$B$1390,$D$3:D20) -> Mounds View High School | E21: =VLOOKUP(D21,Divisions!$P$4:$Q$95,2,FALSE) -> 1 | G21: New Prague Middle and High School | H21: 1 | J21: Hutchinson High School | K21: 2
B22: Champlin Park High School | D22: =nextUnique($B$3:$B$1390,$D$3:D21) -> St Cloud Area Composite | E22: =VLOOKUP(D22,Divisions!$P$4:$Q$95,2,FALSE) -> 2 | G22: Prior Lake High School | H22: 1 | J22: Irondale High School | K22: 2
B23: Minnetonka High School | D23: =nextUnique($B$3:$B$1390,$D$3:D22) -> Orono High School | E23: =VLOOKUP(D23,Divisions!$P$4:$Q$95,2,FALSE) -> 2 | G23: Rochester Century High School | H23: 1 | J23: Kerkhoven Composite | K23: 2
B24: Armstrong Cycle | D24: =nextUnique($B$3:$B$1390,$D$3:D23) -> Osseo Composite | E24: =VLOOKUP(D24,Divisions!$P$4:$Q$95,2,FALSE) -> 2 | G24: Rock Ridge Composite | H24: 1 | J24: Lakeville South High School | K24: 2
B25: Minneapolis Southwest | D25: =nextUnique($B$3:$B$1390,$D$3:D24) -> St Louis Park High School | E25: =VLOOKUP(D25,Divisions!$P$4:$Q$95,2,FALSE) -> 2 | G25: Shakopee High School | H25: 1 | J25: Mahtomedi High School | K25: 2
B26: Minneapolis Southwest | D26: =nextUnique($B$3:$B$1390,$D$3:D25) -> St Paul Central | E26: =VLOOKUP(D26,Divisions!$P$4:$Q$95,2,FALSE) -> 2 | G26: Stillwater Mountain Bike | H26: 1 | J26: Mankato Composite | K26: 2
B27: Shakopee High School | D27: =nextUnique($B$3:$B$1390,$D$3:D26) -> Hudson High School | E27: =VLOOKUP(D27,Divisions!$P$4:$Q$95,2,FALSE) -> 2 | G27: Washburn High School | H27: 1 | J27: Mankato West High School | K27: 2
B28: Minnetonka High School | D28: =nextUnique($B$3:$B$1390,$D$3:D27) -> Minnesota Valley Composite | E28: =VLOOKUP(D28,Divisions!$P$4:$Q$95,2,FALSE) -> 2 | G28: Wayzata Mountain Bike | H28: 1 | J28: Maple Grove High School | K28: 2
B29: Brainerd High School | D29: =nextUnique($B$3:$B$1390,$D$3:D28) -> Breck/Blake | E29: 2 | G29: White Bear Lake High School | H29: 1 | J29: Minneapolis Henry High School | K29: 2
B30: New Prague Middle and High School | D30: =nextUnique($B$3:$B$1390,$D$3:D29) -> Highland Park St Paul | E30: =VLOOKUP(D30,Divisions!$P$4:$Q$95,2,FALSE) -> 2 | G30: Winona | H30: 1 | J30: Minneapolis Northside Composite | K30: 2
B31: Wayzata Mountain Bike | D31: =nextUnique($B$3:$B$1390,$D$3:D30) -> St Michael / Albertville Composite | E31: =VLOOKUP(D31,Divisions!$P$4:$Q$95,2,FALSE) -> 2 | J31: Minneapolis South High | K31: 2
B32: Minneapolis Southwest | D32: =nextUnique($B$3:$B$1390,$D$3:D31) -> Borealis Composite | E32: =VLOOKUP(D32,Divisions!$P$4:$Q$95,2,FALSE) -> 2 | J32: Minneapolis Southside Composite | K32: 2
B33: Wayzata Mountain Bike | D33: =nextUnique($B$3:$B$1390,$D$3:D32) -> Totino Grace High School | E33: =VLOOKUP(D33,Divisions!$P$4:$Q$95,2,FALSE) -> 2 | J33: Minnesota Valley Composite | K33: 2
B34: Wayzata Mountain Bike | D34: =nextUnique($B$3:$B$1390,$D$3:D33) -> Chisago Lakes Composite | E34: =VLOOKUP(D34,Divisions!$P$4:$Q$95,2,FALSE) -> 2 | J34: Mound Westonka Composite | K34: 2
B35: Washburn High School | D35: =nextUnique($B$3:$B$1390,$D$3:D34) -> Roosevelt High School | E35: =VLOOKUP(D35,Divisions!$P$4:$Q$95,2,FALSE) -> 2 | J35: North Dakota Composite | K35: 2
B36: Stillwater Mountain Bike | D36: =nextUnique($B$3:$B$1390,$D$3:D35) -> Mahtomedi High School | E36: =VLOOKUP(D36,Divisions!$P$4:$Q$95,2,FALSE) -> 2 | J36: North Dakota Kindred Composite | K36: 2
B37: Shakopee High School | D37: =nextUnique($B$3:$B$1390,$D$3:D36) -> Rogers High School | E37: =VLOOKUP(D37,Divisions!$P$4:$Q$95,2,FALSE) -> 2 | J37: Northwest Composite | K37: 2
B38: Rock Ridge Composite | D38: =nextUnique($B$3:$B$1390,$D$3:D37) -> St. Paul Composite - North | E38: =VLOOKUP(D38,Divisions!$P$4:$Q$95,2,FALSE) -> 2 | J38: Orono High School | K38: 2
B39: Rock Ridge Composite | D39: =nextUnique($B$3:$B$1390,$D$3:D38) -> Tioga Trailblazers | E39: =VLOOKUP(D39,Divisions!$P$4:$Q$95,2,FALSE) -> 2 | J39: Osseo | K39: 2
B40: New Prague Middle and High School | D40: =nextUnique($B$3:$B$1390,$D$3:D39) -> St. Paul Composite - South | E40: =VLOOKUP(D40,Divisions!$P$4:$Q$95,2,FALSE) -> 2 | J40: Osseo Composite | K40: 2
B41: Rock Ridge Composite | D41: =nextUnique($B$3:$B$1390,$D$3:D40) -> Maple Grove High School | E41: =VLOOKUP(D41,Divisions!$P$4:$Q$95,2,FALSE) -> 2 | J41: Park High School | K41: 2
B42: Wayzata Mountain Bike | D42: =nextUnique($B$3:$B$1390,$D$3:D41) -> Elk River Composite | E42: =VLOOKUP(D42,Divisions!$P$4:$Q$95,2,FALSE) -> 2 | J42: River Falls High School | K42: 2
B43: Minnetonka High School | D43: =nextUnique($B$3:$B$1390,$D$3:D42) -> Alexandria Area Youth Cycling | E43: =VLOOKUP(D43,Divisions!$P$4:$Q$95,2,FALSE) -> 1 | J43: Rochester Area Composite | K43: 2
B44: Lakeville North High School | D44: =nextUnique($B$3:$B$1390,$D$3:D43) -> Prior Lake High School | E44: =VLOOKUP(D44,Divisions!$P$4:$Q$95,2,FALSE) -> 1 | J44: Rochester John Marshall | K44: 2
B45: Minneapolis Southwest | D45: =nextUnique($B$3:$B$1390,$D$3:D44) -> Woodbury Composite | E45: =VLOOKUP(D45,Divisions!$P$4:$Q$95,2,FALSE) -> 2 | J45: Rochester Mayo | K45: 2
B46: Wayzata Mountain Bike | D46: =nextUnique($B$3:$B$1390,$D$3:D45) -> Hastings Area Composite | E46: =VLOOKUP(D46,Divisions!$P$4:$Q$95,2,FALSE) -> 2 | J46: Rockford Composite | K46: 2
B47: Minnetonka High School | D47: =nextUnique($B$3:$B$1390,$D$3:D46) -> River Falls High School | E47: =VLOOKUP(D47,Divisions!$P$4:$Q$95,2,FALSE) -> 2 | J47: Rogers High School | K47: 2
B48: Burnsville High School | D48: =nextUnique($B$3:$B$1390,$D$3:D47) -> Hopkins High School | E48: =VLOOKUP(D48,Divisions!$P$4:$Q$95,2,FALSE) -> 1 | J48: Roosevelt High School | K48: 2
B49: Mounds View High School | D49: =nextUnique($B$3:$B$1390,$D$3:D48) -> Chanhassen High School | E49: =VLOOKUP(D49,Divisions!$P$4:$Q$95,2,FALSE) -> 1 | J49: Rosemount High School | K49: 2
B50: Wayzata Mountain Bike | D50: =nextUnique($B$3:$B$1390,$D$3:D49) -> Bloomington Jefferson | E50: =VLOOKUP(D50,Divisions!$P$4:$Q$95,2,FALSE) -> 1 | J50: Roseville Area Composite | K50: 2
B51: Stillwater Mountain Bike | D51: =nextUnique($B$3:$B$1390,$D$3:D50) -> Rochester Century High School | E51: =VLOOKUP(D51,Divisions!$P$4:$Q$95,2,FALSE) -> 1 | J51: Spectrum High School | K51: 2
B52: St Cloud Area Composite | D52: =nextUnique($B$3:$B$1390,$D$3:D51) -> White Bear Lake High School | E52: =VLOOKUP(D52,Divisions!$P$4:$Q$95,2,FALSE) -> 1 | J52: St Cloud Area Composite | K52: 2
B53: Orono High School | D53: =nextUnique($B$3:$B$1390,$D$3:D52) -> Winona | E53: =VLOOKUP(D53,Divisions!$P$4:$Q$95,2,FALSE) -> 1 | J53: St Croix Composite | K53: 2
B54: Osseo Composite | D54: =nextUnique($B$3:$B$1390,$D$3:D53) -> Rosemount High School | E54: =VLOOKUP(D54,Divisions!$P$4:$Q$95,2,FALSE) -> 2 | J54: St Louis Park High School | K54: 2
B55: St Louis Park High School | D55: =nextUnique($B$3:$B$1390,$D$3:D54) -> Eden Prairie High School | E55: =VLOOKUP(D55,Divisions!$P$4:$Q$95,2,FALSE) -> 2 | J55: St Michael / Albertville Composite | K55: 2
B56: St Paul Central | D56: =nextUnique($B$3:$B$1390,$D$3:D55) -> Northwest Composite | E56: =VLOOKUP(D56,Divisions!$P$4:$Q$95,2,FALSE) -> 2 | J56: St Paul Central | K56: 2
B57: Hudson High School | D57: =nextUnique($B$3:$B$1390,$D$3:D56) -> Hutchinson High School | E57: =VLOOKUP(D57,Divisions!$P$4:$Q$95,2,FALSE) -> 2 | J57: St. Paul Composite - North | K57: 2
B58: Minnesota Valley Composite | D58: =nextUnique($B$3:$B$1390,$D$3:D57) -> Eagan High School | E58: =VLOOKUP(D58,Divisions!$P$4:$Q$95,2,FALSE) -> 2 | J58: St. Paul Composite - South | K58: 2
B59: St Louis Park High School | D59: =nextUnique($B$3:$B$1390,$D$3:D58) -> Rochester John Marshall | E59: =VLOOKUP(D59,Divisions!$P$4:$Q$95,2,FALSE) -> 2 | J59: Tioga Trailblazers | K59: 2
B60: Breck/Blake | D60: =nextUnique($B$3:$B$1390,$D$3:D59) -> Austin High School | E60: =VLOOKUP(D60,Divisions!$P$4:$Q$95,2,FALSE) -> 2 | J60: Totino Grace High School | K60: 2
B61: Highland Park St Paul | D61: =nextUnique($B$3:$B$1390,$D$3:D60) -> Roseville Area Composite | E61: =VLOOKUP(D61,Divisions!$P$4:$Q$95,2,FALSE) -> 2 | J61: West Fork | K61: 2
B62: St Michael / Albertville Composite | D62: =nextUnique($B$3:$B$1390,$D$3:D61) -> West Range Composite | E62: 2 | J62: West Range Composite | K62: 2
B63: Borealis Composite | D63: =nextUnique($B$3:$B$1390,$D$3:D62) -> Cannon Valley Composite | E63: =VLOOKUP(D63,Divisions!$P$4:$Q$95,2,FALSE) -> 2 | J63: Woodbury Composite | K63: 2
B64: St Louis Park High School | D64: =nextUnique($B$3:$B$1390,$D$3:D63) -> Rochester Area Composite | E64: =VLOOKUP(D64,Divisions!$P$4:$Q$95,2,FALSE) -> 2
B65: Totino Grace High School | D65: =nextUnique($B$3:$B$1390,$D$3:D64) -> Mound Westonka Composite | E65: =VLOOKUP(D65,Divisions!$P$4:$Q$95,2,FALSE) -> 2
B66: Chisago Lakes Composite | D66: =nextUnique($B$3:$B$1390,$D$3:D65) -> Rockford Composite | E66: =VLOOKUP(D66,Divisions!$P$4:$Q$95,2,FALSE) -> 2
B67: Roosevelt High School | D67: =nextUnique($B$3:$B$1390,$D$3:D66) -> West Fork | E67: 2
B68: Mahtomedi High School | D68: =nextUnique($B$3:$B$1390,$D$3:D67) -> Bloomington Composite | E68: =VLOOKUP(D68,Divisions!$P$4:$Q$95,2,FALSE) -> 2
B69: Minnesota Valley Composite | D69: =nextUnique($B$3:$B$1390,$D$3:D68) -> Hermantown-Proctor | E69: =VLOOKUP(D69,Divisions!$P$4:$Q$95,2,FALSE) -> 2
B70: Rogers High School | D70: =nextUnique($B$3:$B$1390,$D$3:D69) -> Osseo | E70: =VLOOKUP(D70,Divisions!$P$4:$Q$95,2,FALSE) -> 2
B71: St. Paul Composite - North | D71: =nextUnique($B$3:$B$1390,$D$3:D70) -> Eastview High School | E71: =VLOOKUP(D71,Divisions!$P$4:$Q$95,2,FALSE) -> 2
B72: Tioga Trailblazers | D72: =nextUnique($B$3:$B$1390,$D$3:D71) -> Minneapolis Southside Composite | E72: =VLOOKUP(D72,Divisions!$P$4:$Q$95,2,FALSE) -> 2
B73: St Cloud Area Composite | D73: =nextUnique($B$3:$B$1390,$D$3:D72) -> Kerkhoven Composite | E73: =VLOOKUP(D73,Divisions!$P$4:$Q$95,2,FALSE) -> 2
B74: St. Paul Composite - South | D74: =nextUnique($B$3:$B$1390,$D$3:D73) -> St Croix Composite | E74: =VLOOKUP(D74,Divisions!$P$4:$Q$95,2,FALSE) -> 2
B75: Burnsville High School | D75: =nextUnique($B$3:$B$1390,$D$3:D74) -> Mankato West High School | E75: =VLOOKUP(D75,Divisions!$P$4:$Q$95,2,FALSE) -> 2
B76: Cloquet-Esko-Carlton | D76: =nextUnique($B$3:$B$1390,$D$3:D75) -> Park High School | E76: =VLOOKUP(D76,Divisions!$P$4:$Q$95,2,FALSE) -> 2
B77: Maple Grove High School | D77: =nextUnique($B$3:$B$1390,$D$3:D76) -> North Dakota Composite | E77: =VLOOKUP(D77,Divisions!$P$4:$Q$95,2,FALSE) -> 2
B78: Minneapolis Southwest | D78: =nextUnique($B$3:$B$1390,$D$3:D77) -> Rochester Mayo | E78: =VLOOKUP(D78,Divisions!$P$4:$Q$95,2,FALSE) -> 2
B79: Rock Ridge Composite | D79: =nextUnique($B$3:$B$1390,$D$3:D78) -> Benilde St Margaret | E79: =VLOOKUP(D79,Divisions!$P$4:$Q$95,2,FALSE) -> 2
B80: Minneapolis Southwest | D80: =nextUnique($B$3:$B$1390,$D$3:D79) -> Apple Valley High School | E80: =VLOOKUP(D80,Divisions!$P$4:$Q$95,2,FALSE) -> 2
B81: Brainerd High School | D81: =nextUnique($B$3:$B$1390,$D$3:D80) -> Minneapolis Northside Composite | E81: =VLOOKUP(D81,Divisions!$P$4:$Q$95,2,FALSE) -> 2
B82: Elk River Composite | D82: =nextUnique($B$3:$B$1390,$D$3:D81) -> Minneapolis South High | E82: =VLOOKUP(D82,Divisions!$P$4:$Q$95,2,FALSE) -> 2
B83: Alexandria Area Youth Cycling | D83: =nextUnique($B$3:$B$1390,$D$3:D82) -> Lakeville South High School | E83: =VLOOKUP(D83,Divisions!$P$4:$Q$95,2,FALSE) -> 2
B84: Prior Lake High School | D84: =nextUnique($B$3:$B$1390,$D$3:D83) -> Duluth East High School | E84: =VLOOKUP(D84,Divisions!$P$4:$Q$95,2,FALSE) -> 1
B85: Minneapolis Southwest | D85: =nextUnique($B$3:$B$1390,$D$3:D84) -> Duluth Composite | E85: =VLOOKUP(D85,Divisions!$P$4:$Q$95,2,FALSE) -> 2
B86: Woodbury Composite | D86: =nextUnique($B$3:$B$1390,$D$3:D85) -> North Dakota Kindred Composite | E86: =VLOOKUP(D86,Divisions!$P$4:$Q$95,2,FALSE) -> 2
B87: Edina Cycling | D87: =nextUnique($B$3:$B$1390,$D$3:D86) -> Spectrum High School | E87: =VLOOKUP(D87,Divisions!$P$4:$Q$95,2,FALSE) -> 2
B88: Washburn High School | D88: =nextUnique($B$3:$B$1390,$D$3:D87) -> Bemidji Composite | E88: =VLOOKUP(D88,Divisions!$P$4:$Q$95,2,FALSE) -> 2
B89: Prior Lake High School | D89: =nextUnique($B$3:$B$1390,$D$3:D88) -> Minneapolis Henry High School | E89: =VLOOKUP(D89,Divisions!$P$4:$Q$95,2,FALSE) -> 2
B90: Cloquet-Esko-Carlton | D90: =nextUnique($B$3:$B$1390,$D$3:D89) -> Mankato Composite | E90: =VLOOKUP(D90,Divisions!$P$4:$Q$95,2,FALSE) -> 2
B91: Hastings Area Composite | D91: =nextUnique($B$3:$B$1390,$D$3:D90) -> Irondale High School | E91: 2
B92: Burnsville High School
B93: Borealis Composite
B94: Roosevelt High School
B95: River Falls High School
B96: Elk River Composite
B97: Tioga Trailblazers
B98: Stillwater Mountain Bike
B99: Minnetonka High School
B100: Crosby-Ironton High School
B101: Rock Ridge Composite
B102: Hudson High School
B103: Orono High School
B104: River Falls High School
B105: Hopkins High School
B106: Stillwater Mountain Bike
B107: Crosby-Ironton High School
B108: Minnetonka High School
B109: Brainerd High School
B110: Crosby-Ironton High School
B111: East Ridge High School
B112: Wayzata Mountain Bike
B113: Wayzata Mountain Bike
B114: Washburn High School
B115: New Prague Middle and High School
B116: New Prague Middle and High School
B117: Brainerd High School
B118: Wayzata Mountain Bike
B119: Brainerd High School
B120: New Prague Middle and High School
B121: Cloquet-Esko-Carlton
B122: Cloquet-Esko-Carlton
B123: Cloquet-Esko-Carlton
B124: Chanhassen High School
B125: Shakopee High School
B126: Chaska High School
B127: Cloquet-Esko-Carlton
B128: Hopkins High School
B129: Minnetonka High School
B130: Brainerd High School
B131: Hopkins High School
B132: Shakopee High School
B133: Cloquet-Esko-Carlton
B134: Armstrong Cycle
B135: Chanhassen High School
B136: Champlin Park High School
B137: Mounds View High School
B138: Prior Lake High School
B139: Wayzata Mountain Bike
B140: Burnsville High School
B141: Bloomington Jefferson
B142: Shakopee High School
B143: Minnetonka High School
B144: Stillwater Mountain Bike
B145: Minnetonka High School
B146: Wayzata Mountain Bike
B147: Crosby-Ironton High School
B148: Brainerd High School
B149: Hopkins High School
B150: Minneapolis Southwest
B151: Minneapolis Southwest
B152: Chaska High School
B153: Prior Lake High School
B154: Wayzata Mountain Bike
B155: Alexandria Area Youth Cycling
B156: Shakopee High School
B157: Mounds View High School
B158: Alexandria Area Youth Cycling
B159: Champlin Park High School
B160: Stillwater Mountain Bike
B161: Wayzata Mountain Bike
B162: Wayzata Mountain Bike
B163: Wayzata Mountain Bike
B164: Hopkins High School
B165: Rochester Century High School
B166: Minneapolis Southwest
B167: Mounds View High School
B168: Minnetonka High School
B169: Cloquet-Esko-Carlton
B170: Bloomington Jefferson
B171: New Prague Middle and High School
B172: White Bear Lake High School
B173: White Bear Lake High School
B174: Stillwater Mountain Bike
B175: Alexandria Area Youth Cycling
B176: Washburn High School
B177: Minnetonka High School
B178: Alexandria Area Youth Cycling
B179: Mounds View High School
B180: Cloquet-Esko-Carlton
B181: Winona
B182: Shakopee High School
B183: Stillwater Mountain Bike
B184: Shakopee High School
B185: Winona
B186: Cloquet-Esko-Carlton
B187: Washburn High School
B188: Shakopee High School
B189: Chisago Lakes Composite
B190: St. Paul Composite - North
B191: Rosemount High School
B192: St Cloud Area Composite
B193: St Michael / Albertville Composite
B194: Roosevelt High School
B195: St Paul Central
B196: Eden Prairie High School
B197: Northwest Composite
B198: Hutchinson High School
B199: Eagan High School
B200: St Louis Park High School
B201: Woodbury Composite
... 1189 more rows

Sheet Team Scores Formatted
A1: Middle School D1
A2: Place | B2: TEAM | C2: Score | E2: Rider 1 | F2: Rider 2 | G2: Rider 3 | H2: Rider 4
A3: 1 | B3: Minnetonka High School | C3: 2147 | E3: (G) STELLA SWANSON - [550] | F3: (B) BENNO SASANFAR - [539] | G3: (G) LANEY MILLER - [529] | H3: (B) JACKSON RUNCK - [529]
A4: 2 | B4: Cloquet-Esko-Carlton | C4: 2071 | E4: (B) DANIEL DEWEY - [550] | F4: (G) CIERAH MCKIBBON - [519] | G4: (B) CARTER OSVOLD - [510] | H4: (G) AVA MCKIBBON - [492]
A5: 3 | B5: Stillwater Mountain Bike | C5: 2063 | E5: (B) EMMETT VALLEY - [539] | F5: (B) CHARLIE SANDERSON - [529] | G5: (B) TEDDY SANDERSON - [519] | H5: (G) MARG MINICH - [476]
A6: 4 | B6: Crosby-Ironton High School | C6: 2041 | E6: (B) OWEN RITTER - [550] | F6: (G) VANESSA RICKMEYER - [519] | G6: (B) EZRA JACOBSON - [519] | H6: (G) AVERY LONERGAN - [453]
A7: 5 | B7: New Prague Middle and High School | C7: 2013 | E7: (G) ALEXIS RIDGEWAY - [550] | F7: (B) HAYDEN BRAITH - [519] | G7: (B) LINCOLN STUBER - [476] | H7: (B) CASEY KELLY - [468]
A8: 6 | B8: Brainerd High School | C8: 1983 | E8: (B) RYLAN O'HEARN - [529] | F8: (G) ABIGAIL THOMES - [510] | G8: (G) STELLA MUSEUS - [476] | H8: (B) LANDON HAGEN - [468]
A9: 7 | B9: Wayzata Mountain Bike | C9: 1975 | E9: (G) ABIGAIL BRITZ - [529] | F9: (B) ROENEN KING-ELLISON - [501] | G9: (B) RIGEL PRIOR - [492] | H9: (B) ETHAN LI - [453]
A10: 8 | B10: Rock Ridge Composite | C10: 1951 | E10: (B) GUS LAYMAN - [539] | F10: (G) DALLAS LAYMAN - [501] | G10: (G) SELAH BEUKEMA - [492] | H10: (B) WYATT PETRACK - [419]
A11: 9 | B11: Prior Lake High School | C11: 1928 | E11: (G) ARABELLA FRITZEN - [519] | F11: (G) MILA OLSON - [510] | G11: (G) PEYTON STAMSCHROR - [453] | H11: (B) ELI CZAJKOWSKI - [446]
A12: 10 | B12: East Ridge High School | C12: 1916 | E12: (B) NICK SHIELD - [510] | F12: (B) LUCAS TRUCKENMILLER - [501] | G12: (B) OWEN LAWSON - [492] | H12: (G) QUINN VAN HEYST - [413]
A13: 11 | B13: Mounds View High School | C13: 1841 | E13: (B) THOMAS QUACKENBUSH - [501] | F13: (B) LAKEN BARTEL - [476] | G13: (G) JADON CARLSON - [439] | H13: (B) ANDY VIZECKY - [425]
A14: 12 | B14: Minneapolis Southwest | C14: 1815 | E14: (G) NARA BLACK - [501] | F14: (G) GRACE MAKOSKY - [484] | G14: (G) LILY MAKOSKY - [446] | H14: (B) THEODORE JUFFER - [384]
A15: 13 | B15: Burnsville High School | C15: 1794 | E15: (G) ELLIOT LUNDE - [529] | F15: (B) OWEN WATTERSON - [439] | G15: (B) LEVI WILLIAMS - [425] | H15: (G) ADELINE METZGER - [401]
A16: 14 | B16: Edina Cycling | C16: 1788 | E16: (G) SYDNEY BULLARD - [492] | F16: (B) DJ SEVERSON - [439] | G16: (G) EVELYN HOPPE - [432] | H16: (G) BEATRICE TOFTEY - [425]
A17: 15 | B17: Washburn High School | C17: 1695 | E17: (B) STEFFAN DREKONJA - [484] | F17: (G) MAEVE THATCHER - [432] | G17: (G) LUCIA ARNESON - [425] | H17: (G) BAYLY WASMER - [354]
A18: 16 | B18: Chanhassen High School | C18: 1680 | E18: (G) MACKENZIE BURKE - [476] | F18: (B) BRADYN RUPPERT - [432] | G18: (B) MASON DEALWIS - [413] | H18: (B) SYD KENNEDY - [359]
A19: 17 | B19: Shakopee High School | C19: 1654 | E19: (B) AIDEN ZABEL - [484] | F19: (B) TRUMAN DUEHR - [407] | G19: (G) KIERA JAMIESON - [389] | H19: (B) MAKAI LUND - [374]
A20: 18 | B20: Hopkins High School | C20: 1642 | E20: (G) GRETA NYGREN - [484] | F20: (B) NOLAN HAAR - [395] | G20: (B) GRIFFIN WOESTE - [389] | H20: (B) CHARLIE GRUHN - [374]
A21: 19 | B21: Alexandria Area Youth Cycling | C21: 1609 | E21: (G) ADDISON SUCHY - [501] | F21: (G) RYLIN CONVERSE - [460] | G21: (B) BEN SCHOLTEN - [338] | H21: (B) WILL NICHOLS - [310]
A22: 20 | B22: Chaska High School | C22: 1558 | E22: (B) AUGUST MAYER - [432] | F22: (B) LEIGHTON HINES - [401] | G22: (G) MONIQUE KONOTOPKA - [395] | H22: (B) NOLAN STONE - [330]
A23: 21 | B23: Champlin Park High School | C23: 1485 | E23: (B) GRAHAM BERNU - [401] | F23: (G) SIDSE SPROUT - [384] | G23: (G) MORGAN ROTHER - [350] | H23: (B) KAI NELSON - [350]
A24: 22 | B24: Winona | C24: 1451 | E24: (G) SOPHIE GRICIUS - [460] | F24: (G) LILLY HANSEN - [354] | G24: (B) IAN HORECK - [354] | H24: (B) BEN ALLINGTON - [283]
A25: 23 | B25: Lakeville North High School | C25: 1445 | E25: (G) SOFIA HORSTMANN - [446] | F25: (B) MYLES INGVALSON - [413] | G25: (B) HUDSON HOLSTE - [307] | H25: (B) BRAYDEN KREJCE - [279]
A26: 24 | B26: Armstrong Cycle | C26: 1407 | E26: (B) ANDERS DECKER - [550] | F26: (B) HENRY DIAZ - [468] | G26: (B) TYLER HASSIS - [389] | H26: () - [0]
A27: 25 | B27: Rochester Century High School | C27: 1323 | E27: (G) MILENA MEIER - [419] | F27: (B) ROWAN EKHOLM - [374] | G27: (B) AVERY STRUCKMANN - [278] | H27: (B) KAI HILL - [252]
A28: 26 | B28: Bloomington Jefferson | C28: 1214 | E28: (G) PIPPA BURRES - [330] | F28: (B) DOMINICK JOHNSON - [330] | G28: (B) FINN DOLMAR - [281] | H28: (B) CARLO CALBONE - [273]
A29: 27 | B29: White Bear Lake High School | C29: 813 | E29: (B) OLIN KNUTSON - [272] | F29: (B) RYAN GLICK - [271] | G29: (B) SETH VLIEGER - [270] | H29: () - [0]
A30: 28 | B30: Duluth East High School | C30: 0 | E30: () - [0] | F30: () - [0] | G30: () - [0] | H30: () - [0]
A32: Middle School D2 | B32: Middle School D2
A33: Place | B33: TEAM | C33: SCORE | E33: Rider 1 | F33: Rider 2 | G33: Rider 3 | H33: Rider 4
A34: 1 | B34: St Cloud Area Composite | C34: 2103 | E34: (G) PHOEBE HACKENSACK - [550] | F34: (B) MAX LARSEN - [550] | G34: (B) JACK LARSEN - [519] | H34: (G) LILY WILCOX - [484]
A35: 2 | B35: Hudson High School | C35: 1912 | E35: (B) RYAN KELLER - [519] | F35: (B) HENRY STEPHENSON - [501] | G35: (G) HAYDEN KOHN - [446] | H35: (B) JOE STEPHENSON - [446]
A36: 3 | B36: Elk River Composite | C36: 1829 | E36: (B) EDWARD FULL - [550] | F36: (G) GEMMA BANKS - [468] | G36: (B) TYLER HANSON - [432] | H36: (G) NATALIE MCCORMACK - [379]
A37: 4 | B37: Hastings Area Composite | C37: 1771 | E37: (B) JAMES MCNAMARA - [501] | F37: (G) KATE NOWAK - [468] | G37: (G) GRACEANN OLSON - [407] | H37: (B) PAYTON OLSON - [395]
A38: 5 | B38: Roosevelt High School | C38: 1754 | E38: (B) ELI MEISER - [501] | F38: (B) BEN TESCH - [439] | G38: (B) NICO MENDEZ - [425] | H38: (G) GRACE BERSETH - [389]
A39: 6 | B39: St Croix Composite | C39: 1687 | E39: (B) ERIC MOSS - [539] | F39: (B) QUINN JUSTEN - [460] | G39: (G) EVELYN BRUNS - [384] | H39: (G) ADDISON WAKELING - [304]
A40: 7 | B40: Osseo Composite | C40: 1670 | E40: (B) GARRETT NELSON - [529] | F40: (G) BAILEY MORRISON - [453] | G40: (B) EVERETT OLSON - [384] | H40: (B) EUGENE NELSON - [304]
A41: 8 | B41: Northwest Composite | C41: 1667 | E41: (B) ISAAC LEISETH - [476] | F41: (B) HANK SCHLAUDERAFF - [468] | G41: (B) IAN ARTLEY - [364] | H41: (G) CLARA DAVIS - [359]
A42: 9 | B42: St. Paul Composite - South | C42: 1626 | E42: (G) ELEANOR MEYER - [539] | F42: (B) ZINABU PETERSEN - [425] | G42: (B) CALVIN HOENISCH - [407] | H42: (B) KAI WALKER - [255]
A43: 10 | B43: River Falls High School | C43: 1605 | E43: (G) PIPER NICKLESKI - [468] | F43: (G) AMELIA HALVORSON - [384] | G43: (B) CLARK WERWIE - [379] | H43: (B) CHRISTIAN HARSDORF - [374]
A44: 11 | B44: Orono High School | C44: 1582 | E44: (B) JACK MCKEAND - [539] | F44: (B) MIKHAIL LONG - [359] | G44: (G) REESE JEREMIASON - [346] | H44: (G) JILLIE SWENSON - [338]
A45: 12 | B45: Austin High School | C45: 1579 | E45: (G) LEXI HELGESON - [460] | F45: (B) LIAM LINNETT - [395] | G45: (B) HUNTER PETERS - [374] | H45: (B) BRAYDEN ANDREWS - [350]
A46: 13 | B46: Woodbury Composite | C46: 1552 | E46: (B) EVERETT LEVANDER - [446] | F46: (G) CLARA OACHS - [439] | G46: (B) ETHAN CARLSON - [354] | H46: (B) FINN O'REILLY - [313]
A47: 14 | B47: Borealis Composite | C47: 1528 | E47: (B) GRADY ANDERSON - [453] | F47: (G) ADDISON KANNAS - [395] | G47: (B) WYATT TEDRICK - [379] | H47: (B) GEORGE SPONHOLZ - [301]
A48: 15 | B48: Tioga Trailblazers | C48: 1513 | E48: (B) LEVI GEISLER - [401] | F48: (G) CORA METELAK - [374] | G48: (B) BEN JOHNSON - [369] | H48: (B) ERIC STANGEL - [369]
A49: 16 | B49: St Louis Park High School | C49: 1495 | E49: (B) BENNY RUZEK - [519] | F49: (B) AUSTIN KUEHL - [492] | G49: (B) SHANER FITZPATRICK - [484] | H49: () - [0]
A50: 17 | B50: Maple Grove High School | C50: 1479 | E50: (G) HANNAH MOORE - [510] | F50: (G) HALEY HONMYHR - [425] | G50: (B) WILLIAM BUTTKE - [287] | H50: (B) DYLAN ENGSTROM - [257]
A51: 18 | B51: St Michael / Albertville Composite | C51: 1470 | E51: (B) ALEX CHOUANARD - [510] | F51: (B) COOPER ETNIER - [484] | G51: (B) OWEN MOORMANN - [476] | H51: () - [0]
A52: 19 | B52: Eden Prairie High School | C52: 1395 | E52: (B) MASON REINER - [510] | F52: (B) ISAAC FOLEY - [484] | G52: (B) AIDAN OLSTAD - [401] | H52: () - [0]
A53: 20 | B53: St. Paul Composite - North | C53: 1379 | E53: (B) CHARLIE WILLIAMSON - [539] | F53: (B) SEBASTIAN PURYEAR-JORDAN - [439] | G53: (B) BAEK MARTIN-KOHLS - [401] | H53: () - [0]
A54: 21 | B54: Mound Westonka Composite | C54: 1353 | E54: (B) HARRISON MERTEN - [432] | F54: (B) ROBBIE CHILSON - [326] | G54: (G) MAKENZIE REESE - [319] | H54: (B) NOAH HILLEBERT - [276]
A55: 22 | B55: West Range Composite | C55: 1352 | E55: (G) ELIZABETH HAUPT - [346] | F55: (B) TUCKER CROWE - [346] | G55: (B) MAC WALLI - [338] | H55: (B) EMMETT LIND - [322]
A56: 23 | B56: Rosemount High School | C56: 1325 | E56: (B) SAM ALLAN - [529] | F56: (B) CALVIN CARPENTER - [407] | G56: (B) FRITZ DIRKSEN - [389] | H56: () - [0]
A57: 24 | B57: St Paul Central | C57: 1321 | E57: (B) HENRY MURPHY - [510] | F57: (B) KHANH TRUONG - [492] | G57: (B) TYLER HAYDEN - [319] | H57: () - [0]
A58: 25 | B58: Highland Park St Paul | C58: 1311 | E58: (G) CORALIE JONES - [539] | F58: (B) FRANKLIN MILLER - [468] | G58: (B) COLIN BORGEN - [304] | H58: () - [0]
A59: 26 | B59: Minnesota Valley Composite | C59: 1306 | E59: (B) CARTER BOLSTER - [492] | F59: (B) XAVIER OLSON - [413] | G59: (G) INGRID OLSON - [401] | H59: () - [0]
A60: 27 | B60: Roseville Area Composite | C60: 1291 | E60: (B) BENNETT SCHMALTZ - [342] | F60: (G) ALLISON CLAYDON - [326] | G60: (B) HENRY LOE - [313] | H60: (G) FERN SHAFFNER - [310]
A61: 28 | B61: Cannon Valley Composite | C61: 1117 | E61: (B) BENJAMIN FUNKE - [419] | F61: (B) LEO HERNANDEZ - [364] | G61: (B) DREW PRIBYL - [334] | H61: () - [0]
A62: 29 | B62: Breck/Blake | C62: 1111 | E62: (B) LANDON MAUL - [476] | F62: (G) EMILIA COLIANNI - [350] | G62: (B) OLIVER ENGEL - [285] | H62: () - [0]
A63: 30 | B63: Eagan High School | C63: 1017 | E63: (B) CALEB LYON - [460] | F63: (B) NICHOLAS MIZIORKO - [286] | G63: (B) GRAHAM ROBERTS - [271] | H63: () - [0]
A64: 31 | B64: Mahtomedi High School | C64: 1003 | E64: (B) PAUL GRZESIK - [419] | F64: (B) MICAH HORSAGER - [326] | G64: (B) HENRY HONMYHR - [258] | H64: () - [0]
A65: 32 | B65: Chisago Lakes Composite | C65: 982 | E65: (B) REID HAMLIN - [550] | F65: (B) EDWARD “EJ” NIELSEN - [432] | G65: () - [0] | H65: () - [0]
A66: 33 | B66: Rogers High School | C66: 936 | E66: (B) MAX KLABUNDE - [529] | F66: (B) WILLIAM PALUMBO - [407] | G66: () - [0] | H66: () - [0]
A67: 34 | B67: Bloomington Composite | C67: 904 | E67: (G) REGAN ISAAC - [334] | F67: (B) RYLAN MACADAMS - [293] | G67: (B) BEN JONES - [277] | H67: () - [0]
A68: 35 | B68: Rockford Composite | C68: 887 | E68: (B) JOSIAH CARLSON - [322] | F68: (B) EVERETT SCHOTTMULLER - [287] | G68: (B) ELIJAH WARD - [278] | H68: () - [0]
A69: 36 | B69: Hutchinson High School | C69: 869 | E69: (B) FRANKLIN RECH - [468] | F69: (G) CYBLI BUSSE - [401] | G69: () - [0] | H69: () - [0]
A70: 37 | B70: Kerkhoven Composite | C70: 865 | E70: (G) HAILEY SOINE - [307] | F70: (B) MICAH STRICKLAND - [283] | G70: (B) JONNY BENSON - [275] | H70: () - [0]
A71: 38 | B71: Totino Grace High School | C71: 813 | E71: (B) ALEXANDER MCNAMARA - [439] | F71: (G) ADELE DENTON - [374] | G71: () - [0] | H71: () - [0]
A72: 39 | B72: Rochester Area Composite | C72: 694 | E72: (G) IRENE PASTOR - [364] | F72: (B) LUKE EAGLE - [330] | G72: () - [0] | H72: () - [0]
A73: 40 | B73: Rochester Mayo | C73: 673 | E73: (B) ETHAN NELSON - [354] | F73: (B) DEXTER WILLIAMS - [319] | G73: () - [0] | H73: () - [0]
A74: 41 | B74: Benilde St Margaret | C74: 622 | E74: (B) GERIK NOWLIN - [338] | F74: (B) RYAN LYNCH - [284] | G74: () - [0] | H74: () - [0]
A75: 42 | B75: Osseo | C75: 588 | E75: (G) SOPHIA BEAUDIN - [313] | F75: (B) OLIVER PILSNER - [275] | G75: () - [0] | H75: () - [0]
A76: 43 | B76: Eastview High School | C76: 539 | E76: (G) MARGO BREMER - [539] | F76: () - [0] | G76: () - [0] | H76: () - [0]
A77: 44 | B77: Park High School | C77: 453 | E77: (B) MAVERICK TILLER - [453] | F77: () - [0] | G77: () - [0] | H77: () - [0]
A78: 45 | B78: Rochester John Marshall | C78: 419 | E78: (B) JACKSON TANK - [419] | F78: () - [0] | G78: () - [0] | H78: () - [0]
A79: 46 | B79: North Dakota Composite | C79: 413 | E79: (B) DAVID ROBINSON - [413] | F79: () - [0] | G79: () - [0] | H79: () - [0]
A80: 47 | B80: Lakeville South High School | C80: 369 | E80: (G) EVA GROTENHUIS - [369] | F80: () - [0] | G80: () - [0] | H80: () - [0]
A81: 48 | B81: Minneapolis Southside Composite | C81: 330 | E81: (G) ISABELLA BERGMAN - [330] | F81: () - [0] | G81: () - [0] | H81: () - [0]
A82: 49 | B82: West Fork | C82: 301 | E82: (B) JONAH ESPEY - [301] | F82: () - [0] | G82: () - [0] | H82: () - [0]
A83: 50 | B83: Apple Valley High School | C83: 295 | E83: (B) HAYDEN HOFF - [295] | F83: () - [0] | G83: () - [0] | H83: () - [0]
A84: 51 | B84: Hermantown-Proctor | C84: 291 | E84: (B) ALEX HANSON - [291] | F84: () - [0] | G84: () - [0] | H84: () - [0]
A85: 52 | B85: Minneapolis Northside Composite | C85: 280 | E85: (B) FRANKIE ROQUE - [280] | F85: () - [0] | G85: () - [0] | H85: () - [0]
A86: 53 | B86: Minneapolis South High | C86: 270 | E86: (B) HENRY HOLDSWORTH - [270] | F86: () - [0] | G86: () - [0] | H86: () - [0]
A87: 54 | B87: Bemidji Composite | C87: 0 | E87: () - [0] | F87: () - [0] | G87: () - [0] | H87: () - [0]
A88: 55 | B88: Duluth Composite | C88: 0 | E88: () - [0] | F88: () - [0] | G88: () - [0] | H88: () - [0]
A89: 56 | B89: Irondale High School | C89: 0 | E89: () - [0] | F89: () - [0] | G89: () - [0] | H89: () - [0]
A90: 57 | B90: Mankato Composite | C90: 0 | E90: () - [0] | F90: () - [0] | G90: () - [0] | H90: () - [0]
A91: 58 | B91: Mankato West High School | C91: 0 | E91: () - [0] | F91: () - [0] | G91: () - [0] | H91: () - [0]
A92: 59 | B92: Minneapolis Henry High School | C92: 0 | E92: () - [0] | F92: () - [0] | G92: () - [0] | H92: () - [0]
A93: 60 | B93: North Dakota Kindred Composite | C93: 0 | E93: () - [0] | F93: () - [0] | G93: () - [0] | H93: () - [0]
A94: 61 | B94: Spectrum High School | C94: 0 | E94: () - [0] | F94: () - [0] | G94: () - [0] | H94: () - [0]
A96: High School D1 | B96: High School D1
A97: Place | B97: TEAM | C97: Score | E97: Rider 1 | F97: Rider 2 | G97: Rider 3 | H97: Rider 4 | I97: Rider 5 | J97: Rider 6 | K97: Rider 7 | L97: Rider 8
A98: 1 | B98: Stillwater Mountain Bike | C98: 4322 | E98: (B) JOHN KUBIAK - [625] | F98: (G) LILY WARD - [614] | G98: (G) STELLA POWELL - [579] | H98: (G) CATE KOELZER - [559] | I98: (B) LIAM ADAMS - [494] | J98: (B) JACK RALSTON - [488] | K98: (G) GABI LEHMANN - [484] | L98: (B) JAMES KALMON - [479]
A99: 2 | B99: Duluth East High School | C99: 4189 | E99: (G) LEAH COLEMAN - [594] | F99: (G) PHOEBE LEEGE - [590] | G99: (G) THEA KRAMER - [567] | H99: (G) JOSEPHINE RYAN - [539] | I99: (G) COURTNEY HISLOP - [508] | J99: (G) CHARLI WORCESTER - [500] | K99: (B) CARL MORSE - [482] | L99: (B) RYE TRUITT - [409]
A100: 3 | B100: Hopkins High School | C100: 4108 | E100: (G) COURTNEY WEBER - [550] | F100: (G) ISABELLE MAYER - [539] | G100: (B) RAVONTE KRIEGLER - [529] | H100: (G) STELLA HUSETH - [519] | I100: (G) HAYDEN MIELKE - [510] | J100: (B) SILAS JOHNSON - [510] | K100: (B) TRISTAN SMITH - [492] | L100: (B) OSCAR TIX - [459]
A101: 4 | B101: Minnetonka High School | C101: 4063 | E101: (B) MORGAN HENDRICKS - [594] | F101: (G) SHELBY STOBBE - [551] | G101: (G) EVIE MALEC - [550] | H101: (B) JACK MALEC - [550] | I101: (G) BETHANY ANDERSON - [529] | J101: (B) LUCAS SYLVESTER - [510] | K101: (G) ADDISON ALEMAN - [395] | L101: (G) LYDIA STEVENSON - [384]
A102: 5 | B102: Edina Cycling | C102: 4008 | E102: (G) ELIN HARTMANN - [625] | F102: (G) ISABELLA MAZION - [604] | G102: (B) ISAAC BELL - [541] | H102: (B) LIAM GARNER - [493] | I102: (B) COOPER AUSTIN - [492] | J102: (B) GRIFFIN NELSON - [476] | K102: (B) GEORGE SILL - [407] | L102: (B) ANDREW HARTMANN - [370]
A103: 6 | B103: Bloomington Jefferson | C103: 3951 | E103: (B) MAX FAHRMANN - [590] | F103: (G) CAROLINE HAAG - [559] | G103: (G) MEGAN SCHROOTEN - [541] | H103: (B) GAVIN MAYHEW - [528] | I103: (B) NOAH GUINEE - [514] | J103: (B) ETHAN ISHAUG - [472] | K103: (B) MCKEAN PEDERSEN - [425] | L103: (G) OLIVE BURRES - [322]
A104: 7 | B104: Cloquet-Esko-Carlton | C104: 3943 | E104: (G) LAYLA HAGELIN - [585] | F104: (B) EVAN ERSPAMER - [543] | G104: (B) ETHAN LINDGREN - [524] | H104: (G) ASPEN BERG - [492] | I104: (B) MAX FOSTER - [465] | J104: (B) JORDAN CHOPSKIE - [454] | K104: (B) KAYLOR ADKINS - [441] | L104: (G) ASHLEY SCHULTZ - [439]
A105: 8 | B105: Winona | C105: 3907 | E105: (B) ISAAC ALLRED - [604] | F105: (B) OWEN ALLRED - [539] | G105: (G) NATALIE HORECK - [535] | H105: (B) LUCAS WOODEN - [516] | I105: (G) ALIYA GRICIUS - [510] | J105: (B) MAX HORECK - [484] | K105: (B) BENJAMIN WISNIEWSKI - [369] | L105: (B) CHRISTIAN MUELLER - [350]
A106: 9 | B106: Brainerd High School | C106: 3858 | E106: (G) ADDIE RYAN - [576] | F106: (B) WILL THOMES - [559] | G106: (B) HAYDEN HAGEN - [551] | H106: (B) ARRON LOCKWOOD - [476] | I106: (B) BISHOP NOETZEL - [460] | J106: (G) STELLA HAGEN - [424] | K106: (G) ISABELLE SMITH - [407] | L106: (B) PARKER LINN - [405]
A107: 10 | B107: Alexandria Area Youth Cycling | C107: 3637 | E107: (B) LUKE WALSH - [579] | F107: (G) TIAHNA GOEKE - [532] | G107: (B) PARKER CONVERSE - [529] | H107: (B) SAWYER FILIPIAK - [468] | I107: (B) TYLER SIIRA - [419] | J107: (B) TYLER FATH - [382] | K107: (G) LACEY SIIRA - [369] | L107: (B) SULLIVAN ROONEY - [359]
A108: 11 | B108: Burnsville High School | C108: 3528 | E108: (G) MAISY SCHEUNEMAN - [543] | F108: (G) OLIVIA TILBURY - [507] | G108: (B) AIDEN NICHOLAS - [470] | H108: (G) ANNELISE METZGER - [432] | I108: (B) WYATT PETERSON - [429] | J108: (B) KADEN BOLDUC - [413] | K108: (B) JOHN GOETTL - [370] | L108: (G) GRETA DICKHAUSEN - [364]
A109: 12 | B109: Washburn High School | C109: 3432 | E109: (B) ANDREAS DREKONJA - [535] | F109: (G) CIARA THATCHER - [529] | G109: (G) ASTRID MYHRE - [528] | H109: (B) ALEXANDER PASDO - [432] | I109: (B) HENRY HATHAWAY - [369] | J109: (G) ARIANA KIMBALL - [362] | K109: (G) IZZY GREENWIN - [342] | L109: (B) FINN CHERVENY - [335]
A110: 13 | B110: New Prague Middle and High School | C110: 3376 | E110: (B) AIDAN ROSEMEIER - [585] | F110: (G) SELAH SCHERMAN - [500] | G110: (G) SOPHIA METZDORFF - [435] | H110: (G) ADDISON RIDGEWAY - [395] | I110: (B) JEREMIAH STUBER - [379] | J110: (B) GARRETT TOBIAS - [374] | K110: (B) RILEY HUSEBY - [366] | L110: (G) TEVA FEIT - [342]
A111: 14 | B111: Mounds View High School | C111: 3368 | E111: (G) MADELINE DORNFELD - [501] | F111: (G) ESME NEEDHAM - [446] | G111: (B) ANDREW ROLOFF - [446] | H111: (B) CORBAN CARLSON - [439] | I111: (B) ANTONIN KOSTAL - [419] | J111: (G) KATERINA KOSTAL - [413] | K111: (G) KAMDYN KAREL - [354] | L111: (G) PAULINA MCCULLOUGH - [350]
A112: 15 | B112: Wayzata Mountain Bike | C112: 3344 | E112: (G) LEXI HALVORSON - [501] | F112: (G) LILA GOLOMB - [484] | G112: (B) CULLEN BRITZ - [439] | H112: (B) SAM ANDERSON - [419] | I112: (G) IZZY MORRIS - [413] | J112: (B) RUKSHAN RAJAN - [374] | K112: (B) WILL BREUING - [364] | L112: (G) ELIZABETH FACKERT - [350]
A113: 16 | B113: Prior Lake High School | C113: 3336 | E113: (B) BRADEN ERDAHL - [519] | F113: (B) ALEX KRAWZA - [444] | G113: (B) TEGAN MOORE - [425] | H113: (B) MASON HORTER - [401] | I113: (G) SARA CARLSON - [399] | J113: (B) PETER MAES - [395] | K113: (B) DECLAN FOLGER - [379] | L113: (G) SARAH RICH - [374]
A114: 17 | B114: Shakopee High School | C114: 3322 | E114: (B) WILLIAM PALMIERI - [486] | F114: (B) CHARLIE CUTTS - [484] | G114: (B) ISAIAH JOHNSON - [468] | H114: (B) OWEN MARQUARDT - [413] | I114: (B) PARKER BUTTERFASS - [389] | J114: (G) ELLA BERG - [374] | K114: (G) ANNIKA FROYUM - [374] | L114: (B) JAMES FROYUM - [334]
A115: 18 | B115: East Ridge High School | C115: 3294 | E115: (B) ERIC OIEN - [550] | F115: (G) CLARA LANG - [476] | G115: (B) IBAN DREVLOW - [453] | H115: (B) POYRAZ OLGUN - [453] | I115: (G) ELIN HARRISON - [378] | J115: (G) ERIKA HARRISON - [370] | K115: (B) JENS KULLMAN - [342] | L115: (B) CRISTOBAL OSSANNA - [272]
A116: 19 | B116: Crosby-Ironton High School | C116: 3170 | E116: (G) AVA JOHNSON - [519] | F116: (B) OSKAR NELSON - [501] | G116: (B) FINN NELSON - [476] | H116: (B) SAMUEL COUGHLIN - [447] | I116: (B) COOPER CRAINE - [432] | J116: (B) OLIVER TOFTNESS - [404] | K116: (B) BRADLEY HACHEY - [391] | L116: () - [0]
A117: 20 | B117: Minneapolis Southwest | C117: 3122 | E117: (B) KADIN BLACK - [532] | F117: (B) EMMETT KEPLER - [417] | G117: (B) JOEL TIBBS - [382] | H117: (G) ELLA MAKOSKY - [379] | I117: (G) AVA WISE - [366] | J117: (B) PARKER HUNT - [364] | K117: (B) BEN MIMICK - [344] | L117: (B) MASON EBERLY - [338]
A118: 21 | B118: White Bear Lake High School | C118: 3000 | E118: (B) ISAAC LINDHOLM - [539] | F118: (G) GRETCHEN BLANKENSHIP - [446] | G118: (G) GRACE CONROY - [425] | H118: (B) BLAKE ROLFER - [364] | I118: (B) WALKER DIETZ - [322] | J118: (G) KENNEDY LANGE - [316] | K118: (B) DAMON GRAY - [301] | L118: (B) JAMES WALLEK - [287]
A119: 22 | B119: Lakeville North High School | C119: 2925 | E119: (B) ROWAN HALL - [567] | F119: (B) EDWARD BROOKHART - [501] | G119: (B) JACK JUFFER - [460] | H119: (B) CARSON HALL - [425] | I119: (B) HAYDEN ZOLL - [373] | J119: (G) SOPHIA PEDERSEN - [307] | K119: (B) KAMERON JAENICKE - [292] | L119: () - [0]
A120: 23 | B120: Rock Ridge Composite | C120: 2836 | E120: (G) WRENNA GALLOWAY - [476] | F120: (B) SAMUEL BEUKEMA - [453] | G120: (G) SOPHIE ROARK - [389] | H120: (G) SYLVIE GALLOWAY - [346] | I120: (B) SILAS TODAY - [310] | J120: (G) EVA ROARK - [291] | K120: (G) NORAH KAINZ - [289] | L120: (B) ALDEN KNUDSON - [282]
A121: 24 | B121: Chaska High School | C121: 2523 | E121: (G) GRACE ATTERSON - [521] | F121: (B) GRANT ATTERSON - [519] | G121: (B) XAVIER DEMARRE - [319] | H121: (B) NATHAN OMAN - [307] | I121: (B) DYLAN HENDERSON - [302] | J121: (B) EVAN REINSCH - [281] | K121: (B) GRANT KERFOOT - [274] | L121: () - [0]
A122: 25 | B122: Armstrong Cycle | C122: 2512 | E122: (G) ARYANNA SOMAIAH - [394] | F122: (G) KYRA BEDNARZ - [338] | G122: (B) KEEGAN GHANI - [322] | H122: (G) CASSIDY SKARSTEN - [313] | I122: (B) JUSTIN JOHNSON - [295] | J122: (G) MEGAN SWANSON - [287] | K122: (B) TRISTAN EHN - [283] | L122: (B) KAI HAROLDSON - [280]
A123: 26 | B123: Champlin Park High School | C123: 2248 | E123: (G) MARLIE RIETSCHEL - [419] | F123: (B) DANE PAUL - [350] | G123: (B) CARSON ANDERSON - [346] | H123: (B) TREVOR EMERY - [293] | I123: (B) COOPER HIGGINS - [289] | J123: (B) GAVIN JOHNSON - [276] | K123: (B) CHARLIE BLOCK - [275] | L123: () - [0]
A124: 27 | B124: Rochester Century High School | C124: 2041 | E124: (B) BRENNAN WECKWERTH - [446] | F124: (B) TYLER WETZSTEIN - [435] | G124: (B) RYAN WETZSTEIN - [320] | H124: (B) ARI WALKER - [305] | I124: (B) ERIK HILL - [281] | J124: (B) AARON MILLS - [254] | K124: () - [0] | L124: () - [0]
A125: 28 | B125: Chanhassen High School | C125: 1781 | E125: (G) ZOE ANDERSON - [419] | F125: (B) SETH KENNEDY - [376] | G125: (B) CHARLES EVANGELISTA - [298] | H125: (B) AYDEN FERREL - [258] | I125: (B) MICAH SCHMIDT - [237] | J125: (B) CHARLIE WENNERSTROM - [193] | K125: () - [0] | L125: () - [0]
A127: High School D2 | B127: High School D2
A128: Place | B128: TEAM | C128: Score | E128: Rider 1 | F128: Rider 2 | G128: Rider 3 | H128: Rider 4
A129: 1 | B129: Benilde St Margaret | C129: 2086 | E129: (B) TEAGUE JACKSON - [614] | F129: (B) EVAN NOWLIN - [521] | G129: (B) OWEN MARKS - [492] | H129: (G) STELLA ORDAHL - [459]
A130: 2 | B130: Duluth Composite | C130: 2038 | E130: (B) OWEN VANDAL - [550] | F130: (B) BODEE MCFADDEN - [550] | G130: (G) NATALIA KUNZE - [492] | H130: (B) QUINN SPOHN - [446]
A131: 3 | B131: Minneapolis Southside Composite | C131: 1998 | E131: (B) THOMAS AVRA - [569] | F131: (G) INGA WING - [550] | G131: (B) DOMINIC WOOD - [484] | H131: (B) WILLIS HEIM - [395]
A132: 4 | B132: St. Paul Composite - North | C132: 1876 | E132: (B) KEIGAN MCCARTY - [519] | F132: (G) VERONICA JANZEN - [493] | G132: (B) MATT BURI - [439] | H132: (B) SHAWN THIERS - [425]
A133: 5 | B133: Rochester Mayo | C133: 1831 | E133: (B) JACK MCCAULEY - [576] | F133: (G) ELEANORA WILLIAMS - [472] | G133: (B) PATRICK MCCAULEY - [449] | H133: (B) JAMES NELSON - [334]
A134: 6 | B134: Hudson High School | C134: 1806 | E134: (G) MAYSA BURNAM - [514] | F134: (B) GRAEME PEARSON - [500] | G134: (B) BRADY WAINIONPAA - [476] | H134: (B) SCOTT STEPHENSON - [316]
A135: 7 | B135: Cannon Valley Composite | C135: 1804 | E135: (G) KATE BITTENBENDER - [569] | F135: (G) ELOISE DEBUS - [460] | G135: (B) ANDY AMUNDSON - [389] | H135: (B) BEN POWNELL - [386]
A136: 8 | B136: Minnesota Valley Composite | C136: 1773 | E136: (G) CARISSA BOLSTER - [468] | F136: (B) ODEN OLSON - [468] | G136: (B) ZACH FAHEY - [453] | H136: (B) SAWYER SCHETTL - [384]
A137: 9 | B137: Tioga Trailblazers | C137: 1763 | E137: (G) SANNY GANGI - [479] | F137: (B) MAX CONNELLY - [439] | G137: (B) BREVIK BROWN - [432] | H137: (B) ELI CHERNE - [413]
A138: 10 | B138: North Dakota Composite | C138: 1711 | E138: (B) SETH HEIN - [492] | F138: (G) JADAH KELLY - [453] | G138: (B) BRODY PARMER - [425] | H138: (B) LUKAS ROBINSON - [341]
A139: 11 | B139: Bemidji Composite | C139: 1694 | E139: (B) REED KUZEL - [508] | F139: (G) FAYE CALVERT - [453] | G139: (B) LOUIS MORRISSEY - [414] | H139: (G) JULIA CALVERT - [319]
A140: 12 | B140: Eden Prairie High School | C140: 1690 | E140: (B) OWEN BRATTEBO - [500] | F140: (B) CHARLIE STEFFEN - [407] | G140: (B) LUKE WARZECHA - [401] | H140: (G) ADA LARA - [382]
A141: 13 | B141: St Cloud Area Composite | C141: 1612 | E141: (B) HOLDEN ZAK - [539] | F141: (G) ELLA DOLS - [516] | G141: (B) KAMERON MOSCHO - [284] | H141: (B) ANDREW HACKENMUELLER - [273]
A142: 14 | B142: River Falls High School | C142: 1525 | E142: (G) KATE NICKLESKI - [468] | F142: (B) BRENNEN DADO - [413] | G142: (B) ROMAN DAVENPORT - [359] | H142: (B) DEVAN STRATTON - [285]
A143: 15 | B143: Elk River Composite | C143: 1508 | E143: (G) AUDREY KEMPEL - [414] | F143: (B) COLTON BANKS - [390] | G143: (B) GRADY MAGRUDER - [354] | H143: (B) BO JEFFERS - [350]
A144: 16 | B144: Mankato Composite | C144: 1479 | E144: (G) ABBY SKANE - [486] | F144: (B) LOGAN BARKE - [446] | G144: (B) ISAAC SCHAFFER - [298] | H144: (B) SIDNEY SHANAFELT - [249]
A145: 17 | B145: Roosevelt High School | C145: 1450 | E145: (G) ANI MCQUILLEN - [524] | F145: (B) LEVI LARSON - [342] | G145: (B) OWEN HAIGHT - [298] | H145: (B) RAY ROESNER - [286]
A146: 18 | B146: Rockford Composite | C146: 1432 | E146: (G) HAEDYN BARKEIM - [404] | F146: (B) EDDIE BINSFELD - [399] | G146: (B) ADAM BOERBOOM - [319] | H146: (B) JOEY KLAITH - [310]
A147: 19 | B147: Rochester Area Composite | C147: 1417 | E147: (B) GAVIN HAUGEN - [460] | F147: (G) CHLOE HARDTKE - [346] | G147: (B) SAM EAGLE - [322] | H147: (B) KYLER JOHNSON - [289]
A148: 20 | B148: Hutchinson High School | C148: 1410 | E148: (G) MEARA BUSSE - [419] | F148: (B) LEVI MOORE - [350] | G148: (B) KENNEDY RECH - [325] | H148: (B) SAMUEL REITER - [316]
A149: 21 | B149: Highland Park St Paul | C149: 1405 | E149: (B) KARL HAALAND - [507] | F149: (B) LIAM HEFFERAN - [501] | G149: (B) TOBY MARTIN-KOHLS - [397] | H149: () - [0]
A150: 22 | B150: Eagan High School | C150: 1396 | E150: (G) MEGAN WITT - [465] | F150: (B) IVAN GRINBERG - [354] | G150: (B) AARON HANSON - [295] | H150: (B) JACK MOZEIKA - [282]
A151: 23 | B151: Orono High School | C151: 1372 | E151: (B) WILLIAM BECK - [559] | F151: (B) JOHNNY DIPRIMA - [510] | G151: (B) WALTER HOLMES - [303] | H151: () - [0]
A152: 24 | B152: Minneapolis Henry High School | C152: 1368 | E152: (G) JUNA KRIKAVA - [401] | F152: (G) LELA SABIN - [369] | G152: (B) HENRY MROTZ - [326] | H152: (B) AMIN AIT BENHADDOU - [272]
A153: 25 | B153: Eastview High School | C153: 1357 | E153: (B) MILES BREMER - [539] | F153: (B) ISAAC POVOLNY - [476] | G153: (B) LANDEN CRISP - [342] | H153: () - [0]
A154: 26 | B154: Maple Grove High School | C154: 1332 | E154: (G) SAVANNAH KRULL - [447] | F154: (G) SAMANTHA ALTMAN - [334] | G154: (G) REGAN GROSS - [304] | H154: (B) NOAH FOX - [247]
A155: 27 | B155: North Dakota Kindred Composite | C155: 1328 | E155: (B) ISAAC SCHWARZ - [510] | F155: (B) ELIJAH SCHWARZ - [459] | G155: (B) NOAH SAUVAGEAU - [359] | H155: () - [0]
A156: 28 | B156: Apple Valley High School | C156: 1319 | E156: (B) CODA NGUYEN - [501] | F156: (B) MASON JOHNSON - [429] | G156: (B) NATHAN LENZEN - [389] | H156: () - [0]
A157: 29 | B157: St. Paul Composite - South | C157: 1286 | E157: (B) CHARLES MEYER - [464] | F157: (B) COLIN SHEA - [453] | G157: (B) MATTHIAS PASKE - [369] | H157: () - [0]
A158: 30 | B158: St Louis Park High School | C158: 1275 | E158: (B) JAVIER SCHIMMING - [374] | F158: (B) TOMMY KELLER - [338] | G158: (G) ELIANA MONTERO-WARD - [295] | H158: (B) JACK LARSON - [268]
A159: 31 | B159: Chisago Lakes Composite | C159: 1272 | E159: (B) KYLE HAMLIN - [529] | F159: (B) CARTER SCHILDGEN - [460] | G159: (B) DALTON MULLIN - [283] | H159: () - [0]
A160: 32 | B160: St Paul Central | C160: 1267 | E160: (B) FINN GARRY - [529] | F160: (B) QUINN BECK - [419] | G160: (B) STEFFEN MONTVILLE - [319] | H160: () - [0]
A161: 33 | B161: Roseville Area Composite | C161: 1227 | E161: (G) SANDY FISH - [429] | F161: (B) SIMON ENGLUND - [278] | G161: (B) WILLEM NIBBELINK - [277] | H161: (B) LUKAS SKINNER - [243]
A162: 34 | B162: Mankato West High School | C162: 1215 | E162: (B) BRENDAN ISENBERG - [468] | F162: (B) CALEB GRASSMANN - [379] | G162: (B) WALTER MICHELS - [368] | H162: () - [0]
A163: 35 | B163: Northwest Composite | C163: 1204 | E163: (B) HAYDEN LEISETH - [424] | F163: (B) JACOB T OLSON - [401] | G163: (B) GABE LINDSTROM - [379] | H163: () - [0]
A164: 36 | B164: Minneapolis South High | C164: 1186 | E164: (B) JESSE HEIM - [413] | F164: (B) THEO HOLDSWORTH - [409] | G164: (B) ZAE ISENSEE - [364] | H164: () - [0]
A165: 37 | B165: Breck/Blake | C165: 1177 | E165: (G) ALYSSA KRIG - [432] | F165: (B) JOSH FRETT - [379] | G165: (B) DUNCAN ARMOUR - [366] | H165: () - [0]
A166: 38 | B166: Austin High School | C166: 1171 | E166: (G) CLAUDIA MCDONALD - [319] | F166: (B) RORY POLLOCK - [299] | G166: (B) ANDREW THOMPSON - [287] | H166: (B) GAGE SOUCEK - [266]
A167: 39 | B167: Woodbury Composite | C167: 1125 | E167: (B) RYLAN OACHS - [519] | F167: (B) BENNETT LEVANDER - [315] | G167: (B) TYLER DALAHUNT - [291] | H167: () - [0]
A168: 40 | B168: St Michael / Albertville Composite | C168: 1112 | E168: (B) CLAYTON ETNIER - [432] | F168: (B) GAVIN MOORMANN - [421] | G168: (B) OWEN ANDERBERG - [259] | H168: () - [0]
A169: 41 | B169: Bloomington Composite | C169: 1111 | E169: (G) MAGGIE WEISS - [389] | F169: (B) MAX HARTMANN - [266] | G169: (B) JACK SQUIRES - [233] | H169: (B) BRADEN THORNBURG - [223]
A170: 42 | B170: Lakeville South High School | C170: 1057 | E170: (B) COURTLAND BRAGG - [484] | F170: (B) CARTER NESBITT - [298] | G170: (B) ANDERS CLEMON - [275] | H170: () - [0]
A171: 43 | B171: Spectrum High School | C171: 1055 | E171: (B) ANDREW BURQUEST - [394] | F171: (B) GARRETT PETERSON - [374] | G171: (B) MATTHEW BURQUEST - [287] | H171: () - [0]
A172: 44 | B172: Mound Westonka Composite | C172: 1033 | E172: (B) COLIN PETERSON - [407] | F172: (B) MAX BRYAN - [313] | G172: (B) SAMUEL BURNS - [313] | H172: () - [0]
A173: 45 | B173: Mahtomedi High School | C173: 948 | E173: (B) ETHAN ALBRECHT - [401] | F173: (B) ISAIAH HORSAGER - [306] | G173: (B) BRENDAN KENNEDY - [241] | H173: () - [0]
A174: 46 | B174: Borealis Composite | C174: 943 | E174: (G) RENA JOHNSTON - [354] | F174: (G) AILA HARDING - [322] | G174: (B) BLAKE HEGFORS - [267] | H174: () - [0]
A175: 47 | B175: West Range Composite | C175: 935 | E175: (B) HOWIE LIND - [330] | F175: (B) REX WALLI - [322] | G175: (B) KALUB BROWN - [283] | H175: () - [0]
A176: 48 | B176: Osseo | C176: 904 | E176: (B) BENJAMIN PIPKIN - [307] | F176: (B) SAM FRABEL - [304] | G176: (B) JASON ANDERSEN - [293] | H176: () - [0]
A177: 49 | B177: Rogers High School | C177: 897 | E177: (B) DOMENIC HEGMAN - [550] | F177: (B) MATTHEW O'BRIEN - [347] | G177: () - [0] | H177: () - [0]
A178: 50 | B178: Park High School | C178: 847 | E178: (B) NOLAN OTT - [338] | F178: (B) JACK SCHWEIGERT - [275] | G178: (B) LOGAN SCHWEIGERT - [234] | H178: () - [0]
A179: 51 | B179: Osseo Composite | C179: 838 | E179: (B) ABE OLSON - [395] | F179: (B) BEN HESLI - [224] | G179: (B) ELLIOT ZIMPFER - [219] | H179: () - [0]
A180: 52 | B180: Kerkhoven Composite | C180: 707 | E180: (B) JUSTIN ROSENBOOM - [249] | F180: (B) BENJAMIN STRICKLAND - [242] | G180: (B) CARL BENSON - [216] | H180: () - [0]
A181: 53 | B181: Minneapolis Northside Composite | C181: 583 | E181: (B) AYDAN DARK - [326] | F181: (B) FINNEGAN BENDER - [257] | G181: () - [0] | H181: () - [0]
A182: 54 | B182: Rochester John Marshall | C182: 480 | E182: (B) LOGAN LANDON - [248] | F182: (B) RILEY LANDON - [232] | G182: () - [0] | H182: () - [0]
A183: 55 | B183: Hastings Area Composite | C183: 459 | E183: (B) IAN FERGUSON - [234] | F183: (B) GRAYDON STRAND - [225] | G183: () - [0] | H183: () - [0]
A184: 56 | B184: St Croix Composite | C184: 388 | E184: (B) BLAKE WAKELING - [388] | F184: () - [0] | G184: () - [0] | H184: () - [0]
A185: 57 | B185: Irondale High School | C185: 329 | E185: (B) JAMES CHIRI - [329] | F185: () - [0] | G185: () - [0] | H185: () - [0]
A186: 58 | B186: Totino Grace High School | C186: 261 | E186: (B) KYLE VOWELS - [261] | F186: () - [0] | G186: () - [0] | H186: () - [0]
A187: 59 | B187: Rosemount High School | C187: 227 | E187: (B) JACK SHOEMAKER - [227] | F187: () - [0] | G187: () - [0] | H187: () - [0]
A188: 60 | B188: Hermantown-Proctor | C188: 0 | E188: () - [0] | F188: () - [0] | G188: () - [0] | H188: () - [0]
A189: 61 | B189: West Fork | C189: 0 | E189: () - [0] | F189: () - [0] | G189: () - [0] | H189: () - [0]

Sheet Middle School D1
A1: # | B1: TEAM | C1: Score | F1: New Total Score | G1: P1 | H1: P2 | I1: P3 | J1: P4 | L1: Get Numeric | M1: DC
A2: 1 | B2: Alexandria Area Youth Cycling | C2: =TeamScore(B2,"M",4,MN_7_REDHEAD!$F$4:$F$1391,MN_7_REDHEAD!$G$4:$G$1391,MN_7_REDHEAD!$C$4:$C$1391) -> 1609 | F2: =TeamScoreWithPlayers($B2,"M",4,MN_7_REDHEAD!$F$4:$F$1391,MN_7_REDHEAD!$E$4:$E$1391,MN_7_REDHEAD!$G$4:$G$1391,MN_7_REDHEAD!$C$4:$C$1391,"TS") -> 1609 | G2: =TeamScoreWithPlayers($B2,"M",4,MN_7_REDHEAD!$F$4:$F$1391,MN_7_REDHEAD!$E$4:$E$1391,MN_7_REDHEAD!$G$4:$G$1391,MN_7_REDHEAD!$C$4:$C$1391,"P1") -> (G) ADDISON SUCHY - [501] | H2: =TeamScoreWithPlayers($B2,"M",4,MN_7_REDHEAD!$F$4:$F$1391,MN_7_REDHEAD!$E$4:$E$1391,MN_7_REDHEAD!$G$4:$G$1391,MN_7_REDHEAD!$C$4:$C$1391,"P2") -> (G) RYLIN CONVERSE - [460] | I2: =TeamScoreWithPlayers($B2,"M",4,MN_7_REDHEAD!$F$4:$F$1391,MN_7_REDHEAD!$E$4:$E$1391,MN_7_REDHEAD!$G$4:$G$1391,MN_7_REDHEAD!$C$4:$C$1391,"P3") -> (B) BEN SCHOLTEN - [338] | J2: =TeamScoreWithPlayers($B2,"M",4,MN_7_REDHEAD!$F$4:$F$1391,MN_7_REDHEAD!$E$4:$E$1391,MN_7_REDHEAD!$G$4:$G$1391,MN_7_REDHEAD!$C$4:$C$1391,"P4") -> (B) WILL NICHOLS - [310] | L2: =getnumeric(G2)+getnumeric(H2)+getnumeric(I2)+getnumeric(J2) -> 1609 | M2: 1609 | O2: =ABS(C2-F2)+ABS(F2-L2)+ABS(L2-M2) -> 0
A3: =+A2+1 -> 2 | B3: Armstrong Cycle | C3: =TeamScore(B3,"M",4,MN_7_REDHEAD!$F$4:$F$1391,MN_7_REDHEAD!$G$4:$G$1391,MN_7_REDHEAD!$C$4:$C$1391) -> 1407 | F3: =TeamScoreWithPlayers($B3,"M",4,MN_7_REDHEAD!$F$4:$F$1391,MN_7_REDHEAD!$E$4:$E$1391,MN_7_REDHEAD!$G$4:$G$1391,MN_7_REDHEAD!$C$4:$C$1391,"TS") -> 1407 | G3: =TeamScoreWithPlayers($B3,"M",4,MN_7_REDHEAD!$F$4:$F$1391,MN_7_REDHEAD!$E$4:$E$1391,MN_7_REDHEAD!$G$4:$G$1391,MN_7_REDHEAD!$C$4:$C$1391,"P1") -> (B) ANDERS DECKER - [550] | H3: =TeamScoreWithPlayers($B3,"M",4,MN_7_REDHEAD!$F$4:$F$1391,MN_7_REDHEAD!$E$4:$E$1391,MN_7_REDHEAD!$G$4:$G$1391,MN_7_REDHEAD!$C$4:$C$1391,"P2") -> (B) HENRY DIAZ - [468] | I3: =TeamScoreWithPlayers($B3,"M",4,MN_7_REDHEAD!$F$4:$F$1391,MN_7_REDHEAD!$E$4:$E$1391,MN_7_REDHEAD!$G$4:$G$1391,MN_7_REDHEAD!$C$4:$C$1391,"P3") -> (B) TYLER HASSIS - [389] | J3: =TeamScoreWithPlayers($B3,"M",4,MN_7_REDHEAD!$F$4:$F$1391,MN_7_REDHEAD!$E$4:$E$1391,MN_7_REDHEAD!$G$4:$G$1391,MN_7_REDHEAD!$C$4:$C$1391,"P4") -> () - [0] | L3: 1407 | M3: 1407 | O3: =ABS(C3-F3)+ABS(F3-L3)+ABS(L3-M3) -> 0
A4: =+A3+1 -> 3 | B4: Bloomington Jefferson | C4: =TeamScore(B4,"M",4,MN_7_REDHEAD!$F$4:$F$1391,MN_7_REDHEAD!$G$4:$G$1391,MN_7_REDHEAD!$C$4:$C$1391) -> 1214 | F4: =TeamScoreWithPlayers($B4,"M",4,MN_7_REDHEAD!$F$4:$F$1391,MN_7_REDHEAD!$E$4:$E$1391,MN_7_REDHEAD!$G$4:$G$1391,MN_7_REDHEAD!$C$4:$C$1391,"TS") -> 1214 | G4: =TeamScoreWithPlayers($B4,"M",4,MN_7_REDHEAD!$F$4:$F$1391,MN_7_REDHEAD!$E$4:$E$1391,MN_7_REDHEAD!$G$4:$G$1391,MN_7_REDHEAD!$C$4:$C$1391,"P1") -> (G) PIPPA BURRES - [330] | H4: =TeamScoreWithPlayers($B4,"M",4,MN_7_REDHEAD!$F$4:$F$1391,MN_7_REDHEAD!$E$4:$E$1391,MN_7_REDHEAD!$G$4:$G$1391,MN_7_REDHEAD!$C$4:$C$1391,"P2") -> (B) DOMINICK JOHNSON - [330] | I4: =TeamScoreWithPlayers($B4,"M",4,MN_7_REDHEAD!$F$4:$F$1391,MN_7_REDHEAD!$E$4:$E$1391,MN_7_REDHEAD!$G$4:$G$1391,MN_7_REDHEAD!$C$4:$C$1391,"P3") -> (B) FINN DOLMAR - [281] | J4: =TeamScoreWithPlayers($B4,"M",4,MN_7_REDHEAD!$F$4:$F$1391,MN_7_REDHEAD!$E$4:$E$1391,MN_7_REDHEAD!$G$4:$G$1391,MN_7_REDHEAD!$C$4:$C$1391,"P4") -> (B) CARLO CALBONE - [273] | L4: 1214 | M4: 1214 | O4: 0
A5: 4 | B5: Brainerd High School | C5: =TeamScore(B5,"M",4,MN_7_REDHEAD!$F$4:$F$1391,MN_7_REDHEAD!$G$4:$G$1391,MN_7_REDHEAD!$C$4:$C$1391) -> 1983 | F5: =TeamScoreWithPlayers($B5,"M",4,MN_7_REDHEAD!$F$4:$F$1391,MN_7_REDHEAD!$E$4:$E$1391,MN_7_REDHEAD!$G$4:$G$1391,MN_7_REDHEAD!$C$4:$C$1391,"TS") -> 1983 | G5: =TeamScoreWithPlayers($B5,"M",4,MN_7_REDHEAD!$F$4:$F$1391,MN_7_REDHEAD!$E$4:$E$1391,MN_7_REDHEAD!$G$4:$G$1391,MN_7_REDHEAD!$C$4:$C$1391,"P1") -> (B) RYLAN O'HEARN - [529] | H5: =TeamScoreWithPlayers($B5,"M",4,MN_7_REDHEAD!$F$4:$F$1391,MN_7_REDHEAD!$E$4:$E$1391,MN_7_REDHEAD!$G$4:$G$1391,MN_7_REDHEAD!$C$4:$C$1391,"P2") -> (G) ABIGAIL THOMES - [510] | I5: =TeamScoreWithPlayers($B5,"M",4,MN_7_REDHEAD!$F$4:$F$1391,MN_7_REDHEAD!$E$4:$E$1391,MN_7_REDHEAD!$G$4:$G$1391,MN_7_REDHEAD!$C$4:$C$1391,"P3") -> (G) STELLA MUSEUS - [476] | J5: =TeamScoreWithPlayers($B5,"M",4,MN_7_REDHEAD!$F$4:$F$1391,MN_7_REDHEAD!$E$4:$E$1391,MN_7_REDHEAD!$G$4:$G$1391,MN_7_REDHEAD!$C$4:$C$1391,"P4") -> (B) LANDON HAGEN - [468] | L5: 1983 | M5: 1983 | O5: 0
A6: 5 | B6: Burnsville High School | C6: =TeamScore(B6,"M",4,MN_7_REDHEAD!$F$4:$F$1391,MN_7_REDHEAD!$G$4:$G$1391,MN_7_REDHEAD!$C$4:$C$1391) -> 1794 | F6: =TeamScoreWithPlayers($B6,"M",4,MN_7_REDHEAD!$F$4:$F$1391,MN_7_REDHEAD!$E$4:$E$1391,MN_7_REDHEAD!$G$4:$G$1391,MN_7_REDHEAD!$C$4:$C$1391,"TS") -> 1794 | G6: =TeamScoreWithPlayers($B6,"M",4,MN_7_REDHEAD!$F$4:$F$1391,MN_7_REDHEAD!$E$4:$E$1391,MN_7_REDHEAD!$G$4:$G$1391,MN_7_REDHEAD!$C$4:$C$1391,"P1") -> (G) ELLIOT LUNDE - [529] | H6: =TeamScoreWithPlayers($B6,"M",4,MN_7_REDHEAD!$F$4:$F$1391,MN_7_REDHEAD!$E$4:$E$1391,MN_7_REDHEAD!$G$4:$G$1391,MN_7_REDHEAD!$C$4:$C$1391,"P2") -> (B) OWEN WATTERSON - [439] | I6: =TeamScoreWithPlayers($B6,"M",4,MN_7_REDHEAD!$F$4:$F$1391,MN_7_REDHEAD!$E$4:$E$1391,MN_7_REDHEAD!$G$4:$G$1391,MN_7_REDHEAD!$C$4:$C$1391,"P3") -> (B) LEVI WILLIAMS - [425] | J6: =TeamScoreWithPlayers($B6,"M",4,MN_7_REDHEAD!$F$4:$F$1391,MN_7_REDHEAD!$E$4:$E$1391,MN_7_REDHEAD!$G$4:$G$1391,MN_7_REDHEAD!$C$4:$C$1391,"P4") -> (G) ADELINE METZGER - [401] | L6: 1794 | M6: 1794 | O6: 0
A7: 6 | B7: Champlin Park High School | C7: =TeamScore(B7,"M",4,MN_7_REDHEAD!$F$4:$F$1391,MN_7_REDHEAD!$G$4:$G$1391,MN_7_REDHEAD!$C$4:$C$1391) -> 1485 | F7: =TeamScoreWithPlayers($B7,"M",4,MN_7_REDHEAD!$F$4:$F$1391,MN_7_REDHEAD!$E$4:$E$1391,MN_7_REDHEAD!$G$4:$G$1391,MN_7_REDHEAD!$C$4:$C$1391,"TS") -> 1485 | G7: =TeamScoreWithPlayers($B7,"M",4,MN_7_REDHEAD!$F$4:$F$1391,MN_7_REDHEAD!$E$4:$E$1391,MN_7_REDHEAD!$G$4:$G$1391,MN_7_REDHEAD!$C$4:$C$1391,"P1") -> (B) GRAHAM BERNU - [401] | H7: =TeamScoreWithPlayers($B7,"M",4,MN_7_REDHEAD!$F$4:$F$1391,MN_7_REDHEAD!$E$4:$E$1391,MN_7_REDHEAD!$G$4:$G$1391,MN_7_REDHEAD!$C$4:$C$1391,"P2") -> (G) SIDSE SPROUT - [384] | I7: =TeamScoreWithPlayers($B7,"M",4,MN_7_REDHEAD!$F$4:$F$1391,MN_7_REDHEAD!$E$4:$E$1391,MN_7_REDHEAD!$G$4:$G$1391,MN_7_REDHEAD!$C$4:$C$1391,"P3") -> (G) MORGAN ROTHER - [350] | J7: =TeamScoreWithPlayers($B7,"M",4,MN_7_REDHEAD!$F$4:$F$1391,MN_7_REDHEAD!$E$4:$E$1391,MN_7_REDHEAD!$G$4:$G$1391,MN_7_REDHEAD!$C$4:$C$1391,"P4") -> (B) KAI NELSON - [350] | L7: 1485 | M7: 1485 | O7: 0
A8: 7 | B8: Chanhassen High School | C8: =TeamScore(B8,"M",4,MN_7_REDHEAD!$F$4:$F$1391,MN_7_REDHEAD!$G$4:$G$1391,MN_7_REDHEAD!$C$4:$C$1391) -> 1680 | F8: =TeamScoreWithPlayers($B8,"M",4,MN_7_REDHEAD!$F$4:$F$1391,MN_7_REDHEAD!$E$4:$E$1391,MN_7_REDHEAD!$G$4:$G$1391,MN_7_REDHEAD!$C$4:$C$1391,"TS") -> 1680 | G8: =TeamScoreWithPlayers($B8,"M",4,MN_7_REDHEAD!$F$4:$F$1391,MN_7_REDHEAD!$E$4:$E$1391,MN_7_REDHEAD!$G$4:$G$1391,MN_7_REDHEAD!$C$4:$C$1391,"P1") -> (G) MACKENZIE BURKE - [476] | H8: =TeamScoreWithPlayers($B8,"M",4,MN_7_REDHEAD!$F$4:$F$1391,MN_7_REDHEAD!$E$4:$E$1391,MN_7_REDHEAD!$G$4:$G$1391,MN_7_REDHEAD!$C$4:$C$1391,"P2") -> (B) BRADYN RUPPERT - [432] | I8: =TeamScoreWithPlayers($B8,"M",4,MN_7_REDHEAD!$F$4:$F$1391,MN_7_REDHEAD!$E$4:$E$1391,MN_7_REDHEAD!$G$4:$G$1391,MN_7_REDHEAD!$C$4:$C$1391,"P3") -> (B) MASON DEALWIS - [413] | J8: =TeamScoreWithPlayers($B8,"M",4,MN_7_REDHEAD!$F$4:$F$1391,MN_7_REDHEAD!$E$4:$E$1391,MN_7_REDHEAD!$G$4:$G$1391,MN_7_REDHEAD!$C$4:$C$1391,"P4") -> (B) SYD KENNEDY - [359] | L8: 1680 | M8: 1680 | O8: 0
A9: 8 | B9: Chaska High School | C9: =TeamScore(B9,"M",4,MN_7_REDHEAD!$F$4:$F$1391,MN_7_REDHEAD!$G$4:$G$1391,MN_7_REDHEAD!$C$4:$C$1391) -> 1558 | F9: =TeamScoreWithPlayers($B9,"M",4,MN_7_REDHEAD!$F$4:$F$1391,MN_7_REDHEAD!$E$4:$E$1391,MN_7_REDHEAD!$G$4:$G$1391,MN_7_REDHEAD!$C$4:$C$1391,"TS") -> 1558 | G9: =TeamScoreWithPlayers($B9,"M",4,MN_7_REDHEAD!$F$4:$F$1391,MN_7_REDHEAD!$E$4:$E$1391,MN_7_REDHEAD!$G$4:$G$1391,MN_7_REDHEAD!$C$4:$C$1391,"P1") -> (B) AUGUST MAYER - [432] | H9: =TeamScoreWithPlayers($B9,"M",4,MN_7_REDHEAD!$F$4:$F$1391,MN_7_REDHEAD!$E$4:$E$1391,MN_7_REDHEAD!$G$4:$G$1391,MN_7_REDHEAD!$C$4:$C$1391,"P2") -> (B) LEIGHTON HINES - [401] | I9: =TeamScoreWithPlayers($B9,"M",4,MN_7_REDHEAD!$F$4:$F$1391,MN_7_REDHEAD!$E$4:$E$1391,MN_7_REDHEAD!$G$4:$G$1391,MN_7_REDHEAD!$C$4:$C$1391,"P3") -> (G) MONIQUE KONOTOPKA - [395] | J9: =TeamScoreWithPlayers($B9,"M",4,MN_7_REDHEAD!$F$4:$F$1391,MN_7_REDHEAD!$E$4:$E$1391,MN_7_REDHEAD!$G$4:$G$1391,MN_7_REDHEAD!$C$4:$C$1391,"P4") -> (B) NOLAN STONE - [330] | L9: 1558 | M9: 1558 | O9: 0
A10: 9 | B10: Cloquet-Esko-Carlton | C10: =TeamScore(B10,"M",4,MN_7_REDHEAD!$F$4:$F$1391,MN_7_REDHEAD!$G$4:$G$1391,MN_7_REDHEAD!$C$4:$C$1391) -> 2071 | F10: =TeamScoreWithPlayers($B10,"M",4,MN_7_REDHEAD!$F$4:$F$1391,MN_7_REDHEAD!$E$4:$E$1391,MN_7_REDHEAD!$G$4:$G$1391,MN_7_REDHEAD!$C$4:$C$1391,"TS") -> 2071 | G10: =TeamScoreWithPlayers($B10,"M",4,MN_7_REDHEAD!$F$4:$F$1391,MN_7_REDHEAD!$E$4:$E$1391,MN_7_REDHEAD!$G$4:$G$1391,MN_7_REDHEAD!$C$4:$C$1391,"P1") -> (B) DANIEL DEWEY - [550] | H10: =TeamScoreWithPlayers($B10,"M",4,MN_7_REDHEAD!$F$4:$F$1391,MN_7_REDHEAD!$E$4:$E$1391,MN_7_REDHEAD!$G$4:$G$1391,MN_7_REDHEAD!$C$4:$C$1391,"P2") -> (G) CIERAH MCKIBBON - [519] | I10: =TeamScoreWithPlayers($B10,"M",4,MN_7_REDHEAD!$F$4:$F$1391,MN_7_REDHEAD!$E$4:$E$1391,MN_7_REDHEAD!$G$4:$G$1391,MN_7_REDHEAD!$C$4:$C$1391,"P3") -> (B) CARTER OSVOLD - [510] | J10: =TeamScoreWithPlayers($B10,"M",4,MN_7_REDHEAD!$F$4:$F$1391,MN_7_REDHEAD!$E$4:$E$1391,MN_7_REDHEAD!$G$4:$G$1391,MN_7_REDHEAD!$C$4:$C$1391,"P4") -> (G) AVA MCKIBBON - [492] | L10: 2071 | M10: 2071 | O10: 0
A11: 10 | B11: Crosby-Ironton High School | C11: =TeamScore(B11,"M",4,MN_7_REDHEAD!$F$4:$F$1391,MN_7_REDHEAD!$G$4:$G$1391,MN_7_REDHEAD!$C$4:$C$1391) -> 2041 | F11: =TeamScoreWithPlayers($B11,"M",4,MN_7_REDHEAD!$F$4:$F$1391,MN_7_REDHEAD!$E$4:$E$1391,MN_7_REDHEAD!$G$4:$G$1391,MN_7_REDHEAD!$C$4:$C$1391,"TS") -> 2041 | G11: =TeamScoreWithPlayers($B11,"M",4,MN_7_REDHEAD!$F$4:$F$1391,MN_7_REDHEAD!$E$4:$E$1391,MN_7_REDHEAD!$G$4:$G$1391,MN_7_REDHEAD!$C$4:$C$1391,"P1") -> (B) OWEN RITTER - [550] | H11: =TeamScoreWithPlayers($B11,"M",4,MN_7_REDHEAD!$F$4:$F$1391,MN_7_REDHEAD!$E$4:$E$1391,MN_7_REDHEAD!$G$4:$G$1391,MN_7_REDHEAD!$C$4:$C$1391,"P2") -> (G) VANESSA RICKMEYER - [519] | I11: =TeamScoreWithPlayers($B11,"M",4,MN_7_REDHEAD!$F$4:$F$1391,MN_7_REDHEAD!$E$4:$E$1391,MN_7_REDHEAD!$G$4:$G$1391,MN_7_REDHEAD!$C$4:$C$1391,"P3") -> (B) EZRA JACOBSON - [519] | J11: =TeamScoreWithPlayers($B11,"M",4,MN_7_REDHEAD!$F$4:$F$1391,MN_7_REDHEAD!$E$4:$E$1391,MN_7_REDHEAD!$G$4:$G$1391,MN_7_REDHEAD!$C$4:$C$1391,"P4") -> (G) AVERY LONERGAN - [453] | L11: 2041 | M11: 2041 | O11: 0
A12: 11 | B12: Duluth East High School | C12: =TeamScore(B12,"M",4,MN_7_REDHEAD!$F$4:$F$1391,MN_7_REDHEAD!$G$4:$G$1391,MN_7_REDHEAD!$C$4:$C$1391) -> 0 | F12: =TeamScoreWithPlayers($B12,"M",4,MN_7_REDHEAD!$F$4:$F$1391,MN_7_REDHEAD!$E$4:$E$1391,MN_7_REDHEAD!$G$4:$G$1391,MN_7_REDHEAD!$C$4:$C$1391,"TS") -> 0 | G12: =TeamScoreWithPlayers($B12,"M",4,MN_7_REDHEAD!$F$4:$F$1391,MN_7_REDHEAD!$E$4:$E$1391,MN_7_REDHEAD!$G$4:$G$1391,MN_7_REDHEAD!$C$4:$C$1391,"P1") -> () - [0] | H12: =TeamScoreWithPlayers($B12,"M",4,MN_7_REDHEAD!$F$4:$F$1391,MN_7_REDHEAD!$E$4:$E$1391,MN_7_REDHEAD!$G$4:$G$1391,MN_7_REDHEAD!$C$4:$C$1391,"P2") -> () - [0] | I12: =TeamScoreWithPlayers($B12,"M",4,MN_7_REDHEAD!$F$4:$F$1391,MN_7_REDHEAD!$E$4:$E$1391,MN_7_REDHEAD!$G$4:$G$1391,MN_7_REDHEAD!$C$4:$C$1391,"P3") -> () - [0] | J12: =TeamScoreWithPlayers($B12,"M",4,MN_7_REDHEAD!$F$4:$F$1391,MN_7_REDHEAD!$E$4:$E$1391,MN_7_REDHEAD!$G$4:$G$1391,MN_7_REDHEAD!$C$4:$C$1391,"P4") -> () - [0] | L12: 0 | M12: 0 | O12: 0
A13: 12 | B13: East Ridge High School | C13: =TeamScore(B13,"M",4,MN_7_REDHEAD!$F$4:$F$1391,MN_7_REDHEAD!$G$4:$G$1391,MN_7_REDHEAD!$C$4:$C$1391) -> 1916 | F13: =TeamScoreWithPlayers($B13,"M",4,MN_7_REDHEAD!$F$4:$F$1391,MN_7_REDHEAD!$E$4:$E$1391,MN_7_REDHEAD!$G$4:$G$1391,MN_7_REDHEAD!$C$4:$C$1391,"TS") -> 1916 | G13: =TeamScoreWithPlayers($B13,"M",4,MN_7_REDHEAD!$F$4:$F$1391,MN_7_REDHEAD!$E$4:$E$1391,MN_7_REDHEAD!$G$4:$G$1391,MN_7_REDHEAD!$C$4:$C$1391,"P1") -> (B) NICK SHIELD - [510] | H13: =TeamScoreWithPlayers($B13,"M",4,MN_7_REDHEAD!$F$4:$F$1391,MN_7_REDHEAD!$E$4:$E$1391,MN_7_REDHEAD!$G$4:$G$1391,MN_7_REDHEAD!$C$4:$C$1391,"P2") -> (B) LUCAS TRUCKENMILLER - [501] | I13: =TeamScoreWithPlayers($B13,"M",4,MN_7_REDHEAD!$F$4:$F$1391,MN_7_REDHEAD!$E$4:$E$1391,MN_7_REDHEAD!$G$4:$G$1391,MN_7_REDHEAD!$C$4:$C$1391,"P3") -> (B) OWEN LAWSON - [492] | J13: =TeamScoreWithPlayers($B13,"M",4,MN_7_REDHEAD!$F$4:$F$1391,MN_7_REDHEAD!$E$4:$E$1391,MN_7_REDHEAD!$G$4:$G$1391,MN_7_REDHEAD!$C$4:$C$1391,"P4") -> (G) QUINN VAN HEYST - [413] | L13: 1916 | M13: 1916 | O13: 0
A14: 13 | B14: Edina Cycling | C14: =TeamScore(B14,"M",4,MN_7_REDHEAD!$F$4:$F$1391,MN_7_REDHEAD!$G$4:$G$1391,MN_7_REDHEAD!$C$4:$C$1391) -> 1788 | F14: =TeamScoreWithPlayers($B14,"M",4,MN_7_REDHEAD!$F$4:$F$1391,MN_7_REDHEAD!$E$4:$E$1391,MN_7_REDHEAD!$G$4:$G$1391,MN_7_REDHEAD!$C$4:$C$1391,"TS") -> 1788 | G14: =TeamScoreWithPlayers($B14,"M",4,MN_7_REDHEAD!$F$4:$F$1391,MN_7_REDHEAD!$E$4:$E$1391,MN_7_REDHEAD!$G$4:$G$1391,MN_7_REDHEAD!$C$4:$C$1391,"P1") -> (G) SYDNEY BULLARD - [492] | H14: =TeamScoreWithPlayers($B14,"M",4,MN_7_REDHEAD!$F$4:$F$1391,MN_7_REDHEAD!$E$4:$E$1391,MN_7_REDHEAD!$G$4:$G$1391,MN_7_REDHEAD!$C$4:$C$1391,"P2") -> (B) DJ SEVERSON - [439] | I14: =TeamScoreWithPlayers($B14,"M",4,MN_7_REDHEAD!$F$4:$F$1391,MN_7_REDHEAD!$E$4:$E$1391,MN_7_REDHEAD!$G$4:$G$1391,MN_7_REDHEAD!$C$4:$C$1391,"P3") -> (G) EVELYN HOPPE - [432] | J14: =TeamScoreWithPlayers($B14,"M",4,MN_7_REDHEAD!$F$4:$F$1391,MN_7_REDHEAD!$E$4:$E$1391,MN_7_REDHEAD!$G$4:$G$1391,MN_7_REDHEAD!$C$4:$C$1391,"P4") -> (G) BEATRICE TOFTEY - [425] | L14: 1788 | M14: 1788 | O14: 0
A15: 14 | B15: Hopkins High School | C15: =TeamScore(B15,"M",4,MN_7_REDHEAD!$F$4:$F$1391,MN_7_REDHEAD!$G$4:$G$1391,MN_7_REDHEAD!$C$4:$C$1391) -> 1642 | F15: =TeamScoreWithPlayers($B15,"M",4,MN_7_REDHEAD!$F$4:$F$1391,MN_7_REDHEAD!$E$4:$E$1391,MN_7_REDHEAD!$G$4:$G$1391,MN_7_REDHEAD!$C$4:$C$1391,"TS") -> 1642 | G15: =TeamScoreWithPlayers($B15,"M",4,MN_7_REDHEAD!$F$4:$F$1391,MN_7_REDHEAD!$E$4:$E$1391,MN_7_REDHEAD!$G$4:$G$1391,MN_7_REDHEAD!$C$4:$C$1391,"P1") -> (G) GRETA NYGREN - [484] | H15: =TeamScoreWithPlayers($B15,"M",4,MN_7_REDHEAD!$F$4:$F$1391,MN_7_REDHEAD!$E$4:$E$1391,MN_7_REDHEAD!$G$4:$G$1391,MN_7_REDHEAD!$C$4:$C$1391,"P2") -> (B) NOLAN HAAR - [395] | I15: =TeamScoreWithPlayers($B15,"M",4,MN_7_REDHEAD!$F$4:$F$1391,MN_7_REDHEAD!$E$4:$E$1391,MN_7_REDHEAD!$G$4:$G$1391,MN_7_REDHEAD!$C$4:$C$1391,"P3") -> (B) GRIFFIN WOESTE - [389] | J15: =TeamScoreWithPlayers($B15,"M",4,MN_7_REDHEAD!$F$4:$F$1391,MN_7_REDHEAD!$E$4:$E$1391,MN_7_REDHEAD!$G$4:$G$1391,MN_7_REDHEAD!$C$4:$C$1391,"P4") -> (B) CHARLIE GRUHN - [374] | L15: 1642 | M15: 1642 | O15: 0
A16: 15 | B16: Lakeville North High School | C16: =TeamScore(B16,"M",4,MN_7_REDHEAD!$F$4:$F$1391,MN_7_REDHEAD!$G$4:$G$1391,MN_7_REDHEAD!$C$4:$C$1391) -> 1445 | F16: =TeamScoreWithPlayers($B16,"M",4,MN_7_REDHEAD!$F$4:$F$1391,MN_7_REDHEAD!$E$4:$E$1391,MN_7_REDHEAD!$G$4:$G$1391,MN_7_REDHEAD!$C$4:$C$1391,"TS") -> 1445 | G16: =TeamScoreWithPlayers($B16,"M",4,MN_7_REDHEAD!$F$4:$F$1391,MN_7_REDHEAD!$E$4:$E$1391,MN_7_REDHEAD!$G$4:$G$1391,MN_7_REDHEAD!$C$4:$C$1391,"P1") -> (G) SOFIA HORSTMANN - [446] | H16: =TeamScoreWithPlayers($B16,"M",4,MN_7_REDHEAD!$F$4:$F$1391,MN_7_REDHEAD!$E$4:$E$1391,MN_7_REDHEAD!$G$4:$G$1391,MN_7_REDHEAD!$C$4:$C$1391,"P2") -> (B) MYLES INGVALSON - [413] | I16: =TeamScoreWithPlayers($B16,"M",4,MN_7_REDHEAD!$F$4:$F$1391,MN_7_REDHEAD!$E$4:$E$1391,MN_7_REDHEAD!$G$4:$G$1391,MN_7_REDHEAD!$C$4:$C$1391,"P3") -> (B) HUDSON HOLSTE - [307] | J16: =TeamScoreWithPlayers($B16,"M",4,MN_7_REDHEAD!$F$4:$F$1391,MN_7_REDHEAD!$E$4:$E$1391,MN_7_REDHEAD!$G$4:$G$1391,MN_7_REDHEAD!$C$4:$C$1391,"P4") -> (B) BRAYDEN KREJCE - [279] | L16: 1445 | M16: 1445 | O16: 0
A17: 16 | B17: Minneapolis Southwest | C17: =TeamScore(B17,"M",4,MN_7_REDHEAD!$F$4:$F$1391,MN_7_REDHEAD!$G$4:$G$1391,MN_7_REDHEAD!$C$4:$C$1391) -> 1815 | F17: =TeamScoreWithPlayers($B17,"M",4,MN_7_REDHEAD!$F$4:$F$1391,MN_7_REDHEAD!$E$4:$E$1391,MN_7_REDHEAD!$G$4:$G$1391,MN_7_REDHEAD!$C$4:$C$1391,"TS") -> 1815 | G17: =TeamScoreWithPlayers($B17,"M",4,MN_7_REDHEAD!$F$4:$F$1391,MN_7_REDHEAD!$E$4:$E$1391,MN_7_REDHEAD!$G$4:$G$1391,MN_7_REDHEAD!$C$4:$C$1391,"P1") -> (G) NARA BLACK - [501] | H17: =TeamScoreWithPlayers($B17,"M",4,MN_7_REDHEAD!$F$4:$F$1391,MN_7_REDHEAD!$E$4:$E$1391,MN_7_REDHEAD!$G$4:$G$1391,MN_7_REDHEAD!$C$4:$C$1391,"P2") -> (G) GRACE MAKOSKY - [484] | I17: =TeamScoreWithPlayers($B17,"M",4,MN_7_REDHEAD!$F$4:$F$1391,MN_7_REDHEAD!$E$4:$E$1391,MN_7_REDHEAD!$G$4:$G$1391,MN_7_REDHEAD!$C$4:$C$1391,"P3") -> (G) LILY MAKOSKY - [446] | J17: =TeamScoreWithPlayers($B17,"M",4,MN_7_REDHEAD!$F$4:$F$1391,MN_7_REDHEAD!$E$4:$E$1391,MN_7_REDHEAD!$G$4:$G$1391,MN_7_REDHEAD!$C$4:$C$1391,"P4") -> (B) THEODORE JUFFER - [384] | L17: 1815 | M17: 1815 | O17: 0
A18: 17 | B18: Minnetonka High School | C18: =TeamScore(B18,"M",4,MN_7_REDHEAD!$F$4:$F$1391,MN_7_REDHEAD!$G$4:$G$1391,MN_7_REDHEAD!$C$4:$C$1391) -> 2147 | F18: =TeamScoreWithPlayers($B18,"M",4,MN_7_REDHEAD!$F$4:$F$1391,MN_7_REDHEAD!$E$4:$E$1391,MN_7_REDHEAD!$G$4:$G$1391,MN_7_REDHEAD!$C$4:$C$1391,"TS") -> 2147 | G18: =TeamScoreWithPlayers($B18,"M",4,MN_7_REDHEAD!$F$4:$F$1391,MN_7_REDHEAD!$E$4:$E$1391,MN_7_REDHEAD!$G$4:$G$1391,MN_7_REDHEAD!$C$4:$C$1391,"P1") -> (G) STELLA SWANSON - [550] | H18: =TeamScoreWithPlayers($B18,"M",4,MN_7_REDHEAD!$F$4:$F$1391,MN_7_REDHEAD!$E$4:$E$1391,MN_7_REDHEAD!$G$4:$G$1391,MN_7_REDHEAD!$C$4:$C$1391,"P2") -> (B) BENNO SASANFAR - [539] | I18: =TeamScoreWithPlayers($B18,"M",4,MN_7_REDHEAD!$F$4:$F$1391,MN_7_REDHEAD!$E$4:$E$1391,MN_7_REDHEAD!$G$4:$G$1391,MN_7_REDHEAD!$C$4:$C$1391,"P3") -> (G) LANEY MILLER - [529] | J18: =TeamScoreWithPlayers($B18,"M",4,MN_7_REDHEAD!$F$4:$F$1391,MN_7_REDHEAD!$E$4:$E$1391,MN_7_REDHEAD!$G$4:$G$1391,MN_7_REDHEAD!$C$4:$C$1391,"P4") -> (B) JACKSON RUNCK - [529] | L18: 2147 | M18: 2147 | O18: 0
A19: 18 | B19: Mounds View High School | C19: =TeamScore(B19,"M",4,MN_7_REDHEAD!$F$4:$F$1391,MN_7_REDHEAD!$G$4:$G$1391,MN_7_REDHEAD!$C$4:$C$1391) -> 1841 | F19: =TeamScoreWithPlayers($B19,"M",4,MN_7_REDHEAD!$F$4:$F$1391,MN_7_REDHEAD!$E$4:$E$1391,MN_7_REDHEAD!$G$4:$G$1391,MN_7_REDHEAD!$C$4:$C$1391,"TS") -> 1841 | G19: =TeamScoreWithPlayers($B19,"M",4,MN_7_REDHEAD!$F$4:$F$1391,MN_7_REDHEAD!$E$4:$E$1391,MN_7_REDHEAD!$G$4:$G$1391,MN_7_REDHEAD!$C$4:$C$1391,"P1") -> (B) THOMAS QUACKENBUSH - [501] | H19: =TeamScoreWithPlayers($B19,"M",4,MN_7_REDHEAD!$F$4:$F$1391,MN_7_REDHEAD!$E$4:$E$1391,MN_7_REDHEAD!$G$4:$G$1391,MN_7_REDHEAD!$C$4:$C$1391,"P2") -> (B) LAKEN BARTEL - [476] | I19: =TeamScoreWithPlayers($B19,"M",4,MN_7_REDHEAD!$F$4:$F$1391,MN_7_REDHEAD!$E$4:$E$1391,MN_7_REDHEAD!$G$4:$G$1391,MN_7_REDHEAD!$C$4:$C$1391,"P3") -> (G) JADON CARLSON - [439] | J19: =TeamScoreWithPlayers($B19,"M",4,MN_7_REDHEAD!$F$4:$F$1391,MN_7_REDHEAD!$E$4:$E$1391,MN_7_REDHEAD!$G$4:$G$1391,MN_7_REDHEAD!$C$4:$C$1391,"P4") -> (B) ANDY VIZECKY - [425] | L19: 1841 | M19: 1841 | O19: 0
A20: 19 | B20: New Prague Middle and High School | C20: =TeamScore(B20,"M",4,MN_7_REDHEAD!$F$4:$F$1391,MN_7_REDHEAD!$G$4:$G$1391,MN_7_REDHEAD!$C$4:$C$1391) -> 2013 | F20: =TeamScoreWithPlayers($B20,"M",4,MN_7_REDHEAD!$F$4:$F$1391,MN_7_REDHEAD!$E$4:$E$1391,MN_7_REDHEAD!$G$4:$G$1391,MN_7_REDHEAD!$C$4:$C$1391,"TS") -> 2013 | G20: =TeamScoreWithPlayers($B20,"M",4,MN_7_REDHEAD!$F$4:$F$1391,MN_7_REDHEAD!$E$4:$E$1391,MN_7_REDHEAD!$G$4:$G$1391,MN_7_REDHEAD!$C$4:$C$1391,"P1") -> (G) ALEXIS RIDGEWAY - [550] | H20: =TeamScoreWithPlayers($B20,"M",4,MN_7_REDHEAD!$F$4:$F$1391,MN_7_REDHEAD!$E$4:$E$1391,MN_7_REDHEAD!$G$4:$G$1391,MN_7_REDHEAD!$C$4:$C$1391,"P2") -> (B) HAYDEN BRAITH - [519] | I20: =TeamScoreWithPlayers($B20,"M",4,MN_7_REDHEAD!$F$4:$F$1391,MN_7_REDHEAD!$E$4:$E$1391,MN_7_REDHEAD!$G$4:$G$1391,MN_7_REDHEAD!$C$4:$C$1391,"P3") -> (B) LINCOLN STUBER - [476] | J20: =TeamScoreWithPlayers($B20,"M",4,MN_7_REDHEAD!$F$4:$F$1391,MN_7_REDHEAD!$E$4:$E$1391,MN_7_REDHEAD!$G$4:$G$1391,MN_7_REDHEAD!$C$4:$C$1391,"P4") -> (B) CASEY KELLY - [468] | L20: 2013 | M20: 2013 | O20: 0
A21: 20 | B21: Prior Lake High School | C21: =TeamScore(B21,"M",4,MN_7_REDHEAD!$F$4:$F$1391,MN_7_REDHEAD!$G$4:$G$1391,MN_7_REDHEAD!$C$4:$C$1391) -> 1928 | F21: =TeamScoreWithPlayers($B21,"M",4,MN_7_REDHEAD!$F$4:$F$1391,MN_7_REDHEAD!$E$4:$E$1391,MN_7_REDHEAD!$G$4:$G$1391,MN_7_REDHEAD!$C$4:$C$1391,"TS") -> 1928 | G21: =TeamScoreWithPlayers($B21,"M",4,MN_7_REDHEAD!$F$4:$F$1391,MN_7_REDHEAD!$E$4:$E$1391,MN_7_REDHEAD!$G$4:$G$1391,MN_7_REDHEAD!$C$4:$C$1391,"P1") -> (G) ARABELLA FRITZEN - [519] | H21: =TeamScoreWithPlayers($B21,"M",4,MN_7_REDHEAD!$F$4:$F$1391,MN_7_REDHEAD!$E$4:$E$1391,MN_7_REDHEAD!$G$4:$G$1391,MN_7_REDHEAD!$C$4:$C$1391,"P2") -> (G) MILA OLSON - [510] | I21: =TeamScoreWithPlayers($B21,"M",4,MN_7_REDHEAD!$F$4:$F$1391,MN_7_REDHEAD!$E$4:$E$1391,MN_7_REDHEAD!$G$4:$G$1391,MN_7_REDHEAD!$C$4:$C$1391,"P3") -> (G) PEYTON STAMSCHROR - [453] | J21: =TeamScoreWithPlayers($B21,"M",4,MN_7_REDHEAD!$F$4:$F$1391,MN_7_REDHEAD!$E$4:$E$1391,MN_7_REDHEAD!$G$4:$G$1391,MN_7_REDHEAD!$C$4:$C$1391,"P4") -> (B) ELI CZAJKOWSKI - [446] | L21: 1928 | M21: 1928 | O21: 0
A22: 21 | B22: Rochester Century High School | C22: =TeamScore(B22,"M",4,MN_7_REDHEAD!$F$4:$F$1391,MN_7_REDHEAD!$G$4:$G$1391,MN_7_REDHEAD!$C$4:$C$1391) -> 1323 | F22: =TeamScoreWithPlayers($B22,"M",4,MN_7_REDHEAD!$F$4:$F$1391,MN_7_REDHEAD!$E$4:$E$1391,MN_7_REDHEAD!$G$4:$G$1391,MN_7_REDHEAD!$C$4:$C$1391,"TS") -> 1323 | G22: =TeamScoreWithPlayers($B22,"M",4,MN_7_REDHEAD!$F$4:$F$1391,MN_7_REDHEAD!$E$4:$E$1391,MN_7_REDHEAD!$G$4:$G$1391,MN_7_REDHEAD!$C$4:$C$1391,"P1") -> (G) MILENA MEIER - [419] | H22: =TeamScoreWithPlayers($B22,"M",4,MN_7_REDHEAD!$F$4:$F$1391,MN_7_REDHEAD!$E$4:$E$1391,MN_7_REDHEAD!$G$4:$G$1391,MN_7_REDHEAD!$C$4:$C$1391,"P2") -> (B) ROWAN EKHOLM - [374] | I22: =TeamScoreWithPlayers($B22,"M",4,MN_7_REDHEAD!$F$4:$F$1391,MN_7_REDHEAD!$E$4:$E$1391,MN_7_REDHEAD!$G$4:$G$1391,MN_7_REDHEAD!$C$4:$C$1391,"P3") -> (B) AVERY STRUCKMANN - [278] | J22: =TeamScoreWithPlayers($B22,"M",4,MN_7_REDHEAD!$F$4:$F$1391,MN_7_REDHEAD!$E$4:$E$1391,MN_7_REDHEAD!$G$4:$G$1391,MN_7_REDHEAD!$C$4:$C$1391,"P4") -> (B) KAI HILL - [252] | L22: 1323 | M22: 1323 | O22: 0
A23: 22 | B23: Rock Ridge Composite | C23: =TeamScore(B23,"M",4,MN_7_REDHEAD!$F$4:$F$1391,MN_7_REDHEAD!$G$4:$G$1391,MN_7_REDHEAD!$C$4:$C$1391) -> 1951 | F23: =TeamScoreWithPlayers($B23,"M",4,MN_7_REDHEAD!$F$4:$F$1391,MN_7_REDHEAD!$E$4:$E$1391,MN_7_REDHEAD!$G$4:$G$1391,MN_7_REDHEAD!$C$4:$C$1391,"TS") -> 1951 | G23: =TeamScoreWithPlayers($B23,"M",4,MN_7_REDHEAD!$F$4:$F$1391,MN_7_REDHEAD!$E$4:$E$1391,MN_7_REDHEAD!$G$4:$G$1391,MN_7_REDHEAD!$C$4:$C$1391,"P1") -> (B) GUS LAYMAN - [539] | H23: =TeamScoreWithPlayers($B23,"M",4,MN_7_REDHEAD!$F$4:$F$1391,MN_7_REDHEAD!$E$4:$E$1391,MN_7_REDHEAD!$G$4:$G$1391,MN_7_REDHEAD!$C$4:$C$1391,"P2") -> (G) DALLAS LAYMAN - [501] | I23: =TeamScoreWithPlayers($B23,"M",4,MN_7_REDHEAD!$F$4:$F$1391,MN_7_REDHEAD!$E$4:$E$1391,MN_7_REDHEAD!$G$4:$G$1391,MN_7_REDHEAD!$C$4:$C$1391,"P3") -> (G) SELAH BEUKEMA - [492] | J23: =TeamScoreWithPlayers($B23,"M",4,MN_7_REDHEAD!$F$4:$F$1391,MN_7_REDHEAD!$E$4:$E$1391,MN_7_REDHEAD!$G$4:$G$1391,MN_7_REDHEAD!$C$4:$C$1391,"P4") -> (B) WYATT PETRACK - [419] | L23: 1951 | M23: 1951 | O23: 0
A24: 23 | B24: Shakopee High School | C24: =TeamScore(B24,"M",4,MN_7_REDHEAD!$F$4:$F$1391,MN_7_REDHEAD!$G$4:$G$1391,MN_7_REDHEAD!$C$4:$C$1391) -> 1654 | F24: =TeamScoreWithPlayers($B24,"M",4,MN_7_REDHEAD!$F$4:$F$1391,MN_7_REDHEAD!$E$4:$E$1391,MN_7_REDHEAD!$G$4:$G$1391,MN_7_REDHEAD!$C$4:$C$1391,"TS") -> 1654 | G24: =TeamScoreWithPlayers($B24,"M",4,MN_7_REDHEAD!$F$4:$F$1391,MN_7_REDHEAD!$E$4:$E$1391,MN_7_REDHEAD!$G$4:$G$1391,MN_7_REDHEAD!$C$4:$C$1391,"P1") -> (B) AIDEN ZABEL - [484] | H24: =TeamScoreWithPlayers($B24,"M",4,MN_7_REDHEAD!$F$4:$F$1391,MN_7_REDHEAD!$E$4:$E$1391,MN_7_REDHEAD!$G$4:$G$1391,MN_7_REDHEAD!$C$4:$C$1391,"P2") -> (B) TRUMAN DUEHR - [407] | I24: =TeamScoreWithPlayers($B24,"M",4,MN_7_REDHEAD!$F$4:$F$1391,MN_7_REDHEAD!$E$4:$E$1391,MN_7_REDHEAD!$G$4:$G$1391,MN_7_REDHEAD!$C$4:$C$1391,"P3") -> (G) KIERA JAMIESON - [389] | J24: =TeamScoreWithPlayers($B24,"M",4,MN_7_REDHEAD!$F$4:$F$1391,MN_7_REDHEAD!$E$4:$E$1391,MN_7_REDHEAD!$G$4:$G$1391,MN_7_REDHEAD!$C$4:$C$1391,"P4") -> (B) MAKAI LUND - [374] | L24: 1654 | M24: 1654 | O24: 0
A25: 24 | B25: Stillwater Mountain Bike | C25: =TeamScore(B25,"M",4,MN_7_REDHEAD!$F$4:$F$1391,MN_7_REDHEAD!$G$4:$G$1391,MN_7_REDHEAD!$C$4:$C$1391) -> 2063 | F25: =TeamScoreWithPlayers($B25,"M",4,MN_7_REDHEAD!$F$4:$F$1391,MN_7_REDHEAD!$E$4:$E$1391,MN_7_REDHEAD!$G$4:$G$1391,MN_7_REDHEAD!$C$4:$C$1391,"TS") -> 2063 | G25: =TeamScoreWithPlayers($B25,"M",4,MN_7_REDHEAD!$F$4:$F$1391,MN_7_REDHEAD!$E$4:$E$1391,MN_7_REDHEAD!$G$4:$G$1391,MN_7_REDHEAD!$C$4:$C$1391,"P1") -> (B) EMMETT VALLEY - [539] | H25: =TeamScoreWithPlayers($B25,"M",4,MN_7_REDHEAD!$F$4:$F$1391,MN_7_REDHEAD!$E$4:$E$1391,MN_7_REDHEAD!$G$4:$G$1391,MN_7_REDHEAD!$C$4:$C$1391,"P2") -> (B) CHARLIE SANDERSON - [529] | I25: =TeamScoreWithPlayers($B25,"M",4,MN_7_REDHEAD!$F$4:$F$1391,MN_7_REDHEAD!$E$4:$E$1391,MN_7_REDHEAD!$G$4:$G$1391,MN_7_REDHEAD!$C$4:$C$1391,"P3") -> (B) TEDDY SANDERSON - [519] | J25: =TeamScoreWithPlayers($B25,"M",4,MN_7_REDHEAD!$F$4:$F$1391,MN_7_REDHEAD!$E$4:$E$1391,MN_7_REDHEAD!$G$4:$G$1391,MN_7_REDHEAD!$C$4:$C$1391,"P4") -> (G) MARG MINICH - [476] | L25: 2063 | M25: 2063 | O25: 0
A26: 25 | B26: Washburn High School | C26: =TeamScore(B26,"M",4,MN_7_REDHEAD!$F$4:$F$1391,MN_7_REDHEAD!$G$4:$G$1391,MN_7_REDHEAD!$C$4:$C$1391) -> 1695 | F26: =TeamScoreWithPlayers($B26,"M",4,MN_7_REDHEAD!$F$4:$F$1391,MN_7_REDHEAD!$E$4:$E$1391,MN_7_REDHEAD!$G$4:$G$1391,MN_7_REDHEAD!$C$4:$C$1391,"TS") -> 1695 | G26: =TeamScoreWithPlayers($B26,"M",4,MN_7_REDHEAD!$F$4:$F$1391,MN_7_REDHEAD!$E$4:$E$1391,MN_7_REDHEAD!$G$4:$G$1391,MN_7_REDHEAD!$C$4:$C$1391,"P1") -> (B) STEFFAN DREKONJA - [484] | H26: =TeamScoreWithPlayers($B26,"M",4,MN_7_REDHEAD!$F$4:$F$1391,MN_7_REDHEAD!$E$4:$E$1391,MN_7_REDHEAD!$G$4:$G$1391,MN_7_REDHEAD!$C$4:$C$1391,"P2") -> (G) MAEVE THATCHER - [432] | I26: =TeamScoreWithPlayers($B26,"M",4,MN_7_REDHEAD!$F$4:$F$1391,MN_7_REDHEAD!$E$4:$E$1391,MN_7_REDHEAD!$G$4:$G$1391,MN_7_REDHEAD!$C$4:$C$1391,"P3") -> (G) LUCIA ARNESON - [425] | J26: =TeamScoreWithPlayers($B26,"M",4,MN_7_REDHEAD!$F$4:$F$1391,MN_7_REDHEAD!$E$4:$E$1391,MN_7_REDHEAD!$G$4:$G$1391,MN_7_REDHEAD!$C$4:$C$1391,"P4") -> (G) BAYLY WASMER - [354] | L26: 1695 | M26: 1695 | O26: 0
A27: 26 | B27: Wayzata Mountain Bike | C27: =TeamScore(B27,"M",4,MN_7_REDHEAD!$F$4:$F$1391,MN_7_REDHEAD!$G$4:$G$1391,MN_7_REDHEAD!$C$4:$C$1391) -> 1975 | F27: =TeamScoreWithPlayers($B27,"M",4,MN_7_REDHEAD!$F$4:$F$1391,MN_7_REDHEAD!$E$4:$E$1391,MN_7_REDHEAD!$G$4:$G$1391,MN_7_REDHEAD!$C$4:$C$1391,"TS") -> 1975 | G27: =TeamScoreWithPlayers($B27,"M",4,MN_7_REDHEAD!$F$4:$F$1391,MN_7_REDHEAD!$E$4:$E$1391,MN_7_REDHEAD!$G$4:$G$1391,MN_7_REDHEAD!$C$4:$C$1391,"P1") -> (G) ABIGAIL BRITZ - [529] | H27: =TeamScoreWithPlayers($B27,"M",4,MN_7_REDHEAD!$F$4:$F$1391,MN_7_REDHEAD!$E$4:$E$1391,MN_7_REDHEAD!$G$4:$G$1391,MN_7_REDHEAD!$C$4:$C$1391,"P2") -> (B) ROENEN KING-ELLISON - [501] | I27: =TeamScoreWithPlayers($B27,"M",4,MN_7_REDHEAD!$F$4:$F$1391,MN_7_REDHEAD!$E$4:$E$1391,MN_7_REDHEAD!$G$4:$G$1391,MN_7_REDHEAD!$C$4:$C$1391,"P3") -> (B) RIGEL PRIOR - [492] | J27: =TeamScoreWithPlayers($B27,"M",4,MN_7_REDHEAD!$F$4:$F$1391,MN_7_REDHEAD!$E$4:$E$1391,MN_7_REDHEAD!$G$4:$G$1391,MN_7_REDHEAD!$C$4:$C$1391,"P4") -> (B) ETHAN LI - [453] | L27: 1975 | M27: 1975 | O27: 0
A28: 27 | B28: White Bear Lake High School | C28: =TeamScore(B28,"M",4,MN_7_REDHEAD!$F$4:$F$1391,MN_7_REDHEAD!$G$4:$G$1391,MN_7_REDHEAD!$C$4:$C$1391) -> 813 | F28: =TeamScoreWithPlayers($B28,"M",4,MN_7_REDHEAD!$F$4:$F$1391,MN_7_REDHEAD!$E$4:$E$1391,MN_7_REDHEAD!$G$4:$G$1391,MN_7_REDHEAD!$C$4:$C$1391,"TS") -> 813 | G28: =TeamScoreWithPlayers($B28,"M",4,MN_7_REDHEAD!$F$4:$F$1391,MN_7_REDHEAD!$E$4:$E$1391,MN_7_REDHEAD!$G$4:$G$1391,MN_7_REDHEAD!$C$4:$C$1391,"P1") -> (B) OLIN KNUTSON - [272] | H28: =TeamScoreWithPlayers($B28,"M",4,MN_7_REDHEAD!$F$4:$F$1391,MN_7_REDHEAD!$E$4:$E$1391,MN_7_REDHEAD!$G$4:$G$1391,MN_7_REDHEAD!$C$4:$C$1391,"P2") -> (B) RYAN GLICK - [271] | I28: =TeamScoreWithPlayers($B28,"M",4,MN_7_REDHEAD!$F$4:$F$1391,MN_7_REDHEAD!$E$4:$E$1391,MN_7_REDHEAD!$G$4:$G$1391,MN_7_REDHEAD!$C$4:$C$1391,"P3") -> (B) SETH VLIEGER - [270] | J28: =TeamScoreWithPlayers($B28,"M",4,MN_7_REDHEAD!$F$4:$F$1391,MN_7_REDHEAD!$E$4:$E$1391,MN_7_REDHEAD!$G$4:$G$1391,MN_7_REDHEAD!$C$4:$C$1391,"P4") -> () - [0] | L28: 813 | M28: 813 | O28: 0
A29: 28 | B29: Winona | C29: =TeamScore(B29,"M",4,MN_7_REDHEAD!$F$4:$F$1391,MN_7_REDHEAD!$G$4:$G$1391,MN_7_REDHEAD!$C$4:$C$1391) -> 1451 | F29: =TeamScoreWithPlayers($B29,"M",4,MN_7_REDHEAD!$F$4:$F$1391,MN_7_REDHEAD!$E$4:$E$1391,MN_7_REDHEAD!$G$4:$G$1391,MN_7_REDHEAD!$C$4:$C$1391,"TS") -> 1451 | G29: =TeamScoreWithPlayers($B29,"M",4,MN_7_REDHEAD!$F$4:$F$1391,MN_7_REDHEAD!$E$4:$E$1391,MN_7_REDHEAD!$G$4:$G$1391,MN_7_REDHEAD!$C$4:$C$1391,"P1") -> (G) SOPHIE GRICIUS - [460] | H29: =TeamScoreWithPlayers($B29,"M",4,MN_7_REDHEAD!$F$4:$F$1391,MN_7_REDHEAD!$E$4:$E$1391,MN_7_REDHEAD!$G$4:$G$1391,MN_7_REDHEAD!$C$4:$C$1391,"P2") -> (G) LILLY HANSEN - [354] | I29: =TeamScoreWithPlayers($B29,"M",4,MN_7_REDHEAD!$F$4:$F$1391,MN_7_REDHEAD!$E$4:$E$1391,MN_7_REDHEAD!$G$4:$G$1391,MN_7_REDHEAD!$C$4:$C$1391,"P3") -> (B) IAN HORECK - [354] | J29: =TeamScoreWithPlayers($B29,"M",4,MN_7_REDHEAD!$F$4:$F$1391,MN_7_REDHEAD!$E$4:$E$1391,MN_7_REDHEAD!$G$4:$G$1391,MN_7_REDHEAD!$C$4:$C$1391,"P4") -> (B) BEN ALLINGTON - [283] | L29: 1451 | M29: 1451 | O29: 0
B31: Results sorted High to Low
A32: Place | B32: TEAM | C32: Score | F32: New Total Score | G32: P1 | H32: P2 | I32: P3 | J32: P4
A33: 1 | B33: Minnetonka High School | C33: 2147 | F33: 2147 | G33: (G) STELLA SWANSON - [550] | H33: (B) BENNO SASANFAR - [539] | I33: (G) LANEY MILLER - [529] | J33: (B) JACKSON RUNCK - [529] | L33: =getnumeric(G33)+getnumeric(H33)+getnumeric(I33)+getnumeric(J33) -> 2147 | N33: =VLOOKUP(B33,Divisions!$P$4:$Q$95,2,FALSE) -> 1 | O33: =C33-L33 -> 0
A34: 2 | B34: Cloquet-Esko-Carlton | C34: 2071 | F34: 2071 | G34: (B) DANIEL DEWEY - [550] | H34: (G) CIERAH MCKIBBON - [519] | I34: (B) CARTER OSVOLD - [510] | J34: (G) AVA MCKIBBON - [492] | L34: 2071 | N34: =VLOOKUP(B34,Divisions!$P$4:$Q$95,2,FALSE) -> 1 | O34: =C34-L34 -> 0
A35: 3 | B35: Stillwater Mountain Bike | C35: 2063 | F35: 2063 | G35: (B) EMMETT VALLEY - [539] | H35: (B) CHARLIE SANDERSON - [529] | I35: (B) TEDDY SANDERSON - [519] | J35: (G) MARG MINICH - [476] | L35: 2063 | N35: =VLOOKUP(B35,Divisions!$P$4:$Q$95,2,FALSE) -> 1 | O35: 0
A36: 4 | B36: Crosby-Ironton High School | C36: 2041 | F36: 2041 | G36: (B) OWEN RITTER - [550] | H36: (G) VANESSA RICKMEYER - [519] | I36: (B) EZRA JACOBSON - [519] | J36: (G) AVERY LONERGAN - [453] | L36: 2041 | N36: =VLOOKUP(B36,Divisions!$P$4:$Q$95,2,FALSE) -> 1 | O36: 0
A37: 5 | B37: New Prague Middle and High School | C37: 2013 | F37: 2013 | G37: (G) ALEXIS RIDGEWAY - [550] | H37: (B) HAYDEN BRAITH - [519] | I37: (B) LINCOLN STUBER - [476] | J37: (B) CASEY KELLY - [468] | L37: 2013 | N37: =VLOOKUP(B37,Divisions!$P$4:$Q$95,2,FALSE) -> 1 | O37: 0
A38: 6 | B38: Brainerd High School | C38: 1983 | F38: 1983 | G38: (B) RYLAN O'HEARN - [529] | H38: (G) ABIGAIL THOMES - [510] | I38: (G) STELLA MUSEUS - [476] | J38: (B) LANDON HAGEN - [468] | L38: 1983 | N38: =VLOOKUP(B38,Divisions!$P$4:$Q$95,2,FALSE) -> 1 | O38: 0
A39: 7 | B39: Wayzata Mountain Bike | C39: 1975 | F39: 1975 | G39: (G) ABIGAIL BRITZ - [529] | H39: (B) ROENEN KING-ELLISON - [501] | I39: (B) RIGEL PRIOR - [492] | J39: (B) ETHAN LI - [453] | L39: 1975 | N39: =VLOOKUP(B39,Divisions!$P$4:$Q$95,2,FALSE) -> 1 | O39: 0
A40: 8 | B40: Rock Ridge Composite | C40: 1951 | F40: 1951 | G40: (B) GUS LAYMAN - [539] | H40: (G) DALLAS LAYMAN - [501] | I40: (G) SELAH BEUKEMA - [492] | J40: (B) WYATT PETRACK - [419] | L40: 1951 | N40: =VLOOKUP(B40,Divisions!$P$4:$Q$95,2,FALSE) -> 1 | O40: 0
A41: 9 | B41: Prior Lake High School | C41: 1928 | F41: 1928 | G41: (G) ARABELLA FRITZEN - [519] | H41: (G) MILA OLSON - [510] | I41: (G) PEYTON STAMSCHROR - [453] | J41: (B) ELI CZAJKOWSKI - [446] | L41: 1928 | N41: =VLOOKUP(B41,Divisions!$P$4:$Q$95,2,FALSE) -> 1 | O41: 0
A42: 10 | B42: East Ridge High School | C42: 1916 | F42: 1916 | G42: (B) NICK SHIELD - [510] | H42: (B) LUCAS TRUCKENMILLER - [501] | I42: (B) OWEN LAWSON - [492] | J42: (G) QUINN VAN HEYST - [413] | L42: 1916 | N42: =VLOOKUP(B42,Divisions!$P$4:$Q$95,2,FALSE) -> 1 | O42: 0
A43: 11 | B43: Mounds View High School | C43: 1841 | F43: 1841 | G43: (B) THOMAS QUACKENBUSH - [501] | H43: (B) LAKEN BARTEL - [476] | I43: (G) JADON CARLSON - [439] | J43: (B) ANDY VIZECKY - [425] | L43: 1841 | N43: =VLOOKUP(B43,Divisions!$P$4:$Q$95,2,FALSE) -> 1 | O43: 0
A44: 12 | B44: Minneapolis Southwest | C44: 1815 | F44: 1815 | G44: (G) NARA BLACK - [501] | H44: (G) GRACE MAKOSKY - [484] | I44: (G) LILY MAKOSKY - [446] | J44: (B) THEODORE JUFFER - [384] | L44: 1815 | N44: =VLOOKUP(B44,Divisions!$P$4:$Q$95,2,FALSE) -> 1 | O44: 0
A45: 13 | B45: Burnsville High School | C45: 1794 | F45: 1794 | G45: (G) ELLIOT LUNDE - [529] | H45: (B) OWEN WATTERSON - [439] | I45: (B) LEVI WILLIAMS - [425] | J45: (G) ADELINE METZGER - [401] | L45: 1794 | N45: =VLOOKUP(B45,Divisions!$P$4:$Q$95,2,FALSE) -> 1 | O45: 0
A46: 14 | B46: Edina Cycling | C46: 1788 | F46: 1788 | G46: (G) SYDNEY BULLARD - [492] | H46: (B) DJ SEVERSON - [439] | I46: (G) EVELYN HOPPE - [432] | J46: (G) BEATRICE TOFTEY - [425] | L46: 1788 | N46: =VLOOKUP(B46,Divisions!$P$4:$Q$95,2,FALSE) -> 1 | O46: 0
A47: 15 | B47: Washburn High School | C47: 1695 | F47: 1695 | G47: (B) STEFFAN DREKONJA - [484] | H47: (G) MAEVE THATCHER - [432] | I47: (G) LUCIA ARNESON - [425] | J47: (G) BAYLY WASMER - [354] | L47: 1695 | N47: =VLOOKUP(B47,Divisions!$P$4:$Q$95,2,FALSE) -> 1 | O47: 0
A48: 16 | B48: Chanhassen High School | C48: 1680 | F48: 1680 | G48: (G) MACKENZIE BURKE - [476] | H48: (B) BRADYN RUPPERT - [432] | I48: (B) MASON DEALWIS - [413] | J48: (B) SYD KENNEDY - [359] | L48: 1680 | N48: =VLOOKUP(B48,Divisions!$P$4:$Q$95,2,FALSE) -> 1 | O48: 0
A49: 17 | B49: Shakopee High School | C49: 1654 | F49: 1654 | G49: (B) AIDEN ZABEL - [484] | H49: (B) TRUMAN DUEHR - [407] | I49: (G) KIERA JAMIESON - [389] | J49: (B) MAKAI LUND - [374] | L49: 1654 | N49: =VLOOKUP(B49,Divisions!$P$4:$Q$95,2,FALSE) -> 1 | O49: 0
A50: 18 | B50: Hopkins High School | C50: 1642 | F50: 1642 | G50: (G) GRETA NYGREN - [484] | H50: (B) NOLAN HAAR - [395] | I50: (B) GRIFFIN WOESTE - [389] | J50: (B) CHARLIE GRUHN - [374] | L50: 1642 | N50: =VLOOKUP(B50,Divisions!$P$4:$Q$95,2,FALSE) -> 1 | O50: 0
A51: 19 | B51: Alexandria Area Youth Cycling | C51: 1609 | F51: 1609 | G51: (G) ADDISON SUCHY - [501] | H51: (G) RYLIN CONVERSE - [460] | I51: (B) BEN SCHOLTEN - [338] | J51: (B) WILL NICHOLS - [310] | L51: 1609 | N51: =VLOOKUP(B51,Divisions!$P$4:$Q$95,2,FALSE) -> 1 | O51: 0
A52: 20 | B52: Chaska High School | C52: 1558 | F52: 1558 | G52: (B) AUGUST MAYER - [432] | H52: (B) LEIGHTON HINES - [401] | I52: (G) MONIQUE KONOTOPKA - [395] | J52: (B) NOLAN STONE - [330] | L52: 1558 | N52: =VLOOKUP(B52,Divisions!$P$4:$Q$95,2,FALSE) -> 1 | O52: 0
A53: 21 | B53: Champlin Park High School | C53: 1485 | F53: 1485 | G53: (B) GRAHAM BERNU - [401] | H53: (G) SIDSE SPROUT - [384] | I53: (G) MORGAN ROTHER - [350] | J53: (B) KAI NELSON - [350] | L53: 1485 | N53: =VLOOKUP(B53,Divisions!$P$4:$Q$95,2,FALSE) -> 1 | O53: 0
A54: 22 | B54: Winona | C54: 1451 | F54: 1451 | G54: (G) SOPHIE GRICIUS - [460] | H54: (G) LILLY HANSEN - [354] | I54: (B) IAN HORECK - [354] | J54: (B) BEN ALLINGTON - [283] | L54: 1451 | N54: =VLOOKUP(B54,Divisions!$P$4:$Q$95,2,FALSE) -> 1 | O54: 0
A55: 23 | B55: Lakeville North High School | C55: 1445 | F55: 1445 | G55: (G) SOFIA HORSTMANN - [446] | H55: (B) MYLES INGVALSON - [413] | I55: (B) HUDSON HOLSTE - [307] | J55: (B) BRAYDEN KREJCE - [279] | L55: 1445 | N55: =VLOOKUP(B55,Divisions!$P$4:$Q$95,2,FALSE) -> 1 | O55: 0
A56: 24 | B56: Armstrong Cycle | C56: 1407 | F56: 1407 | G56: (B) ANDERS DECKER - [550] | H56: (B) HENRY DIAZ - [468] | I56: (B) TYLER HASSIS - [389] | J56: () - [0] | L56: 1407 | N56: =VLOOKUP(B56,Divisions!$P$4:$Q$95,2,FALSE) -> 1 | O56: 0
A57: 25 | B57: Rochester Century High School | C57: 1323 | F57: 1323 | G57: (G) MILENA MEIER - [419] | H57: (B) ROWAN EKHOLM - [374] | I57: (B) AVERY STRUCKMANN - [278] | J57: (B) KAI HILL - [252] | L57: 1323 | N57: =VLOOKUP(B57,Divisions!$P$4:$Q$95,2,FALSE) -> 1 | O57: 0
A58: 26 | B58: Bloomington Jefferson | C58: 1214 | F58: 1214 | G58: (G) PIPPA BURRES - [330] | H58: (B) DOMINICK JOHNSON - [330] | I58: (B) FINN DOLMAR - [281] | J58: (B) CARLO CALBONE - [273] | L58: 1214 | N58: =VLOOKUP(B58,Divisions!$P$4:$Q$95,2,FALSE) -> 1 | O58: 0
A59: 27 | B59: White Bear Lake High School | C59: 813 | F59: 813 | G59: (B) OLIN KNUTSON - [272] | H59: (B) RYAN GLICK - [271] | I59: (B) SETH VLIEGER - [270] | J59: () - [0] | L59: 813 | N59: =VLOOKUP(B59,Divisions!$P$4:$Q$95,2,FALSE) -> 1 | O59: 0
A60: 28 | B60: Duluth East High School | C60: 0 | F60: 0 | G60: () - [0] | H60: () - [0] | I60: () - [0] | J60: () - [0] | L60: 0 | N60: =VLOOKUP(B60,Divisions!$P$4:$Q$95,2,FALSE) -> 1 | O60: 0

Sheet Middle School D2
A1: # | B1: TEAM | C1: Score | F1: New Total Score | G1: P1 | H1: P2 | I1: P3 | J1: P4 | L1: Get Numeric | M1: DC
A2: 1 | B2: Apple Valley High School | C2: =TeamScore(B2,"M",4,MN_7_REDHEAD!$F$4:$F$1391,MN_7_REDHEAD!$G$4:$G$1391,MN_7_REDHEAD!$C$4:$C$1391) -> 295 | F2: =TeamScoreWithPlayers($B2,"M",4,MN_7_REDHEAD!$F$4:$F$1391,MN_7_REDHEAD!$E$4:$E$1391,MN_7_REDHEAD!$G$4:$G$1391,MN_7_REDHEAD!$C$4:$C$1391,"TS") -> 295 | G2: =TeamScoreWithPlayers($B2,"M",4,MN_7_REDHEAD!$F$4:$F$1391,MN_7_REDHEAD!$E$4:$E$1391,MN_7_REDHEAD!$G$4:$G$1391,MN_7_REDHEAD!$C$4:$C$1391,"P1") -> (B) HAYDEN HOFF - [295] | H2: =TeamScoreWithPlayers($B2,"M",4,MN_7_REDHEAD!$F$4:$F$1391,MN_7_REDHEAD!$E$4:$E$1391,MN_7_REDHEAD!$G$4:$G$1391,MN_7_REDHEAD!$C$4:$C$1391,"P2") -> () - [0] | I2: =TeamScoreWithPlayers($B2,"M",4,MN_7_REDHEAD!$F$4:$F$1391,MN_7_REDHEAD!$E$4:$E$1391,MN_7_REDHEAD!$G$4:$G$1391,MN_7_REDHEAD!$C$4:$C$1391,"P3") -> () - [0] | J2: =TeamScoreWithPlayers($B2,"M",4,MN_7_REDHEAD!$F$4:$F$1391,MN_7_REDHEAD!$E$4:$E$1391,MN_7_REDHEAD!$G$4:$G$1391,MN_7_REDHEAD!$C$4:$C$1391,"P4") -> () - [0] | L2: =getnumeric(G2)+getnumeric(H2)+getnumeric(I2)+getnumeric(J2) -> 295 | M2: 295 | O2: =ABS(C2-F2)+ABS(F2-L2)+ABS(L2-M2) -> 0
A3: =+A2+1 -> 2 | B3: Austin High School | C3: =TeamScore(B3,"M",4,MN_7_REDHEAD!$F$4:$F$1391,MN_7_REDHEAD!$G$4:$G$1391,MN_7_REDHEAD!$C$4:$C$1391) -> 1579 | F3: =TeamScoreWithPlayers($B3,"M",4,MN_7_REDHEAD!$F$4:$F$1391,MN_7_REDHEAD!$E$4:$E$1391,MN_7_REDHEAD!$G$4:$G$1391,MN_7_REDHEAD!$C$4:$C$1391,"TS") -> 1579 | G3: =TeamScoreWithPlayers($B3,"M",4,MN_7_REDHEAD!$F$4:$F$1391,MN_7_REDHEAD!$E$4:$E$1391,MN_7_REDHEAD!$G$4:$G$1391,MN_7_REDHEAD!$C$4:$C$1391,"P1") -> (G) LEXI HELGESON - [460] | H3: =TeamScoreWithPlayers($B3,"M",4,MN_7_REDHEAD!$F$4:$F$1391,MN_7_REDHEAD!$E$4:$E$1391,MN_7_REDHEAD!$G$4:$G$1391,MN_7_REDHEAD!$C$4:$C$1391,"P2") -> (B) LIAM LINNETT - [395] | I3: =TeamScoreWithPlayers($B3,"M",4,MN_7_REDHEAD!$F$4:$F$1391,MN_7_REDHEAD!$E$4:$E$1391,MN_7_REDHEAD!$G$4:$G$1391,MN_7_REDHEAD!$C$4:$C$1391,"P3") -> (B) HUNTER PETERS - [374] | J3: =TeamScoreWithPlayers($B3,"M",4,MN_7_REDHEAD!$F$4:$F$1391,MN_7_REDHEAD!$E$4:$E$1391,MN_7_REDHEAD!$G$4:$G$1391,MN_7_REDHEAD!$C$4:$C$1391,"P4") -> (B) BRAYDEN ANDREWS - [350] | L3: 1579 | M3: 1579 | O3: =ABS(C3-F3)+ABS(F3-L3)+ABS(L3-M3) -> 0
A4: =+A3+1 -> 3 | B4: Bemidji Composite | C4: =TeamScore(B4,"M",4,MN_7_REDHEAD!$F$4:$F$1391,MN_7_REDHEAD!$G$4:$G$1391,MN_7_REDHEAD!$C$4:$C$1391) -> 0 | F4: =TeamScoreWithPlayers($B4,"M",4,MN_7_REDHEAD!$F$4:$F$1391,MN_7_REDHEAD!$E$4:$E$1391,MN_7_REDHEAD!$G$4:$G$1391,MN_7_REDHEAD!$C$4:$C$1391,"TS") -> 0 | G4: =TeamScoreWithPlayers($B4,"M",4,MN_7_REDHEAD!$F$4:$F$1391,MN_7_REDHEAD!$E$4:$E$1391,MN_7_REDHEAD!$G$4:$G$1391,MN_7_REDHEAD!$C$4:$C$1391,"P1") -> () - [0] | H4: =TeamScoreWithPlayers($B4,"M",4,MN_7_REDHEAD!$F$4:$F$1391,MN_7_REDHEAD!$E$4:$E$1391,MN_7_REDHEAD!$G$4:$G$1391,MN_7_REDHEAD!$C$4:$C$1391,"P2") -> () - [0] | I4: =TeamScoreWithPlayers($B4,"M",4,MN_7_REDHEAD!$F$4:$F$1391,MN_7_REDHEAD!$E$4:$E$1391,MN_7_REDHEAD!$G$4:$G$1391,MN_7_REDHEAD!$C$4:$C$1391,"P3") -> () - [0] | J4: =TeamScoreWithPlayers($B4,"M",4,MN_7_REDHEAD!$F$4:$F$1391,MN_7_REDHEAD!$E$4:$E$1391,MN_7_REDHEAD!$G$4:$G$1391,MN_7_REDHEAD!$C$4:$C$1391,"P4") -> () - [0] | L4: 0 | M4: 0 | O4: 0
A5: 4 | B5: Benilde St Margaret | C5: =TeamScore(B5,"M",4,MN_7_REDHEAD!$F$4:$F$1391,MN_7_REDHEAD!$G$4:$G$1391,MN_7_REDHEAD!$C$4:$C$1391) -> 622 | F5: =TeamScoreWithPlayers($B5,"M",4,MN_7_REDHEAD!$F$4:$F$1391,MN_7_REDHEAD!$E$4:$E$1391,MN_7_REDHEAD!$G$4:$G$1391,MN_7_REDHEAD!$C$4:$C$1391,"TS") -> 622 | G5: =TeamScoreWithPlayers($B5,"M",4,MN_7_REDHEAD!$F$4:$F$1391,MN_7_REDHEAD!$E$4:$E$1391,MN_7_REDHEAD!$G$4:$G$1391,MN_7_REDHEAD!$C$4:$C$1391,"P1") -> (B) GERIK NOWLIN - [338] | H5: =TeamScoreWithPlayers($B5,"M",4,MN_7_REDHEAD!$F$4:$F$1391,MN_7_REDHEAD!$E$4:$E$1391,MN_7_REDHEAD!$G$4:$G$1391,MN_7_REDHEAD!$C$4:$C$1391,"P2") -> (B) RYAN LYNCH - [284] | I5: =TeamScoreWithPlayers($B5,"M",4,MN_7_REDHEAD!$F$4:$F$1391,MN_7_REDHEAD!$E$4:$E$1391,MN_7_REDHEAD!$G$4:$G$1391,MN_7_REDHEAD!$C$4:$C$1391,"P3") -> () - [0] | J5: =TeamScoreWithPlayers($B5,"M",4,MN_7_REDHEAD!$F$4:$F$1391,MN_7_REDHEAD!$E$4:$E$1391,MN_7_REDHEAD!$G$4:$G$1391,MN_7_REDHEAD!$C$4:$C$1391,"P4") -> () - [0] | L5: 622 | M5: 622 | O5: 0
A6: 5 | B6: Bloomington Composite | C6: =TeamScore(B6,"M",4,MN_7_REDHEAD!$F$4:$F$1391,MN_7_REDHEAD!$G$4:$G$1391,MN_7_REDHEAD!$C$4:$C$1391) -> 904 | F6: =TeamScoreWithPlayers($B6,"M",4,MN_7_REDHEAD!$F$4:$F$1391,MN_7_REDHEAD!$E$4:$E$1391,MN_7_REDHEAD!$G$4:$G$1391,MN_7_REDHEAD!$C$4:$C$1391,"TS") -> 904 | G6: =TeamScoreWithPlayers($B6,"M",4,MN_7_REDHEAD!$F$4:$F$1391,MN_7_REDHEAD!$E$4:$E$1391,MN_7_REDHEAD!$G$4:$G$1391,MN_7_REDHEAD!$C$4:$C$1391,"P1") -> (G) REGAN ISAAC - [334] | H6: =TeamScoreWithPlayers($B6,"M",4,MN_7_REDHEAD!$F$4:$F$1391,MN_7_REDHEAD!$E$4:$E$1391,MN_7_REDHEAD!$G$4:$G$1391,MN_7_REDHEAD!$C$4:$C$1391,"P2") -> (B) RYLAN MACADAMS - [293] | I6: =TeamScoreWithPlayers($B6,"M",4,MN_7_REDHEAD!$F$4:$F$1391,MN_7_REDHEAD!$E$4:$E$1391,MN_7_REDHEAD!$G$4:$G$1391,MN_7_REDHEAD!$C$4:$C$1391,"P3") -> (B) BEN JONES - [277] | J6: =TeamScoreWithPlayers($B6,"M",4,MN_7_REDHEAD!$F$4:$F$1391,MN_7_REDHEAD!$E$4:$E$1391,MN_7_REDHEAD!$G$4:$G$1391,MN_7_REDHEAD!$C$4:$C$1391,"P4") -> () - [0] | L6: 904 | M6: 904 | O6: 0
A7: 6 | B7: Borealis Composite | C7: =TeamScore(B7,"M",4,MN_7_REDHEAD!$F$4:$F$1391,MN_7_REDHEAD!$G$4:$G$1391,MN_7_REDHEAD!$C$4:$C$1391) -> 1528 | F7: =TeamScoreWithPlayers($B7,"M",4,MN_7_REDHEAD!$F$4:$F$1391,MN_7_REDHEAD!$E$4:$E$1391,MN_7_REDHEAD!$G$4:$G$1391,MN_7_REDHEAD!$C$4:$C$1391,"TS") -> 1528 | G7: =TeamScoreWithPlayers($B7,"M",4,MN_7_REDHEAD!$F$4:$F$1391,MN_7_REDHEAD!$E$4:$E$1391,MN_7_REDHEAD!$G$4:$G$1391,MN_7_REDHEAD!$C$4:$C$1391,"P1") -> (B) GRADY ANDERSON - [453] | H7: =TeamScoreWithPlayers($B7,"M",4,MN_7_REDHEAD!$F$4:$F$1391,MN_7_REDHEAD!$E$4:$E$1391,MN_7_REDHEAD!$G$4:$G$1391,MN_7_REDHEAD!$C$4:$C$1391,"P2") -> (G) ADDISON KANNAS - [395] | I7: =TeamScoreWithPlayers($B7,"M",4,MN_7_REDHEAD!$F$4:$F$1391,MN_7_REDHEAD!$E$4:$E$1391,MN_7_REDHEAD!$G$4:$G$1391,MN_7_REDHEAD!$C$4:$C$1391,"P3") -> (B) WYATT TEDRICK - [379] | J7: =TeamScoreWithPlayers($B7,"M",4,MN_7_REDHEAD!$F$4:$F$1391,MN_7_REDHEAD!$E$4:$E$1391,MN_7_REDHEAD!$G$4:$G$1391,MN_7_REDHEAD!$C$4:$C$1391,"P4") -> (B) GEORGE SPONHOLZ - [301] | L7: 1528 | M7: 1528 | O7: 0
A8: 7 | B8: Breck/Blake | C8: =TeamScore(B8,"M",4,MN_7_REDHEAD!$F$4:$F$1391,MN_7_REDHEAD!$G$4:$G$1391,MN_7_REDHEAD!$C$4:$C$1391) -> 1111 | F8: =TeamScoreWithPlayers($B8,"M",4,MN_7_REDHEAD!$F$4:$F$1391,MN_7_REDHEAD!$E$4:$E$1391,MN_7_REDHEAD!$G$4:$G$1391,MN_7_REDHEAD!$C$4:$C$1391,"TS") -> 1111 | G8: =TeamScoreWithPlayers($B8,"M",4,MN_7_REDHEAD!$F$4:$F$1391,MN_7_REDHEAD!$E$4:$E$1391,MN_7_REDHEAD!$G$4:$G$1391,MN_7_REDHEAD!$C$4:$C$1391,"P1") -> (B) LANDON MAUL - [476] | H8: =TeamScoreWithPlayers($B8,"M",4,MN_7_REDHEAD!$F$4:$F$1391,MN_7_REDHEAD!$E$4:$E$1391,MN_7_REDHEAD!$G$4:$G$1391,MN_7_REDHEAD!$C$4:$C$1391,"P2") -> (G) EMILIA COLIANNI - [350] | I8: =TeamScoreWithPlayers($B8,"M",4,MN_7_REDHEAD!$F$4:$F$1391,MN_7_REDHEAD!$E$4:$E$1391,MN_7_REDHEAD!$G$4:$G$1391,MN_7_REDHEAD!$C$4:$C$1391,"P3") -> (B) OLIVER ENGEL - [285] | J8: =TeamScoreWithPlayers($B8,"M",4,MN_7_REDHEAD!$F$4:$F$1391,MN_7_REDHEAD!$E$4:$E$1391,MN_7_REDHEAD!$G$4:$G$1391,MN_7_REDHEAD!$C$4:$C$1391,"P4") -> () - [0] | L8: 1111 | M8: 1111 | O8: 0
A9: 8 | B9: Cannon Valley Composite | C9: =TeamScore(B9,"M",4,MN_7_REDHEAD!$F$4:$F$1391,MN_7_REDHEAD!$G$4:$G$1391,MN_7_REDHEAD!$C$4:$C$1391) -> 1117 | F9: =TeamScoreWithPlayers($B9,"M",4,MN_7_REDHEAD!$F$4:$F$1391,MN_7_REDHEAD!$E$4:$E$1391,MN_7_REDHEAD!$G$4:$G$1391,MN_7_REDHEAD!$C$4:$C$1391,"TS") -> 1117 | G9: =TeamScoreWithPlayers($B9,"M",4,MN_7_REDHEAD!$F$4:$F$1391,MN_7_REDHEAD!$E$4:$E$1391,MN_7_REDHEAD!$G$4:$G$1391,MN_7_REDHEAD!$C$4:$C$1391,"P1") -> (B) BENJAMIN FUNKE - [419] | H9: =TeamScoreWithPlayers($B9,"M",4,MN_7_REDHEAD!$F$4:$F$1391,MN_7_REDHEAD!$E$4:$E$1391,MN_7_REDHEAD!$G$4:$G$1391,MN_7_REDHEAD!$C$4:$C$1391,"P2") -> (B) LEO HERNANDEZ - [364] | I9: =TeamScoreWithPlayers($B9,"M",4,MN_7_REDHEAD!$F$4:$F$1391,MN_7_REDHEAD!$E$4:$E$1391,MN_7_REDHEAD!$G$4:$G$1391,MN_7_REDHEAD!$C$4:$C$1391,"P3") -> (B) DREW PRIBYL - [334] | J9: =TeamScoreWithPlayers($B9,"M",4,MN_7_REDHEAD!$F$4:$F$1391,MN_7_REDHEAD!$E$4:$E$1391,MN_7_REDHEAD!$G$4:$G$1391,MN_7_REDHEAD!$C$4:$C$1391,"P4") -> () - [0] | L9: 1117 | M9: 1117 | O9: 0
A10: 9 | B10: Chisago Lakes Composite | C10: =TeamScore(B10,"M",4,MN_7_REDHEAD!$F$4:$F$1391,MN_7_REDHEAD!$G$4:$G$1391,MN_7_REDHEAD!$C$4:$C$1391) -> 982 | F10: =TeamScoreWithPlayers($B10,"M",4,MN_7_REDHEAD!$F$4:$F$1391,MN_7_REDHEAD!$E$4:$E$1391,MN_7_REDHEAD!$G$4:$G$1391,MN_7_REDHEAD!$C$4:$C$1391,"TS") -> 982 | G10: =TeamScoreWithPlayers($B10,"M",4,MN_7_REDHEAD!$F$4:$F$1391,MN_7_REDHEAD!$E$4:$E$1391,MN_7_REDHEAD!$G$4:$G$1391,MN_7_REDHEAD!$C$4:$C$1391,"P1") -> (B) REID HAMLIN - [550] | H10: =TeamScoreWithPlayers($B10,"M",4,MN_7_REDHEAD!$F$4:$F$1391,MN_7_REDHEAD!$E$4:$E$1391,MN_7_REDHEAD!$G$4:$G$1391,MN_7_REDHEAD!$C$4:$C$1391,"P2") -> (B) EDWARD “EJ” NIELSEN - [432] | I10: =TeamScoreWithPlayers($B10,"M",4,MN_7_REDHEAD!$F$4:$F$1391,MN_7_REDHEAD!$E$4:$E$1391,MN_7_REDHEAD!$G$4:$G$1391,MN_7_REDHEAD!$C$4:$C$1391,"P3") -> () - [0] | J10: =TeamScoreWithPlayers($B10,"M",4,MN_7_REDHEAD!$F$4:$F$1391,MN_7_REDHEAD!$E$4:$E$1391,MN_7_REDHEAD!$G$4:$G$1391,MN_7_REDHEAD!$C$4:$C$1391,"P4") -> () - [0] | L10: 982 | M10: 982 | O10: 0
A11: 10 | B11: Duluth Composite | C11: =TeamScore(B11,"M",4,MN_7_REDHEAD!$F$4:$F$1391,MN_7_REDHEAD!$G$4:$G$1391,MN_7_REDHEAD!$C$4:$C$1391) -> 0 | F11: =TeamScoreWithPlayers($B11,"M",4,MN_7_REDHEAD!$F$4:$F$1391,MN_7_REDHEAD!$E$4:$E$1391,MN_7_REDHEAD!$G$4:$G$1391,MN_7_REDHEAD!$C$4:$C$1391,"TS") -> 0 | G11: =TeamScoreWithPlayers($B11,"M",4,MN_7_REDHEAD!$F$4:$F$1391,MN_7_REDHEAD!$E$4:$E$1391,MN_7_REDHEAD!$G$4:$G$1391,MN_7_REDHEAD!$C$4:$C$1391,"P1") -> () - [0] | H11: =TeamScoreWithPlayers($B11,"M",4,MN_7_REDHEAD!$F$4:$F$1391,MN_7_REDHEAD!$E$4:$E$1391,MN_7_REDHEAD!$G$4:$G$1391,MN_7_REDHEAD!$C$4:$C$1391,"P2") -> () - [0] | I11: =TeamScoreWithPlayers($B11,"M",4,MN_7_REDHEAD!$F$4:$F$1391,MN_7_REDHEAD!$E$4:$E$1391,MN_7_REDHEAD!$G$4:$G$1391,MN_7_REDHEAD!$C$4:$C$1391,"P3") -> () - [0] | J11: =TeamScoreWithPlayers($B11,"M",4,MN_7_REDHEAD!$F$4:$F$1391,MN_7_REDHEAD!$E$4:$E$1391,MN_7_REDHEAD!$G$4:$G$1391,MN_7_REDHEAD!$C$4:$C$1391,"P4") -> () - [0] | L11: 0 | M11: 0 | O11: 0
A12: 11 | B12: Eagan High School | C12: =TeamScore(B12,"M",4,MN_7_REDHEAD!$F$4:$F$1391,MN_7_REDHEAD!$G$4:$G$1391,MN_7_REDHEAD!$C$4:$C$1391) -> 1017 | F12: =TeamScoreWithPlayers($B12,"M",4,MN_7_REDHEAD!$F$4:$F$1391,MN_7_REDHEAD!$E$4:$E$1391,MN_7_REDHEAD!$G$4:$G$1391,MN_7_REDHEAD!$C$4:$C$1391,"TS") -> 1017 | G12: =TeamScoreWithPlayers($B12,"M",4,MN_7_REDHEAD!$F$4:$F$1391,MN_7_REDHEAD!$E$4:$E$1391,MN_7_REDHEAD!$G$4:$G$1391,MN_7_REDHEAD!$C$4:$C$1391,"P1") -> (B) CALEB LYON - [460] | H12: =TeamScoreWithPlayers($B12,"M",4,MN_7_REDHEAD!$F$4:$F$1391,MN_7_REDHEAD!$E$4:$E$1391,MN_7_REDHEAD!$G$4:$G$1391,MN_7_REDHEAD!$C$4:$C$1391,"P2") -> (B) NICHOLAS MIZIORKO - [286] | I12: =TeamScoreWithPlayers($B12,"M",4,MN_7_REDHEAD!$F$4:$F$1391,MN_7_REDHEAD!$E$4:$E$1391,MN_7_REDHEAD!$G$4:$G$1391,MN_7_REDHEAD!$C$4:$C$1391,"P3") -> (B) GRAHAM ROBERTS - [271] | J12: =TeamScoreWithPlayers($B12,"M",4,MN_7_REDHEAD!$F$4:$F$1391,MN_7_REDHEAD!$E$4:$E$1391,MN_7_REDHEAD!$G$4:$G$1391,MN_7_REDHEAD!$C$4:$C$1391,"P4") -> () - [0] | L12: 1017 | M12: 1017 | O12: 0
A13: 12 | B13: Eastview High School | C13: =TeamScore(B13,"M",4,MN_7_REDHEAD!$F$4:$F$1391,MN_7_REDHEAD!$G$4:$G$1391,MN_7_REDHEAD!$C$4:$C$1391) -> 539 | F13: =TeamScoreWithPlayers($B13,"M",4,MN_7_REDHEAD!$F$4:$F$1391,MN_7_REDHEAD!$E$4:$E$1391,MN_7_REDHEAD!$G$4:$G$1391,MN_7_REDHEAD!$C$4:$C$1391,"TS") -> 539 | G13: =TeamScoreWithPlayers($B13,"M",4,MN_7_REDHEAD!$F$4:$F$1391,MN_7_REDHEAD!$E$4:$E$1391,MN_7_REDHEAD!$G$4:$G$1391,MN_7_REDHEAD!$C$4:$C$1391,"P1") -> (G) MARGO BREMER - [539] | H13: =TeamScoreWithPlayers($B13,"M",4,MN_7_REDHEAD!$F$4:$F$1391,MN_7_REDHEAD!$E$4:$E$1391,MN_7_REDHEAD!$G$4:$G$1391,MN_7_REDHEAD!$C$4:$C$1391,"P2") -> () - [0] | I13: =TeamScoreWithPlayers($B13,"M",4,MN_7_REDHEAD!$F$4:$F$1391,MN_7_REDHEAD!$E$4:$E$1391,MN_7_REDHEAD!$G$4:$G$1391,MN_7_REDHEAD!$C$4:$C$1391,"P3") -> () - [0] | J13: =TeamScoreWithPlayers($B13,"M",4,MN_7_REDHEAD!$F$4:$F$1391,MN_7_REDHEAD!$E$4:$E$1391,MN_7_REDHEAD!$G$4:$G$1391,MN_7_REDHEAD!$C$4:$C$1391,"P4") -> () - [0] | L13: 539 | M13: 539 | O13: 0
A14: 13 | B14: Eden Prairie High School | C14: =TeamScore(B14,"M",4,MN_7_REDHEAD!$F$4:$F$1391,MN_7_REDHEAD!$G$4:$G$1391,MN_7_REDHEAD!$C$4:$C$1391) -> 1395 | F14: =TeamScoreWithPlayers($B14,"M",4,MN_7_REDHEAD!$F$4:$F$1391,MN_7_REDHEAD!$E$4:$E$1391,MN_7_REDHEAD!$G$4:$G$1391,MN_7_REDHEAD!$C$4:$C$1391,"TS") -> 1395 | G14: =TeamScoreWithPlayers($B14,"M",4,MN_7_REDHEAD!$F$4:$F$1391,MN_7_REDHEAD!$E$4:$E$1391,MN_7_REDHEAD!$G$4:$G$1391,MN_7_REDHEAD!$C$4:$C$1391,"P1") -> (B) MASON REINER - [510] | H14: =TeamScoreWithPlayers($B14,"M",4,MN_7_REDHEAD!$F$4:$F$1391,MN_7_REDHEAD!$E$4:$E$1391,MN_7_REDHEAD!$G$4:$G$1391,MN_7_REDHEAD!$C$4:$C$1391,"P2") -> (B) ISAAC FOLEY - [484] | I14: =TeamScoreWithPlayers($B14,"M",4,MN_7_REDHEAD!$F$4:$F$1391,MN_7_REDHEAD!$E$4:$E$1391,MN_7_REDHEAD!$G$4:$G$1391,MN_7_REDHEAD!$C$4:$C$1391,"P3") -> (B) AIDAN OLSTAD - [401] | J14: =TeamScoreWithPlayers($B14,"M",4,MN_7_REDHEAD!$F$4:$F$1391,MN_7_REDHEAD!$E$4:$E$1391,MN_7_REDHEAD!$G$4:$G$1391,MN_7_REDHEAD!$C$4:$C$1391,"P4") -> () - [0] | L14: 1395 | M14: 1395 | O14: 0
A15: 14 | B15: Elk River Composite | C15: =TeamScore(B15,"M",4,MN_7_REDHEAD!$F$4:$F$1391,MN_7_REDHEAD!$G$4:$G$1391,MN_7_REDHEAD!$C$4:$C$1391) -> 1829 | F15: =TeamScoreWithPlayers($B15,"M",4,MN_7_REDHEAD!$F$4:$F$1391,MN_7_REDHEAD!$E$4:$E$1391,MN_7_REDHEAD!$G$4:$G$1391,MN_7_REDHEAD!$C$4:$C$1391,"TS") -> 1829 | G15: =TeamScoreWithPlayers($B15,"M",4,MN_7_REDHEAD!$F$4:$F$1391,MN_7_REDHEAD!$E$4:$E$1391,MN_7_REDHEAD!$G$4:$G$1391,MN_7_REDHEAD!$C$4:$C$1391,"P1") -> (B) EDWARD FULL - [550] | H15: =TeamScoreWithPlayers($B15,"M",4,MN_7_REDHEAD!$F$4:$F$1391,MN_7_REDHEAD!$E$4:$E$1391,MN_7_REDHEAD!$G$4:$G$1391,MN_7_REDHEAD!$C$4:$C$1391,"P2") -> (G) GEMMA BANKS - [468] | I15: =TeamScoreWithPlayers($B15,"M",4,MN_7_REDHEAD!$F$4:$F$1391,MN_7_REDHEAD!$E$4:$E$1391,MN_7_REDHEAD!$G$4:$G$1391,MN_7_REDHEAD!$C$4:$C$1391,"P3") -> (B) TYLER HANSON - [432] | J15: =TeamScoreWithPlayers($B15,"M",4,MN_7_REDHEAD!$F$4:$F$1391,MN_7_REDHEAD!$E$4:$E$1391,MN_7_REDHEAD!$G$4:$G$1391,MN_7_REDHEAD!$C$4:$C$1391,"P4") -> (G) NATALIE MCCORMACK - [379] | L15: 1829 | M15: 1829 | O15: 0
A16: 15 | B16: Hastings Area Composite | C16: =TeamScore(B16,"M",4,MN_7_REDHEAD!$F$4:$F$1391,MN_7_REDHEAD!$G$4:$G$1391,MN_7_REDHEAD!$C$4:$C$1391) -> 1771 | F16: =TeamScoreWithPlayers($B16,"M",4,MN_7_REDHEAD!$F$4:$F$1391,MN_7_REDHEAD!$E$4:$E$1391,MN_7_REDHEAD!$G$4:$G$1391,MN_7_REDHEAD!$C$4:$C$1391,"TS") -> 1771 | G16: =TeamScoreWithPlayers($B16,"M",4,MN_7_REDHEAD!$F$4:$F$1391,MN_7_REDHEAD!$E$4:$E$1391,MN_7_REDHEAD!$G$4:$G$1391,MN_7_REDHEAD!$C$4:$C$1391,"P1") -> (B) JAMES MCNAMARA - [501] | H16: =TeamScoreWithPlayers($B16,"M",4,MN_7_REDHEAD!$F$4:$F$1391,MN_7_REDHEAD!$E$4:$E$1391,MN_7_REDHEAD!$G$4:$G$1391,MN_7_REDHEAD!$C$4:$C$1391,"P2") -> (G) KATE NOWAK - [468] | I16: =TeamScoreWithPlayers($B16,"M",4,MN_7_REDHEAD!$F$4:$F$1391,MN_7_REDHEAD!$E$4:$E$1391,MN_7_REDHEAD!$G$4:$G$1391,MN_7_REDHEAD!$C$4:$C$1391,"P3") -> (G) GRACEANN OLSON - [407] | J16: =TeamScoreWithPlayers($B16,"M",4,MN_7_REDHEAD!$F$4:$F$1391,MN_7_REDHEAD!$E$4:$E$1391,MN_7_REDHEAD!$G$4:$G$1391,MN_7_REDHEAD!$C$4:$C$1391,"P4") -> (B) PAYTON OLSON - [395] | L16: 1771 | M16: 1771 | O16: 0
A17: 16 | B17: Hermantown-Proctor | C17: =TeamScore(B17,"M",4,MN_7_REDHEAD!$F$4:$F$1391,MN_7_REDHEAD!$G$4:$G$1391,MN_7_REDHEAD!$C$4:$C$1391) -> 291 | F17: =TeamScoreWithPlayers($B17,"M",4,MN_7_REDHEAD!$F$4:$F$1391,MN_7_REDHEAD!$E$4:$E$1391,MN_7_REDHEAD!$G$4:$G$1391,MN_7_REDHEAD!$C$4:$C$1391,"TS") -> 291 | G17: =TeamScoreWithPlayers($B17,"M",4,MN_7_REDHEAD!$F$4:$F$1391,MN_7_REDHEAD!$E$4:$E$1391,MN_7_REDHEAD!$G$4:$G$1391,MN_7_REDHEAD!$C$4:$C$1391,"P1") -> (B) ALEX HANSON - [291] | H17: =TeamScoreWithPlayers($B17,"M",4,MN_7_REDHEAD!$F$4:$F$1391,MN_7_REDHEAD!$E$4:$E$1391,MN_7_REDHEAD!$G$4:$G$1391,MN_7_REDHEAD!$C$4:$C$1391,"P2") -> () - [0] | I17: =TeamScoreWithPlayers($B17,"M",4,MN_7_REDHEAD!$F$4:$F$1391,MN_7_REDHEAD!$E$4:$E$1391,MN_7_REDHEAD!$G$4:$G$1391,MN_7_REDHEAD!$C$4:$C$1391,"P3") -> () - [0] | J17: =TeamScoreWithPlayers($B17,"M",4,MN_7_REDHEAD!$F$4:$F$1391,MN_7_REDHEAD!$E$4:$E$1391,MN_7_REDHEAD!$G$4:$G$1391,MN_7_REDHEAD!$C$4:$C$1391,"P4") -> () - [0] | L17: 291 | M17: 291 | O17: 0
A18: 17 | B18: Highland Park St Paul | C18: =TeamScore(B18,"M",4,MN_7_REDHEAD!$F$4:$F$1391,MN_7_REDHEAD!$G$4:$G$1391,MN_7_REDHEAD!$C$4:$C$1391) -> 1311 | F18: =TeamScoreWithPlayers($B18,"M",4,MN_7_REDHEAD!$F$4:$F$1391,MN_7_REDHEAD!$E$4:$E$1391,MN_7_REDHEAD!$G$4:$G$1391,MN_7_REDHEAD!$C$4:$C$1391,"TS") -> 1311 | G18: =TeamScoreWithPlayers($B18,"M",4,MN_7_REDHEAD!$F$4:$F$1391,MN_7_REDHEAD!$E$4:$E$1391,MN_7_REDHEAD!$G$4:$G$1391,MN_7_REDHEAD!$C$4:$C$1391,"P1") -> (G) CORALIE JONES - [539] | H18: =TeamScoreWithPlayers($B18,"M",4,MN_7_REDHEAD!$F$4:$F$1391,MN_7_REDHEAD!$E$4:$E$1391,MN_7_REDHEAD!$G$4:$G$1391,MN_7_REDHEAD!$C$4:$C$1391,"P2") -> (B) FRANKLIN MILLER - [468] | I18: =TeamScoreWithPlayers($B18,"M",4,MN_7_REDHEAD!$F$4:$F$1391,MN_7_REDHEAD!$E$4:$E$1391,MN_7_REDHEAD!$G$4:$G$1391,MN_7_REDHEAD!$C$4:$C$1391,"P3") -> (B) COLIN BORGEN - [304] | J18: =TeamScoreWithPlayers($B18,"M",4,MN_7_REDHEAD!$F$4:$F$1391,MN_7_REDHEAD!$E$4:$E$1391,MN_7_REDHEAD!$G$4:$G$1391,MN_7_REDHEAD!$C$4:$C$1391,"P4") -> () - [0] | L18: 1311 | M18: 1311 | O18: 0
A19: 18 | B19: Hudson High School | C19: =TeamScore(B19,"M",4,MN_7_REDHEAD!$F$4:$F$1391,MN_7_REDHEAD!$G$4:$G$1391,MN_7_REDHEAD!$C$4:$C$1391) -> 1912 | F19: =TeamScoreWithPlayers($B19,"M",4,MN_7_REDHEAD!$F$4:$F$1391,MN_7_REDHEAD!$E$4:$E$1391,MN_7_REDHEAD!$G$4:$G$1391,MN_7_REDHEAD!$C$4:$C$1391,"TS") -> 1912 | G19: =TeamScoreWithPlayers($B19,"M",4,MN_7_REDHEAD!$F$4:$F$1391,MN_7_REDHEAD!$E$4:$E$1391,MN_7_REDHEAD!$G$4:$G$1391,MN_7_REDHEAD!$C$4:$C$1391,"P1") -> (B) RYAN KELLER - [519] | H19: =TeamScoreWithPlayers($B19,"M",4,MN_7_REDHEAD!$F$4:$F$1391,MN_7_REDHEAD!$E$4:$E$1391,MN_7_REDHEAD!$G$4:$G$1391,MN_7_REDHEAD!$C$4:$C$1391,"P2") -> (B) HENRY STEPHENSON - [501] | I19: =TeamScoreWithPlayers($B19,"M",4,MN_7_REDHEAD!$F$4:$F$1391,MN_7_REDHEAD!$E$4:$E$1391,MN_7_REDHEAD!$G$4:$G$1391,MN_7_REDHEAD!$C$4:$C$1391,"P3") -> (G) HAYDEN KOHN - [446] | J19: =TeamScoreWithPlayers($B19,"M",4,MN_7_REDHEAD!$F$4:$F$1391,MN_7_REDHEAD!$E$4:$E$1391,MN_7_REDHEAD!$G$4:$G$1391,MN_7_REDHEAD!$C$4:$C$1391,"P4") -> (B) JOE STEPHENSON - [446] | L19: 1912 | M19: 1912 | O19: 0
A20: 19 | B20: Hutchinson High School | C20: =TeamScore(B20,"M",4,MN_7_REDHEAD!$F$4:$F$1391,MN_7_REDHEAD!$G$4:$G$1391,MN_7_REDHEAD!$C$4:$C$1391) -> 869 | F20: =TeamScoreWithPlayers($B20,"M",4,MN_7_REDHEAD!$F$4:$F$1391,MN_7_REDHEAD!$E$4:$E$1391,MN_7_REDHEAD!$G$4:$G$1391,MN_7_REDHEAD!$C$4:$C$1391,"TS") -> 869 | G20: =TeamScoreWithPlayers($B20,"M",4,MN_7_REDHEAD!$F$4:$F$1391,MN_7_REDHEAD!$E$4:$E$1391,MN_7_REDHEAD!$G$4:$G$1391,MN_7_REDHEAD!$C$4:$C$1391,"P1") -> (B) FRANKLIN RECH - [468] | H20: =TeamScoreWithPlayers($B20,"M",4,MN_7_REDHEAD!$F$4:$F$1391,MN_7_REDHEAD!$E$4:$E$1391,MN_7_REDHEAD!$G$4:$G$1391,MN_7_REDHEAD!$C$4:$C$1391,"P2") -> (G) CYBLI BUSSE - [401] | I20: =TeamScoreWithPlayers($B20,"M",4,MN_7_REDHEAD!$F$4:$F$1391,MN_7_REDHEAD!$E$4:$E$1391,MN_7_REDHEAD!$G$4:$G$1391,MN_7_REDHEAD!$C$4:$C$1391,"P3") -> () - [0] | J20: =TeamScoreWithPlayers($B20,"M",4,MN_7_REDHEAD!$F$4:$F$1391,MN_7_REDHEAD!$E$4:$E$1391,MN_7_REDHEAD!$G$4:$G$1391,MN_7_REDHEAD!$C$4:$C$1391,"P4") -> () - [0] | L20: 869 | M20: 869 | O20: 0
A21: 20 | B21: Irondale High School | C21: =TeamScore(B21,"M",4,MN_7_REDHEAD!$F$4:$F$1391,MN_7_REDHEAD!$G$4:$G$1391,MN_7_REDHEAD!$C$4:$C$1391) -> 0 | F21: =TeamScoreWithPlayers($B21,"M",4,MN_7_REDHEAD!$F$4:$F$1391,MN_7_REDHEAD!$E$4:$E$1391,MN_7_REDHEAD!$G$4:$G$1391,MN_7_REDHEAD!$C$4:$C$1391,"TS") -> 0 | G21: =TeamScoreWithPlayers($B21,"M",4,MN_7_REDHEAD!$F$4:$F$1391,MN_7_REDHEAD!$E$4:$E$1391,MN_7_REDHEAD!$G$4:$G$1391,MN_7_REDHEAD!$C$4:$C$1391,"P1") -> () - [0] | H21: =TeamScoreWithPlayers($B21,"M",4,MN_7_REDHEAD!$F$4:$F$1391,MN_7_REDHEAD!$E$4:$E$1391,MN_7_REDHEAD!$G$4:$G$1391,MN_7_REDHEAD!$C$4:$C$1391,"P2") -> () - [0] | I21: =TeamScoreWithPlayers($B21,"M",4,MN_7_REDHEAD!$F$4:$F$1391,MN_7_REDHEAD!$E$4:$E$1391,MN_7_REDHEAD!$G$4:$G$1391,MN_7_REDHEAD!$C$4:$C$1391,"P3") -> () - [0] | J21: =TeamScoreWithPlayers($B21,"M",4,MN_7_REDHEAD!$F$4:$F$1391,MN_7_REDHEAD!$E$4:$E$1391,MN_7_REDHEAD!$G$4:$G$1391,MN_7_REDHEAD!$C$4:$C$1391,"P4") -> () - [0] | L21: 0 | M21: 0 | O21: 0
A22: 21 | B22: Kerkhoven Composite | C22: =TeamScore(B22,"M",4,MN_7_REDHEAD!$F$4:$F$1391,MN_7_REDHEAD!$G$4:$G$1391,MN_7_REDHEAD!$C$4:$C$1391) -> 865 | F22: =TeamScoreWithPlayers($B22,"M",4,MN_7_REDHEAD!$F$4:$F$1391,MN_7_REDHEAD!$E$4:$E$1391,MN_7_REDHEAD!$G$4:$G$1391,MN_7_REDHEAD!$C$4:$C$1391,"TS") -> 865 | G22: =TeamScoreWithPlayers($B22,"M",4,MN_7_REDHEAD!$F$4:$F$1391,MN_7_REDHEAD!$E$4:$E$1391,MN_7_REDHEAD!$G$4:$G$1391,MN_7_REDHEAD!$C$4:$C$1391,"P1") -> (G) HAILEY SOINE - [307] | H22: =TeamScoreWithPlayers($B22,"M",4,MN_7_REDHEAD!$F$4:$F$1391,MN_7_REDHEAD!$E$4:$E$1391,MN_7_REDHEAD!$G$4:$G$1391,MN_7_REDHEAD!$C$4:$C$1391,"P2") -> (B) MICAH STRICKLAND - [283] | I22: =TeamScoreWithPlayers($B22,"M",4,MN_7_REDHEAD!$F$4:$F$1391,MN_7_REDHEAD!$E$4:$E$1391,MN_7_REDHEAD!$G$4:$G$1391,MN_7_REDHEAD!$C$4:$C$1391,"P3") -> (B) JONNY BENSON - [275] | J22: =TeamScoreWithPlayers($B22,"M",4,MN_7_REDHEAD!$F$4:$F$1391,MN_7_REDHEAD!$E$4:$E$1391,MN_7_REDHEAD!$G$4:$G$1391,MN_7_REDHEAD!$C$4:$C$1391,"P4") -> () - [0] | L22: 865 | M22: 865 | O22: 0
A23: 22 | B23: Lakeville South High School | C23: =TeamScore(B23,"M",4,MN_7_REDHEAD!$F$4:$F$1391,MN_7_REDHEAD!$G$4:$G$1391,MN_7_REDHEAD!$C$4:$C$1391) -> 369 | F23: =TeamScoreWithPlayers($B23,"M",4,MN_7_REDHEAD!$F$4:$F$1391,MN_7_REDHEAD!$E$4:$E$1391,MN_7_REDHEAD!$G$4:$G$1391,MN_7_REDHEAD!$C$4:$C$1391,"TS") -> 369 | G23: =TeamScoreWithPlayers($B23,"M",4,MN_7_REDHEAD!$F$4:$F$1391,MN_7_REDHEAD!$E$4:$E$1391,MN_7_REDHEAD!$G$4:$G$1391,MN_7_REDHEAD!$C$4:$C$1391,"P1") -> (G) EVA GROTENHUIS - [369] | H23: =TeamScoreWithPlayers($B23,"M",4,MN_7_REDHEAD!$F$4:$F$1391,MN_7_REDHEAD!$E$4:$E$1391,MN_7_REDHEAD!$G$4:$G$1391,MN_7_REDHEAD!$C$4:$C$1391,"P2") -> () - [0] | I23: =TeamScoreWithPlayers($B23,"M",4,MN_7_REDHEAD!$F$4:$F$1391,MN_7_REDHEAD!$E$4:$E$1391,MN_7_REDHEAD!$G$4:$G$1391,MN_7_REDHEAD!$C$4:$C$1391,"P3") -> () - [0] | J23: =TeamScoreWithPlayers($B23,"M",4,MN_7_REDHEAD!$F$4:$F$1391,MN_7_REDHEAD!$E$4:$E$1391,MN_7_REDHEAD!$G$4:$G$1391,MN_7_REDHEAD!$C$4:$C$1391,"P4") -> () - [0] | L23: 369 | M23: 369 | O23: 0
A24: 23 | B24: Mahtomedi High School | C24: =TeamScore(B24,"M",4,MN_7_REDHEAD!$F$4:$F$1391,MN_7_REDHEAD!$G$4:$G$1391,MN_7_REDHEAD!$C$4:$C$1391) -> 1003 | F24: =TeamScoreWithPlayers($B24,"M",4,MN_7_REDHEAD!$F$4:$F$1391,MN_7_REDHEAD!$E$4:$E$1391,MN_7_REDHEAD!$G$4:$G$1391,MN_7_REDHEAD!$C$4:$C$1391,"TS") -> 1003 | G24: =TeamScoreWithPlayers($B24,"M",4,MN_7_REDHEAD!$F$4:$F$1391,MN_7_REDHEAD!$E$4:$E$1391,MN_7_REDHEAD!$G$4:$G$1391,MN_7_REDHEAD!$C$4:$C$1391,"P1") -> (B) PAUL GRZESIK - [419] | H24: =TeamScoreWithPlayers($B24,"M",4,MN_7_REDHEAD!$F$4:$F$1391,MN_7_REDHEAD!$E$4:$E$1391,MN_7_REDHEAD!$G$4:$G$1391,MN_7_REDHEAD!$C$4:$C$1391,"P2") -> (B) MICAH HORSAGER - [326] | I24: =TeamScoreWithPlayers($B24,"M",4,MN_7_REDHEAD!$F$4:$F$1391,MN_7_REDHEAD!$E$4:$E$1391,MN_7_REDHEAD!$G$4:$G$1391,MN_7_REDHEAD!$C$4:$C$1391,"P3") -> (B) HENRY HONMYHR - [258] | J24: =TeamScoreWithPlayers($B24,"M",4,MN_7_REDHEAD!$F$4:$F$1391,MN_7_REDHEAD!$E$4:$E$1391,MN_7_REDHEAD!$G$4:$G$1391,MN_7_REDHEAD!$C$4:$C$1391,"P4") -> () - [0] | L24: 1003 | M24: 1003 | O24: 0
A25: 24 | B25: Mankato Composite | C25: =TeamScore(B25,"M",4,MN_7_REDHEAD!$F$4:$F$1391,MN_7_REDHEAD!$G$4:$G$1391,MN_7_REDHEAD!$C$4:$C$1391) -> 0 | F25: =TeamScoreWithPlayers($B25,"M",4,MN_7_REDHEAD!$F$4:$F$1391,MN_7_REDHEAD!$E$4:$E$1391,MN_7_REDHEAD!$G$4:$G$1391,MN_7_REDHEAD!$C$4:$C$1391,"TS") -> 0 | G25: =TeamScoreWithPlayers($B25,"M",4,MN_7_REDHEAD!$F$4:$F$1391,MN_7_REDHEAD!$E$4:$E$1391,MN_7_REDHEAD!$G$4:$G$1391,MN_7_REDHEAD!$C$4:$C$1391,"P1") -> () - [0] | H25: =TeamScoreWithPlayers($B25,"M",4,MN_7_REDHEAD!$F$4:$F$1391,MN_7_REDHEAD!$E$4:$E$1391,MN_7_REDHEAD!$G$4:$G$1391,MN_7_REDHEAD!$C$4:$C$1391,"P2") -> () - [0] | I25: =TeamScoreWithPlayers($B25,"M",4,MN_7_REDHEAD!$F$4:$F$1391,MN_7_REDHEAD!$E$4:$E$1391,MN_7_REDHEAD!$G$4:$G$1391,MN_7_REDHEAD!$C$4:$C$1391,"P3") -> () - [0] | J25: =TeamScoreWithPlayers($B25,"M",4,MN_7_REDHEAD!$F$4:$F$1391,MN_7_REDHEAD!$E$4:$E$1391,MN_7_REDHEAD!$G$4:$G$1391,MN_7_REDHEAD!$C$4:$C$1391,"P4") -> () - [0] | L25: 0 | M25: 0 | O25: 0
A26: 25 | B26: Mankato West High School | C26: =TeamScore(B26,"M",4,MN_7_REDHEAD!$F$4:$F$1391,MN_7_REDHEAD!$G$4:$G$1391,MN_7_REDHEAD!$C$4:$C$1391) -> 0 | F26: =TeamScoreWithPlayers($B26,"M",4,MN_7_REDHEAD!$F$4:$F$1391,MN_7_REDHEAD!$E$4:$E$1391,MN_7_REDHEAD!$G$4:$G$1391,MN_7_REDHEAD!$C$4:$C$1391,"TS") -> 0 | G26: =TeamScoreWithPlayers($B26,"M",4,MN_7_REDHEAD!$F$4:$F$1391,MN_7_REDHEAD!$E$4:$E$1391,MN_7_REDHEAD!$G$4:$G$1391,MN_7_REDHEAD!$C$4:$C$1391,"P1") -> () - [0] | H26: =TeamScoreWithPlayers($B26,"M",4,MN_7_REDHEAD!$F$4:$F$1391,MN_7_REDHEAD!$E$4:$E$1391,MN_7_REDHEAD!$G$4:$G$1391,MN_7_REDHEAD!$C$4:$C$1391,"P2") -> () - [0] | I26: =TeamScoreWithPlayers($B26,"M",4,MN_7_REDHEAD!$F$4:$F$1391,MN_7_REDHEAD!$E$4:$E$1391,MN_7_REDHEAD!$G$4:$G$1391,MN_7_REDHEAD!$C$4:$C$1391,"P3") -> () - [0] | J26: =TeamScoreWithPlayers($B26,"M",4,MN_7_REDHEAD!$F$4:$F$1391,MN_7_REDHEAD!$E$4:$E$1391,MN_7_REDHEAD!$G$4:$G$1391,MN_7_REDHEAD!$C$4:$C$1391,"P4") -> () - [0] | L26: 0 | M26: 0 | O26: 0
A27: 26 | B27: Maple Grove High School | C27: =TeamScore(B27,"M",4,MN_7_REDHEAD!$F$4:$F$1391,MN_7_REDHEAD!$G$4:$G$1391,MN_7_REDHEAD!$C$4:$C$1391) -> 1479 | F27: =TeamScoreWithPlayers($B27,"M",4,MN_7_REDHEAD!$F$4:$F$1391,MN_7_REDHEAD!$E$4:$E$1391,MN_7_REDHEAD!$G$4:$G$1391,MN_7_REDHEAD!$C$4:$C$1391,"TS") -> 1479 | G27: =TeamScoreWithPlayers($B27,"M",4,MN_7_REDHEAD!$F$4:$F$1391,MN_7_REDHEAD!$E$4:$E$1391,MN_7_REDHEAD!$G$4:$G$1391,MN_7_REDHEAD!$C$4:$C$1391,"P1") -> (G) HANNAH MOORE - [510] | H27: =TeamScoreWithPlayers($B27,"M",4,MN_7_REDHEAD!$F$4:$F$1391,MN_7_REDHEAD!$E$4:$E$1391,MN_7_REDHEAD!$G$4:$G$1391,MN_7_REDHEAD!$C$4:$C$1391,"P2") -> (G) HALEY HONMYHR - [425] | I27: =TeamScoreWithPlayers($B27,"M",4,MN_7_REDHEAD!$F$4:$F$1391,MN_7_REDHEAD!$E$4:$E$1391,MN_7_REDHEAD!$G$4:$G$1391,MN_7_REDHEAD!$C$4:$C$1391,"P3") -> (B) WILLIAM BUTTKE - [287] | J27: =TeamScoreWithPlayers($B27,"M",4,MN_7_REDHEAD!$F$4:$F$1391,MN_7_REDHEAD!$E$4:$E$1391,MN_7_REDHEAD!$G$4:$G$1391,MN_7_REDHEAD!$C$4:$C$1391,"P4") -> (B) DYLAN ENGSTROM - [257] | L27: 1479 | M27: 1479 | O27: 0
A28: 27 | B28: Minneapolis Henry High School | C28: =TeamScore(B28,"M",4,MN_7_REDHEAD!$F$4:$F$1391,MN_7_REDHEAD!$G$4:$G$1391,MN_7_REDHEAD!$C$4:$C$1391) -> 0 | F28: =TeamScoreWithPlayers($B28,"M",4,MN_7_REDHEAD!$F$4:$F$1391,MN_7_REDHEAD!$E$4:$E$1391,MN_7_REDHEAD!$G$4:$G$1391,MN_7_REDHEAD!$C$4:$C$1391,"TS") -> 0 | G28: =TeamScoreWithPlayers($B28,"M",4,MN_7_REDHEAD!$F$4:$F$1391,MN_7_REDHEAD!$E$4:$E$1391,MN_7_REDHEAD!$G$4:$G$1391,MN_7_REDHEAD!$C$4:$C$1391,"P1") -> () - [0] | H28: =TeamScoreWithPlayers($B28,"M",4,MN_7_REDHEAD!$F$4:$F$1391,MN_7_REDHEAD!$E$4:$E$1391,MN_7_REDHEAD!$G$4:$G$1391,MN_7_REDHEAD!$C$4:$C$1391,"P2") -> () - [0] | I28: =TeamScoreWithPlayers($B28,"M",4,MN_7_REDHEAD!$F$4:$F$1391,MN_7_REDHEAD!$E$4:$E$1391,MN_7_REDHEAD!$G$4:$G$1391,MN_7_REDHEAD!$C$4:$C$1391,"P3") -> () - [0] | J28: =TeamScoreWithPlayers($B28,"M",4,MN_7_REDHEAD!$F$4:$F$1391,MN_7_REDHEAD!$E$4:$E$1391,MN_7_REDHEAD!$G$4:$G$1391,MN_7_REDHEAD!$C$4:$C$1391,"P4") -> () - [0] | L28: 0 | M28: 0 | O28: 0
A29: 28 | B29: Minneapolis Northside Composite | C29: =TeamScore(B29,"M",4,MN_7_REDHEAD!$F$4:$F$1391,MN_7_REDHEAD!$G$4:$G$1391,MN_7_REDHEAD!$C$4:$C$1391) -> 280 | F29: =TeamScoreWithPlayers($B29,"M",4,MN_7_REDHEAD!$F$4:$F$1391,MN_7_REDHEAD!$E$4:$E$1391,MN_7_REDHEAD!$G$4:$G$1391,MN_7_REDHEAD!$C$4:$C$1391,"TS") -> 280 | G29: =TeamScoreWithPlayers($B29,"M",4,MN_7_REDHEAD!$F$4:$F$1391,MN_7_REDHEAD!$E$4:$E$1391,MN_7_REDHEAD!$G$4:$G$1391,MN_7_REDHEAD!$C$4:$C$1391,"P1") -> (B) FRANKIE ROQUE - [280] | H29: =TeamScoreWithPlayers($B29,"M",4,MN_7_REDHEAD!$F$4:$F$1391,MN_7_REDHEAD!$E$4:$E$1391,MN_7_REDHEAD!$G$4:$G$1391,MN_7_REDHEAD!$C$4:$C$1391,"P2") -> () - [0] | I29: =TeamScoreWithPlayers($B29,"M",4,MN_7_REDHEAD!$F$4:$F$1391,MN_7_REDHEAD!$E$4:$E$1391,MN_7_REDHEAD!$G$4:$G$1391,MN_7_REDHEAD!$C$4:$C$1391,"P3") -> () - [0] | J29: =TeamScoreWithPlayers($B29,"M",4,MN_7_REDHEAD!$F$4:$F$1391,MN_7_REDHEAD!$E$4:$E$1391,MN_7_REDHEAD!$G$4:$G$1391,MN_7_REDHEAD!$C$4:$C$1391,"P4") -> () - [0] | L29: 280 | M29: 280 | O29: 0
A30: 29 | B30: Minneapolis South High | C30: =TeamScore(B30,"M",4,MN_7_REDHEAD!$F$4:$F$1391,MN_7_REDHEAD!$G$4:$G$1391,MN_7_REDHEAD!$C$4:$C$1391) -> 270 | F30: =TeamScoreWithPlayers($B30,"M",4,MN_7_REDHEAD!$F$4:$F$1391,MN_7_REDHEAD!$E$4:$E$1391,MN_7_REDHEAD!$G$4:$G$1391,MN_7_REDHEAD!$C$4:$C$1391,"TS") -> 270 | G30: =TeamScoreWithPlayers($B30,"M",4,MN_7_REDHEAD!$F$4:$F$1391,MN_7_REDHEAD!$E$4:$E$1391,MN_7_REDHEAD!$G$4:$G$1391,MN_7_REDHEAD!$C$4:$C$1391,"P1") -> (B) HENRY HOLDSWORTH - [270] | H30: =TeamScoreWithPlayers($B30,"M",4,MN_7_REDHEAD!$F$4:$F$1391,MN_7_REDHEAD!$E$4:$E$1391,MN_7_REDHEAD!$G$4:$G$1391,MN_7_REDHEAD!$C$4:$C$1391,"P2") -> () - [0] | I30: =TeamScoreWithPlayers($B30,"M",4,MN_7_REDHEAD!$F$4:$F$1391,MN_7_REDHEAD!$E$4:$E$1391,MN_7_REDHEAD!$G$4:$G$1391,MN_7_REDHEAD!$C$4:$C$1391,"P3") -> () - [0] | J30: =TeamScoreWithPlayers($B30,"M",4,MN_7_REDHEAD!$F$4:$F$1391,MN_7_REDHEAD!$E$4:$E$1391,MN_7_REDHEAD!$G$4:$G$1391,MN_7_REDHEAD!$C$4:$C$1391,"P4") -> () - [0] | L30: 270 | M30: 270 | O30: 0
A31: 30 | B31: Minneapolis Southside Composite | C31: =TeamScore(B31,"M",4,MN_7_REDHEAD!$F$4:$F$1391,MN_7_REDHEAD!$G$4:$G$1391,MN_7_REDHEAD!$C$4:$C$1391) -> 330 | F31: =TeamScoreWithPlayers($B31,"M",4,MN_7_REDHEAD!$F$4:$F$1391,MN_7_REDHEAD!$E$4:$E$1391,MN_7_REDHEAD!$G$4:$G$1391,MN_7_REDHEAD!$C$4:$C$1391,"TS") -> 330 | G31: =TeamScoreWithPlayers($B31,"M",4,MN_7_REDHEAD!$F$4:$F$1391,MN_7_REDHEAD!$E$4:$E$1391,MN_7_REDHEAD!$G$4:$G$1391,MN_7_REDHEAD!$C$4:$C$1391,"P1") -> (G) ISABELLA BERGMAN - [330] | H31: =TeamScoreWithPlayers($B31,"M",4,MN_7_REDHEAD!$F$4:$F$1391,MN_7_REDHEAD!$E$4:$E$1391,MN_7_REDHEAD!$G$4:$G$1391,MN_7_REDHEAD!$C$4:$C$1391,"P2") -> () - [0] | I31: =TeamScoreWithPlayers($B31,"M",4,MN_7_REDHEAD!$F$4:$F$1391,MN_7_REDHEAD!$E$4:$E$1391,MN_7_REDHEAD!$G$4:$G$1391,MN_7_REDHEAD!$C$4:$C$1391,"P3") -> () - [0] | J31: =TeamScoreWithPlayers($B31,"M",4,MN_7_REDHEAD!$F$4:$F$1391,MN_7_REDHEAD!$E$4:$E$1391,MN_7_REDHEAD!$G$4:$G$1391,MN_7_REDHEAD!$C$4:$C$1391,"P4") -> () - [0] | L31: 330 | M31: 330 | O31: 0
A32: 31 | B32: Minnesota Valley Composite | C32: =TeamScore(B32,"M",4,MN_7_REDHEAD!$F$4:$F$1391,MN_7_REDHEAD!$G$4:$G$1391,MN_7_REDHEAD!$C$4:$C$1391) -> 1306 | F32: =TeamScoreWithPlayers($B32,"M",4,MN_7_REDHEAD!$F$4:$F$1391,MN_7_REDHEAD!$E$4:$E$1391,MN_7_REDHEAD!$G$4:$G$1391,MN_7_REDHEAD!$C$4:$C$1391,"TS") -> 1306 | G32: =TeamScoreWithPlayers($B32,"M",4,MN_7_REDHEAD!$F$4:$F$1391,MN_7_REDHEAD!$E$4:$E$1391,MN_7_REDHEAD!$G$4:$G$1391,MN_7_REDHEAD!$C$4:$C$1391,"P1") -> (B) CARTER BOLSTER - [492] | H32: =TeamScoreWithPlayers($B32,"M",4,MN_7_REDHEAD!$F$4:$F$1391,MN_7_REDHEAD!$E$4:$E$1391,MN_7_REDHEAD!$G$4:$G$1391,MN_7_REDHEAD!$C$4:$C$1391,"P2") -> (B) XAVIER OLSON - [413] | I32: =TeamScoreWithPlayers($B32,"M",4,MN_7_REDHEAD!$F$4:$F$1391,MN_7_REDHEAD!$E$4:$E$1391,MN_7_REDHEAD!$G$4:$G$1391,MN_7_REDHEAD!$C$4:$C$1391,"P3") -> (G) INGRID OLSON - [401] | J32: =TeamScoreWithPlayers($B32,"M",4,MN_7_REDHEAD!$F$4:$F$1391,MN_7_REDHEAD!$E$4:$E$1391,MN_7_REDHEAD!$G$4:$G$1391,MN_7_REDHEAD!$C$4:$C$1391,"P4") -> () - [0] | L32: 1306 | M32: 1306 | O32: 0
A33: 32 | B33: Mound Westonka Composite | C33: =TeamScore(B33,"M",4,MN_7_REDHEAD!$F$4:$F$1391,MN_7_REDHEAD!$G$4:$G$1391,MN_7_REDHEAD!$C$4:$C$1391) -> 1353 | F33: =TeamScoreWithPlayers($B33,"M",4,MN_7_REDHEAD!$F$4:$F$1391,MN_7_REDHEAD!$E$4:$E$1391,MN_7_REDHEAD!$G$4:$G$1391,MN_7_REDHEAD!$C$4:$C$1391,"TS") -> 1353 | G33: =TeamScoreWithPlayers($B33,"M",4,MN_7_REDHEAD!$F$4:$F$1391,MN_7_REDHEAD!$E$4:$E$1391,MN_7_REDHEAD!$G$4:$G$1391,MN_7_REDHEAD!$C$4:$C$1391,"P1") -> (B) HARRISON MERTEN - [432] | H33: =TeamScoreWithPlayers($B33,"M",4,MN_7_REDHEAD!$F$4:$F$1391,MN_7_REDHEAD!$E$4:$E$1391,MN_7_REDHEAD!$G$4:$G$1391,MN_7_REDHEAD!$C$4:$C$1391,"P2") -> (B) ROBBIE CHILSON - [326] | I33: =TeamScoreWithPlayers($B33,"M",4,MN_7_REDHEAD!$F$4:$F$1391,MN_7_REDHEAD!$E$4:$E$1391,MN_7_REDHEAD!$G$4:$G$1391,MN_7_REDHEAD!$C$4:$C$1391,"P3") -> (G) MAKENZIE REESE - [319] | J33: =TeamScoreWithPlayers($B33,"M",4,MN_7_REDHEAD!$F$4:$F$1391,MN_7_REDHEAD!$E$4:$E$1391,MN_7_REDHEAD!$G$4:$G$1391,MN_7_REDHEAD!$C$4:$C$1391,"P4") -> (B) NOAH HILLEBERT - [276] | L33: 1353 | M33: 1353 | O33: 0
A34: 33 | B34: North Dakota Composite | C34: =TeamScore(B34,"M",4,MN_7_REDHEAD!$F$4:$F$1391,MN_7_REDHEAD!$G$4:$G$1391,MN_7_REDHEAD!$C$4:$C$1391) -> 413 | F34: =TeamScoreWithPlayers($B34,"M",4,MN_7_REDHEAD!$F$4:$F$1391,MN_7_REDHEAD!$E$4:$E$1391,MN_7_REDHEAD!$G$4:$G$1391,MN_7_REDHEAD!$C$4:$C$1391,"TS") -> 413 | G34: =TeamScoreWithPlayers($B34,"M",4,MN_7_REDHEAD!$F$4:$F$1391,MN_7_REDHEAD!$E$4:$E$1391,MN_7_REDHEAD!$G$4:$G$1391,MN_7_REDHEAD!$C$4:$C$1391,"P1") -> (B) DAVID ROBINSON - [413] | H34: =TeamScoreWithPlayers($B34,"M",4,MN_7_REDHEAD!$F$4:$F$1391,MN_7_REDHEAD!$E$4:$E$1391,MN_7_REDHEAD!$G$4:$G$1391,MN_7_REDHEAD!$C$4:$C$1391,"P2") -> () - [0] | I34: =TeamScoreWithPlayers($B34,"M",4,MN_7_REDHEAD!$F$4:$F$1391,MN_7_REDHEAD!$E$4:$E$1391,MN_7_REDHEAD!$G$4:$G$1391,MN_7_REDHEAD!$C$4:$C$1391,"P3") -> () - [0] | J34: =TeamScoreWithPlayers($B34,"M",4,MN_7_REDHEAD!$F$4:$F$1391,MN_7_REDHEAD!$E$4:$E$1391,MN_7_REDHEAD!$G$4:$G$1391,MN_7_REDHEAD!$C$4:$C$1391,"P4") -> () - [0] | L34: 413 | M34: 413 | O34: 0
A35: 34 | B35: North Dakota Kindred Composite | C35: =TeamScore(B35,"M",4,MN_7_REDHEAD!$F$4:$F$1391,MN_7_REDHEAD!$G$4:$G$1391,MN_7_REDHEAD!$C$4:$C$1391) -> 0 | F35: =TeamScoreWithPlayers($B35,"M",4,MN_7_REDHEAD!$F$4:$F$1391,MN_7_REDHEAD!$E$4:$E$1391,MN_7_REDHEAD!$G$4:$G$1391,MN_7_REDHEAD!$C$4:$C$1391,"TS") -> 0 | G35: =TeamScoreWithPlayers($B35,"M",4,MN_7_REDHEAD!$F$4:$F$1391,MN_7_REDHEAD!$E$4:$E$1391,MN_7_REDHEAD!$G$4:$G$1391,MN_7_REDHEAD!$C$4:$C$1391,"P1") -> () - [0] | H35: =TeamScoreWithPlayers($B35,"M",4,MN_7_REDHEAD!$F$4:$F$1391,MN_7_REDHEAD!$E$4:$E$1391,MN_7_REDHEAD!$G$4:$G$1391,MN_7_REDHEAD!$C$4:$C$1391,"P2") -> () - [0] | I35: =TeamScoreWithPlayers($B35,"M",4,MN_7_REDHEAD!$F$4:$F$1391,MN_7_REDHEAD!$E$4:$E$1391,MN_7_REDHEAD!$G$4:$G$1391,MN_7_REDHEAD!$C$4:$C$1391,"P3") -> () - [0] | J35: =TeamScoreWithPlayers($B35,"M",4,MN_7_REDHEAD!$F$4:$F$1391,MN_7_REDHEAD!$E$4:$E$1391,MN_7_REDHEAD!$G$4:$G$1391,MN_7_REDHEAD!$C$4:$C$1391,"P4") -> () - [0] | L35: 0 | M35: 0 | O35: 0
A36: 35 | B36: Northwest Composite | C36: =TeamScore(B36,"M",4,MN_7_REDHEAD!$F$4:$F$1391,MN_7_REDHEAD!$G$4:$G$1391,MN_7_REDHEAD!$C$4:$C$1391) -> 1667 | F36: =TeamScoreWithPlayers($B36,"M",4,MN_7_REDHEAD!$F$4:$F$1391,MN_7_REDHEAD!$E$4:$E$1391,MN_7_REDHEAD!$G$4:$G$1391,MN_7_REDHEAD!$C$4:$C$1391,"TS") -> 1667 | G36: =TeamScoreWithPlayers($B36,"M",4,MN_7_REDHEAD!$F$4:$F$1391,MN_7_REDHEAD!$E$4:$E$1391,MN_7_REDHEAD!$G$4:$G$1391,MN_7_REDHEAD!$C$4:$C$1391,"P1") -> (B) ISAAC LEISETH - [476] | H36: =TeamScoreWithPlayers($B36,"M",4,MN_7_REDHEAD!$F$4:$F$1391,MN_7_REDHEAD!$E$4:$E$1391,MN_7_REDHEAD!$G$4:$G$1391,MN_7_REDHEAD!$C$4:$C$1391,"P2") -> (B) HANK SCHLAUDERAFF - [468] | I36: =TeamScoreWithPlayers($B36,"M",4,MN_7_REDHEAD!$F$4:$F$1391,MN_7_REDHEAD!$E$4:$E$1391,MN_7_REDHEAD!$G$4:$G$1391,MN_7_REDHEAD!$C$4:$C$1391,"P3") -> (B) IAN ARTLEY - [364] | J36: =TeamScoreWithPlayers($B36,"M",4,MN_7_REDHEAD!$F$4:$F$1391,MN_7_REDHEAD!$E$4:$E$1391,MN_7_REDHEAD!$G$4:$G$1391,MN_7_REDHEAD!$C$4:$C$1391,"P4") -> (G) CLARA DAVIS - [359] | L36: 1667 | M36: 1675 | O36: 8
A37: 36 | B37: Orono High School | C37: =TeamScore(B37,"M",4,MN_7_REDHEAD!$F$4:$F$1391,MN_7_REDHEAD!$G$4:$G$1391,MN_7_REDHEAD!$C$4:$C$1391) -> 1582 | F37: =TeamScoreWithPlayers($B37,"M",4,MN_7_REDHEAD!$F$4:$F$1391,MN_7_REDHEAD!$E$4:$E$1391,MN_7_REDHEAD!$G$4:$G$1391,MN_7_REDHEAD!$C$4:$C$1391,"TS") -> 1582 | G37: =TeamScoreWithPlayers($B37,"M",4,MN_7_REDHEAD!$F$4:$F$1391,MN_7_REDHEAD!$E$4:$E$1391,MN_7_REDHEAD!$G$4:$G$1391,MN_7_REDHEAD!$C$4:$C$1391,"P1") -> (B) JACK MCKEAND - [539] | H37: =TeamScoreWithPlayers($B37,"M",4,MN_7_REDHEAD!$F$4:$F$1391,MN_7_REDHEAD!$E$4:$E$1391,MN_7_REDHEAD!$G$4:$G$1391,MN_7_REDHEAD!$C$4:$C$1391,"P2") -> (B) MIKHAIL LONG - [359] | I37: =TeamScoreWithPlayers($B37,"M",4,MN_7_REDHEAD!$F$4:$F$1391,MN_7_REDHEAD!$E$4:$E$1391,MN_7_REDHEAD!$G$4:$G$1391,MN_7_REDHEAD!$C$4:$C$1391,"P3") -> (G) REESE JEREMIASON - [346] | J37: =TeamScoreWithPlayers($B37,"M",4,MN_7_REDHEAD!$F$4:$F$1391,MN_7_REDHEAD!$E$4:$E$1391,MN_7_REDHEAD!$G$4:$G$1391,MN_7_REDHEAD!$C$4:$C$1391,"P4") -> (G) JILLIE SWENSON - [338] | L37: 1582 | M37: 1582 | O37: 0
A38: 37 | B38: Osseo | C38: =TeamScore(B38,"M",4,MN_7_REDHEAD!$F$4:$F$1391,MN_7_REDHEAD!$G$4:$G$1391,MN_7_REDHEAD!$C$4:$C$1391) -> 588 | F38: =TeamScoreWithPlayers($B38,"M",4,MN_7_REDHEAD!$F$4:$F$1391,MN_7_REDHEAD!$E$4:$E$1391,MN_7_REDHEAD!$G$4:$G$1391,MN_7_REDHEAD!$C$4:$C$1391,"TS") -> 588 | G38: =TeamScoreWithPlayers($B38,"M",4,MN_7_REDHEAD!$F$4:$F$1391,MN_7_REDHEAD!$E$4:$E$1391,MN_7_REDHEAD!$G$4:$G$1391,MN_7_REDHEAD!$C$4:$C$1391,"P1") -> (G) SOPHIA BEAUDIN - [313] | H38: =TeamScoreWithPlayers($B38,"M",4,MN_7_REDHEAD!$F$4:$F$1391,MN_7_REDHEAD!$E$4:$E$1391,MN_7_REDHEAD!$G$4:$G$1391,MN_7_REDHEAD!$C$4:$C$1391,"P2") -> (B) OLIVER PILSNER - [275] | I38: =TeamScoreWithPlayers($B38,"M",4,MN_7_REDHEAD!$F$4:$F$1391,MN_7_REDHEAD!$E$4:$E$1391,MN_7_REDHEAD!$G$4:$G$1391,MN_7_REDHEAD!$C$4:$C$1391,"P3") -> () - [0] | J38: =TeamScoreWithPlayers($B38,"M",4,MN_7_REDHEAD!$F$4:$F$1391,MN_7_REDHEAD!$E$4:$E$1391,MN_7_REDHEAD!$G$4:$G$1391,MN_7_REDHEAD!$C$4:$C$1391,"P4") -> () - [0] | L38: 588 | M38: 588 | O38: 0
A39: 38 | B39: Osseo Composite | C39: =TeamScore(B39,"M",4,MN_7_REDHEAD!$F$4:$F$1391,MN_7_REDHEAD!$G$4:$G$1391,MN_7_REDHEAD!$C$4:$C$1391) -> 1670 | F39: =TeamScoreWithPlayers($B39,"M",4,MN_7_REDHEAD!$F$4:$F$1391,MN_7_REDHEAD!$E$4:$E$1391,MN_7_REDHEAD!$G$4:$G$1391,MN_7_REDHEAD!$C$4:$C$1391,"TS") -> 1670 | G39: =TeamScoreWithPlayers($B39,"M",4,MN_7_REDHEAD!$F$4:$F$1391,MN_7_REDHEAD!$E$4:$E$1391,MN_7_REDHEAD!$G$4:$G$1391,MN_7_REDHEAD!$C$4:$C$1391,"P1") -> (B) GARRETT NELSON - [529] | H39: =TeamScoreWithPlayers($B39,"M",4,MN_7_REDHEAD!$F$4:$F$1391,MN_7_REDHEAD!$E$4:$E$1391,MN_7_REDHEAD!$G$4:$G$1391,MN_7_REDHEAD!$C$4:$C$1391,"P2") -> (G) BAILEY MORRISON - [453] | I39: =TeamScoreWithPlayers($B39,"M",4,MN_7_REDHEAD!$F$4:$F$1391,MN_7_REDHEAD!$E$4:$E$1391,MN_7_REDHEAD!$G$4:$G$1391,MN_7_REDHEAD!$C$4:$C$1391,"P3") -> (B) EVERETT OLSON - [384] | J39: =TeamScoreWithPlayers($B39,"M",4,MN_7_REDHEAD!$F$4:$F$1391,MN_7_REDHEAD!$E$4:$E$1391,MN_7_REDHEAD!$G$4:$G$1391,MN_7_REDHEAD!$C$4:$C$1391,"P4") -> (B) EUGENE NELSON - [304] | L39: 1670 | M39: 1670 | O39: 0
A40: 39 | B40: Park High School | C40: =TeamScore(B40,"M",4,MN_7_REDHEAD!$F$4:$F$1391,MN_7_REDHEAD!$G$4:$G$1391,MN_7_REDHEAD!$C$4:$C$1391) -> 453 | F40: =TeamScoreWithPlayers($B40,"M",4,MN_7_REDHEAD!$F$4:$F$1391,MN_7_REDHEAD!$E$4:$E$1391,MN_7_REDHEAD!$G$4:$G$1391,MN_7_REDHEAD!$C$4:$C$1391,"TS") -> 453 | G40: =TeamScoreWithPlayers($B40,"M",4,MN_7_REDHEAD!$F$4:$F$1391,MN_7_REDHEAD!$E$4:$E$1391,MN_7_REDHEAD!$G$4:$G$1391,MN_7_REDHEAD!$C$4:$C$1391,"P1") -> (B) MAVERICK TILLER - [453] | H40: =TeamScoreWithPlayers($B40,"M",4,MN_7_REDHEAD!$F$4:$F$1391,MN_7_REDHEAD!$E$4:$E$1391,MN_7_REDHEAD!$G$4:$G$1391,MN_7_REDHEAD!$C$4:$C$1391,"P2") -> () - [0] | I40: =TeamScoreWithPlayers($B40,"M",4,MN_7_REDHEAD!$F$4:$F$1391,MN_7_REDHEAD!$E$4:$E$1391,MN_7_REDHEAD!$G$4:$G$1391,MN_7_REDHEAD!$C$4:$C$1391,"P3") -> () - [0] | J40: =TeamScoreWithPlayers($B40,"M",4,MN_7_REDHEAD!$F$4:$F$1391,MN_7_REDHEAD!$E$4:$E$1391,MN_7_REDHEAD!$G$4:$G$1391,MN_7_REDHEAD!$C$4:$C$1391,"P4") -> () - [0] | L40: 453 | M40: 453 | O40: 0
A41: 40 | B41: River Falls High School | C41: =TeamScore(B41,"M",4,MN_7_REDHEAD!$F$4:$F$1391,MN_7_REDHEAD!$G$4:$G$1391,MN_7_REDHEAD!$C$4:$C$1391) -> 1605 | F41: =TeamScoreWithPlayers($B41,"M",4,MN_7_REDHEAD!$F$4:$F$1391,MN_7_REDHEAD!$E$4:$E$1391,MN_7_REDHEAD!$G$4:$G$1391,MN_7_REDHEAD!$C$4:$C$1391,"TS") -> 1605 | G41: =TeamScoreWithPlayers($B41,"M",4,MN_7_REDHEAD!$F$4:$F$1391,MN_7_REDHEAD!$E$4:$E$1391,MN_7_REDHEAD!$G$4:$G$1391,MN_7_REDHEAD!$C$4:$C$1391,"P1") -> (G) PIPER NICKLESKI - [468] | H41: =TeamScoreWithPlayers($B41,"M",4,MN_7_REDHEAD!$F$4:$F$1391,MN_7_REDHEAD!$E$4:$E$1391,MN_7_REDHEAD!$G$4:$G$1391,MN_7_REDHEAD!$C$4:$C$1391,"P2") -> (G) AMELIA HALVORSON - [384] | I41: =TeamScoreWithPlayers($B41,"M",4,MN_7_REDHEAD!$F$4:$F$1391,MN_7_REDHEAD!$E$4:$E$1391,MN_7_REDHEAD!$G$4:$G$1391,MN_7_REDHEAD!$C$4:$C$1391,"P3") -> (B) CLARK WERWIE - [379] | J41: =TeamScoreWithPlayers($B41,"M",4,MN_7_REDHEAD!$F$4:$F$1391,MN_7_REDHEAD!$E$4:$E$1391,MN_7_REDHEAD!$G$4:$G$1391,MN_7_REDHEAD!$C$4:$C$1391,"P4") -> (B) CHRISTIAN HARSDORF - [374] | L41: 1605 | M41: 1605 | O41: 0
A42: 41 | B42: Rochester Area Composite | C42: =TeamScore(B42,"M",4,MN_7_REDHEAD!$F$4:$F$1391,MN_7_REDHEAD!$G$4:$G$1391,MN_7_REDHEAD!$C$4:$C$1391) -> 694 | F42: =TeamScoreWithPlayers($B42,"M",4,MN_7_REDHEAD!$F$4:$F$1391,MN_7_REDHEAD!$E$4:$E$1391,MN_7_REDHEAD!$G$4:$G$1391,MN_7_REDHEAD!$C$4:$C$1391,"TS") -> 694 | G42: =TeamScoreWithPlayers($B42,"M",4,MN_7_REDHEAD!$F$4:$F$1391,MN_7_REDHEAD!$E$4:$E$1391,MN_7_REDHEAD!$G$4:$G$1391,MN_7_REDHEAD!$C$4:$C$1391,"P1") -> (G) IRENE PASTOR - [364] | H42: =TeamScoreWithPlayers($B42,"M",4,MN_7_REDHEAD!$F$4:$F$1391,MN_7_REDHEAD!$E$4:$E$1391,MN_7_REDHEAD!$G$4:$G$1391,MN_7_REDHEAD!$C$4:$C$1391,"P2") -> (B) LUKE EAGLE - [330] | I42: =TeamScoreWithPlayers($B42,"M",4,MN_7_REDHEAD!$F$4:$F$1391,MN_7_REDHEAD!$E$4:$E$1391,MN_7_REDHEAD!$G$4:$G$1391,MN_7_REDHEAD!$C$4:$C$1391,"P3") -> () - [0] | J42: =TeamScoreWithPlayers($B42,"M",4,MN_7_REDHEAD!$F$4:$F$1391,MN_7_REDHEAD!$E$4:$E$1391,MN_7_REDHEAD!$G$4:$G$1391,MN_7_REDHEAD!$C$4:$C$1391,"P4") -> () - [0] | L42: 694 | M42: 694 | O42: 0
A43: 42 | B43: Rochester John Marshall | C43: =TeamScore(B43,"M",4,MN_7_REDHEAD!$F$4:$F$1391,MN_7_REDHEAD!$G$4:$G$1391,MN_7_REDHEAD!$C$4:$C$1391) -> 419 | F43: =TeamScoreWithPlayers($B43,"M",4,MN_7_REDHEAD!$F$4:$F$1391,MN_7_REDHEAD!$E$4:$E$1391,MN_7_REDHEAD!$G$4:$G$1391,MN_7_REDHEAD!$C$4:$C$1391,"TS") -> 419 | G43: =TeamScoreWithPlayers($B43,"M",4,MN_7_REDHEAD!$F$4:$F$1391,MN_7_REDHEAD!$E$4:$E$1391,MN_7_REDHEAD!$G$4:$G$1391,MN_7_REDHEAD!$C$4:$C$1391,"P1") -> (B) JACKSON TANK - [419] | H43: =TeamScoreWithPlayers($B43,"M",4,MN_7_REDHEAD!$F$4:$F$1391,MN_7_REDHEAD!$E$4:$E$1391,MN_7_REDHEAD!$G$4:$G$1391,MN_7_REDHEAD!$C$4:$C$1391,"P2") -> () - [0] | I43: =TeamScoreWithPlayers($B43,"M",4,MN_7_REDHEAD!$F$4:$F$1391,MN_7_REDHEAD!$E$4:$E$1391,MN_7_REDHEAD!$G$4:$G$1391,MN_7_REDHEAD!$C$4:$C$1391,"P3") -> () - [0] | J43: =TeamScoreWithPlayers($B43,"M",4,MN_7_REDHEAD!$F$4:$F$1391,MN_7_REDHEAD!$E$4:$E$1391,MN_7_REDHEAD!$G$4:$G$1391,MN_7_REDHEAD!$C$4:$C$1391,"P4") -> () - [0] | L43: 419 | M43: 419 | O43: 0
A44: 43 | B44: Rochester Mayo | C44: =TeamScore(B44,"M",4,MN_7_REDHEAD!$F$4:$F$1391,MN_7_REDHEAD!$G$4:$G$1391,MN_7_REDHEAD!$C$4:$C$1391) -> 673 | F44: =TeamScoreWithPlayers($B44,"M",4,MN_7_REDHEAD!$F$4:$F$1391,MN_7_REDHEAD!$E$4:$E$1391,MN_7_REDHEAD!$G$4:$G$1391,MN_7_REDHEAD!$C$4:$C$1391,"TS") -> 673 | G44: =TeamScoreWithPlayers($B44,"M",4,MN_7_REDHEAD!$F$4:$F$1391,MN_7_REDHEAD!$E$4:$E$1391,MN_7_REDHEAD!$G$4:$G$1391,MN_7_REDHEAD!$C$4:$C$1391,"P1") -> (B) ETHAN NELSON - [354] | H44: =TeamScoreWithPlayers($B44,"M",4,MN_7_REDHEAD!$F$4:$F$1391,MN_7_REDHEAD!$E$4:$E$1391,MN_7_REDHEAD!$G$4:$G$1391,MN_7_REDHEAD!$C$4:$C$1391,"P2") -> (B) DEXTER WILLIAMS - [319] | I44: =TeamScoreWithPlayers($B44,"M",4,MN_7_REDHEAD!$F$4:$F$1391,MN_7_REDHEAD!$E$4:$E$1391,MN_7_REDHEAD!$G$4:$G$1391,MN_7_REDHEAD!$C$4:$C$1391,"P3") -> () - [0] | J44: =TeamScoreWithPlayers($B44,"M",4,MN_7_REDHEAD!$F$4:$F$1391,MN_7_REDHEAD!$E$4:$E$1391,MN_7_REDHEAD!$G$4:$G$1391,MN_7_REDHEAD!$C$4:$C$1391,"P4") -> () - [0] | L44: 673 | M44: 673 | O44: 0
A45: 44 | B45: Rockford Composite | C45: =TeamScore(B45,"M",4,MN_7_REDHEAD!$F$4:$F$1391,MN_7_REDHEAD!$G$4:$G$1391,MN_7_REDHEAD!$C$4:$C$1391) -> 887 | F45: =TeamScoreWithPlayers($B45,"M",4,MN_7_REDHEAD!$F$4:$F$1391,MN_7_REDHEAD!$E$4:$E$1391,MN_7_REDHEAD!$G$4:$G$1391,MN_7_REDHEAD!$C$4:$C$1391,"TS") -> 887 | G45: =TeamScoreWithPlayers($B45,"M",4,MN_7_REDHEAD!$F$4:$F$1391,MN_7_REDHEAD!$E$4:$E$1391,MN_7_REDHEAD!$G$4:$G$1391,MN_7_REDHEAD!$C$4:$C$1391,"P1") -> (B) JOSIAH CARLSON - [322] | H45: =TeamScoreWithPlayers($B45,"M",4,MN_7_REDHEAD!$F$4:$F$1391,MN_7_REDHEAD!$E$4:$E$1391,MN_7_REDHEAD!$G$4:$G$1391,MN_7_REDHEAD!$C$4:$C$1391,"P2") -> (B) EVERETT SCHOTTMULLER - [287] | I45: =TeamScoreWithPlayers($B45,"M",4,MN_7_REDHEAD!$F$4:$F$1391,MN_7_REDHEAD!$E$4:$E$1391,MN_7_REDHEAD!$G$4:$G$1391,MN_7_REDHEAD!$C$4:$C$1391,"P3") -> (B) ELIJAH WARD - [278] | J45: =TeamScoreWithPlayers($B45,"M",4,MN_7_REDHEAD!$F$4:$F$1391,MN_7_REDHEAD!$E$4:$E$1391,MN_7_REDHEAD!$G$4:$G$1391,MN_7_REDHEAD!$C$4:$C$1391,"P4") -> () - [0] | L45: 887 | M45: 887 | O45: 0
A46: 45 | B46: Rogers High School | C46: =TeamScore(B46,"M",4,MN_7_REDHEAD!$F$4:$F$1391,MN_7_REDHEAD!$G$4:$G$1391,MN_7_REDHEAD!$C$4:$C$1391) -> 936 | F46: =TeamScoreWithPlayers($B46,"M",4,MN_7_REDHEAD!$F$4:$F$1391,MN_7_REDHEAD!$E$4:$E$1391,MN_7_REDHEAD!$G$4:$G$1391,MN_7_REDHEAD!$C$4:$C$1391,"TS") -> 936 | G46: =TeamScoreWithPlayers($B46,"M",4,MN_7_REDHEAD!$F$4:$F$1391,MN_7_REDHEAD!$E$4:$E$1391,MN_7_REDHEAD!$G$4:$G$1391,MN_7_REDHEAD!$C$4:$C$1391,"P1") -> (B) MAX KLABUNDE - [529] | H46: =TeamScoreWithPlayers($B46,"M",4,MN_7_REDHEAD!$F$4:$F$1391,MN_7_REDHEAD!$E$4:$E$1391,MN_7_REDHEAD!$G$4:$G$1391,MN_7_REDHEAD!$C$4:$C$1391,"P2") -> (B) WILLIAM PALUMBO - [407] | I46: =TeamScoreWithPlayers($B46,"M",4,MN_7_REDHEAD!$F$4:$F$1391,MN_7_REDHEAD!$E$4:$E$1391,MN_7_REDHEAD!$G$4:$G$1391,MN_7_REDHEAD!$C$4:$C$1391,"P3") -> () - [0] | J46: =TeamScoreWithPlayers($B46,"M",4,MN_7_REDHEAD!$F$4:$F$1391,MN_7_REDHEAD!$E$4:$E$1391,MN_7_REDHEAD!$G$4:$G$1391,MN_7_REDHEAD!$C$4:$C$1391,"P4") -> () - [0] | L46: 936 | M46: 936 | O46: 0
A47: 46 | B47: Roosevelt High School | C47: =TeamScore(B47,"M",4,MN_7_REDHEAD!$F$4:$F$1391,MN_7_REDHEAD!$G$4:$G$1391,MN_7_REDHEAD!$C$4:$C$1391) -> 1754 | F47: =TeamScoreWithPlayers($B47,"M",4,MN_7_REDHEAD!$F$4:$F$1391,MN_7_REDHEAD!$E$4:$E$1391,MN_7_REDHEAD!$G$4:$G$1391,MN_7_REDHEAD!$C$4:$C$1391,"TS") -> 1754 | G47: =TeamScoreWithPlayers($B47,"M",4,MN_7_REDHEAD!$F$4:$F$1391,MN_7_REDHEAD!$E$4:$E$1391,MN_7_REDHEAD!$G$4:$G$1391,MN_7_REDHEAD!$C$4:$C$1391,"P1") -> (B) ELI MEISER - [501] | H47: =TeamScoreWithPlayers($B47,"M",4,MN_7_REDHEAD!$F$4:$F$1391,MN_7_REDHEAD!$E$4:$E$1391,MN_7_REDHEAD!$G$4:$G$1391,MN_7_REDHEAD!$C$4:$C$1391,"P2") -> (B) BEN TESCH - [439] | I47: =TeamScoreWithPlayers($B47,"M",4,MN_7_REDHEAD!$F$4:$F$1391,MN_7_REDHEAD!$E$4:$E$1391,MN_7_REDHEAD!$G$4:$G$1391,MN_7_REDHEAD!$C$4:$C$1391,"P3") -> (B) NICO MENDEZ - [425] | J47: =TeamScoreWithPlayers($B47,"M",4,MN_7_REDHEAD!$F$4:$F$1391,MN_7_REDHEAD!$E$4:$E$1391,MN_7_REDHEAD!$G$4:$G$1391,MN_7_REDHEAD!$C$4:$C$1391,"P4") -> (G) GRACE BERSETH - [389] | L47: 1754 | M47: 1754 | O47: 0
A48: 47 | B48: Rosemount High School | C48: =TeamScore(B48,"M",4,MN_7_REDHEAD!$F$4:$F$1391,MN_7_REDHEAD!$G$4:$G$1391,MN_7_REDHEAD!$C$4:$C$1391) -> 1325 | F48: =TeamScoreWithPlayers($B48,"M",4,MN_7_REDHEAD!$F$4:$F$1391,MN_7_REDHEAD!$E$4:$E$1391,MN_7_REDHEAD!$G$4:$G$1391,MN_7_REDHEAD!$C$4:$C$1391,"TS") -> 1325 | G48: =TeamScoreWithPlayers($B48,"M",4,MN_7_REDHEAD!$F$4:$F$1391,MN_7_REDHEAD!$E$4:$E$1391,MN_7_REDHEAD!$G$4:$G$1391,MN_7_REDHEAD!$C$4:$C$1391,"P1") -> (B) SAM ALLAN - [529] | H48: =TeamScoreWithPlayers($B48,"M",4,MN_7_REDHEAD!$F$4:$F$1391,MN_7_REDHEAD!$E$4:$E$1391,MN_7_REDHEAD!$G$4:$G$1391,MN_7_REDHEAD!$C$4:$C$1391,"P2") -> (B) CALVIN CARPENTER - [407] | I48: =TeamScoreWithPlayers($B48,"M",4,MN_7_REDHEAD!$F$4:$F$1391,MN_7_REDHEAD!$E$4:$E$1391,MN_7_REDHEAD!$G$4:$G$1391,MN_7_REDHEAD!$C$4:$C$1391,"P3") -> (B) FRITZ DIRKSEN - [389] | J48: =TeamScoreWithPlayers($B48,"M",4,MN_7_REDHEAD!$F$4:$F$1391,MN_7_REDHEAD!$E$4:$E$1391,MN_7_REDHEAD!$G$4:$G$1391,MN_7_REDHEAD!$C$4:$C$1391,"P4") -> () - [0] | L48: 1325 | M48: 1325 | O48: 0
A49: 48 | B49: Roseville Area Composite | C49: =TeamScore(B49,"M",4,MN_7_REDHEAD!$F$4:$F$1391,MN_7_REDHEAD!$G$4:$G$1391,MN_7_REDHEAD!$C$4:$C$1391) -> 1291 | F49: =TeamScoreWithPlayers($B49,"M",4,MN_7_REDHEAD!$F$4:$F$1391,MN_7_REDHEAD!$E$4:$E$1391,MN_7_REDHEAD!$G$4:$G$1391,MN_7_REDHEAD!$C$4:$C$1391,"TS") -> 1291 | G49: =TeamScoreWithPlayers($B49,"M",4,MN_7_REDHEAD!$F$4:$F$1391,MN_7_REDHEAD!$E$4:$E$1391,MN_7_REDHEAD!$G$4:$G$1391,MN_7_REDHEAD!$C$4:$C$1391,"P1") -> (B) BENNETT SCHMALTZ - [342] | H49: =TeamScoreWithPlayers($B49,"M",4,MN_7_REDHEAD!$F$4:$F$1391,MN_7_REDHEAD!$E$4:$E$1391,MN_7_REDHEAD!$G$4:$G$1391,MN_7_REDHEAD!$C$4:$C$1391,"P2") -> (G) ALLISON CLAYDON - [326] | I49: =TeamScoreWithPlayers($B49,"M",4,MN_7_REDHEAD!$F$4:$F$1391,MN_7_REDHEAD!$E$4:$E$1391,MN_7_REDHEAD!$G$4:$G$1391,MN_7_REDHEAD!$C$4:$C$1391,"P3") -> (B) HENRY LOE - [313] | J49: =TeamScoreWithPlayers($B49,"M",4,MN_7_REDHEAD!$F$4:$F$1391,MN_7_REDHEAD!$E$4:$E$1391,MN_7_REDHEAD!$G$4:$G$1391,MN_7_REDHEAD!$C$4:$C$1391,"P4") -> (G) FERN SHAFFNER - [310] | L49: 1291 | M49: 1291 | O49: 0
A50: 49 | B50: Spectrum High School | C50: =TeamScore(B50,"M",4,MN_7_REDHEAD!$F$4:$F$1391,MN_7_REDHEAD!$G$4:$G$1391,MN_7_REDHEAD!$C$4:$C$1391) -> 0 | F50: =TeamScoreWithPlayers($B50,"M",4,MN_7_REDHEAD!$F$4:$F$1391,MN_7_REDHEAD!$E$4:$E$1391,MN_7_REDHEAD!$G$4:$G$1391,MN_7_REDHEAD!$C$4:$C$1391,"TS") -> 0 | G50: =TeamScoreWithPlayers($B50,"M",4,MN_7_REDHEAD!$F$4:$F$1391,MN_7_REDHEAD!$E$4:$E$1391,MN_7_REDHEAD!$G$4:$G$1391,MN_7_REDHEAD!$C$4:$C$1391,"P1") -> () - [0] | H50: =TeamScoreWithPlayers($B50,"M",4,MN_7_REDHEAD!$F$4:$F$1391,MN_7_REDHEAD!$E$4:$E$1391,MN_7_REDHEAD!$G$4:$G$1391,MN_7_REDHEAD!$C$4:$C$1391,"P2") -> () - [0] | I50: =TeamScoreWithPlayers($B50,"M",4,MN_7_REDHEAD!$F$4:$F$1391,MN_7_REDHEAD!$E$4:$E$1391,MN_7_REDHEAD!$G$4:$G$1391,MN_7_REDHEAD!$C$4:$C$1391,"P3") -> () - [0] | J50: =TeamScoreWithPlayers($B50,"M",4,MN_7_REDHEAD!$F$4:$F$1391,MN_7_REDHEAD!$E$4:$E$1391,MN_7_REDHEAD!$G$4:$G$1391,MN_7_REDHEAD!$C$4:$C$1391,"P4") -> () - [0] | L50: 0 | M50: 0 | O50: 0
A51: 50 | B51: St Cloud Area Composite | C51: =TeamScore(B51,"M",4,MN_7_REDHEAD!$F$4:$F$1391,MN_7_REDHEAD!$G$4:$G$1391,MN_7_REDHEAD!$C$4:$C$1391) -> 2103 | F51: =TeamScoreWithPlayers($B51,"M",4,MN_7_REDHEAD!$F$4:$F$1391,MN_7_REDHEAD!$E$4:$E$1391,MN_7_REDHEAD!$G$4:$G$1391,MN_7_REDHEAD!$C$4:$C$1391,"TS") -> 2103 | G51: =TeamScoreWithPlayers($B51,"M",4,MN_7_REDHEAD!$F$4:$F$1391,MN_7_REDHEAD!$E$4:$E$1391,MN_7_REDHEAD!$G$4:$G$1391,MN_7_REDHEAD!$C$4:$C$1391,"P1") -> (G) PHOEBE HACKENSACK - [550] | H51: =TeamScoreWithPlayers($B51,"M",4,MN_7_REDHEAD!$F$4:$F$1391,MN_7_REDHEAD!$E$4:$E$1391,MN_7_REDHEAD!$G$4:$G$1391,MN_7_REDHEAD!$C$4:$C$1391,"P2") -> (B) MAX LARSEN - [550] | I51: =TeamScoreWithPlayers($B51,"M",4,MN_7_REDHEAD!$F$4:$F$1391,MN_7_REDHEAD!$E$4:$E$1391,MN_7_REDHEAD!$G$4:$G$1391,MN_7_REDHEAD!$C$4:$C$1391,"P3") -> (B) JACK LARSEN - [519] | J51: =TeamScoreWithPlayers($B51,"M",4,MN_7_REDHEAD!$F$4:$F$1391,MN_7_REDHEAD!$E$4:$E$1391,MN_7_REDHEAD!$G$4:$G$1391,MN_7_REDHEAD!$C$4:$C$1391,"P4") -> (G) LILY WILCOX - [484] | L51: 2103 | M51: 2103 | O51: 0
A52: 51 | B52: St Croix Composite | C52: =TeamScore(B52,"M",4,MN_7_REDHEAD!$F$4:$F$1391,MN_7_REDHEAD!$G$4:$G$1391,MN_7_REDHEAD!$C$4:$C$1391) -> 1687 | F52: =TeamScoreWithPlayers($B52,"M",4,MN_7_REDHEAD!$F$4:$F$1391,MN_7_REDHEAD!$E$4:$E$1391,MN_7_REDHEAD!$G$4:$G$1391,MN_7_REDHEAD!$C$4:$C$1391,"TS") -> 1687 | G52: =TeamScoreWithPlayers($B52,"M",4,MN_7_REDHEAD!$F$4:$F$1391,MN_7_REDHEAD!$E$4:$E$1391,MN_7_REDHEAD!$G$4:$G$1391,MN_7_REDHEAD!$C$4:$C$1391,"P1") -> (B) ERIC MOSS - [539] | H52: =TeamScoreWithPlayers($B52,"M",4,MN_7_REDHEAD!$F$4:$F$1391,MN_7_REDHEAD!$E$4:$E$1391,MN_7_REDHEAD!$G$4:$G$1391,MN_7_REDHEAD!$C$4:$C$1391,"P2") -> (B) QUINN JUSTEN - [460] | I52: =TeamScoreWithPlayers($B52,"M",4,MN_7_REDHEAD!$F$4:$F$1391,MN_7_REDHEAD!$E$4:$E$1391,MN_7_REDHEAD!$G$4:$G$1391,MN_7_REDHEAD!$C$4:$C$1391,"P3") -> (G) EVELYN BRUNS - [384] | J52: =TeamScoreWithPlayers($B52,"M",4,MN_7_REDHEAD!$F$4:$F$1391,MN_7_REDHEAD!$E$4:$E$1391,MN_7_REDHEAD!$G$4:$G$1391,MN_7_REDHEAD!$C$4:$C$1391,"P4") -> (G) ADDISON WAKELING - [304] | L52: 1687 | M52: 1687 | O52: 0
A53: 52 | B53: St Louis Park High School | C53: =TeamScore(B53,"M",4,MN_7_REDHEAD!$F$4:$F$1391,MN_7_REDHEAD!$G$4:$G$1391,MN_7_REDHEAD!$C$4:$C$1391) -> 1495 | F53: =TeamScoreWithPlayers($B53,"M",4,MN_7_REDHEAD!$F$4:$F$1391,MN_7_REDHEAD!$E$4:$E$1391,MN_7_REDHEAD!$G$4:$G$1391,MN_7_REDHEAD!$C$4:$C$1391,"TS") -> 1495 | G53: =TeamScoreWithPlayers($B53,"M",4,MN_7_REDHEAD!$F$4:$F$1391,MN_7_REDHEAD!$E$4:$E$1391,MN_7_REDHEAD!$G$4:$G$1391,MN_7_REDHEAD!$C$4:$C$1391,"P1") -> (B) BENNY RUZEK - [519] | H53: =TeamScoreWithPlayers($B53,"M",4,MN_7_REDHEAD!$F$4:$F$1391,MN_7_REDHEAD!$E$4:$E$1391,MN_7_REDHEAD!$G$4:$G$1391,MN_7_REDHEAD!$C$4:$C$1391,"P2") -> (B) AUSTIN KUEHL - [492] | I53: =TeamScoreWithPlayers($B53,"M",4,MN_7_REDHEAD!$F$4:$F$1391,MN_7_REDHEAD!$E$4:$E$1391,MN_7_REDHEAD!$G$4:$G$1391,MN_7_REDHEAD!$C$4:$C$1391,"P3") -> (B) SHANER FITZPATRICK - [484] | J53: =TeamScoreWithPlayers($B53,"M",4,MN_7_REDHEAD!$F$4:$F$1391,MN_7_REDHEAD!$E$4:$E$1391,MN_7_REDHEAD!$G$4:$G$1391,MN_7_REDHEAD!$C$4:$C$1391,"P4") -> () - [0] | L53: 1495 | M53: 1495 | O53: 0
A54: 53 | B54: St Michael / Albertville Composite | C54: =TeamScore(B54,"M",4,MN_7_REDHEAD!$F$4:$F$1391,MN_7_REDHEAD!$G$4:$G$1391,MN_7_REDHEAD!$C$4:$C$1391) -> 1470 | F54: =TeamScoreWithPlayers($B54,"M",4,MN_7_REDHEAD!$F$4:$F$1391,MN_7_REDHEAD!$E$4:$E$1391,MN_7_REDHEAD!$G$4:$G$1391,MN_7_REDHEAD!$C$4:$C$1391,"TS") -> 1470 | G54: =TeamScoreWithPlayers($B54,"M",4,MN_7_REDHEAD!$F$4:$F$1391,MN_7_REDHEAD!$E$4:$E$1391,MN_7_REDHEAD!$G$4:$G$1391,MN_7_REDHEAD!$C$4:$C$1391,"P1") -> (B) ALEX CHOUANARD - [510] | H54: =TeamScoreWithPlayers($B54,"M",4,MN_7_REDHEAD!$F$4:$F$1391,MN_7_REDHEAD!$E$4:$E$1391,MN_7_REDHEAD!$G$4:$G$1391,MN_7_REDHEAD!$C$4:$C$1391,"P2") -> (B) COOPER ETNIER - [484] | I54: =TeamScoreWithPlayers($B54,"M",4,MN_7_REDHEAD!$F$4:$F$1391,MN_7_REDHEAD!$E$4:$E$1391,MN_7_REDHEAD!$G$4:$G$1391,MN_7_REDHEAD!$C$4:$C$1391,"P3") -> (B) OWEN MOORMANN - [476] | J54: =TeamScoreWithPlayers($B54,"M",4,MN_7_REDHEAD!$F$4:$F$1391,MN_7_REDHEAD!$E$4:$E$1391,MN_7_REDHEAD!$G$4:$G$1391,MN_7_REDHEAD!$C$4:$C$1391,"P4") -> () - [0] | L54: 1470 | M54: 1462 | O54: 8
A55: 54 | B55: St Paul Central | C55: =TeamScore(B55,"M",4,MN_7_REDHEAD!$F$4:$F$1391,MN_7_REDHEAD!$G$4:$G$1391,MN_7_REDHEAD!$C$4:$C$1391) -> 1321 | F55: =TeamScoreWithPlayers($B55,"M",4,MN_7_REDHEAD!$F$4:$F$1391,MN_7_REDHEAD!$E$4:$E$1391,MN_7_REDHEAD!$G$4:$G$1391,MN_7_REDHEAD!$C$4:$C$1391,"TS") -> 1321 | G55: =TeamScoreWithPlayers($B55,"M",4,MN_7_REDHEAD!$F$4:$F$1391,MN_7_REDHEAD!$E$4:$E$1391,MN_7_REDHEAD!$G$4:$G$1391,MN_7_REDHEAD!$C$4:$C$1391,"P1") -> (B) HENRY MURPHY - [510] | H55: =TeamScoreWithPlayers($B55,"M",4,MN_7_REDHEAD!$F$4:$F$1391,MN_7_REDHEAD!$E$4:$E$1391,MN_7_REDHEAD!$G$4:$G$1391,MN_7_REDHEAD!$C$4:$C$1391,"P2") -> (B) KHANH TRUONG - [492] | I55: =TeamScoreWithPlayers($B55,"M",4,MN_7_REDHEAD!$F$4:$F$1391,MN_7_REDHEAD!$E$4:$E$1391,MN_7_REDHEAD!$G$4:$G$1391,MN_7_REDHEAD!$C$4:$C$1391,"P3") -> (B) TYLER HAYDEN - [319] | J55: =TeamScoreWithPlayers($B55,"M",4,MN_7_REDHEAD!$F$4:$F$1391,MN_7_REDHEAD!$E$4:$E$1391,MN_7_REDHEAD!$G$4:$G$1391,MN_7_REDHEAD!$C$4:$C$1391,"P4") -> () - [0] | L55: 1321 | M55: 1321 | O55: 0
A56: 55 | B56: St. Paul Composite - North | C56: =TeamScore(B56,"M",4,MN_7_REDHEAD!$F$4:$F$1391,MN_7_REDHEAD!$G$4:$G$1391,MN_7_REDHEAD!$C$4:$C$1391) -> 1379 | F56: =TeamScoreWithPlayers($B56,"M",4,MN_7_REDHEAD!$F$4:$F$1391,MN_7_REDHEAD!$E$4:$E$1391,MN_7_REDHEAD!$G$4:$G$1391,MN_7_REDHEAD!$C$4:$C$1391,"TS") -> 1379 | G56: =TeamScoreWithPlayers($B56,"M",4,MN_7_REDHEAD!$F$4:$F$1391,MN_7_REDHEAD!$E$4:$E$1391,MN_7_REDHEAD!$G$4:$G$1391,MN_7_REDHEAD!$C$4:$C$1391,"P1") -> (B) CHARLIE WILLIAMSON - [539] | H56: =TeamScoreWithPlayers($B56,"M",4,MN_7_REDHEAD!$F$4:$F$1391,MN_7_REDHEAD!$E$4:$E$1391,MN_7_REDHEAD!$G$4:$G$1391,MN_7_REDHEAD!$C$4:$C$1391,"P2") -> (B) SEBASTIAN PURYEAR-JORDAN - [439] | I56: =TeamScoreWithPlayers($B56,"M",4,MN_7_REDHEAD!$F$4:$F$1391,MN_7_REDHEAD!$E$4:$E$1391,MN_7_REDHEAD!$G$4:$G$1391,MN_7_REDHEAD!$C$4:$C$1391,"P3") -> (B) BAEK MARTIN-KOHLS - [401] | J56: =TeamScoreWithPlayers($B56,"M",4,MN_7_REDHEAD!$F$4:$F$1391,MN_7_REDHEAD!$E$4:$E$1391,MN_7_REDHEAD!$G$4:$G$1391,MN_7_REDHEAD!$C$4:$C$1391,"P4") -> () - [0] | L56: 1379 | M56: 1379 | O56: 0
A57: 56 | B57: St. Paul Composite - South | C57: =TeamScore(B57,"M",4,MN_7_REDHEAD!$F$4:$F$1391,MN_7_REDHEAD!$G$4:$G$1391,MN_7_REDHEAD!$C$4:$C$1391) -> 1626 | F57: =TeamScoreWithPlayers($B57,"M",4,MN_7_REDHEAD!$F$4:$F$1391,MN_7_REDHEAD!$E$4:$E$1391,MN_7_REDHEAD!$G$4:$G$1391,MN_7_REDHEAD!$C$4:$C$1391,"TS") -> 1626 | G57: =TeamScoreWithPlayers($B57,"M",4,MN_7_REDHEAD!$F$4:$F$1391,MN_7_REDHEAD!$E$4:$E$1391,MN_7_REDHEAD!$G$4:$G$1391,MN_7_REDHEAD!$C$4:$C$1391,"P1") -> (G) ELEANOR MEYER - [539] | H57: =TeamScoreWithPlayers($B57,"M",4,MN_7_REDHEAD!$F$4:$F$1391,MN_7_REDHEAD!$E$4:$E$1391,MN_7_REDHEAD!$G$4:$G$1391,MN_7_REDHEAD!$C$4:$C$1391,"P2") -> (B) ZINABU PETERSEN - [425] | I57: =TeamScoreWithPlayers($B57,"M",4,MN_7_REDHEAD!$F$4:$F$1391,MN_7_REDHEAD!$E$4:$E$1391,MN_7_REDHEAD!$G$4:$G$1391,MN_7_REDHEAD!$C$4:$C$1391,"P3") -> (B) CALVIN HOENISCH - [407] | J57: =TeamScoreWithPlayers($B57,"M",4,MN_7_REDHEAD!$F$4:$F$1391,MN_7_REDHEAD!$E$4:$E$1391,MN_7_REDHEAD!$G$4:$G$1391,MN_7_REDHEAD!$C$4:$C$1391,"P4") -> (B) KAI WALKER - [255] | L57: 1626 | M57: 1626 | O57: 0
A58: 57 | B58: Tioga Trailblazers | C58: =TeamScore(B58,"M",4,MN_7_REDHEAD!$F$4:$F$1391,MN_7_REDHEAD!$G$4:$G$1391,MN_7_REDHEAD!$C$4:$C$1391) -> 1513 | F58: =TeamScoreWithPlayers($B58,"M",4,MN_7_REDHEAD!$F$4:$F$1391,MN_7_REDHEAD!$E$4:$E$1391,MN_7_REDHEAD!$G$4:$G$1391,MN_7_REDHEAD!$C$4:$C$1391,"TS") -> 1513 | G58: =TeamScoreWithPlayers($B58,"M",4,MN_7_REDHEAD!$F$4:$F$1391,MN_7_REDHEAD!$E$4:$E$1391,MN_7_REDHEAD!$G$4:$G$1391,MN_7_REDHEAD!$C$4:$C$1391,"P1") -> (B) LEVI GEISLER - [401] | H58: =TeamScoreWithPlayers($B58,"M",4,MN_7_REDHEAD!$F$4:$F$1391,MN_7_REDHEAD!$E$4:$E$1391,MN_7_REDHEAD!$G$4:$G$1391,MN_7_REDHEAD!$C$4:$C$1391,"P2") -> (G) CORA METELAK - [374] | I58: =TeamScoreWithPlayers($B58,"M",4,MN_7_REDHEAD!$F$4:$F$1391,MN_7_REDHEAD!$E$4:$E$1391,MN_7_REDHEAD!$G$4:$G$1391,MN_7_REDHEAD!$C$4:$C$1391,"P3") -> (B) BEN JOHNSON - [369] | J58: =TeamScoreWithPlayers($B58,"M",4,MN_7_REDHEAD!$F$4:$F$1391,MN_7_REDHEAD!$E$4:$E$1391,MN_7_REDHEAD!$G$4:$G$1391,MN_7_REDHEAD!$C$4:$C$1391,"P4") -> (B) ERIC STANGEL - [369] | L58: 1513 | M58: 1513 | O58: 0
A59: 58 | B59: Totino Grace High School | C59: =TeamScore(B59,"M",4,MN_7_REDHEAD!$F$4:$F$1391,MN_7_REDHEAD!$G$4:$G$1391,MN_7_REDHEAD!$C$4:$C$1391) -> 813 | F59: =TeamScoreWithPlayers($B59,"M",4,MN_7_REDHEAD!$F$4:$F$1391,MN_7_REDHEAD!$E$4:$E$1391,MN_7_REDHEAD!$G$4:$G$1391,MN_7_REDHEAD!$C$4:$C$1391,"TS") -> 813 | G59: =TeamScoreWithPlayers($B59,"M",4,MN_7_REDHEAD!$F$4:$F$1391,MN_7_REDHEAD!$E$4:$E$1391,MN_7_REDHEAD!$G$4:$G$1391,MN_7_REDHEAD!$C$4:$C$1391,"P1") -> (B) ALEXANDER MCNAMARA - [439] | H59: =TeamScoreWithPlayers($B59,"M",4,MN_7_REDHEAD!$F$4:$F$1391,MN_7_REDHEAD!$E$4:$E$1391,MN_7_REDHEAD!$G$4:$G$1391,MN_7_REDHEAD!$C$4:$C$1391,"P2") -> (G) ADELE DENTON - [374] | I59: =TeamScoreWithPlayers($B59,"M",4,MN_7_REDHEAD!$F$4:$F$1391,MN_7_REDHEAD!$E$4:$E$1391,MN_7_REDHEAD!$G$4:$G$1391,MN_7_REDHEAD!$C$4:$C$1391,"P3") -> () - [0] | J59: =TeamScoreWithPlayers($B59,"M",4,MN_7_REDHEAD!$F$4:$F$1391,MN_7_REDHEAD!$E$4:$E$1391,MN_7_REDHEAD!$G$4:$G$1391,MN_7_REDHEAD!$C$4:$C$1391,"P4") -> () - [0] | L59: 813 | M59: 813 | O59: 0
A60: 59 | B60: West Fork | C60: =TeamScore(B60,"M",4,MN_7_REDHEAD!$F$4:$F$1391,MN_7_REDHEAD!$G$4:$G$1391,MN_7_REDHEAD!$C$4:$C$1391) -> 301 | F60: =TeamScoreWithPlayers($B60,"M",4,MN_7_REDHEAD!$F$4:$F$1391,MN_7_REDHEAD!$E$4:$E$1391,MN_7_REDHEAD!$G$4:$G$1391,MN_7_REDHEAD!$C$4:$C$1391,"TS") -> 301 | G60: =TeamScoreWithPlayers($B60,"M",4,MN_7_REDHEAD!$F$4:$F$1391,MN_7_REDHEAD!$E$4:$E$1391,MN_7_REDHEAD!$G$4:$G$1391,MN_7_REDHEAD!$C$4:$C$1391,"P1") -> (B) JONAH ESPEY - [301] | H60: =TeamScoreWithPlayers($B60,"M",4,MN_7_REDHEAD!$F$4:$F$1391,MN_7_REDHEAD!$E$4:$E$1391,MN_7_REDHEAD!$G$4:$G$1391,MN_7_REDHEAD!$C$4:$C$1391,"P2") -> () - [0] | I60: =TeamScoreWithPlayers($B60,"M",4,MN_7_REDHEAD!$F$4:$F$1391,MN_7_REDHEAD!$E$4:$E$1391,MN_7_REDHEAD!$G$4:$G$1391,MN_7_REDHEAD!$C$4:$C$1391,"P3") -> () - [0] | J60: =TeamScoreWithPlayers($B60,"M",4,MN_7_REDHEAD!$F$4:$F$1391,MN_7_REDHEAD!$E$4:$E$1391,MN_7_REDHEAD!$G$4:$G$1391,MN_7_REDHEAD!$C$4:$C$1391,"P4") -> () - [0] | L60: 301 | M60: 301 | O60: 0
A61: 60 | B61: West Range Composite | C61: =TeamScore(B61,"M",4,MN_7_REDHEAD!$F$4:$F$1391,MN_7_REDHEAD!$G$4:$G$1391,MN_7_REDHEAD!$C$4:$C$1391) -> 1352 | F61: =TeamScoreWithPlayers($B61,"M",4,MN_7_REDHEAD!$F$4:$F$1391,MN_7_REDHEAD!$E$4:$E$1391,MN_7_REDHEAD!$G$4:$G$1391,MN_7_REDHEAD!$C$4:$C$1391,"TS") -> 1352 | G61: =TeamScoreWithPlayers($B61,"M",4,MN_7_REDHEAD!$F$4:$F$1391,MN_7_REDHEAD!$E$4:$E$1391,MN_7_REDHEAD!$G$4:$G$1391,MN_7_REDHEAD!$C$4:$C$1391,"P1") -> (G) ELIZABETH HAUPT - [346] | H61: =TeamScoreWithPlayers($B61,"M",4,MN_7_REDHEAD!$F$4:$F$1391,MN_7_REDHEAD!$E$4:$E$1391,MN_7_REDHEAD!$G$4:$G$1391,MN_7_REDHEAD!$C$4:$C$1391,"P2") -> (B) TUCKER CROWE - [346] | I61: =TeamScoreWithPlayers($B61,"M",4,MN_7_REDHEAD!$F$4:$F$1391,MN_7_REDHEAD!$E$4:$E$1391,MN_7_REDHEAD!$G$4:$G$1391,MN_7_REDHEAD!$C$4:$C$1391,"P3") -> (B) MAC WALLI - [338] | J61: =TeamScoreWithPlayers($B61,"M",4,MN_7_REDHEAD!$F$4:$F$1391,MN_7_REDHEAD!$E$4:$E$1391,MN_7_REDHEAD!$G$4:$G$1391,MN_7_REDHEAD!$C$4:$C$1391,"P4") -> (B) EMMETT LIND - [322] | L61: 1352 | M61: 1352 | O61: 0
A62: 61 | B62: Woodbury Composite | C62: =TeamScore(B62,"M",4,MN_7_REDHEAD!$F$4:$F$1391,MN_7_REDHEAD!$G$4:$G$1391,MN_7_REDHEAD!$C$4:$C$1391) -> 1552 | F62: =TeamScoreWithPlayers($B62,"M",4,MN_7_REDHEAD!$F$4:$F$1391,MN_7_REDHEAD!$E$4:$E$1391,MN_7_REDHEAD!$G$4:$G$1391,MN_7_REDHEAD!$C$4:$C$1391,"TS") -> 1552 | G62: =TeamScoreWithPlayers($B62,"M",4,MN_7_REDHEAD!$F$4:$F$1391,MN_7_REDHEAD!$E$4:$E$1391,MN_7_REDHEAD!$G$4:$G$1391,MN_7_REDHEAD!$C$4:$C$1391,"P1") -> (B) EVERETT LEVANDER - [446] | H62: =TeamScoreWithPlayers($B62,"M",4,MN_7_REDHEAD!$F$4:$F$1391,MN_7_REDHEAD!$E$4:$E$1391,MN_7_REDHEAD!$G$4:$G$1391,MN_7_REDHEAD!$C$4:$C$1391,"P2") -> (G) CLARA OACHS - [439] | I62: =TeamScoreWithPlayers($B62,"M",4,MN_7_REDHEAD!$F$4:$F$1391,MN_7_REDHEAD!$E$4:$E$1391,MN_7_REDHEAD!$G$4:$G$1391,MN_7_REDHEAD!$C$4:$C$1391,"P3") -> (B) ETHAN CARLSON - [354] | J62: =TeamScoreWithPlayers($B62,"M",4,MN_7_REDHEAD!$F$4:$F$1391,MN_7_REDHEAD!$E$4:$E$1391,MN_7_REDHEAD!$G$4:$G$1391,MN_7_REDHEAD!$C$4:$C$1391,"P4") -> (B) FINN O'REILLY - [313] | L62: 1552 | M62: 1552 | O62: 0
B65: Results sorted High to Low
A66: Place | B66: TEAM | C66: Score | F66: New Total Score | G66: P1 | H66: P2 | I66: P3 | J66: P4
A67: 1 | B67: St Cloud Area Composite | C67: 2103 | F67: 2103 | G67: (G) PHOEBE HACKENSACK - [550] | H67: (B) MAX LARSEN - [550] | I67: (B) JACK LARSEN - [519] | J67: (G) LILY WILCOX - [484] | L67: =getnumeric(G67)+getnumeric(H67)+getnumeric(I67)+getnumeric(J67) -> 2103 | M67: =VLOOKUP(B67,Divisions!$P$4:$Q$95,2,FALSE) -> 2 | O67: =C67-L67 -> 0
A68: =+A67+1 -> 2 | B68: Hudson High School | C68: 1912 | F68: 1912 | G68: (B) RYAN KELLER - [519] | H68: (B) HENRY STEPHENSON - [501] | I68: (G) HAYDEN KOHN - [446] | J68: (B) JOE STEPHENSON - [446] | L68: 1912 | M68: =VLOOKUP(B68,Divisions!$P$4:$Q$95,2,FALSE) -> 2 | O68: =C68-L68 -> 0
A69: =+A68+1 -> 3 | B69: Elk River Composite | C69: 1829 | F69: 1829 | G69: (B) EDWARD FULL - [550] | H69: (G) GEMMA BANKS - [468] | I69: (B) TYLER HANSON - [432] | J69: (G) NATALIE MCCORMACK - [379] | L69: 1829 | M69: =VLOOKUP(B69,Divisions!$P$4:$Q$95,2,FALSE) -> 2 | O69: 0
A70: 4 | B70: Hastings Area Composite | C70: 1771 | F70: 1771 | G70: (B) JAMES MCNAMARA - [501] | H70: (G) KATE NOWAK - [468] | I70: (G) GRACEANN OLSON - [407] | J70: (B) PAYTON OLSON - [395] | L70: 1771 | M70: =VLOOKUP(B70,Divisions!$P$4:$Q$95,2,FALSE) -> 2 | O70: 0
A71: 5 | B71: Roosevelt High School | C71: 1754 | F71: 1754 | G71: (B) ELI MEISER - [501] | H71: (B) BEN TESCH - [439] | I71: (B) NICO MENDEZ - [425] | J71: (G) GRACE BERSETH - [389] | L71: 1754 | M71: =VLOOKUP(B71,Divisions!$P$4:$Q$95,2,FALSE) -> 2 | O71: 0
A72: 6 | B72: St Croix Composite | C72: 1687 | F72: 1687 | G72: (B) ERIC MOSS - [539] | H72: (B) QUINN JUSTEN - [460] | I72: (G) EVELYN BRUNS - [384] | J72: (G) ADDISON WAKELING - [304] | L72: 1687 | M72: =VLOOKUP(B72,Divisions!$P$4:$Q$95,2,FALSE) -> 2 | O72: 0
A73: 7 | B73: Osseo Composite | C73: 1670 | F73: 1670 | G73: (B) GARRETT NELSON - [529] | H73: (G) BAILEY MORRISON - [453] | I73: (B) EVERETT OLSON - [384] | J73: (B) EUGENE NELSON - [304] | L73: 1670 | M73: =VLOOKUP(B73,Divisions!$P$4:$Q$95,2,FALSE) -> 2 | O73: 0
A74: 8 | B74: Northwest Composite | C74: 1667 | F74: 1667 | G74: (B) ISAAC LEISETH - [476] | H74: (B) HANK SCHLAUDERAFF - [468] | I74: (B) IAN ARTLEY - [364] | J74: (G) CLARA DAVIS - [359] | L74: 1667 | M74: =VLOOKUP(B74,Divisions!$P$4:$Q$95,2,FALSE) -> 2 | O74: 0
A75: 9 | B75: St. Paul Composite - South | C75: 1626 | F75: 1626 | G75: (G) ELEANOR MEYER - [539] | H75: (B) ZINABU PETERSEN - [425] | I75: (B) CALVIN HOENISCH - [407] | J75: (B) KAI WALKER - [255] | L75: 1626 | M75: =VLOOKUP(B75,Divisions!$P$4:$Q$95,2,FALSE) -> 2 | O75: 0
A76: 10 | B76: River Falls High School | C76: 1605 | F76: 1605 | G76: (G) PIPER NICKLESKI - [468] | H76: (G) AMELIA HALVORSON - [384] | I76: (B) CLARK WERWIE - [379] | J76: (B) CHRISTIAN HARSDORF - [374] | L76: 1605 | M76: =VLOOKUP(B76,Divisions!$P$4:$Q$95,2,FALSE) -> 2 | O76: 0
A77: 11 | B77: Orono High School | C77: 1582 | F77: 1582 | G77: (B) JACK MCKEAND - [539] | H77: (B) MIKHAIL LONG - [359] | I77: (G) REESE JEREMIASON - [346] | J77: (G) JILLIE SWENSON - [338] | L77: 1582 | M77: =VLOOKUP(B77,Divisions!$P$4:$Q$95,2,FALSE) -> 2 | O77: 0
A78: 12 | B78: Austin High School | C78: 1579 | F78: 1579 | G78: (G) LEXI HELGESON - [460] | H78: (B) LIAM LINNETT - [395] | I78: (B) HUNTER PETERS - [374] | J78: (B) BRAYDEN ANDREWS - [350] | L78: 1579 | M78: =VLOOKUP(B78,Divisions!$P$4:$Q$95,2,FALSE) -> 2 | O78: 0
A79: 13 | B79: Woodbury Composite | C79: 1552 | F79: 1552 | G79: (B) EVERETT LEVANDER - [446] | H79: (G) CLARA OACHS - [439] | I79: (B) ETHAN CARLSON - [354] | J79: (B) FINN O'REILLY - [313] | L79: 1552 | M79: =VLOOKUP(B79,Divisions!$P$4:$Q$95,2,FALSE) -> 2 | O79: 0
A80: 14 | B80: Borealis Composite | C80: 1528 | F80: 1528 | G80: (B) GRADY ANDERSON - [453] | H80: (G) ADDISON KANNAS - [395] | I80: (B) WYATT TEDRICK - [379] | J80: (B) GEORGE SPONHOLZ - [301] | L80: 1528 | M80: =VLOOKUP(B80,Divisions!$P$4:$Q$95,2,FALSE) -> 2 | O80: 0
A81: 15 | B81: Tioga Trailblazers | C81: 1513 | F81: 1513 | G81: (B) LEVI GEISLER - [401] | H81: (G) CORA METELAK - [374] | I81: (B) BEN JOHNSON - [369] | J81: (B) ERIC STANGEL - [369] | L81: 1513 | M81: =VLOOKUP(B81,Divisions!$P$4:$Q$95,2,FALSE) -> 2 | O81: 0
A82: 16 | B82: St Louis Park High School | C82: 1495 | F82: 1495 | G82: (B) BENNY RUZEK - [519] | H82: (B) AUSTIN KUEHL - [492] | I82: (B) SHANER FITZPATRICK - [484] | J82: () - [0] | L82: 1495 | M82: =VLOOKUP(B82,Divisions!$P$4:$Q$95,2,FALSE) -> 2 | O82: 0
A83: 17 | B83: Maple Grove High School | C83: 1479 | F83: 1479 | G83: (G) HANNAH MOORE - [510] | H83: (G) HALEY HONMYHR - [425] | I83: (B) WILLIAM BUTTKE - [287] | J83: (B) DYLAN ENGSTROM - [257] | L83: 1479 | M83: =VLOOKUP(B83,Divisions!$P$4:$Q$95,2,FALSE) -> 2 | O83: 0
A84: 18 | B84: St Michael / Albertville Composite | C84: 1470 | F84: 1470 | G84: (B) ALEX CHOUANARD - [510] | H84: (B) COOPER ETNIER - [484] | I84: (B) OWEN MOORMANN - [476] | J84: () - [0] | L84: 1470 | M84: =VLOOKUP(B84,Divisions!$P$4:$Q$95,2,FALSE) -> 2 | O84: 0
A85: 19 | B85: Eden Prairie High School | C85: 1395 | F85: 1395 | G85: (B) MASON REINER - [510] | H85: (B) ISAAC FOLEY - [484] | I85: (B) AIDAN OLSTAD - [401] | J85: () - [0] | L85: 1395 | M85: =VLOOKUP(B85,Divisions!$P$4:$Q$95,2,FALSE) -> 2 | O85: 0
A86: 20 | B86: St. Paul Composite - North | C86: 1379 | F86: 1379 | G86: (B) CHARLIE WILLIAMSON - [539] | H86: (B) SEBASTIAN PURYEAR-JORDAN - [439] | I86: (B) BAEK MARTIN-KOHLS - [401] | J86: () - [0] | L86: 1379 | M86: =VLOOKUP(B86,Divisions!$P$4:$Q$95,2,FALSE) -> 2 | O86: 0
A87: 21 | B87: Mound Westonka Composite | C87: 1353 | F87: 1353 | G87: (B) HARRISON MERTEN - [432] | H87: (B) ROBBIE CHILSON - [326] | I87: (G) MAKENZIE REESE - [319] | J87: (B) NOAH HILLEBERT - [276] | L87: 1353 | M87: =VLOOKUP(B87,Divisions!$P$4:$Q$95,2,FALSE) -> 2 | O87: 0
A88: 22 | B88: West Range Composite | C88: 1352 | F88: 1352 | G88: (G) ELIZABETH HAUPT - [346] | H88: (B) TUCKER CROWE - [346] | I88: (B) MAC WALLI - [338] | J88: (B) EMMETT LIND - [322] | L88: 1352 | M88: =VLOOKUP(B88,Divisions!$P$4:$Q$95,2,FALSE) ->  | O88: 0
A89: 23 | B89: Rosemount High School | C89: 1325 | F89: 1325 | G89: (B) SAM ALLAN - [529] | H89: (B) CALVIN CARPENTER - [407] | I89: (B) FRITZ DIRKSEN - [389] | J89: () - [0] | L89: 1325 | M89: =VLOOKUP(B89,Divisions!$P$4:$Q$95,2,FALSE) -> 2 | O89: 0
A90: 24 | B90: St Paul Central | C90: 1321 | F90: 1321 | G90: (B) HENRY MURPHY - [510] | H90: (B) KHANH TRUONG - [492] | I90: (B) TYLER HAYDEN - [319] | J90: () - [0] | L90: 1321 | M90: =VLOOKUP(B90,Divisions!$P$4:$Q$95,2,FALSE) -> 2 | O90: 0
A91: 25 | B91: Highland Park St Paul | C91: 1311 | F91: 1311 | G91: (G) CORALIE JONES - [539] | H91: (B) FRANKLIN MILLER - [468] | I91: (B) COLIN BORGEN - [304] | J91: () - [0] | L91: 1311 | M91: =VLOOKUP(B91,Divisions!$P$4:$Q$95,2,FALSE) -> 2 | O91: 0
A92: 26 | B92: Minnesota Valley Composite | C92: 1306 | F92: 1306 | G92: (B) CARTER BOLSTER - [492] | H92: (B) XAVIER OLSON - [413] | I92: (G) INGRID OLSON - [401] | J92: () - [0] | L92: 1306 | M92: =VLOOKUP(B92,Divisions!$P$4:$Q$95,2,FALSE) -> 2 | O92: 0
A93: 27 | B93: Roseville Area Composite | C93: 1291 | F93: 1291 | G93: (B) BENNETT SCHMALTZ - [342] | H93: (G) ALLISON CLAYDON - [326] | I93: (B) HENRY LOE - [313] | J93: (G) FERN SHAFFNER - [310] | L93: 1291 | M93: =VLOOKUP(B93,Divisions!$P$4:$Q$95,2,FALSE) -> 2 | O93: 0
A94: 28 | B94: Cannon Valley Composite | C94: 1117 | F94: 1117 | G94: (B) BENJAMIN FUNKE - [419] | H94: (B) LEO HERNANDEZ - [364] | I94: (B) DREW PRIBYL - [334] | J94: () - [0] | L94: 1117 | M94: =VLOOKUP(B94,Divisions!$P$4:$Q$95,2,FALSE) -> 2 | O94: 0
A95: 29 | B95: Breck/Blake | C95: 1111 | F95: 1111 | G95: (B) LANDON MAUL - [476] | H95: (G) EMILIA COLIANNI - [350] | I95: (B) OLIVER ENGEL - [285] | J95: () - [0] | L95: 1111 | M95: =VLOOKUP(B95,Divisions!$P$4:$Q$95,2,FALSE) ->  | O95: 0
A96: 30 | B96: Eagan High School | C96: 1017 | F96: 1017 | G96: (B) CALEB LYON - [460] | H96: (B) NICHOLAS MIZIORKO - [286] | I96: (B) GRAHAM ROBERTS - [271] | J96: () - [0] | L96: 1017 | M96: =VLOOKUP(B96,Divisions!$P$4:$Q$95,2,FALSE) -> 2 | O96: 0
A97: 31 | B97: Mahtomedi High School | C97: 1003 | F97: 1003 | G97: (B) PAUL GRZESIK - [419] | H97: (B) MICAH HORSAGER - [326] | I97: (B) HENRY HONMYHR - [258] | J97: () - [0] | L97: 1003 | M97: =VLOOKUP(B97,Divisions!$P$4:$Q$95,2,FALSE) -> 2 | O97: 0
A98: 32 | B98: Chisago Lakes Composite | C98: 982 | F98: 982 | G98: (B) REID HAMLIN - [550] | H98: (B) EDWARD “EJ” NIELSEN - [432] | I98: () - [0] | J98: () - [0] | L98: 982 | M98: =VLOOKUP(B98,Divisions!$P$4:$Q$95,2,FALSE) -> 2 | O98: 0
A99: 33 | B99: Rogers High School | C99: 936 | F99: 936 | G99: (B) MAX KLABUNDE - [529] | H99: (B) WILLIAM PALUMBO - [407] | I99: () - [0] | J99: () - [0] | L99: 936 | M99: =VLOOKUP(B99,Divisions!$P$4:$Q$95,2,FALSE) -> 2 | O99: 0
A100: 34 | B100: Bloomington Composite | C100: 904 | F100: 904 | G100: (G) REGAN ISAAC - [334] | H100: (B) RYLAN MACADAMS - [293] | I100: (B) BEN JONES - [277] | J100: () - [0] | L100: 904 | M100: =VLOOKUP(B100,Divisions!$P$4:$Q$95,2,FALSE) -> 2 | O100: 0
A101: 35 | B101: Rockford Composite | C101: 887 | F101: 887 | G101: (B) JOSIAH CARLSON - [322] | H101: (B) EVERETT SCHOTTMULLER - [287] | I101: (B) ELIJAH WARD - [278] | J101: () - [0] | L101: 887 | M101: =VLOOKUP(B101,Divisions!$P$4:$Q$95,2,FALSE) -> 2 | O101: 0
A102: 36 | B102: Hutchinson High School | C102: 869 | F102: 869 | G102: (B) FRANKLIN RECH - [468] | H102: (G) CYBLI BUSSE - [401] | I102: () - [0] | J102: () - [0] | L102: 869 | M102: =VLOOKUP(B102,Divisions!$P$4:$Q$95,2,FALSE) -> 2 | O102: 0
A103: 37 | B103: Kerkhoven Composite | C103: 865 | F103: 865 | G103: (G) HAILEY SOINE - [307] | H103: (B) MICAH STRICKLAND - [283] | I103: (B) JONNY BENSON - [275] | J103: () - [0] | L103: 865 | M103: =VLOOKUP(B103,Divisions!$P$4:$Q$95,2,FALSE) -> 2 | O103: 0
A104: 38 | B104: Totino Grace High School | C104: 813 | F104: 813 | G104: (B) ALEXANDER MCNAMARA - [439] | H104: (G) ADELE DENTON - [374] | I104: () - [0] | J104: () - [0] | L104: 813 | M104: =VLOOKUP(B104,Divisions!$P$4:$Q$95,2,FALSE) -> 2 | O104: 0
A105: 39 | B105: Rochester Area Composite | C105: 694 | F105: 694 | G105: (G) IRENE PASTOR - [364] | H105: (B) LUKE EAGLE - [330] | I105: () - [0] | J105: () - [0] | L105: 694 | M105: =VLOOKUP(B105,Divisions!$P$4:$Q$95,2,FALSE) -> 2 | O105: 0
A106: 40 | B106: Rochester Mayo | C106: 673 | F106: 673 | G106: (B) ETHAN NELSON - [354] | H106: (B) DEXTER WILLIAMS - [319] | I106: () - [0] | J106: () - [0] | L106: 673 | M106: =VLOOKUP(B106,Divisions!$P$4:$Q$95,2,FALSE) -> 2 | O106: 0
A107: 41 | B107: Benilde St Margaret | C107: 622 | F107: 622 | G107: (B) GERIK NOWLIN - [338] | H107: (B) RYAN LYNCH - [284] | I107: () - [0] | J107: () - [0] | L107: 622 | M107: =VLOOKUP(B107,Divisions!$P$4:$Q$95,2,FALSE) -> 2 | O107: 0
A108: 42 | B108: Osseo | C108: 588 | F108: 588 | G108: (G) SOPHIA BEAUDIN - [313] | H108: (B) OLIVER PILSNER - [275] | I108: () - [0] | J108: () - [0] | L108: 588 | M108: =VLOOKUP(B108,Divisions!$P$4:$Q$95,2,FALSE) -> 2 | O108: 0
A109: 43 | B109: Eastview High School | C109: 539 | F109: 539 | G109: (G) MARGO BREMER - [539] | H109: () - [0] | I109: () - [0] | J109: () - [0] | L109: 539 | M109: =VLOOKUP(B109,Divisions!$P$4:$Q$95,2,FALSE) -> 2 | O109: 0
A110: 44 | B110: Park High School | C110: 453 | F110: 453 | G110: (B) MAVERICK TILLER - [453] | H110: () - [0] | I110: () - [0] | J110: () - [0] | L110: 453 | M110: =VLOOKUP(B110,Divisions!$P$4:$Q$95,2,FALSE) -> 2 | O110: 0
A111: 45 | B111: Rochester John Marshall | C111: 419 | F111: 419 | G111: (B) JACKSON TANK - [419] | H111: () - [0] | I111: () - [0] | J111: () - [0] | L111: 419 | M111: =VLOOKUP(B111,Divisions!$P$4:$Q$95,2,FALSE) -> 2 | O111: 0
A112: 46 | B112: North Dakota Composite | C112: 413 | F112: 413 | G112: (B) DAVID ROBINSON - [413] | H112: () - [0] | I112: () - [0] | J112: () - [0] | L112: 413 | M112: =VLOOKUP(B112,Divisions!$P$4:$Q$95,2,FALSE) -> 2 | O112: 0
A113: 47 | B113: Lakeville South High School | C113: 369 | F113: 369 | G113: (G) EVA GROTENHUIS - [369] | H113: () - [0] | I113: () - [0] | J113: () - [0] | L113: 369 | M113: =VLOOKUP(B113,Divisions!$P$4:$Q$95,2,FALSE) -> 2 | O113: 0
A114: 48 | B114: Minneapolis Southside Composite | C114: 330 | F114: 330 | G114: (G) ISABELLA BERGMAN - [330] | H114: () - [0] | I114: () - [0] | J114: () - [0] | L114: 330 | M114: =VLOOKUP(B114,Divisions!$P$4:$Q$95,2,FALSE) -> 2 | O114: 0
A115: 49 | B115: West Fork | C115: 301 | F115: 301 | G115: (B) JONAH ESPEY - [301] | H115: () - [0] | I115: () - [0] | J115: () - [0] | L115: 301 | M115: =VLOOKUP(B115,Divisions!$P$4:$Q$95,2,FALSE) ->  | O115: 0
A116: 50 | B116: Apple Valley High School | C116: 295 | F116: 295 | G116: (B) HAYDEN HOFF - [295] | H116: () - [0] | I116: () - [0] | J116: () - [0] | L116: 295 | M116: =VLOOKUP(B116,Divisions!$P$4:$Q$95,2,FALSE) -> 2 | O116: 0
A117: 51 | B117: Hermantown-Proctor | C117: 291 | F117: 291 | G117: (B) ALEX HANSON - [291] | H117: () - [0] | I117: () - [0] | J117: () - [0] | L117: 291 | M117: =VLOOKUP(B117,Divisions!$P$4:$Q$95,2,FALSE) -> 2 | O117: 0
A118: 52 | B118: Minneapolis Northside Composite | C118: 280 | F118: 280 | G118: (B) FRANKIE ROQUE - [280] | H118: () - [0] | I118: () - [0] | J118: () - [0] | L118: 280 | M118: =VLOOKUP(B118,Divisions!$P$4:$Q$95,2,FALSE) -> 2 | O118: 0
A119: 53 | B119: Minneapolis South High | C119: 270 | F119: 270 | G119: (B) HENRY HOLDSWORTH - [270] | H119: () - [0] | I119: () - [0] | J119: () - [0] | L119: 270 | M119: =VLOOKUP(B119,Divisions!$P$4:$Q$95,2,FALSE) -> 2 | O119: 0
A120: 54 | B120: Bemidji Composite | C120: 0 | F120: 0 | G120: () - [0] | H120: () - [0] | I120: () - [0] | J120: () - [0] | L120: 0 | M120: =VLOOKUP(B120,Divisions!$P$4:$Q$95,2,FALSE) -> 2 | O120: 0
A121: 55 | B121: Duluth Composite | C121: 0 | F121: 0 | G121: () - [0] | H121: () - [0] | I121: () - [0] | J121: () - [0] | L121: 0 | M121: =VLOOKUP(B121,Divisions!$P$4:$Q$95,2,FALSE) -> 2 | O121: 0
A122: 56 | B122: Irondale High School | C122: 0 | F122: 0 | G122: () - [0] | H122: () - [0] | I122: () - [0] | J122: () - [0] | L122: 0 | M122: =VLOOKUP(B122,Divisions!$P$4:$Q$95,2,FALSE) -> NA2 | O122: 0
A123: 57 | B123: Mankato Composite | C123: 0 | F123: 0 | G123: () - [0] | H123: () - [0] | I123: () - [0] | J123: () - [0] | L123: 0 | M123: =VLOOKUP(B123,Divisions!$P$4:$Q$95,2,FALSE) -> 2 | O123: 0
A124: 58 | B124: Mankato West High School | C124: 0 | F124: 0 | G124: () - [0] | H124: () - [0] | I124: () - [0] | J124: () - [0] | L124: 0 | M124: =VLOOKUP(B124,Divisions!$P$4:$Q$95,2,FALSE) -> 2 | O124: 0
A125: 59 | B125: Minneapolis Henry High School | C125: 0 | F125: 0 | G125: () - [0] | H125: () - [0] | I125: () - [0] | J125: () - [0] | L125: 0 | M125: =VLOOKUP(B125,Divisions!$P$4:$Q$95,2,FALSE) -> 2 | O125: 0
A126: 60 | B126: North Dakota Kindred Composite | C126: 0 | F126: 0 | G126: () - [0] | H126: () - [0] | I126: () - [0] | J126: () - [0] | L126: 0 | M126: =VLOOKUP(B126,Divisions!$P$4:$Q$95,2,FALSE) -> 2 | O126: 0
A127: 61 | B127: Spectrum High School | C127: 0 | F127: 0 | G127: () - [0] | H127: () - [0] | I127: () - [0] | J127: () - [0] | L127: 0 | M127: =VLOOKUP(B127,Divisions!$P$4:$Q$95,2,FALSE) -> 2 | O127: 0

Sheet High School D1
A1: # | B1: TEAM | C1: Score | F1: New Total Score | G1: P1 | H1: P2 | I1: P3 | J1: P4 | K1: P5 | L1: P6 | M1: P7 | N1: P8 | P1: Get Numeric | Q1: DC
A2: 1 | B2: Alexandria Area Youth Cycling | C2: =TeamScore(B2,"H",8,MN_7_REDHEAD!$F$4:$F$1391,MN_7_REDHEAD!$G$4:$G$1391,MN_7_REDHEAD!$C$4:$C$1391) -> 3637 | F2: =TeamScoreWithPlayers($B2,"H",8,MN_7_REDHEAD!$F$4:$F$1391,MN_7_REDHEAD!$E$4:$E$1391,MN_7_REDHEAD!$G$4:$G$1391,MN_7_REDHEAD!$C$4:$C$1391,"TS") -> 3637 | G2: =TeamScoreWithPlayers($B2,"H",8,MN_7_REDHEAD!$F$4:$F$1391,MN_7_REDHEAD!$E$4:$E$1391,MN_7_REDHEAD!$G$4:$G$1391,MN_7_REDHEAD!$C$4:$C$1391,"P1") -> (B) LUKE WALSH - [579] | H2: =TeamScoreWithPlayers($B2,"H",8,MN_7_REDHEAD!$F$4:$F$1391,MN_7_REDHEAD!$E$4:$E$1391,MN_7_REDHEAD!$G$4:$G$1391,MN_7_REDHEAD!$C$4:$C$1391,"P2") -> (G) TIAHNA GOEKE - [532] | I2: =TeamScoreWithPlayers($B2,"H",8,MN_7_REDHEAD!$F$4:$F$1391,MN_7_REDHEAD!$E$4:$E$1391,MN_7_REDHEAD!$G$4:$G$1391,MN_7_REDHEAD!$C$4:$C$1391,"P3") -> (B) PARKER CONVERSE - [529] | J2: =TeamScoreWithPlayers($B2,"H",8,MN_7_REDHEAD!$F$4:$F$1391,MN_7_REDHEAD!$E$4:$E$1391,MN_7_REDHEAD!$G$4:$G$1391,MN_7_REDHEAD!$C$4:$C$1391,"P4") -> (B) SAWYER FILIPIAK - [468] | K2: =TeamScoreWithPlayers($B2,"H",8,MN_7_REDHEAD!$F$4:$F$1391,MN_7_REDHEAD!$E$4:$E$1391,MN_7_REDHEAD!$G$4:$G$1391,MN_7_REDHEAD!$C$4:$C$1391,"P5") -> (B) TYLER SIIRA - [419] | L2: =TeamScoreWithPlayers($B2,"H",8,MN_7_REDHEAD!$F$4:$F$1391,MN_7_REDHEAD!$E$4:$E$1391,MN_7_REDHEAD!$G$4:$G$1391,MN_7_REDHEAD!$C$4:$C$1391,"P6") -> (B) TYLER FATH - [382] | M2: =TeamScoreWithPlayers($B2,"H",8,MN_7_REDHEAD!$F$4:$F$1391,MN_7_REDHEAD!$E$4:$E$1391,MN_7_REDHEAD!$G$4:$G$1391,MN_7_REDHEAD!$C$4:$C$1391,"P7") -> (G) LACEY SIIRA - [369] | N2: =TeamScoreWithPlayers($B2,"H",8,MN_7_REDHEAD!$F$4:$F$1391,MN_7_REDHEAD!$E$4:$E$1391,MN_7_REDHEAD!$G$4:$G$1391,MN_7_REDHEAD!$C$4:$C$1391,"P8") -> (B) SULLIVAN ROONEY - [359] | P2: =getnumeric(G2)+getnumeric(H2)+getnumeric(I2)+getnumeric(J2)+getnumeric(K2)+getnumeric(L2)+getnumeric(M2)+getnumeric(N2) -> 3637 | Q2: 0 | S2: =ABS(C2-F2)+ABS(F2-P2)+ABS(P2-Q2) -> 3637
A3: =+A2+1 -> 2 | B3: Armstrong Cycle | C3: =TeamScore(B3,"H",8,MN_7_REDHEAD!$F$4:$F$1391,MN_7_REDHEAD!$G$4:$G$1391,MN_7_REDHEAD!$C$4:$C$1391) -> 2512 | F3: =TeamScoreWithPlayers($B3,"H",8,MN_7_REDHEAD!$F$4:$F$1391,MN_7_REDHEAD!$E$4:$E$1391,MN_7_REDHEAD!$G$4:$G$1391,MN_7_REDHEAD!$C$4:$C$1391,"TS") -> 2512 | G3: =TeamScoreWithPlayers($B3,"H",8,MN_7_REDHEAD!$F$4:$F$1391,MN_7_REDHEAD!$E$4:$E$1391,MN_7_REDHEAD!$G$4:$G$1391,MN_7_REDHEAD!$C$4:$C$1391,"P1") -> (G) ARYANNA SOMAIAH - [394] | H3: =TeamScoreWithPlayers($B3,"H",8,MN_7_REDHEAD!$F$4:$F$1391,MN_7_REDHEAD!$E$4:$E$1391,MN_7_REDHEAD!$G$4:$G$1391,MN_7_REDHEAD!$C$4:$C$1391,"P2") -> (G) KYRA BEDNARZ - [338] | I3: =TeamScoreWithPlayers($B3,"H",8,MN_7_REDHEAD!$F$4:$F$1391,MN_7_REDHEAD!$E$4:$E$1391,MN_7_REDHEAD!$G$4:$G$1391,MN_7_REDHEAD!$C$4:$C$1391,"P3") -> (B) KEEGAN GHANI - [322] | J3: =TeamScoreWithPlayers($B3,"H",8,MN_7_REDHEAD!$F$4:$F$1391,MN_7_REDHEAD!$E$4:$E$1391,MN_7_REDHEAD!$G$4:$G$1391,MN_7_REDHEAD!$C$4:$C$1391,"P4") -> (G) CASSIDY SKARSTEN - [313] | K3: =TeamScoreWithPlayers($B3,"H",8,MN_7_REDHEAD!$F$4:$F$1391,MN_7_REDHEAD!$E$4:$E$1391,MN_7_REDHEAD!$G$4:$G$1391,MN_7_REDHEAD!$C$4:$C$1391,"P5") -> (B) JUSTIN JOHNSON - [295] | L3: =TeamScoreWithPlayers($B3,"H",8,MN_7_REDHEAD!$F$4:$F$1391,MN_7_REDHEAD!$E$4:$E$1391,MN_7_REDHEAD!$G$4:$G$1391,MN_7_REDHEAD!$C$4:$C$1391,"P6") -> (G) MEGAN SWANSON - [287] | M3: =TeamScoreWithPlayers($B3,"H",8,MN_7_REDHEAD!$F$4:$F$1391,MN_7_REDHEAD!$E$4:$E$1391,MN_7_REDHEAD!$G$4:$G$1391,MN_7_REDHEAD!$C$4:$C$1391,"P7") -> (B) TRISTAN EHN - [283] | N3: =TeamScoreWithPlayers($B3,"H",8,MN_7_REDHEAD!$F$4:$F$1391,MN_7_REDHEAD!$E$4:$E$1391,MN_7_REDHEAD!$G$4:$G$1391,MN_7_REDHEAD!$C$4:$C$1391,"P8") -> (B) KAI HAROLDSON - [280] | P3: 2512 | Q3: 0 | S3: =ABS(C3-F3)+ABS(F3-P3)+ABS(P3-Q3) -> 2512
A4: =+A3+1 -> 3 | B4: Bloomington Jefferson | C4: =TeamScore(B4,"H",8,MN_7_REDHEAD!$F$4:$F$1391,MN_7_REDHEAD!$G$4:$G$1391,MN_7_REDHEAD!$C$4:$C$1391) -> 3951 | F4: =TeamScoreWithPlayers($B4,"H",8,MN_7_REDHEAD!$F$4:$F$1391,MN_7_REDHEAD!$E$4:$E$1391,MN_7_REDHEAD!$G$4:$G$1391,MN_7_REDHEAD!$C$4:$C$1391,"TS") -> 3951 | G4: =TeamScoreWithPlayers($B4,"H",8,MN_7_REDHEAD!$F$4:$F$1391,MN_7_REDHEAD!$E$4:$E$1391,MN_7_REDHEAD!$G$4:$G$1391,MN_7_REDHEAD!$C$4:$C$1391,"P1") -> (B) MAX FAHRMANN - [590] | H4: =TeamScoreWithPlayers($B4,"H",8,MN_7_REDHEAD!$F$4:$F$1391,MN_7_REDHEAD!$E$4:$E$1391,MN_7_REDHEAD!$G$4:$G$1391,MN_7_REDHEAD!$C$4:$C$1391,"P2") -> (G) CAROLINE HAAG - [559] | I4: =TeamScoreWithPlayers($B4,"H",8,MN_7_REDHEAD!$F$4:$F$1391,MN_7_REDHEAD!$E$4:$E$1391,MN_7_REDHEAD!$G$4:$G$1391,MN_7_REDHEAD!$C$4:$C$1391,"P3") -> (G) MEGAN SCHROOTEN - [541] | J4: =TeamScoreWithPlayers($B4,"H",8,MN_7_REDHEAD!$F$4:$F$1391,MN_7_REDHEAD!$E$4:$E$1391,MN_7_REDHEAD!$G$4:$G$1391,MN_7_REDHEAD!$C$4:$C$1391,"P4") -> (B) GAVIN MAYHEW - [528] | K4: =TeamScoreWithPlayers($B4,"H",8,MN_7_REDHEAD!$F$4:$F$1391,MN_7_REDHEAD!$E$4:$E$1391,MN_7_REDHEAD!$G$4:$G$1391,MN_7_REDHEAD!$C$4:$C$1391,"P5") -> (B) NOAH GUINEE - [514] | L4: =TeamScoreWithPlayers($B4,"H",8,MN_7_REDHEAD!$F$4:$F$1391,MN_7_REDHEAD!$E$4:$E$1391,MN_7_REDHEAD!$G$4:$G$1391,MN_7_REDHEAD!$C$4:$C$1391,"P6") -> (B) ETHAN ISHAUG - [472] | M4: =TeamScoreWithPlayers($B4,"H",8,MN_7_REDHEAD!$F$4:$F$1391,MN_7_REDHEAD!$E$4:$E$1391,MN_7_REDHEAD!$G$4:$G$1391,MN_7_REDHEAD!$C$4:$C$1391,"P7") -> (B) MCKEAN PEDERSEN - [425] | N4: =TeamScoreWithPlayers($B4,"H",8,MN_7_REDHEAD!$F$4:$F$1391,MN_7_REDHEAD!$E$4:$E$1391,MN_7_REDHEAD!$G$4:$G$1391,MN_7_REDHEAD!$C$4:$C$1391,"P8") -> (G) OLIVE BURRES - [322] | P4: 3951 | Q4: 0 | S4: 3951
A5: 4 | B5: Brainerd High School | C5: =TeamScore(B5,"H",8,MN_7_REDHEAD!$F$4:$F$1391,MN_7_REDHEAD!$G$4:$G$1391,MN_7_REDHEAD!$C$4:$C$1391) -> 3858 | F5: =TeamScoreWithPlayers($B5,"H",8,MN_7_REDHEAD!$F$4:$F$1391,MN_7_REDHEAD!$E$4:$E$1391,MN_7_REDHEAD!$G$4:$G$1391,MN_7_REDHEAD!$C$4:$C$1391,"TS") -> 3858 | G5: =TeamScoreWithPlayers($B5,"H",8,MN_7_REDHEAD!$F$4:$F$1391,MN_7_REDHEAD!$E$4:$E$1391,MN_7_REDHEAD!$G$4:$G$1391,MN_7_REDHEAD!$C$4:$C$1391,"P1") -> (G) ADDIE RYAN - [576] | H5: =TeamScoreWithPlayers($B5,"H",8,MN_7_REDHEAD!$F$4:$F$1391,MN_7_REDHEAD!$E$4:$E$1391,MN_7_REDHEAD!$G$4:$G$1391,MN_7_REDHEAD!$C$4:$C$1391,"P2") -> (B) WILL THOMES - [559] | I5: =TeamScoreWithPlayers($B5,"H",8,MN_7_REDHEAD!$F$4:$F$1391,MN_7_REDHEAD!$E$4:$E$1391,MN_7_REDHEAD!$G$4:$G$1391,MN_7_REDHEAD!$C$4:$C$1391,"P3") -> (B) HAYDEN HAGEN - [551] | J5: =TeamScoreWithPlayers($B5,"H",8,MN_7_REDHEAD!$F$4:$F$1391,MN_7_REDHEAD!$E$4:$E$1391,MN_7_REDHEAD!$G$4:$G$1391,MN_7_REDHEAD!$C$4:$C$1391,"P4") -> (B) ARRON LOCKWOOD - [476] | K5: =TeamScoreWithPlayers($B5,"H",8,MN_7_REDHEAD!$F$4:$F$1391,MN_7_REDHEAD!$E$4:$E$1391,MN_7_REDHEAD!$G$4:$G$1391,MN_7_REDHEAD!$C$4:$C$1391,"P5") -> (B) BISHOP NOETZEL - [460] | L5: =TeamScoreWithPlayers($B5,"H",8,MN_7_REDHEAD!$F$4:$F$1391,MN_7_REDHEAD!$E$4:$E$1391,MN_7_REDHEAD!$G$4:$G$1391,MN_7_REDHEAD!$C$4:$C$1391,"P6") -> (G) STELLA HAGEN - [424] | M5: =TeamScoreWithPlayers($B5,"H",8,MN_7_REDHEAD!$F$4:$F$1391,MN_7_REDHEAD!$E$4:$E$1391,MN_7_REDHEAD!$G$4:$G$1391,MN_7_REDHEAD!$C$4:$C$1391,"P7") -> (G) ISABELLE SMITH - [407] | N5: =TeamScoreWithPlayers($B5,"H",8,MN_7_REDHEAD!$F$4:$F$1391,MN_7_REDHEAD!$E$4:$E$1391,MN_7_REDHEAD!$G$4:$G$1391,MN_7_REDHEAD!$C$4:$C$1391,"P8") -> (B) PARKER LINN - [405] | P5: 3858 | Q5: 0 | S5: 3858
A6: 5 | B6: Burnsville High School | C6: =TeamScore(B6,"H",8,MN_7_REDHEAD!$F$4:$F$1391,MN_7_REDHEAD!$G$4:$G$1391,MN_7_REDHEAD!$C$4:$C$1391) -> 3528 | F6: =TeamScoreWithPlayers($B6,"H",8,MN_7_REDHEAD!$F$4:$F$1391,MN_7_REDHEAD!$E$4:$E$1391,MN_7_REDHEAD!$G$4:$G$1391,MN_7_REDHEAD!$C$4:$C$1391,"TS") -> 3528 | G6: =TeamScoreWithPlayers($B6,"H",8,MN_7_REDHEAD!$F$4:$F$1391,MN_7_REDHEAD!$E$4:$E$1391,MN_7_REDHEAD!$G$4:$G$1391,MN_7_REDHEAD!$C$4:$C$1391,"P1") -> (G) MAISY SCHEUNEMAN - [543] | H6: =TeamScoreWithPlayers($B6,"H",8,MN_7_REDHEAD!$F$4:$F$1391,MN_7_REDHEAD!$E$4:$E$1391,MN_7_REDHEAD!$G$4:$G$1391,MN_7_REDHEAD!$C$4:$C$1391,"P2") -> (G) OLIVIA TILBURY - [507] | I6: =TeamScoreWithPlayers($B6,"H",8,MN_7_REDHEAD!$F$4:$F$1391,MN_7_REDHEAD!$E$4:$E$1391,MN_7_REDHEAD!$G$4:$G$1391,MN_7_REDHEAD!$C$4:$C$1391,"P3") -> (B) AIDEN NICHOLAS - [470] | J6: =TeamScoreWithPlayers($B6,"H",8,MN_7_REDHEAD!$F$4:$F$1391,MN_7_REDHEAD!$E$4:$E$1391,MN_7_REDHEAD!$G$4:$G$1391,MN_7_REDHEAD!$C$4:$C$1391,"P4") -> (G) ANNELISE METZGER - [432] | K6: =TeamScoreWithPlayers($B6,"H",8,MN_7_REDHEAD!$F$4:$F$1391,MN_7_REDHEAD!$E$4:$E$1391,MN_7_REDHEAD!$G$4:$G$1391,MN_7_REDHEAD!$C$4:$C$1391,"P5") -> (B) WYATT PETERSON - [429] | L6: =TeamScoreWithPlayers($B6,"H",8,MN_7_REDHEAD!$F$4:$F$1391,MN_7_REDHEAD!$E$4:$E$1391,MN_7_REDHEAD!$G$4:$G$1391,MN_7_REDHEAD!$C$4:$C$1391,"P6") -> (B) KADEN BOLDUC - [413] | M6: =TeamScoreWithPlayers($B6,"H",8,MN_7_REDHEAD!$F$4:$F$1391,MN_7_REDHEAD!$E$4:$E$1391,MN_7_REDHEAD!$G$4:$G$1391,MN_7_REDHEAD!$C$4:$C$1391,"P7") -> (B) JOHN GOETTL - [370] | N6: =TeamScoreWithPlayers($B6,"H",8,MN_7_REDHEAD!$F$4:$F$1391,MN_7_REDHEAD!$E$4:$E$1391,MN_7_REDHEAD!$G$4:$G$1391,MN_7_REDHEAD!$C$4:$C$1391,"P8") -> (G) GRETA DICKHAUSEN - [364] | P6: 3528 | Q6: 0 | S6: 3528
A7: 6 | B7: Champlin Park High School | C7: =TeamScore(B7,"H",8,MN_7_REDHEAD!$F$4:$F$1391,MN_7_REDHEAD!$G$4:$G$1391,MN_7_REDHEAD!$C$4:$C$1391) -> 2248 | F7: =TeamScoreWithPlayers($B7,"H",8,MN_7_REDHEAD!$F$4:$F$1391,MN_7_REDHEAD!$E$4:$E$1391,MN_7_REDHEAD!$G$4:$G$1391,MN_7_REDHEAD!$C$4:$C$1391,"TS") -> 2248 | G7: =TeamScoreWithPlayers($B7,"H",8,MN_7_REDHEAD!$F$4:$F$1391,MN_7_REDHEAD!$E$4:$E$1391,MN_7_REDHEAD!$G$4:$G$1391,MN_7_REDHEAD!$C$4:$C$1391,"P1") -> (G) MARLIE RIETSCHEL - [419] | H7: =TeamScoreWithPlayers($B7,"H",8,MN_7_REDHEAD!$F$4:$F$1391,MN_7_REDHEAD!$E$4:$E$1391,MN_7_REDHEAD!$G$4:$G$1391,MN_7_REDHEAD!$C$4:$C$1391,"P2") -> (B) DANE PAUL - [350] | I7: =TeamScoreWithPlayers($B7,"H",8,MN_7_REDHEAD!$F$4:$F$1391,MN_7_REDHEAD!$E$4:$E$1391,MN_7_REDHEAD!$G$4:$G$1391,MN_7_REDHEAD!$C$4:$C$1391,"P3") -> (B) CARSON ANDERSON - [346] | J7: =TeamScoreWithPlayers($B7,"H",8,MN_7_REDHEAD!$F$4:$F$1391,MN_7_REDHEAD!$E$4:$E$1391,MN_7_REDHEAD!$G$4:$G$1391,MN_7_REDHEAD!$C$4:$C$1391,"P4") -> (B) TREVOR EMERY - [293] | K7: =TeamScoreWithPlayers($B7,"H",8,MN_7_REDHEAD!$F$4:$F$1391,MN_7_REDHEAD!$E$4:$E$1391,MN_7_REDHEAD!$G$4:$G$1391,MN_7_REDHEAD!$C$4:$C$1391,"P5") -> (B) COOPER HIGGINS - [289] | L7: =TeamScoreWithPlayers($B7,"H",8,MN_7_REDHEAD!$F$4:$F$1391,MN_7_REDHEAD!$E$4:$E$1391,MN_7_REDHEAD!$G$4:$G$1391,MN_7_REDHEAD!$C$4:$C$1391,"P6") -> (B) GAVIN JOHNSON - [276] | M7: =TeamScoreWithPlayers($B7,"H",8,MN_7_REDHEAD!$F$4:$F$1391,MN_7_REDHEAD!$E$4:$E$1391,MN_7_REDHEAD!$G$4:$G$1391,MN_7_REDHEAD!$C$4:$C$1391,"P7") -> (B) CHARLIE BLOCK - [275] | N7: =TeamScoreWithPlayers($B7,"H",8,MN_7_REDHEAD!$F$4:$F$1391,MN_7_REDHEAD!$E$4:$E$1391,MN_7_REDHEAD!$G$4:$G$1391,MN_7_REDHEAD!$C$4:$C$1391,"P8") -> () - [0] | P7: 2248 | Q7: 0 | S7: 2248
A8: 7 | B8: Chanhassen High School | C8: =TeamScore(B8,"H",8,MN_7_REDHEAD!$F$4:$F$1391,MN_7_REDHEAD!$G$4:$G$1391,MN_7_REDHEAD!$C$4:$C$1391) -> 1781 | F8: =TeamScoreWithPlayers($B8,"H",8,MN_7_REDHEAD!$F$4:$F$1391,MN_7_REDHEAD!$E$4:$E$1391,MN_7_REDHEAD!$G$4:$G$1391,MN_7_REDHEAD!$C$4:$C$1391,"TS") -> 1781 | G8: =TeamScoreWithPlayers($B8,"H",8,MN_7_REDHEAD!$F$4:$F$1391,MN_7_REDHEAD!$E$4:$E$1391,MN_7_REDHEAD!$G$4:$G$1391,MN_7_REDHEAD!$C$4:$C$1391,"P1") -> (G) ZOE ANDERSON - [419] | H8: =TeamScoreWithPlayers($B8,"H",8,MN_7_REDHEAD!$F$4:$F$1391,MN_7_REDHEAD!$E$4:$E$1391,MN_7_REDHEAD!$G$4:$G$1391,MN_7_REDHEAD!$C$4:$C$1391,"P2") -> (B) SETH KENNEDY - [376] | I8: =TeamScoreWithPlayers($B8,"H",8,MN_7_REDHEAD!$F$4:$F$1391,MN_7_REDHEAD!$E$4:$E$1391,MN_7_REDHEAD!$G$4:$G$1391,MN_7_REDHEAD!$C$4:$C$1391,"P3") -> (B) CHARLES EVANGELISTA - [298] | J8: =TeamScoreWithPlayers($B8,"H",8,MN_7_REDHEAD!$F$4:$F$1391,MN_7_REDHEAD!$E$4:$E$1391,MN_7_REDHEAD!$G$4:$G$1391,MN_7_REDHEAD!$C$4:$C$1391,"P4") -> (B) AYDEN FERREL - [258] | K8: =TeamScoreWithPlayers($B8,"H",8,MN_7_REDHEAD!$F$4:$F$1391,MN_7_REDHEAD!$E$4:$E$1391,MN_7_REDHEAD!$G$4:$G$1391,MN_7_REDHEAD!$C$4:$C$1391,"P5") -> (B) MICAH SCHMIDT - [237] | L8: =TeamScoreWithPlayers($B8,"H",8,MN_7_REDHEAD!$F$4:$F$1391,MN_7_REDHEAD!$E$4:$E$1391,MN_7_REDHEAD!$G$4:$G$1391,MN_7_REDHEAD!$C$4:$C$1391,"P6") -> (B) CHARLIE WENNERSTROM - [193] | M8: =TeamScoreWithPlayers($B8,"H",8,MN_7_REDHEAD!$F$4:$F$1391,MN_7_REDHEAD!$E$4:$E$1391,MN_7_REDHEAD!$G$4:$G$1391,MN_7_REDHEAD!$C$4:$C$1391,"P7") -> () - [0] | N8: =TeamScoreWithPlayers($B8,"H",8,MN_7_REDHEAD!$F$4:$F$1391,MN_7_REDHEAD!$E$4:$E$1391,MN_7_REDHEAD!$G$4:$G$1391,MN_7_REDHEAD!$C$4:$C$1391,"P8") -> () - [0] | P8: 1781 | Q8: 0 | S8: 1781
A9: 8 | B9: Chaska High School | C9: =TeamScore(B9,"H",8,MN_7_REDHEAD!$F$4:$F$1391,MN_7_REDHEAD!$G$4:$G$1391,MN_7_REDHEAD!$C$4:$C$1391) -> 2523 | F9: =TeamScoreWithPlayers($B9,"H",8,MN_7_REDHEAD!$F$4:$F$1391,MN_7_REDHEAD!$E$4:$E$1391,MN_7_REDHEAD!$G$4:$G$1391,MN_7_REDHEAD!$C$4:$C$1391,"TS") -> 2523 | G9: =TeamScoreWithPlayers($B9,"H",8,MN_7_REDHEAD!$F$4:$F$1391,MN_7_REDHEAD!$E$4:$E$1391,MN_7_REDHEAD!$G$4:$G$1391,MN_7_REDHEAD!$C$4:$C$1391,"P1") -> (G) GRACE ATTERSON - [521] | H9: =TeamScoreWithPlayers($B9,"H",8,MN_7_REDHEAD!$F$4:$F$1391,MN_7_REDHEAD!$E$4:$E$1391,MN_7_REDHEAD!$G$4:$G$1391,MN_7_REDHEAD!$C$4:$C$1391,"P2") -> (B) GRANT ATTERSON - [519] | I9: =TeamScoreWithPlayers($B9,"H",8,MN_7_REDHEAD!$F$4:$F$1391,MN_7_REDHEAD!$E$4:$E$1391,MN_7_REDHEAD!$G$4:$G$1391,MN_7_REDHEAD!$C$4:$C$1391,"P3") -> (B) XAVIER DEMARRE - [319] | J9: =TeamScoreWithPlayers($B9,"H",8,MN_7_REDHEAD!$F$4:$F$1391,MN_7_REDHEAD!$E$4:$E$1391,MN_7_REDHEAD!$G$4:$G$1391,MN_7_REDHEAD!$C$4:$C$1391,"P4") -> (B) NATHAN OMAN - [307] | K9: =TeamScoreWithPlayers($B9,"H",8,MN_7_REDHEAD!$F$4:$F$1391,MN_7_REDHEAD!$E$4:$E$1391,MN_7_REDHEAD!$G$4:$G$1391,MN_7_REDHEAD!$C$4:$C$1391,"P5") -> (B) DYLAN HENDERSON - [302] | L9: =TeamScoreWithPlayers($B9,"H",8,MN_7_REDHEAD!$F$4:$F$1391,MN_7_REDHEAD!$E$4:$E$1391,MN_7_REDHEAD!$G$4:$G$1391,MN_7_REDHEAD!$C$4:$C$1391,"P6") -> (B) EVAN REINSCH - [281] | M9: =TeamScoreWithPlayers($B9,"H",8,MN_7_REDHEAD!$F$4:$F$1391,MN_7_REDHEAD!$E$4:$E$1391,MN_7_REDHEAD!$G$4:$G$1391,MN_7_REDHEAD!$C$4:$C$1391,"P7") -> (B) GRANT KERFOOT - [274] | N9: =TeamScoreWithPlayers($B9,"H",8,MN_7_REDHEAD!$F$4:$F$1391,MN_7_REDHEAD!$E$4:$E$1391,MN_7_REDHEAD!$G$4:$G$1391,MN_7_REDHEAD!$C$4:$C$1391,"P8") -> () - [0] | P9: 2523 | Q9: 0 | S9: 2523
A10: 9 | B10: Cloquet-Esko-Carlton | C10: =TeamScore(B10,"H",8,MN_7_REDHEAD!$F$4:$F$1391,MN_7_REDHEAD!$G$4:$G$1391,MN_7_REDHEAD!$C$4:$C$1391) -> 3943 | F10: =TeamScoreWithPlayers($B10,"H",8,MN_7_REDHEAD!$F$4:$F$1391,MN_7_REDHEAD!$E$4:$E$1391,MN_7_REDHEAD!$G$4:$G$1391,MN_7_REDHEAD!$C$4:$C$1391,"TS") -> 3943 | G10: =TeamScoreWithPlayers($B10,"H",8,MN_7_REDHEAD!$F$4:$F$1391,MN_7_REDHEAD!$E$4:$E$1391,MN_7_REDHEAD!$G$4:$G$1391,MN_7_REDHEAD!$C$4:$C$1391,"P1") -> (G) LAYLA HAGELIN - [585] | H10: =TeamScoreWithPlayers($B10,"H",8,MN_7_REDHEAD!$F$4:$F$1391,MN_7_REDHEAD!$E$4:$E$1391,MN_7_REDHEAD!$G$4:$G$1391,MN_7_REDHEAD!$C$4:$C$1391,"P2") -> (B) EVAN ERSPAMER - [543] | I10: =TeamScoreWithPlayers($B10,"H",8,MN_7_REDHEAD!$F$4:$F$1391,MN_7_REDHEAD!$E$4:$E$1391,MN_7_REDHEAD!$G$4:$G$1391,MN_7_REDHEAD!$C$4:$C$1391,"P3") -> (B) ETHAN LINDGREN - [524] | J10: =TeamScoreWithPlayers($B10,"H",8,MN_7_REDHEAD!$F$4:$F$1391,MN_7_REDHEAD!$E$4:$E$1391,MN_7_REDHEAD!$G$4:$G$1391,MN_7_REDHEAD!$C$4:$C$1391,"P4") -> (G) ASPEN BERG - [492] | K10: =TeamScoreWithPlayers($B10,"H",8,MN_7_REDHEAD!$F$4:$F$1391,MN_7_REDHEAD!$E$4:$E$1391,MN_7_REDHEAD!$G$4:$G$1391,MN_7_REDHEAD!$C$4:$C$1391,"P5") -> (B) MAX FOSTER - [465] | L10: =TeamScoreWithPlayers($B10,"H",8,MN_7_REDHEAD!$F$4:$F$1391,MN_7_REDHEAD!$E$4:$E$1391,MN_7_REDHEAD!$G$4:$G$1391,MN_7_REDHEAD!$C$4:$C$1391,"P6") -> (B) JORDAN CHOPSKIE - [454] | M10: =TeamScoreWithPlayers($B10,"H",8,MN_7_REDHEAD!$F$4:$F$1391,MN_7_REDHEAD!$E$4:$E$1391,MN_7_REDHEAD!$G$4:$G$1391,MN_7_REDHEAD!$C$4:$C$1391,"P7") -> (B) KAYLOR ADKINS - [441] | N10: =TeamScoreWithPlayers($B10,"H",8,MN_7_REDHEAD!$F$4:$F$1391,MN_7_REDHEAD!$E$4:$E$1391,MN_7_REDHEAD!$G$4:$G$1391,MN_7_REDHEAD!$C$4:$C$1391,"P8") -> (G) ASHLEY SCHULTZ - [439] | P10: 3943 | Q10: 0 | S10: 3943
A11: 10 | B11: Crosby-Ironton High School | C11: =TeamScore(B11,"H",8,MN_7_REDHEAD!$F$4:$F$1391,MN_7_REDHEAD!$G$4:$G$1391,MN_7_REDHEAD!$C$4:$C$1391) -> 3170 | F11: =TeamScoreWithPlayers($B11,"H",8,MN_7_REDHEAD!$F$4:$F$1391,MN_7_REDHEAD!$E$4:$E$1391,MN_7_REDHEAD!$G$4:$G$1391,MN_7_REDHEAD!$C$4:$C$1391,"TS") -> 3170 | G11: =TeamScoreWithPlayers($B11,"H",8,MN_7_REDHEAD!$F$4:$F$1391,MN_7_REDHEAD!$E$4:$E$1391,MN_7_REDHEAD!$G$4:$G$1391,MN_7_REDHEAD!$C$4:$C$1391,"P1") -> (G) AVA JOHNSON - [519] | H11: =TeamScoreWithPlayers($B11,"H",8,MN_7_REDHEAD!$F$4:$F$1391,MN_7_REDHEAD!$E$4:$E$1391,MN_7_REDHEAD!$G$4:$G$1391,MN_7_REDHEAD!$C$4:$C$1391,"P2") -> (B) OSKAR NELSON - [501] | I11: =TeamScoreWithPlayers($B11,"H",8,MN_7_REDHEAD!$F$4:$F$1391,MN_7_REDHEAD!$E$4:$E$1391,MN_7_REDHEAD!$G$4:$G$1391,MN_7_REDHEAD!$C$4:$C$1391,"P3") -> (B) FINN NELSON - [476] | J11: =TeamScoreWithPlayers($B11,"H",8,MN_7_REDHEAD!$F$4:$F$1391,MN_7_REDHEAD!$E$4:$E$1391,MN_7_REDHEAD!$G$4:$G$1391,MN_7_REDHEAD!$C$4:$C$1391,"P4") -> (B) SAMUEL COUGHLIN - [447] | K11: =TeamScoreWithPlayers($B11,"H",8,MN_7_REDHEAD!$F$4:$F$1391,MN_7_REDHEAD!$E$4:$E$1391,MN_7_REDHEAD!$G$4:$G$1391,MN_7_REDHEAD!$C$4:$C$1391,"P5") -> (B) COOPER CRAINE - [432] | L11: =TeamScoreWithPlayers($B11,"H",8,MN_7_REDHEAD!$F$4:$F$1391,MN_7_REDHEAD!$E$4:$E$1391,MN_7_REDHEAD!$G$4:$G$1391,MN_7_REDHEAD!$C$4:$C$1391,"P6") -> (B) OLIVER TOFTNESS - [404] | M11: =TeamScoreWithPlayers($B11,"H",8,MN_7_REDHEAD!$F$4:$F$1391,MN_7_REDHEAD!$E$4:$E$1391,MN_7_REDHEAD!$G$4:$G$1391,MN_7_REDHEAD!$C$4:$C$1391,"P7") -> (B) BRADLEY HACHEY - [391] | N11: =TeamScoreWithPlayers($B11,"H",8,MN_7_REDHEAD!$F$4:$F$1391,MN_7_REDHEAD!$E$4:$E$1391,MN_7_REDHEAD!$G$4:$G$1391,MN_7_REDHEAD!$C$4:$C$1391,"P8") -> () - [0] | P11: 3170 | Q11: 0 | S11: 3170
A12: 11 | B12: Duluth East High School | C12: =TeamScore(B12,"H",8,MN_7_REDHEAD!$F$4:$F$1391,MN_7_REDHEAD!$G$4:$G$1391,MN_7_REDHEAD!$C$4:$C$1391) -> 4189 | F12: =TeamScoreWithPlayers($B12,"H",8,MN_7_REDHEAD!$F$4:$F$1391,MN_7_REDHEAD!$E$4:$E$1391,MN_7_REDHEAD!$G$4:$G$1391,MN_7_REDHEAD!$C$4:$C$1391,"TS") -> 4189 | G12: =TeamScoreWithPlayers($B12,"H",8,MN_7_REDHEAD!$F$4:$F$1391,MN_7_REDHEAD!$E$4:$E$1391,MN_7_REDHEAD!$G$4:$G$1391,MN_7_REDHEAD!$C$4:$C$1391,"P1") -> (G) LEAH COLEMAN - [594] | H12: =TeamScoreWithPlayers($B12,"H",8,MN_7_REDHEAD!$F$4:$F$1391,MN_7_REDHEAD!$E$4:$E$1391,MN_7_REDHEAD!$G$4:$G$1391,MN_7_REDHEAD!$C$4:$C$1391,"P2") -> (G) PHOEBE LEEGE - [590] | I12: =TeamScoreWithPlayers($B12,"H",8,MN_7_REDHEAD!$F$4:$F$1391,MN_7_REDHEAD!$E$4:$E$1391,MN_7_REDHEAD!$G$4:$G$1391,MN_7_REDHEAD!$C$4:$C$1391,"P3") -> (G) THEA KRAMER - [567] | J12: =TeamScoreWithPlayers($B12,"H",8,MN_7_REDHEAD!$F$4:$F$1391,MN_7_REDHEAD!$E$4:$E$1391,MN_7_REDHEAD!$G$4:$G$1391,MN_7_REDHEAD!$C$4:$C$1391,"P4") -> (G) JOSEPHINE RYAN - [539] | K12: =TeamScoreWithPlayers($B12,"H",8,MN_7_REDHEAD!$F$4:$F$1391,MN_7_REDHEAD!$E$4:$E$1391,MN_7_REDHEAD!$G$4:$G$1391,MN_7_REDHEAD!$C$4:$C$1391,"P5") -> (G) COURTNEY HISLOP - [508] | L12: =TeamScoreWithPlayers($B12,"H",8,MN_7_REDHEAD!$F$4:$F$1391,MN_7_REDHEAD!$E$4:$E$1391,MN_7_REDHEAD!$G$4:$G$1391,MN_7_REDHEAD!$C$4:$C$1391,"P6") -> (G) CHARLI WORCESTER - [500] | M12: =TeamScoreWithPlayers($B12,"H",8,MN_7_REDHEAD!$F$4:$F$1391,MN_7_REDHEAD!$E$4:$E$1391,MN_7_REDHEAD!$G$4:$G$1391,MN_7_REDHEAD!$C$4:$C$1391,"P7") -> (B) CARL MORSE - [482] | N12: =TeamScoreWithPlayers($B12,"H",8,MN_7_REDHEAD!$F$4:$F$1391,MN_7_REDHEAD!$E$4:$E$1391,MN_7_REDHEAD!$G$4:$G$1391,MN_7_REDHEAD!$C$4:$C$1391,"P8") -> (B) RYE TRUITT - [409] | P12: 4189 | Q12: 0 | S12: 4189
A13: 12 | B13: East Ridge High School | C13: =TeamScore(B13,"H",8,MN_7_REDHEAD!$F$4:$F$1391,MN_7_REDHEAD!$G$4:$G$1391,MN_7_REDHEAD!$C$4:$C$1391) -> 3294 | F13: =TeamScoreWithPlayers($B13,"H",8,MN_7_REDHEAD!$F$4:$F$1391,MN_7_REDHEAD!$E$4:$E$1391,MN_7_REDHEAD!$G$4:$G$1391,MN_7_REDHEAD!$C$4:$C$1391,"TS") -> 3294 | G13: =TeamScoreWithPlayers($B13,"H",8,MN_7_REDHEAD!$F$4:$F$1391,MN_7_REDHEAD!$E$4:$E$1391,MN_7_REDHEAD!$G$4:$G$1391,MN_7_REDHEAD!$C$4:$C$1391,"P1") -> (B) ERIC OIEN - [550] | H13: =TeamScoreWithPlayers($B13,"H",8,MN_7_REDHEAD!$F$4:$F$1391,MN_7_REDHEAD!$E$4:$E$1391,MN_7_REDHEAD!$G$4:$G$1391,MN_7_REDHEAD!$C$4:$C$1391,"P2") -> (G) CLARA LANG - [476] | I13: =TeamScoreWithPlayers($B13,"H",8,MN_7_REDHEAD!$F$4:$F$1391,MN_7_REDHEAD!$E$4:$E$1391,MN_7_REDHEAD!$G$4:$G$1391,MN_7_REDHEAD!$C$4:$C$1391,"P3") -> (B) IBAN DREVLOW - [453] | J13: =TeamScoreWithPlayers($B13,"H",8,MN_7_REDHEAD!$F$4:$F$1391,MN_7_REDHEAD!$E$4:$E$1391,MN_7_REDHEAD!$G$4:$G$1391,MN_7_REDHEAD!$C$4:$C$1391,"P4") -> (B) POYRAZ OLGUN - [453] | K13: =TeamScoreWithPlayers($B13,"H",8,MN_7_REDHEAD!$F$4:$F$1391,MN_7_REDHEAD!$E$4:$E$1391,MN_7_REDHEAD!$G$4:$G$1391,MN_7_REDHEAD!$C$4:$C$1391,"P5") -> (G) ELIN HARRISON - [378] | L13: =TeamScoreWithPlayers($B13,"H",8,MN_7_REDHEAD!$F$4:$F$1391,MN_7_REDHEAD!$E$4:$E$1391,MN_7_REDHEAD!$G$4:$G$1391,MN_7_REDHEAD!$C$4:$C$1391,"P6") -> (G) ERIKA HARRISON - [370] | M13: =TeamScoreWithPlayers($B13,"H",8,MN_7_REDHEAD!$F$4:$F$1391,MN_7_REDHEAD!$E$4:$E$1391,MN_7_REDHEAD!$G$4:$G$1391,MN_7_REDHEAD!$C$4:$C$1391,"P7") -> (B) JENS KULLMAN - [342] | N13: =TeamScoreWithPlayers($B13,"H",8,MN_7_REDHEAD!$F$4:$F$1391,MN_7_REDHEAD!$E$4:$E$1391,MN_7_REDHEAD!$G$4:$G$1391,MN_7_REDHEAD!$C$4:$C$1391,"P8") -> (B) CRISTOBAL OSSANNA - [272] | P13: 3294 | Q13: 0 | S13: 3294
A14: 13 | B14: Edina Cycling | C14: =TeamScore(B14,"H",8,MN_7_REDHEAD!$F$4:$F$1391,MN_7_REDHEAD!$G$4:$G$1391,MN_7_REDHEAD!$C$4:$C$1391) -> 4008 | F14: =TeamScoreWithPlayers($B14,"H",8,MN_7_REDHEAD!$F$4:$F$1391,MN_7_REDHEAD!$E$4:$E$1391,MN_7_REDHEAD!$G$4:$G$1391,MN_7_REDHEAD!$C$4:$C$1391,"TS") -> 4008 | G14: =TeamScoreWithPlayers($B14,"H",8,MN_7_REDHEAD!$F$4:$F$1391,MN_7_REDHEAD!$E$4:$E$1391,MN_7_REDHEAD!$G$4:$G$1391,MN_7_REDHEAD!$C$4:$C$1391,"P1") -> (G) ELIN HARTMANN - [625] | H14: =TeamScoreWithPlayers($B14,"H",8,MN_7_REDHEAD!$F$4:$F$1391,MN_7_REDHEAD!$E$4:$E$1391,MN_7_REDHEAD!$G$4:$G$1391,MN_7_REDHEAD!$C$4:$C$1391,"P2") -> (G) ISABELLA MAZION - [604] | I14: =TeamScoreWithPlayers($B14,"H",8,MN_7_REDHEAD!$F$4:$F$1391,MN_7_REDHEAD!$E$4:$E$1391,MN_7_REDHEAD!$G$4:$G$1391,MN_7_REDHEAD!$C$4:$C$1391,"P3") -> (B) ISAAC BELL - [541] | J14: =TeamScoreWithPlayers($B14,"H",8,MN_7_REDHEAD!$F$4:$F$1391,MN_7_REDHEAD!$E$4:$E$1391,MN_7_REDHEAD!$G$4:$G$1391,MN_7_REDHEAD!$C$4:$C$1391,"P4") -> (B) LIAM GARNER - [493] | K14: =TeamScoreWithPlayers($B14,"H",8,MN_7_REDHEAD!$F$4:$F$1391,MN_7_REDHEAD!$E$4:$E$1391,MN_7_REDHEAD!$G$4:$G$1391,MN_7_REDHEAD!$C$4:$C$1391,"P5") -> (B) COOPER AUSTIN - [492] | L14: =TeamScoreWithPlayers($B14,"H",8,MN_7_REDHEAD!$F$4:$F$1391,MN_7_REDHEAD!$E$4:$E$1391,MN_7_REDHEAD!$G$4:$G$1391,MN_7_REDHEAD!$C$4:$C$1391,"P6") -> (B) GRIFFIN NELSON - [476] | M14: =TeamScoreWithPlayers($B14,"H",8,MN_7_REDHEAD!$F$4:$F$1391,MN_7_REDHEAD!$E$4:$E$1391,MN_7_REDHEAD!$G$4:$G$1391,MN_7_REDHEAD!$C$4:$C$1391,"P7") -> (B) GEORGE SILL - [407] | N14: =TeamScoreWithPlayers($B14,"H",8,MN_7_REDHEAD!$F$4:$F$1391,MN_7_REDHEAD!$E$4:$E$1391,MN_7_REDHEAD!$G$4:$G$1391,MN_7_REDHEAD!$C$4:$C$1391,"P8") -> (B) ANDREW HARTMANN - [370] | P14: 4008 | Q14: 0 | S14: 4008
A15: 14 | B15: Hopkins High School | C15: =TeamScore(B15,"H",8,MN_7_REDHEAD!$F$4:$F$1391,MN_7_REDHEAD!$G$4:$G$1391,MN_7_REDHEAD!$C$4:$C$1391) -> 4108 | F15: =TeamScoreWithPlayers($B15,"H",8,MN_7_REDHEAD!$F$4:$F$1391,MN_7_REDHEAD!$E$4:$E$1391,MN_7_REDHEAD!$G$4:$G$1391,MN_7_REDHEAD!$C$4:$C$1391,"TS") -> 4108 | G15: =TeamScoreWithPlayers($B15,"H",8,MN_7_REDHEAD!$F$4:$F$1391,MN_7_REDHEAD!$E$4:$E$1391,MN_7_REDHEAD!$G$4:$G$1391,MN_7_REDHEAD!$C$4:$C$1391,"P1") -> (G) COURTNEY WEBER - [550] | H15: =TeamScoreWithPlayers($B15,"H",8,MN_7_REDHEAD!$F$4:$F$1391,MN_7_REDHEAD!$E$4:$E$1391,MN_7_REDHEAD!$G$4:$G$1391,MN_7_REDHEAD!$C$4:$C$1391,"P2") -> (G) ISABELLE MAYER - [539] | I15: =TeamScoreWithPlayers($B15,"H",8,MN_7_REDHEAD!$F$4:$F$1391,MN_7_REDHEAD!$E$4:$E$1391,MN_7_REDHEAD!$G$4:$G$1391,MN_7_REDHEAD!$C$4:$C$1391,"P3") -> (B) RAVONTE KRIEGLER - [529] | J15: =TeamScoreWithPlayers($B15,"H",8,MN_7_REDHEAD!$F$4:$F$1391,MN_7_REDHEAD!$E$4:$E$1391,MN_7_REDHEAD!$G$4:$G$1391,MN_7_REDHEAD!$C$4:$C$1391,"P4") -> (G) STELLA HUSETH - [519] | K15: =TeamScoreWithPlayers($B15,"H",8,MN_7_REDHEAD!$F$4:$F$1391,MN_7_REDHEAD!$E$4:$E$1391,MN_7_REDHEAD!$G$4:$G$1391,MN_7_REDHEAD!$C$4:$C$1391,"P5") -> (G) HAYDEN MIELKE - [510] | L15: =TeamScoreWithPlayers($B15,"H",8,MN_7_REDHEAD!$F$4:$F$1391,MN_7_REDHEAD!$E$4:$E$1391,MN_7_REDHEAD!$G$4:$G$1391,MN_7_REDHEAD!$C$4:$C$1391,"P6") -> (B) SILAS JOHNSON - [510] | M15: =TeamScoreWithPlayers($B15,"H",8,MN_7_REDHEAD!$F$4:$F$1391,MN_7_REDHEAD!$E$4:$E$1391,MN_7_REDHEAD!$G$4:$G$1391,MN_7_REDHEAD!$C$4:$C$1391,"P7") -> (B) TRISTAN SMITH - [492] | N15: =TeamScoreWithPlayers($B15,"H",8,MN_7_REDHEAD!$F$4:$F$1391,MN_7_REDHEAD!$E$4:$E$1391,MN_7_REDHEAD!$G$4:$G$1391,MN_7_REDHEAD!$C$4:$C$1391,"P8") -> (B) OSCAR TIX - [459] | P15: 4108 | Q15: 0 | S15: 4108
A16: 15 | B16: Lakeville North High School | C16: =TeamScore(B16,"H",8,MN_7_REDHEAD!$F$4:$F$1391,MN_7_REDHEAD!$G$4:$G$1391,MN_7_REDHEAD!$C$4:$C$1391) -> 2925 | F16: =TeamScoreWithPlayers($B16,"H",8,MN_7_REDHEAD!$F$4:$F$1391,MN_7_REDHEAD!$E$4:$E$1391,MN_7_REDHEAD!$G$4:$G$1391,MN_7_REDHEAD!$C$4:$C$1391,"TS") -> 2925 | G16: =TeamScoreWithPlayers($B16,"H",8,MN_7_REDHEAD!$F$4:$F$1391,MN_7_REDHEAD!$E$4:$E$1391,MN_7_REDHEAD!$G$4:$G$1391,MN_7_REDHEAD!$C$4:$C$1391,"P1") -> (B) ROWAN HALL - [567] | H16: =TeamScoreWithPlayers($B16,"H",8,MN_7_REDHEAD!$F$4:$F$1391,MN_7_REDHEAD!$E$4:$E$1391,MN_7_REDHEAD!$G$4:$G$1391,MN_7_REDHEAD!$C$4:$C$1391,"P2") -> (B) EDWARD BROOKHART - [501] | I16: =TeamScoreWithPlayers($B16,"H",8,MN_7_REDHEAD!$F$4:$F$1391,MN_7_REDHEAD!$E$4:$E$1391,MN_7_REDHEAD!$G$4:$G$1391,MN_7_REDHEAD!$C$4:$C$1391,"P3") -> (B) JACK JUFFER - [460] | J16: =TeamScoreWithPlayers($B16,"H",8,MN_7_REDHEAD!$F$4:$F$1391,MN_7_REDHEAD!$E$4:$E$1391,MN_7_REDHEAD!$G$4:$G$1391,MN_7_REDHEAD!$C$4:$C$1391,"P4") -> (B) CARSON HALL - [425] | K16: =TeamScoreWithPlayers($B16,"H",8,MN_7_REDHEAD!$F$4:$F$1391,MN_7_REDHEAD!$E$4:$E$1391,MN_7_REDHEAD!$G$4:$G$1391,MN_7_REDHEAD!$C$4:$C$1391,"P5") -> (B) HAYDEN ZOLL - [373] | L16: =TeamScoreWithPlayers($B16,"H",8,MN_7_REDHEAD!$F$4:$F$1391,MN_7_REDHEAD!$E$4:$E$1391,MN_7_REDHEAD!$G$4:$G$1391,MN_7_REDHEAD!$C$4:$C$1391,"P6") -> (G) SOPHIA PEDERSEN - [307] | M16: =TeamScoreWithPlayers($B16,"H",8,MN_7_REDHEAD!$F$4:$F$1391,MN_7_REDHEAD!$E$4:$E$1391,MN_7_REDHEAD!$G$4:$G$1391,MN_7_REDHEAD!$C$4:$C$1391,"P7") -> (B) KAMERON JAENICKE - [292] | N16: =TeamScoreWithPlayers($B16,"H",8,MN_7_REDHEAD!$F$4:$F$1391,MN_7_REDHEAD!$E$4:$E$1391,MN_7_REDHEAD!$G$4:$G$1391,MN_7_REDHEAD!$C$4:$C$1391,"P8") -> () - [0] | P16: 2925 | Q16: 0 | S16: 2925
A17: 16 | B17: Minneapolis Southwest | C17: =TeamScore(B17,"H",8,MN_7_REDHEAD!$F$4:$F$1391,MN_7_REDHEAD!$G$4:$G$1391,MN_7_REDHEAD!$C$4:$C$1391) -> 3122 | F17: =TeamScoreWithPlayers($B17,"H",8,MN_7_REDHEAD!$F$4:$F$1391,MN_7_REDHEAD!$E$4:$E$1391,MN_7_REDHEAD!$G$4:$G$1391,MN_7_REDHEAD!$C$4:$C$1391,"TS") -> 3122 | G17: =TeamScoreWithPlayers($B17,"H",8,MN_7_REDHEAD!$F$4:$F$1391,MN_7_REDHEAD!$E$4:$E$1391,MN_7_REDHEAD!$G$4:$G$1391,MN_7_REDHEAD!$C$4:$C$1391,"P1") -> (B) KADIN BLACK - [532] | H17: =TeamScoreWithPlayers($B17,"H",8,MN_7_REDHEAD!$F$4:$F$1391,MN_7_REDHEAD!$E$4:$E$1391,MN_7_REDHEAD!$G$4:$G$1391,MN_7_REDHEAD!$C$4:$C$1391,"P2") -> (B) EMMETT KEPLER - [417] | I17: =TeamScoreWithPlayers($B17,"H",8,MN_7_REDHEAD!$F$4:$F$1391,MN_7_REDHEAD!$E$4:$E$1391,MN_7_REDHEAD!$G$4:$G$1391,MN_7_REDHEAD!$C$4:$C$1391,"P3") -> (B) JOEL TIBBS - [382] | J17: =TeamScoreWithPlayers($B17,"H",8,MN_7_REDHEAD!$F$4:$F$1391,MN_7_REDHEAD!$E$4:$E$1391,MN_7_REDHEAD!$G$4:$G$1391,MN_7_REDHEAD!$C$4:$C$1391,"P4") -> (G) ELLA MAKOSKY - [379] | K17: =TeamScoreWithPlayers($B17,"H",8,MN_7_REDHEAD!$F$4:$F$1391,MN_7_REDHEAD!$E$4:$E$1391,MN_7_REDHEAD!$G$4:$G$1391,MN_7_REDHEAD!$C$4:$C$1391,"P5") -> (G) AVA WISE - [366] | L17: =TeamScoreWithPlayers($B17,"H",8,MN_7_REDHEAD!$F$4:$F$1391,MN_7_REDHEAD!$E$4:$E$1391,MN_7_REDHEAD!$G$4:$G$1391,MN_7_REDHEAD!$C$4:$C$1391,"P6") -> (B) PARKER HUNT - [364] | M17: =TeamScoreWithPlayers($B17,"H",8,MN_7_REDHEAD!$F$4:$F$1391,MN_7_REDHEAD!$E$4:$E$1391,MN_7_REDHEAD!$G$4:$G$1391,MN_7_REDHEAD!$C$4:$C$1391,"P7") -> (B) BEN MIMICK - [344] | N17: =TeamScoreWithPlayers($B17,"H",8,MN_7_REDHEAD!$F$4:$F$1391,MN_7_REDHEAD!$E$4:$E$1391,MN_7_REDHEAD!$G$4:$G$1391,MN_7_REDHEAD!$C$4:$C$1391,"P8") -> (B) MASON EBERLY - [338] | P17: 3122 | Q17: 0 | S17: 3122
A18: 17 | B18: Minnetonka High School | C18: =TeamScore(B18,"H",8,MN_7_REDHEAD!$F$4:$F$1391,MN_7_REDHEAD!$G$4:$G$1391,MN_7_REDHEAD!$C$4:$C$1391) -> 4063 | F18: =TeamScoreWithPlayers($B18,"H",8,MN_7_REDHEAD!$F$4:$F$1391,MN_7_REDHEAD!$E$4:$E$1391,MN_7_REDHEAD!$G$4:$G$1391,MN_7_REDHEAD!$C$4:$C$1391,"TS") -> 4063 | G18: =TeamScoreWithPlayers($B18,"H",8,MN_7_REDHEAD!$F$4:$F$1391,MN_7_REDHEAD!$E$4:$E$1391,MN_7_REDHEAD!$G$4:$G$1391,MN_7_REDHEAD!$C$4:$C$1391,"P1") -> (B) MORGAN HENDRICKS - [594] | H18: =TeamScoreWithPlayers($B18,"H",8,MN_7_REDHEAD!$F$4:$F$1391,MN_7_REDHEAD!$E$4:$E$1391,MN_7_REDHEAD!$G$4:$G$1391,MN_7_REDHEAD!$C$4:$C$1391,"P2") -> (G) SHELBY STOBBE - [551] | I18: =TeamScoreWithPlayers($B18,"H",8,MN_7_REDHEAD!$F$4:$F$1391,MN_7_REDHEAD!$E$4:$E$1391,MN_7_REDHEAD!$G$4:$G$1391,MN_7_REDHEAD!$C$4:$C$1391,"P3") -> (G) EVIE MALEC - [550] | J18: =TeamScoreWithPlayers($B18,"H",8,MN_7_REDHEAD!$F$4:$F$1391,MN_7_REDHEAD!$E$4:$E$1391,MN_7_REDHEAD!$G$4:$G$1391,MN_7_REDHEAD!$C$4:$C$1391,"P4") -> (B) JACK MALEC - [550] | K18: =TeamScoreWithPlayers($B18,"H",8,MN_7_REDHEAD!$F$4:$F$1391,MN_7_REDHEAD!$E$4:$E$1391,MN_7_REDHEAD!$G$4:$G$1391,MN_7_REDHEAD!$C$4:$C$1391,"P5") -> (G) BETHANY ANDERSON - [529] | L18: =TeamScoreWithPlayers($B18,"H",8,MN_7_REDHEAD!$F$4:$F$1391,MN_7_REDHEAD!$E$4:$E$1391,MN_7_REDHEAD!$G$4:$G$1391,MN_7_REDHEAD!$C$4:$C$1391,"P6") -> (B) LUCAS SYLVESTER - [510] | M18: =TeamScoreWithPlayers($B18,"H",8,MN_7_REDHEAD!$F$4:$F$1391,MN_7_REDHEAD!$E$4:$E$1391,MN_7_REDHEAD!$G$4:$G$1391,MN_7_REDHEAD!$C$4:$C$1391,"P7") -> (G) ADDISON ALEMAN - [395] | N18: =TeamScoreWithPlayers($B18,"H",8,MN_7_REDHEAD!$F$4:$F$1391,MN_7_REDHEAD!$E$4:$E$1391,MN_7_REDHEAD!$G$4:$G$1391,MN_7_REDHEAD!$C$4:$C$1391,"P8") -> (G) LYDIA STEVENSON - [384] | P18: 4063 | Q18: 0 | S18: 4063
A19: 18 | B19: Mounds View High School | C19: =TeamScore(B19,"H",8,MN_7_REDHEAD!$F$4:$F$1391,MN_7_REDHEAD!$G$4:$G$1391,MN_7_REDHEAD!$C$4:$C$1391) -> 3368 | F19: =TeamScoreWithPlayers($B19,"H",8,MN_7_REDHEAD!$F$4:$F$1391,MN_7_REDHEAD!$E$4:$E$1391,MN_7_REDHEAD!$G$4:$G$1391,MN_7_REDHEAD!$C$4:$C$1391,"TS") -> 3368 | G19: =TeamScoreWithPlayers($B19,"H",8,MN_7_REDHEAD!$F$4:$F$1391,MN_7_REDHEAD!$E$4:$E$1391,MN_7_REDHEAD!$G$4:$G$1391,MN_7_REDHEAD!$C$4:$C$1391,"P1") -> (G) MADELINE DORNFELD - [501] | H19: =TeamScoreWithPlayers($B19,"H",8,MN_7_REDHEAD!$F$4:$F$1391,MN_7_REDHEAD!$E$4:$E$1391,MN_7_REDHEAD!$G$4:$G$1391,MN_7_REDHEAD!$C$4:$C$1391,"P2") -> (G) ESME NEEDHAM - [446] | I19: =TeamScoreWithPlayers($B19,"H",8,MN_7_REDHEAD!$F$4:$F$1391,MN_7_REDHEAD!$E$4:$E$1391,MN_7_REDHEAD!$G$4:$G$1391,MN_7_REDHEAD!$C$4:$C$1391,"P3") -> (B) ANDREW ROLOFF - [446] | J19: =TeamScoreWithPlayers($B19,"H",8,MN_7_REDHEAD!$F$4:$F$1391,MN_7_REDHEAD!$E$4:$E$1391,MN_7_REDHEAD!$G$4:$G$1391,MN_7_REDHEAD!$C$4:$C$1391,"P4") -> (B) CORBAN CARLSON - [439] | K19: =TeamScoreWithPlayers($B19,"H",8,MN_7_REDHEAD!$F$4:$F$1391,MN_7_REDHEAD!$E$4:$E$1391,MN_7_REDHEAD!$G$4:$G$1391,MN_7_REDHEAD!$C$4:$C$1391,"P5") -> (B) ANTONIN KOSTAL - [419] | L19: =TeamScoreWithPlayers($B19,"H",8,MN_7_REDHEAD!$F$4:$F$1391,MN_7_REDHEAD!$E$4:$E$1391,MN_7_REDHEAD!$G$4:$G$1391,MN_7_REDHEAD!$C$4:$C$1391,"P6") -> (G) KATERINA KOSTAL - [413] | M19: =TeamScoreWithPlayers($B19,"H",8,MN_7_REDHEAD!$F$4:$F$1391,MN_7_REDHEAD!$E$4:$E$1391,MN_7_REDHEAD!$G$4:$G$1391,MN_7_REDHEAD!$C$4:$C$1391,"P7") -> (G) KAMDYN KAREL - [354] | N19: =TeamScoreWithPlayers($B19,"H",8,MN_7_REDHEAD!$F$4:$F$1391,MN_7_REDHEAD!$E$4:$E$1391,MN_7_REDHEAD!$G$4:$G$1391,MN_7_REDHEAD!$C$4:$C$1391,"P8") -> (G) PAULINA MCCULLOUGH - [350] | P19: 3368 | Q19: 0 | S19: 3368
A20: 19 | B20: New Prague Middle and High School | C20: =TeamScore(B20,"H",8,MN_7_REDHEAD!$F$4:$F$1391,MN_7_REDHEAD!$G$4:$G$1391,MN_7_REDHEAD!$C$4:$C$1391) -> 3376 | F20: =TeamScoreWithPlayers($B20,"H",8,MN_7_REDHEAD!$F$4:$F$1391,MN_7_REDHEAD!$E$4:$E$1391,MN_7_REDHEAD!$G$4:$G$1391,MN_7_REDHEAD!$C$4:$C$1391,"TS") -> 3376 | G20: =TeamScoreWithPlayers($B20,"H",8,MN_7_REDHEAD!$F$4:$F$1391,MN_7_REDHEAD!$E$4:$E$1391,MN_7_REDHEAD!$G$4:$G$1391,MN_7_REDHEAD!$C$4:$C$1391,"P1") -> (B) AIDAN ROSEMEIER - [585] | H20: =TeamScoreWithPlayers($B20,"H",8,MN_7_REDHEAD!$F$4:$F$1391,MN_7_REDHEAD!$E$4:$E$1391,MN_7_REDHEAD!$G$4:$G$1391,MN_7_REDHEAD!$C$4:$C$1391,"P2") -> (G) SELAH SCHERMAN - [500] | I20: =TeamScoreWithPlayers($B20,"H",8,MN_7_REDHEAD!$F$4:$F$1391,MN_7_REDHEAD!$E$4:$E$1391,MN_7_REDHEAD!$G$4:$G$1391,MN_7_REDHEAD!$C$4:$C$1391,"P3") -> (G) SOPHIA METZDORFF - [435] | J20: =TeamScoreWithPlayers($B20,"H",8,MN_7_REDHEAD!$F$4:$F$1391,MN_7_REDHEAD!$E$4:$E$1391,MN_7_REDHEAD!$G$4:$G$1391,MN_7_REDHEAD!$C$4:$C$1391,"P4") -> (G) ADDISON RIDGEWAY - [395] | K20: =TeamScoreWithPlayers($B20,"H",8,MN_7_REDHEAD!$F$4:$F$1391,MN_7_REDHEAD!$E$4:$E$1391,MN_7_REDHEAD!$G$4:$G$1391,MN_7_REDHEAD!$C$4:$C$1391,"P5") -> (B) JEREMIAH STUBER - [379] | L20: =TeamScoreWithPlayers($B20,"H",8,MN_7_REDHEAD!$F$4:$F$1391,MN_7_REDHEAD!$E$4:$E$1391,MN_7_REDHEAD!$G$4:$G$1391,MN_7_REDHEAD!$C$4:$C$1391,"P6") -> (B) GARRETT TOBIAS - [374] | M20: =TeamScoreWithPlayers($B20,"H",8,MN_7_REDHEAD!$F$4:$F$1391,MN_7_REDHEAD!$E$4:$E$1391,MN_7_REDHEAD!$G$4:$G$1391,MN_7_REDHEAD!$C$4:$C$1391,"P7") -> (B) RILEY HUSEBY - [366] | N20: =TeamScoreWithPlayers($B20,"H",8,MN_7_REDHEAD!$F$4:$F$1391,MN_7_REDHEAD!$E$4:$E$1391,MN_7_REDHEAD!$G$4:$G$1391,MN_7_REDHEAD!$C$4:$C$1391,"P8") -> (G) TEVA FEIT - [342] | P20: 3376 | Q20: 0 | S20: 3376
A21: 20 | B21: Prior Lake High School | C21: =TeamScore(B21,"H",8,MN_7_REDHEAD!$F$4:$F$1391,MN_7_REDHEAD!$G$4:$G$1391,MN_7_REDHEAD!$C$4:$C$1391) -> 3336 | F21: =TeamScoreWithPlayers($B21,"H",8,MN_7_REDHEAD!$F$4:$F$1391,MN_7_REDHEAD!$E$4:$E$1391,MN_7_REDHEAD!$G$4:$G$1391,MN_7_REDHEAD!$C$4:$C$1391,"TS") -> 3336 | G21: =TeamScoreWithPlayers($B21,"H",8,MN_7_REDHEAD!$F$4:$F$1391,MN_7_REDHEAD!$E$4:$E$1391,MN_7_REDHEAD!$G$4:$G$1391,MN_7_REDHEAD!$C$4:$C$1391,"P1") -> (B) BRADEN ERDAHL - [519] | H21: =TeamScoreWithPlayers($B21,"H",8,MN_7_REDHEAD!$F$4:$F$1391,MN_7_REDHEAD!$E$4:$E$1391,MN_7_REDHEAD!$G$4:$G$1391,MN_7_REDHEAD!$C$4:$C$1391,"P2") -> (B) ALEX KRAWZA - [444] | I21: =TeamScoreWithPlayers($B21,"H",8,MN_7_REDHEAD!$F$4:$F$1391,MN_7_REDHEAD!$E$4:$E$1391,MN_7_REDHEAD!$G$4:$G$1391,MN_7_REDHEAD!$C$4:$C$1391,"P3") -> (B) TEGAN MOORE - [425] | J21: =TeamScoreWithPlayers($B21,"H",8,MN_7_REDHEAD!$F$4:$F$1391,MN_7_REDHEAD!$E$4:$E$1391,MN_7_REDHEAD!$G$4:$G$1391,MN_7_REDHEAD!$C$4:$C$1391,"P4") -> (B) MASON HORTER - [401] | K21: =TeamScoreWithPlayers($B21,"H",8,MN_7_REDHEAD!$F$4:$F$1391,MN_7_REDHEAD!$E$4:$E$1391,MN_7_REDHEAD!$G$4:$G$1391,MN_7_REDHEAD!$C$4:$C$1391,"P5") -> (G) SARA CARLSON - [399] | L21: =TeamScoreWithPlayers($B21,"H",8,MN_7_REDHEAD!$F$4:$F$1391,MN_7_REDHEAD!$E$4:$E$1391,MN_7_REDHEAD!$G$4:$G$1391,MN_7_REDHEAD!$C$4:$C$1391,"P6") -> (B) PETER MAES - [395] | M21: =TeamScoreWithPlayers($B21,"H",8,MN_7_REDHEAD!$F$4:$F$1391,MN_7_REDHEAD!$E$4:$E$1391,MN_7_REDHEAD!$G$4:$G$1391,MN_7_REDHEAD!$C$4:$C$1391,"P7") -> (B) DECLAN FOLGER - [379] | N21: =TeamScoreWithPlayers($B21,"H",8,MN_7_REDHEAD!$F$4:$F$1391,MN_7_REDHEAD!$E$4:$E$1391,MN_7_REDHEAD!$G$4:$G$1391,MN_7_REDHEAD!$C$4:$C$1391,"P8") -> (G) SARAH RICH - [374] | P21: 3336 | Q21: 0 | S21: 3336
A22: 21 | B22: Rochester Century High School | C22: =TeamScore(B22,"H",8,MN_7_REDHEAD!$F$4:$F$1391,MN_7_REDHEAD!$G$4:$G$1391,MN_7_REDHEAD!$C$4:$C$1391) -> 2041 | F22: =TeamScoreWithPlayers($B22,"H",8,MN_7_REDHEAD!$F$4:$F$1391,MN_7_REDHEAD!$E$4:$E$1391,MN_7_REDHEAD!$G$4:$G$1391,MN_7_REDHEAD!$C$4:$C$1391,"TS") -> 2041 | G22: =TeamScoreWithPlayers($B22,"H",8,MN_7_REDHEAD!$F$4:$F$1391,MN_7_REDHEAD!$E$4:$E$1391,MN_7_REDHEAD!$G$4:$G$1391,MN_7_REDHEAD!$C$4:$C$1391,"P1") -> (B) BRENNAN WECKWERTH - [446] | H22: =TeamScoreWithPlayers($B22,"H",8,MN_7_REDHEAD!$F$4:$F$1391,MN_7_REDHEAD!$E$4:$E$1391,MN_7_REDHEAD!$G$4:$G$1391,MN_7_REDHEAD!$C$4:$C$1391,"P2") -> (B) TYLER WETZSTEIN - [435] | I22: =TeamScoreWithPlayers($B22,"H",8,MN_7_REDHEAD!$F$4:$F$1391,MN_7_REDHEAD!$E$4:$E$1391,MN_7_REDHEAD!$G$4:$G$1391,MN_7_REDHEAD!$C$4:$C$1391,"P3") -> (B) RYAN WETZSTEIN - [320] | J22: =TeamScoreWithPlayers($B22,"H",8,MN_7_REDHEAD!$F$4:$F$1391,MN_7_REDHEAD!$E$4:$E$1391,MN_7_REDHEAD!$G$4:$G$1391,MN_7_REDHEAD!$C$4:$C$1391,"P4") -> (B) ARI WALKER - [305] | K22: =TeamScoreWithPlayers($B22,"H",8,MN_7_REDHEAD!$F$4:$F$1391,MN_7_REDHEAD!$E$4:$E$1391,MN_7_REDHEAD!$G$4:$G$1391,MN_7_REDHEAD!$C$4:$C$1391,"P5") -> (B) ERIK HILL - [281] | L22: =TeamScoreWithPlayers($B22,"H",8,MN_7_REDHEAD!$F$4:$F$1391,MN_7_REDHEAD!$E$4:$E$1391,MN_7_REDHEAD!$G$4:$G$1391,MN_7_REDHEAD!$C$4:$C$1391,"P6") -> (B) AARON MILLS - [254] | M22: =TeamScoreWithPlayers($B22,"H",8,MN_7_REDHEAD!$F$4:$F$1391,MN_7_REDHEAD!$E$4:$E$1391,MN_7_REDHEAD!$G$4:$G$1391,MN_7_REDHEAD!$C$4:$C$1391,"P7") -> () - [0] | N22: =TeamScoreWithPlayers($B22,"H",8,MN_7_REDHEAD!$F$4:$F$1391,MN_7_REDHEAD!$E$4:$E$1391,MN_7_REDHEAD!$G$4:$G$1391,MN_7_REDHEAD!$C$4:$C$1391,"P8") -> () - [0] | P22: 2041 | Q22: 0 | S22: 2041
A23: 22 | B23: Rock Ridge Composite | C23: =TeamScore(B23,"H",8,MN_7_REDHEAD!$F$4:$F$1391,MN_7_REDHEAD!$G$4:$G$1391,MN_7_REDHEAD!$C$4:$C$1391) -> 2836 | F23: =TeamScoreWithPlayers($B23,"H",8,MN_7_REDHEAD!$F$4:$F$1391,MN_7_REDHEAD!$E$4:$E$1391,MN_7_REDHEAD!$G$4:$G$1391,MN_7_REDHEAD!$C$4:$C$1391,"TS") -> 2836 | G23: =TeamScoreWithPlayers($B23,"H",8,MN_7_REDHEAD!$F$4:$F$1391,MN_7_REDHEAD!$E$4:$E$1391,MN_7_REDHEAD!$G$4:$G$1391,MN_7_REDHEAD!$C$4:$C$1391,"P1") -> (G) WRENNA GALLOWAY - [476] | H23: =TeamScoreWithPlayers($B23,"H",8,MN_7_REDHEAD!$F$4:$F$1391,MN_7_REDHEAD!$E$4:$E$1391,MN_7_REDHEAD!$G$4:$G$1391,MN_7_REDHEAD!$C$4:$C$1391,"P2") -> (B) SAMUEL BEUKEMA - [453] | I23: =TeamScoreWithPlayers($B23,"H",8,MN_7_REDHEAD!$F$4:$F$1391,MN_7_REDHEAD!$E$4:$E$1391,MN_7_REDHEAD!$G$4:$G$1391,MN_7_REDHEAD!$C$4:$C$1391,"P3") -> (G) SOPHIE ROARK - [389] | J23: =TeamScoreWithPlayers($B23,"H",8,MN_7_REDHEAD!$F$4:$F$1391,MN_7_REDHEAD!$E$4:$E$1391,MN_7_REDHEAD!$G$4:$G$1391,MN_7_REDHEAD!$C$4:$C$1391,"P4") -> (G) SYLVIE GALLOWAY - [346] | K23: =TeamScoreWithPlayers($B23,"H",8,MN_7_REDHEAD!$F$4:$F$1391,MN_7_REDHEAD!$E$4:$E$1391,MN_7_REDHEAD!$G$4:$G$1391,MN_7_REDHEAD!$C$4:$C$1391,"P5") -> (B) SILAS TODAY - [310] | L23: =TeamScoreWithPlayers($B23,"H",8,MN_7_REDHEAD!$F$4:$F$1391,MN_7_REDHEAD!$E$4:$E$1391,MN_7_REDHEAD!$G$4:$G$1391,MN_7_REDHEAD!$C$4:$C$1391,"P6") -> (G) EVA ROARK - [291] | M23: =TeamScoreWithPlayers($B23,"H",8,MN_7_REDHEAD!$F$4:$F$1391,MN_7_REDHEAD!$E$4:$E$1391,MN_7_REDHEAD!$G$4:$G$1391,MN_7_REDHEAD!$C$4:$C$1391,"P7") -> (G) NORAH KAINZ - [289] | N23: =TeamScoreWithPlayers($B23,"H",8,MN_7_REDHEAD!$F$4:$F$1391,MN_7_REDHEAD!$E$4:$E$1391,MN_7_REDHEAD!$G$4:$G$1391,MN_7_REDHEAD!$C$4:$C$1391,"P8") -> (B) ALDEN KNUDSON - [282] | P23: 2836 | Q23: 0 | S23: 2836
A24: 23 | B24: Shakopee High School | C24: =TeamScore(B24,"H",8,MN_7_REDHEAD!$F$4:$F$1391,MN_7_REDHEAD!$G$4:$G$1391,MN_7_REDHEAD!$C$4:$C$1391) -> 3322 | F24: =TeamScoreWithPlayers($B24,"H",8,MN_7_REDHEAD!$F$4:$F$1391,MN_7_REDHEAD!$E$4:$E$1391,MN_7_REDHEAD!$G$4:$G$1391,MN_7_REDHEAD!$C$4:$C$1391,"TS") -> 3322 | G24: =TeamScoreWithPlayers($B24,"H",8,MN_7_REDHEAD!$F$4:$F$1391,MN_7_REDHEAD!$E$4:$E$1391,MN_7_REDHEAD!$G$4:$G$1391,MN_7_REDHEAD!$C$4:$C$1391,"P1") -> (B) WILLIAM PALMIERI - [486] | H24: =TeamScoreWithPlayers($B24,"H",8,MN_7_REDHEAD!$F$4:$F$1391,MN_7_REDHEAD!$E$4:$E$1391,MN_7_REDHEAD!$G$4:$G$1391,MN_7_REDHEAD!$C$4:$C$1391,"P2") -> (B) CHARLIE CUTTS - [484] | I24: =TeamScoreWithPlayers($B24,"H",8,MN_7_REDHEAD!$F$4:$F$1391,MN_7_REDHEAD!$E$4:$E$1391,MN_7_REDHEAD!$G$4:$G$1391,MN_7_REDHEAD!$C$4:$C$1391,"P3") -> (B) ISAIAH JOHNSON - [468] | J24: =TeamScoreWithPlayers($B24,"H",8,MN_7_REDHEAD!$F$4:$F$1391,MN_7_REDHEAD!$E$4:$E$1391,MN_7_REDHEAD!$G$4:$G$1391,MN_7_REDHEAD!$C$4:$C$1391,"P4") -> (B) OWEN MARQUARDT - [413] | K24: =TeamScoreWithPlayers($B24,"H",8,MN_7_REDHEAD!$F$4:$F$1391,MN_7_REDHEAD!$E$4:$E$1391,MN_7_REDHEAD!$G$4:$G$1391,MN_7_REDHEAD!$C$4:$C$1391,"P5") -> (B) PARKER BUTTERFASS - [389] | L24: =TeamScoreWithPlayers($B24,"H",8,MN_7_REDHEAD!$F$4:$F$1391,MN_7_REDHEAD!$E$4:$E$1391,MN_7_REDHEAD!$G$4:$G$1391,MN_7_REDHEAD!$C$4:$C$1391,"P6") -> (G) ELLA BERG - [374] | M24: =TeamScoreWithPlayers($B24,"H",8,MN_7_REDHEAD!$F$4:$F$1391,MN_7_REDHEAD!$E$4:$E$1391,MN_7_REDHEAD!$G$4:$G$1391,MN_7_REDHEAD!$C$4:$C$1391,"P7") -> (G) ANNIKA FROYUM - [374] | N24: =TeamScoreWithPlayers($B24,"H",8,MN_7_REDHEAD!$F$4:$F$1391,MN_7_REDHEAD!$E$4:$E$1391,MN_7_REDHEAD!$G$4:$G$1391,MN_7_REDHEAD!$C$4:$C$1391,"P8") -> (B) JAMES FROYUM - [334] | P24: 3322 | Q24: 0 | S24: 3322
A25: 24 | B25: Stillwater Mountain Bike | C25: =TeamScore(B25,"H",8,MN_7_REDHEAD!$F$4:$F$1391,MN_7_REDHEAD!$G$4:$G$1391,MN_7_REDHEAD!$C$4:$C$1391) -> 4322 | F25: =TeamScoreWithPlayers($B25,"H",8,MN_7_REDHEAD!$F$4:$F$1391,MN_7_REDHEAD!$E$4:$E$1391,MN_7_REDHEAD!$G$4:$G$1391,MN_7_REDHEAD!$C$4:$C$1391,"TS") -> 4322 | G25: =TeamScoreWithPlayers($B25,"H",8,MN_7_REDHEAD!$F$4:$F$1391,MN_7_REDHEAD!$E$4:$E$1391,MN_7_REDHEAD!$G$4:$G$1391,MN_7_REDHEAD!$C$4:$C$1391,"P1") -> (B) JOHN KUBIAK - [625] | H25: =TeamScoreWithPlayers($B25,"H",8,MN_7_REDHEAD!$F$4:$F$1391,MN_7_REDHEAD!$E$4:$E$1391,MN_7_REDHEAD!$G$4:$G$1391,MN_7_REDHEAD!$C$4:$C$1391,"P2") -> (G) LILY WARD - [614] | I25: =TeamScoreWithPlayers($B25,"H",8,MN_7_REDHEAD!$F$4:$F$1391,MN_7_REDHEAD!$E$4:$E$1391,MN_7_REDHEAD!$G$4:$G$1391,MN_7_REDHEAD!$C$4:$C$1391,"P3") -> (G) STELLA POWELL - [579] | J25: =TeamScoreWithPlayers($B25,"H",8,MN_7_REDHEAD!$F$4:$F$1391,MN_7_REDHEAD!$E$4:$E$1391,MN_7_REDHEAD!$G$4:$G$1391,MN_7_REDHEAD!$C$4:$C$1391,"P4") -> (G) CATE KOELZER - [559] | K25: =TeamScoreWithPlayers($B25,"H",8,MN_7_REDHEAD!$F$4:$F$1391,MN_7_REDHEAD!$E$4:$E$1391,MN_7_REDHEAD!$G$4:$G$1391,MN_7_REDHEAD!$C$4:$C$1391,"P5") -> (B) LIAM ADAMS - [494] | L25: =TeamScoreWithPlayers($B25,"H",8,MN_7_REDHEAD!$F$4:$F$1391,MN_7_REDHEAD!$E$4:$E$1391,MN_7_REDHEAD!$G$4:$G$1391,MN_7_REDHEAD!$C$4:$C$1391,"P6") -> (B) JACK RALSTON - [488] | M25: =TeamScoreWithPlayers($B25,"H",8,MN_7_REDHEAD!$F$4:$F$1391,MN_7_REDHEAD!$E$4:$E$1391,MN_7_REDHEAD!$G$4:$G$1391,MN_7_REDHEAD!$C$4:$C$1391,"P7") -> (G) GABI LEHMANN - [484] | N25: =TeamScoreWithPlayers($B25,"H",8,MN_7_REDHEAD!$F$4:$F$1391,MN_7_REDHEAD!$E$4:$E$1391,MN_7_REDHEAD!$G$4:$G$1391,MN_7_REDHEAD!$C$4:$C$1391,"P8") -> (B) JAMES KALMON - [479] | P25: 4322 | Q25: 0 | S25: 4322
A26: 25 | B26: Washburn High School | C26: =TeamScore(B26,"H",8,MN_7_REDHEAD!$F$4:$F$1391,MN_7_REDHEAD!$G$4:$G$1391,MN_7_REDHEAD!$C$4:$C$1391) -> 3432 | F26: =TeamScoreWithPlayers($B26,"H",8,MN_7_REDHEAD!$F$4:$F$1391,MN_7_REDHEAD!$E$4:$E$1391,MN_7_REDHEAD!$G$4:$G$1391,MN_7_REDHEAD!$C$4:$C$1391,"TS") -> 3432 | G26: =TeamScoreWithPlayers($B26,"H",8,MN_7_REDHEAD!$F$4:$F$1391,MN_7_REDHEAD!$E$4:$E$1391,MN_7_REDHEAD!$G$4:$G$1391,MN_7_REDHEAD!$C$4:$C$1391,"P1") -> (B) ANDREAS DREKONJA - [535] | H26: =TeamScoreWithPlayers($B26,"H",8,MN_7_REDHEAD!$F$4:$F$1391,MN_7_REDHEAD!$E$4:$E$1391,MN_7_REDHEAD!$G$4:$G$1391,MN_7_REDHEAD!$C$4:$C$1391,"P2") -> (G) CIARA THATCHER - [529] | I26: =TeamScoreWithPlayers($B26,"H",8,MN_7_REDHEAD!$F$4:$F$1391,MN_7_REDHEAD!$E$4:$E$1391,MN_7_REDHEAD!$G$4:$G$1391,MN_7_REDHEAD!$C$4:$C$1391,"P3") -> (G) ASTRID MYHRE - [528] | J26: =TeamScoreWithPlayers($B26,"H",8,MN_7_REDHEAD!$F$4:$F$1391,MN_7_REDHEAD!$E$4:$E$1391,MN_7_REDHEAD!$G$4:$G$1391,MN_7_REDHEAD!$C$4:$C$1391,"P4") -> (B) ALEXANDER PASDO - [432] | K26: =TeamScoreWithPlayers($B26,"H",8,MN_7_REDHEAD!$F$4:$F$1391,MN_7_REDHEAD!$E$4:$E$1391,MN_7_REDHEAD!$G$4:$G$1391,MN_7_REDHEAD!$C$4:$C$1391,"P5") -> (B) HENRY HATHAWAY - [369] | L26: =TeamScoreWithPlayers($B26,"H",8,MN_7_REDHEAD!$F$4:$F$1391,MN_7_REDHEAD!$E$4:$E$1391,MN_7_REDHEAD!$G$4:$G$1391,MN_7_REDHEAD!$C$4:$C$1391,"P6") -> (G) ARIANA KIMBALL - [362] | M26: =TeamScoreWithPlayers($B26,"H",8,MN_7_REDHEAD!$F$4:$F$1391,MN_7_REDHEAD!$E$4:$E$1391,MN_7_REDHEAD!$G$4:$G$1391,MN_7_REDHEAD!$C$4:$C$1391,"P7") -> (G) IZZY GREENWIN - [342] | N26: =TeamScoreWithPlayers($B26,"H",8,MN_7_REDHEAD!$F$4:$F$1391,MN_7_REDHEAD!$E$4:$E$1391,MN_7_REDHEAD!$G$4:$G$1391,MN_7_REDHEAD!$C$4:$C$1391,"P8") -> (B) FINN CHERVENY - [335] | P26: 3432 | Q26: 0 | S26: 3432
A27: 26 | B27: Wayzata Mountain Bike | C27: =TeamScore(B27,"H",8,MN_7_REDHEAD!$F$4:$F$1391,MN_7_REDHEAD!$G$4:$G$1391,MN_7_REDHEAD!$C$4:$C$1391) -> 3344 | F27: =TeamScoreWithPlayers($B27,"H",8,MN_7_REDHEAD!$F$4:$F$1391,MN_7_REDHEAD!$E$4:$E$1391,MN_7_REDHEAD!$G$4:$G$1391,MN_7_REDHEAD!$C$4:$C$1391,"TS") -> 3344 | G27: =TeamScoreWithPlayers($B27,"H",8,MN_7_REDHEAD!$F$4:$F$1391,MN_7_REDHEAD!$E$4:$E$1391,MN_7_REDHEAD!$G$4:$G$1391,MN_7_REDHEAD!$C$4:$C$1391,"P1") -> (G) LEXI HALVORSON - [501] | H27: =TeamScoreWithPlayers($B27,"H",8,MN_7_REDHEAD!$F$4:$F$1391,MN_7_REDHEAD!$E$4:$E$1391,MN_7_REDHEAD!$G$4:$G$1391,MN_7_REDHEAD!$C$4:$C$1391,"P2") -> (G) LILA GOLOMB - [484] | I27: =TeamScoreWithPlayers($B27,"H",8,MN_7_REDHEAD!$F$4:$F$1391,MN_7_REDHEAD!$E$4:$E$1391,MN_7_REDHEAD!$G$4:$G$1391,MN_7_REDHEAD!$C$4:$C$1391,"P3") -> (B) CULLEN BRITZ - [439] | J27: =TeamScoreWithPlayers($B27,"H",8,MN_7_REDHEAD!$F$4:$F$1391,MN_7_REDHEAD!$E$4:$E$1391,MN_7_REDHEAD!$G$4:$G$1391,MN_7_REDHEAD!$C$4:$C$1391,"P4") -> (B) SAM ANDERSON - [419] | K27: =TeamScoreWithPlayers($B27,"H",8,MN_7_REDHEAD!$F$4:$F$1391,MN_7_REDHEAD!$E$4:$E$1391,MN_7_REDHEAD!$G$4:$G$1391,MN_7_REDHEAD!$C$4:$C$1391,"P5") -> (G) IZZY MORRIS - [413] | L27: =TeamScoreWithPlayers($B27,"H",8,MN_7_REDHEAD!$F$4:$F$1391,MN_7_REDHEAD!$E$4:$E$1391,MN_7_REDHEAD!$G$4:$G$1391,MN_7_REDHEAD!$C$4:$C$1391,"P6") -> (B) RUKSHAN RAJAN - [374] | M27: =TeamScoreWithPlayers($B27,"H",8,MN_7_REDHEAD!$F$4:$F$1391,MN_7_REDHEAD!$E$4:$E$1391,MN_7_REDHEAD!$G$4:$G$1391,MN_7_REDHEAD!$C$4:$C$1391,"P7") -> (B) WILL BREUING - [364] | N27: =TeamScoreWithPlayers($B27,"H",8,MN_7_REDHEAD!$F$4:$F$1391,MN_7_REDHEAD!$E$4:$E$1391,MN_7_REDHEAD!$G$4:$G$1391,MN_7_REDHEAD!$C$4:$C$1391,"P8") -> (G) ELIZABETH FACKERT - [350] | P27: 3344 | Q27: 0 | S27: 3344
A28: 27 | B28: White Bear Lake High School | C28: =TeamScore(B28,"H",8,MN_7_REDHEAD!$F$4:$F$1391,MN_7_REDHEAD!$G$4:$G$1391,MN_7_REDHEAD!$C$4:$C$1391) -> 3000 | F28: =TeamScoreWithPlayers($B28,"H",8,MN_7_REDHEAD!$F$4:$F$1391,MN_7_REDHEAD!$E$4:$E$1391,MN_7_REDHEAD!$G$4:$G$1391,MN_7_REDHEAD!$C$4:$C$1391,"TS") -> 3000 | G28: =TeamScoreWithPlayers($B28,"H",8,MN_7_REDHEAD!$F$4:$F$1391,MN_7_REDHEAD!$E$4:$E$1391,MN_7_REDHEAD!$G$4:$G$1391,MN_7_REDHEAD!$C$4:$C$1391,"P1") -> (B) ISAAC LINDHOLM - [539] | H28: =TeamScoreWithPlayers($B28,"H",8,MN_7_REDHEAD!$F$4:$F$1391,MN_7_REDHEAD!$E$4:$E$1391,MN_7_REDHEAD!$G$4:$G$1391,MN_7_REDHEAD!$C$4:$C$1391,"P2") -> (G) GRETCHEN BLANKENSHIP - [446] | I28: =TeamScoreWithPlayers($B28,"H",8,MN_7_REDHEAD!$F$4:$F$1391,MN_7_REDHEAD!$E$4:$E$1391,MN_7_REDHEAD!$G$4:$G$1391,MN_7_REDHEAD!$C$4:$C$1391,"P3") -> (G) GRACE CONROY - [425] | J28: =TeamScoreWithPlayers($B28,"H",8,MN_7_REDHEAD!$F$4:$F$1391,MN_7_REDHEAD!$E$4:$E$1391,MN_7_REDHEAD!$G$4:$G$1391,MN_7_REDHEAD!$C$4:$C$1391,"P4") -> (B) BLAKE ROLFER - [364] | K28: =TeamScoreWithPlayers($B28,"H",8,MN_7_REDHEAD!$F$4:$F$1391,MN_7_REDHEAD!$E$4:$E$1391,MN_7_REDHEAD!$G$4:$G$1391,MN_7_REDHEAD!$C$4:$C$1391,"P5") -> (B) WALKER DIETZ - [322] | L28: =TeamScoreWithPlayers($B28,"H",8,MN_7_REDHEAD!$F$4:$F$1391,MN_7_REDHEAD!$E$4:$E$1391,MN_7_REDHEAD!$G$4:$G$1391,MN_7_REDHEAD!$C$4:$C$1391,"P6") -> (G) KENNEDY LANGE - [316] | M28: =TeamScoreWithPlayers($B28,"H",8,MN_7_REDHEAD!$F$4:$F$1391,MN_7_REDHEAD!$E$4:$E$1391,MN_7_REDHEAD!$G$4:$G$1391,MN_7_REDHEAD!$C$4:$C$1391,"P7") -> (B) DAMON GRAY - [301] | N28: =TeamScoreWithPlayers($B28,"H",8,MN_7_REDHEAD!$F$4:$F$1391,MN_7_REDHEAD!$E$4:$E$1391,MN_7_REDHEAD!$G$4:$G$1391,MN_7_REDHEAD!$C$4:$C$1391,"P8") -> (B) JAMES WALLEK - [287] | P28: 3000 | Q28: 0 | S28: 3000
A29: 28 | B29: Winona | C29: =TeamScore(B29,"H",8,MN_7_REDHEAD!$F$4:$F$1391,MN_7_REDHEAD!$G$4:$G$1391,MN_7_REDHEAD!$C$4:$C$1391) -> 3907 | F29: =TeamScoreWithPlayers($B29,"H",8,MN_7_REDHEAD!$F$4:$F$1391,MN_7_REDHEAD!$E$4:$E$1391,MN_7_REDHEAD!$G$4:$G$1391,MN_7_REDHEAD!$C$4:$C$1391,"TS") -> 3907 | G29: =TeamScoreWithPlayers($B29,"H",8,MN_7_REDHEAD!$F$4:$F$1391,MN_7_REDHEAD!$E$4:$E$1391,MN_7_REDHEAD!$G$4:$G$1391,MN_7_REDHEAD!$C$4:$C$1391,"P1") -> (B) ISAAC ALLRED - [604] | H29: =TeamScoreWithPlayers($B29,"H",8,MN_7_REDHEAD!$F$4:$F$1391,MN_7_REDHEAD!$E$4:$E$1391,MN_7_REDHEAD!$G$4:$G$1391,MN_7_REDHEAD!$C$4:$C$1391,"P2") -> (B) OWEN ALLRED - [539] | I29: =TeamScoreWithPlayers($B29,"H",8,MN_7_REDHEAD!$F$4:$F$1391,MN_7_REDHEAD!$E$4:$E$1391,MN_7_REDHEAD!$G$4:$G$1391,MN_7_REDHEAD!$C$4:$C$1391,"P3") -> (G) NATALIE HORECK - [535] | J29: =TeamScoreWithPlayers($B29,"H",8,MN_7_REDHEAD!$F$4:$F$1391,MN_7_REDHEAD!$E$4:$E$1391,MN_7_REDHEAD!$G$4:$G$1391,MN_7_REDHEAD!$C$4:$C$1391,"P4") -> (B) LUCAS WOODEN - [516] | K29: =TeamScoreWithPlayers($B29,"H",8,MN_7_REDHEAD!$F$4:$F$1391,MN_7_REDHEAD!$E$4:$E$1391,MN_7_REDHEAD!$G$4:$G$1391,MN_7_REDHEAD!$C$4:$C$1391,"P5") -> (G) ALIYA GRICIUS - [510] | L29: =TeamScoreWithPlayers($B29,"H",8,MN_7_REDHEAD!$F$4:$F$1391,MN_7_REDHEAD!$E$4:$E$1391,MN_7_REDHEAD!$G$4:$G$1391,MN_7_REDHEAD!$C$4:$C$1391,"P6") -> (B) MAX HORECK - [484] | M29: =TeamScoreWithPlayers($B29,"H",8,MN_7_REDHEAD!$F$4:$F$1391,MN_7_REDHEAD!$E$4:$E$1391,MN_7_REDHEAD!$G$4:$G$1391,MN_7_REDHEAD!$C$4:$C$1391,"P7") -> (B) BENJAMIN WISNIEWSKI - [369] | N29: =TeamScoreWithPlayers($B29,"H",8,MN_7_REDHEAD!$F$4:$F$1391,MN_7_REDHEAD!$E$4:$E$1391,MN_7_REDHEAD!$G$4:$G$1391,MN_7_REDHEAD!$C$4:$C$1391,"P8") -> (B) CHRISTIAN MUELLER - [350] | P29: 3907 | Q29: 0 | S29: 3907
B31: Results sorted High to Low
A32: Place | B32: TEAM | C32: Score | F32: New Total Score | G32: P1 | H32: P2 | I32: P3 | J32: P4 | K32: P5 | L32: P6 | M32: P7 | N32: P8
A33: 1 | B33: Stillwater Mountain Bike | C33: 4322 | F33: 4322 | G33: (B) JOHN KUBIAK - [625] | H33: (G) LILY WARD - [614] | I33: (G) STELLA POWELL - [579] | J33: (G) CATE KOELZER - [559] | K33: (B) LIAM ADAMS - [494] | L33: (B) JACK RALSTON - [488] | M33: (G) GABI LEHMANN - [484] | N33: (B) JAMES KALMON - [479] | P33: =getnumeric(G33)+getnumeric(H33)+getnumeric(I33)+getnumeric(J33)+getnumeric(K33)+getnumeric(L33)+getnumeric(M33)+getnumeric(N33) -> 4322 | Q33: =VLOOKUP(B33,Divisions!$P$4:$Q$95,2,FALSE) -> 1 | S33: =P33-C33 -> 0
A34: 2 | B34: Duluth East High School | C34: 4189 | F34: 4189 | G34: (G) LEAH COLEMAN - [594] | H34: (G) PHOEBE LEEGE - [590] | I34: (G) THEA KRAMER - [567] | J34: (G) JOSEPHINE RYAN - [539] | K34: (G) COURTNEY HISLOP - [508] | L34: (G) CHARLI WORCESTER - [500] | M34: (B) CARL MORSE - [482] | N34: (B) RYE TRUITT - [409] | P34: 4189 | Q34: =VLOOKUP(B34,Divisions!$P$4:$Q$95,2,FALSE) -> 1 | S34: =P34-C34 -> 0
A35: 3 | B35: Hopkins High School | C35: 4108 | F35: 4108 | G35: (G) COURTNEY WEBER - [550] | H35: (G) ISABELLE MAYER - [539] | I35: (B) RAVONTE KRIEGLER - [529] | J35: (G) STELLA HUSETH - [519] | K35: (G) HAYDEN MIELKE - [510] | L35: (B) SILAS JOHNSON - [510] | M35: (B) TRISTAN SMITH - [492] | N35: (B) OSCAR TIX - [459] | P35: 4108 | Q35: =VLOOKUP(B35,Divisions!$P$4:$Q$95,2,FALSE) -> 1 | S35: 0
A36: 4 | B36: Minnetonka High School | C36: 4063 | F36: 4063 | G36: (B) MORGAN HENDRICKS - [594] | H36: (G) SHELBY STOBBE - [551] | I36: (G) EVIE MALEC - [550] | J36: (B) JACK MALEC - [550] | K36: (G) BETHANY ANDERSON - [529] | L36: (B) LUCAS SYLVESTER - [510] | M36: (G) ADDISON ALEMAN - [395] | N36: (G) LYDIA STEVENSON - [384] | P36: 4063 | Q36: =VLOOKUP(B36,Divisions!$P$4:$Q$95,2,FALSE) -> 1 | S36: 0
A37: 5 | B37: Edina Cycling | C37: 4008 | F37: 4008 | G37: (G) ELIN HARTMANN - [625] | H37: (G) ISABELLA MAZION - [604] | I37: (B) ISAAC BELL - [541] | J37: (B) LIAM GARNER - [493] | K37: (B) COOPER AUSTIN - [492] | L37: (B) GRIFFIN NELSON - [476] | M37: (B) GEORGE SILL - [407] | N37: (B) ANDREW HARTMANN - [370] | P37: 4008 | Q37: =VLOOKUP(B37,Divisions!$P$4:$Q$95,2,FALSE) -> 1 | S37: 0
A38: 6 | B38: Bloomington Jefferson | C38: 3951 | F38: 3951 | G38: (B) MAX FAHRMANN - [590] | H38: (G) CAROLINE HAAG - [559] | I38: (G) MEGAN SCHROOTEN - [541] | J38: (B) GAVIN MAYHEW - [528] | K38: (B) NOAH GUINEE - [514] | L38: (B) ETHAN ISHAUG - [472] | M38: (B) MCKEAN PEDERSEN - [425] | N38: (G) OLIVE BURRES - [322] | P38: 3951 | Q38: =VLOOKUP(B38,Divisions!$P$4:$Q$95,2,FALSE) -> 1 | S38: 0
A39: 7 | B39: Cloquet-Esko-Carlton | C39: 3943 | F39: 3943 | G39: (G) LAYLA HAGELIN - [585] | H39: (B) EVAN ERSPAMER - [543] | I39: (B) ETHAN LINDGREN - [524] | J39: (G) ASPEN BERG - [492] | K39: (B) MAX FOSTER - [465] | L39: (B) JORDAN CHOPSKIE - [454] | M39: (B) KAYLOR ADKINS - [441] | N39: (G) ASHLEY SCHULTZ - [439] | P39: 3943 | Q39: =VLOOKUP(B39,Divisions!$P$4:$Q$95,2,FALSE) -> 1 | S39: 0
A40: 8 | B40: Winona | C40: 3907 | F40: 3907 | G40: (B) ISAAC ALLRED - [604] | H40: (B) OWEN ALLRED - [539] | I40: (G) NATALIE HORECK - [535] | J40: (B) LUCAS WOODEN - [516] | K40: (G) ALIYA GRICIUS - [510] | L40: (B) MAX HORECK - [484] | M40: (B) BENJAMIN WISNIEWSKI - [369] | N40: (B) CHRISTIAN MUELLER - [350] | P40: 3907 | Q40: =VLOOKUP(B40,Divisions!$P$4:$Q$95,2,FALSE) -> 1 | S40: 0
A41: 9 | B41: Brainerd High School | C41: 3858 | F41: 3858 | G41: (G) ADDIE RYAN - [576] | H41: (B) WILL THOMES - [559] | I41: (B) HAYDEN HAGEN - [551] | J41: (B) ARRON LOCKWOOD - [476] | K41: (B) BISHOP NOETZEL - [460] | L41: (G) STELLA HAGEN - [424] | M41: (G) ISABELLE SMITH - [407] | N41: (B) PARKER LINN - [405] | P41: 3858 | Q41: =VLOOKUP(B41,Divisions!$P$4:$Q$95,2,FALSE) -> 1 | S41: 0
A42: 10 | B42: Alexandria Area Youth Cycling | C42: 3637 | F42: 3637 | G42: (B) LUKE WALSH - [579] | H42: (G) TIAHNA GOEKE - [532] | I42: (B) PARKER CONVERSE - [529] | J42: (B) SAWYER FILIPIAK - [468] | K42: (B) TYLER SIIRA - [419] | L42: (B) TYLER FATH - [382] | M42: (G) LACEY SIIRA - [369] | N42: (B) SULLIVAN ROONEY - [359] | P42: 3637 | Q42: =VLOOKUP(B42,Divisions!$P$4:$Q$95,2,FALSE) -> 1 | S42: 0
A43: 11 | B43: Burnsville High School | C43: 3528 | F43: 3528 | G43: (G) MAISY SCHEUNEMAN - [543] | H43: (G) OLIVIA TILBURY - [507] | I43: (B) AIDEN NICHOLAS - [470] | J43: (G) ANNELISE METZGER - [432] | K43: (B) WYATT PETERSON - [429] | L43: (B) KADEN BOLDUC - [413] | M43: (B) JOHN GOETTL - [370] | N43: (G) GRETA DICKHAUSEN - [364] | P43: 3528 | Q43: =VLOOKUP(B43,Divisions!$P$4:$Q$95,2,FALSE) -> 1 | S43: 0
A44: 12 | B44: Washburn High School | C44: 3432 | F44: 3432 | G44: (B) ANDREAS DREKONJA - [535] | H44: (G) CIARA THATCHER - [529] | I44: (G) ASTRID MYHRE - [528] | J44: (B) ALEXANDER PASDO - [432] | K44: (B) HENRY HATHAWAY - [369] | L44: (G) ARIANA KIMBALL - [362] | M44: (G) IZZY GREENWIN - [342] | N44: (B) FINN CHERVENY - [335] | P44: 3432 | Q44: =VLOOKUP(B44,Divisions!$P$4:$Q$95,2,FALSE) -> 1 | S44: 0
A45: 13 | B45: New Prague Middle and High School | C45: 3376 | F45: 3376 | G45: (B) AIDAN ROSEMEIER - [585] | H45: (G) SELAH SCHERMAN - [500] | I45: (G) SOPHIA METZDORFF - [435] | J45: (G) ADDISON RIDGEWAY - [395] | K45: (B) JEREMIAH STUBER - [379] | L45: (B) GARRETT TOBIAS - [374] | M45: (B) RILEY HUSEBY - [366] | N45: (G) TEVA FEIT - [342] | P45: 3376 | Q45: =VLOOKUP(B45,Divisions!$P$4:$Q$95,2,FALSE) -> 1 | S45: 0
A46: 14 | B46: Mounds View High School | C46: 3368 | F46: 3368 | G46: (G) MADELINE DORNFELD - [501] | H46: (G) ESME NEEDHAM - [446] | I46: (B) ANDREW ROLOFF - [446] | J46: (B) CORBAN CARLSON - [439] | K46: (B) ANTONIN KOSTAL - [419] | L46: (G) KATERINA KOSTAL - [413] | M46: (G) KAMDYN KAREL - [354] | N46: (G) PAULINA MCCULLOUGH - [350] | P46: 3368 | Q46: =VLOOKUP(B46,Divisions!$P$4:$Q$95,2,FALSE) -> 1 | S46: 0
A47: 15 | B47: Wayzata Mountain Bike | C47: 3344 | F47: 3344 | G47: (G) LEXI HALVORSON - [501] | H47: (G) LILA GOLOMB - [484] | I47: (B) CULLEN BRITZ - [439] | J47: (B) SAM ANDERSON - [419] | K47: (G) IZZY MORRIS - [413] | L47: (B) RUKSHAN RAJAN - [374] | M47: (B) WILL BREUING - [364] | N47: (G) ELIZABETH FACKERT - [350] | P47: 3344 | Q47: =VLOOKUP(B47,Divisions!$P$4:$Q$95,2,FALSE) -> 1 | S47: 0
A48: 16 | B48: Prior Lake High School | C48: 3336 | F48: 3336 | G48: (B) BRADEN ERDAHL - [519] | H48: (B) ALEX KRAWZA - [444] | I48: (B) TEGAN MOORE - [425] | J48: (B) MASON HORTER - [401] | K48: (G) SARA CARLSON - [399] | L48: (B) PETER MAES - [395] | M48: (B) DECLAN FOLGER - [379] | N48: (G) SARAH RICH - [374] | P48: 3336 | Q48: =VLOOKUP(B48,Divisions!$P$4:$Q$95,2,FALSE) -> 1 | S48: 0
A49: 17 | B49: Shakopee High School | C49: 3322 | F49: 3322 | G49: (B) WILLIAM PALMIERI - [486] | H49: (B) CHARLIE CUTTS - [484] | I49: (B) ISAIAH JOHNSON - [468] | J49: (B) OWEN MARQUARDT - [413] | K49: (B) PARKER BUTTERFASS - [389] | L49: (G) ELLA BERG - [374] | M49: (G) ANNIKA FROYUM - [374] | N49: (B) JAMES FROYUM - [334] | P49: 3322 | Q49: =VLOOKUP(B49,Divisions!$P$4:$Q$95,2,FALSE) -> 1 | S49: 0
A50: 18 | B50: East Ridge High School | C50: 3294 | F50: 3294 | G50: (B) ERIC OIEN - [550] | H50: (G) CLARA LANG - [476] | I50: (B) IBAN DREVLOW - [453] | J50: (B) POYRAZ OLGUN - [453] | K50: (G) ELIN HARRISON - [378] | L50: (G) ERIKA HARRISON - [370] | M50: (B) JENS KULLMAN - [342] | N50: (B) CRISTOBAL OSSANNA - [272] | P50: 3294 | Q50: =VLOOKUP(B50,Divisions!$P$4:$Q$95,2,FALSE) -> 1 | S50: 0
A51: 19 | B51: Crosby-Ironton High School | C51: 3170 | F51: 3170 | G51: (G) AVA JOHNSON - [519] | H51: (B) OSKAR NELSON - [501] | I51: (B) FINN NELSON - [476] | J51: (B) SAMUEL COUGHLIN - [447] | K51: (B) COOPER CRAINE - [432] | L51: (B) OLIVER TOFTNESS - [404] | M51: (B) BRADLEY HACHEY - [391] | N51: () - [0] | P51: 3170 | Q51: =VLOOKUP(B51,Divisions!$P$4:$Q$95,2,FALSE) -> 1 | S51: 0
A52: 20 | B52: Minneapolis Southwest | C52: 3122 | F52: 3122 | G52: (B) KADIN BLACK - [532] | H52: (B) EMMETT KEPLER - [417] | I52: (B) JOEL TIBBS - [382] | J52: (G) ELLA MAKOSKY - [379] | K52: (G) AVA WISE - [366] | L52: (B) PARKER HUNT - [364] | M52: (B) BEN MIMICK - [344] | N52: (B) MASON EBERLY - [338] | P52: 3122 | Q52: =VLOOKUP(B52,Divisions!$P$4:$Q$95,2,FALSE) -> 1 | S52: 0
A53: 21 | B53: White Bear Lake High School | C53: 3000 | F53: 3000 | G53: (B) ISAAC LINDHOLM - [539] | H53: (G) GRETCHEN BLANKENSHIP - [446] | I53: (G) GRACE CONROY - [425] | J53: (B) BLAKE ROLFER - [364] | K53: (B) WALKER DIETZ - [322] | L53: (G) KENNEDY LANGE - [316] | M53: (B) DAMON GRAY - [301] | N53: (B) JAMES WALLEK - [287] | P53: 3000 | Q53: =VLOOKUP(B53,Divisions!$P$4:$Q$95,2,FALSE) -> 1 | S53: 0
A54: 22 | B54: Lakeville North High School | C54: 2925 | F54: 2925 | G54: (B) ROWAN HALL - [567] | H54: (B) EDWARD BROOKHART - [501] | I54: (B) JACK JUFFER - [460] | J54: (B) CARSON HALL - [425] | K54: (B) HAYDEN ZOLL - [373] | L54: (G) SOPHIA PEDERSEN - [307] | M54: (B) KAMERON JAENICKE - [292] | N54: () - [0] | P54: 2925 | Q54: =VLOOKUP(B54,Divisions!$P$4:$Q$95,2,FALSE) -> 1 | S54: 0
A55: 23 | B55: Rock Ridge Composite | C55: 2836 | F55: 2836 | G55: (G) WRENNA GALLOWAY - [476] | H55: (B) SAMUEL BEUKEMA - [453] | I55: (G) SOPHIE ROARK - [389] | J55: (G) SYLVIE GALLOWAY - [346] | K55: (B) SILAS TODAY - [310] | L55: (G) EVA ROARK - [291] | M55: (G) NORAH KAINZ - [289] | N55: (B) ALDEN KNUDSON - [282] | P55: 2836 | Q55: =VLOOKUP(B55,Divisions!$P$4:$Q$95,2,FALSE) -> 1 | S55: 0
A56: 24 | B56: Chaska High School | C56: 2523 | F56: 2523 | G56: (G) GRACE ATTERSON - [521] | H56: (B) GRANT ATTERSON - [519] | I56: (B) XAVIER DEMARRE - [319] | J56: (B) NATHAN OMAN - [307] | K56: (B) DYLAN HENDERSON - [302] | L56: (B) EVAN REINSCH - [281] | M56: (B) GRANT KERFOOT - [274] | N56: () - [0] | P56: 2523 | Q56: =VLOOKUP(B56,Divisions!$P$4:$Q$95,2,FALSE) -> 1 | S56: 0
A57: 25 | B57: Armstrong Cycle | C57: 2512 | F57: 2512 | G57: (G) ARYANNA SOMAIAH - [394] | H57: (G) KYRA BEDNARZ - [338] | I57: (B) KEEGAN GHANI - [322] | J57: (G) CASSIDY SKARSTEN - [313] | K57: (B) JUSTIN JOHNSON - [295] | L57: (G) MEGAN SWANSON - [287] | M57: (B) TRISTAN EHN - [283] | N57: (B) KAI HAROLDSON - [280] | P57: 2512 | Q57: =VLOOKUP(B57,Divisions!$P$4:$Q$95,2,FALSE) -> 1 | S57: 0
A58: 26 | B58: Champlin Park High School | C58: 2248 | F58: 2248 | G58: (G) MARLIE RIETSCHEL - [419] | H58: (B) DANE PAUL - [350] | I58: (B) CARSON ANDERSON - [346] | J58: (B) TREVOR EMERY - [293] | K58: (B) COOPER HIGGINS - [289] | L58: (B) GAVIN JOHNSON - [276] | M58: (B) CHARLIE BLOCK - [275] | N58: () - [0] | P58: 2248 | Q58: =VLOOKUP(B58,Divisions!$P$4:$Q$95,2,FALSE) -> 1 | S58: 0
A59: 27 | B59: Rochester Century High School | C59: 2041 | F59: 2041 | G59: (B) BRENNAN WECKWERTH - [446] | H59: (B) TYLER WETZSTEIN - [435] | I59: (B) RYAN WETZSTEIN - [320] | J59: (B) ARI WALKER - [305] | K59: (B) ERIK HILL - [281] | L59: (B) AARON MILLS - [254] | M59: () - [0] | N59: () - [0] | P59: 2041 | Q59: =VLOOKUP(B59,Divisions!$P$4:$Q$95,2,FALSE) -> 1 | S59: 0
A60: 28 | B60: Chanhassen High School | C60: 1781 | F60: 1781 | G60: (G) ZOE ANDERSON - [419] | H60: (B) SETH KENNEDY - [376] | I60: (B) CHARLES EVANGELISTA - [298] | J60: (B) AYDEN FERREL - [258] | K60: (B) MICAH SCHMIDT - [237] | L60: (B) CHARLIE WENNERSTROM - [193] | M60: () - [0] | N60: () - [0] | P60: 1781 | Q60: =VLOOKUP(B60,Divisions!$P$4:$Q$95,2,FALSE) -> 1 | S60: 0

Sheet High School D2
A1: # | B1: TEAM | C1: Score | F1: New Total Score | G1: P1 | H1: P2 | I1: P3 | J1: P4 | L1: Get Numeric | M1: DC
A2: 1 | B2: Apple Valley High School | C2: =TeamScore(B2,"H",4,MN_7_REDHEAD!$F$4:$F$1391,MN_7_REDHEAD!$G$4:$G$1391,MN_7_REDHEAD!$C$4:$C$1391) -> 1319 | F2: =TeamScoreWithPlayers($B2,"H",4,MN_7_REDHEAD!$F$4:$F$1391,MN_7_REDHEAD!$E$4:$E$1391,MN_7_REDHEAD!$G$4:$G$1391,MN_7_REDHEAD!$C$4:$C$1391,"TS") -> 1319 | G2: =TeamScoreWithPlayers($B2,"H",4,MN_7_REDHEAD!$F$4:$F$1391,MN_7_REDHEAD!$E$4:$E$1391,MN_7_REDHEAD!$G$4:$G$1391,MN_7_REDHEAD!$C$4:$C$1391,"P1") -> (B) CODA NGUYEN - [501] | H2: =TeamScoreWithPlayers($B2,"H",4,MN_7_REDHEAD!$F$4:$F$1391,MN_7_REDHEAD!$E$4:$E$1391,MN_7_REDHEAD!$G$4:$G$1391,MN_7_REDHEAD!$C$4:$C$1391,"P2") -> (B) MASON JOHNSON - [429] | I2: =TeamScoreWithPlayers($B2,"H",4,MN_7_REDHEAD!$F$4:$F$1391,MN_7_REDHEAD!$E$4:$E$1391,MN_7_REDHEAD!$G$4:$G$1391,MN_7_REDHEAD!$C$4:$C$1391,"P3") -> (B) NATHAN LENZEN - [389] | J2: =TeamScoreWithPlayers($B2,"H",4,MN_7_REDHEAD!$F$4:$F$1391,MN_7_REDHEAD!$E$4:$E$1391,MN_7_REDHEAD!$G$4:$G$1391,MN_7_REDHEAD!$C$4:$C$1391,"P4") -> () - [0] | L2: =getnumeric(G2)+getnumeric(H2)+getnumeric(I2)+getnumeric(J2) -> 1319 | M2: 0 | O2: =ABS(C2-F2)+ABS(F2-L2)+ABS(L2-M2) -> 1319
A3: =+A2+1 -> 2 | B3: Austin High School | C3: =TeamScore(B3,"H",4,MN_7_REDHEAD!$F$4:$F$1391,MN_7_REDHEAD!$G$4:$G$1391,MN_7_REDHEAD!$C$4:$C$1391) -> 1171 | F3: =TeamScoreWithPlayers($B3,"H",4,MN_7_REDHEAD!$F$4:$F$1391,MN_7_REDHEAD!$E$4:$E$1391,MN_7_REDHEAD!$G$4:$G$1391,MN_7_REDHEAD!$C$4:$C$1391,"TS") -> 1171 | G3: =TeamScoreWithPlayers($B3,"H",4,MN_7_REDHEAD!$F$4:$F$1391,MN_7_REDHEAD!$E$4:$E$1391,MN_7_REDHEAD!$G$4:$G$1391,MN_7_REDHEAD!$C$4:$C$1391,"P1") -> (G) CLAUDIA MCDONALD - [319] | H3: =TeamScoreWithPlayers($B3,"H",4,MN_7_REDHEAD!$F$4:$F$1391,MN_7_REDHEAD!$E$4:$E$1391,MN_7_REDHEAD!$G$4:$G$1391,MN_7_REDHEAD!$C$4:$C$1391,"P2") -> (B) RORY POLLOCK - [299] | I3: =TeamScoreWithPlayers($B3,"H",4,MN_7_REDHEAD!$F$4:$F$1391,MN_7_REDHEAD!$E$4:$E$1391,MN_7_REDHEAD!$G$4:$G$1391,MN_7_REDHEAD!$C$4:$C$1391,"P3") -> (B) ANDREW THOMPSON - [287] | J3: =TeamScoreWithPlayers($B3,"H",4,MN_7_REDHEAD!$F$4:$F$1391,MN_7_REDHEAD!$E$4:$E$1391,MN_7_REDHEAD!$G$4:$G$1391,MN_7_REDHEAD!$C$4:$C$1391,"P4") -> (B) GAGE SOUCEK - [266] | L3: 1171 | M3: 0 | O3: =ABS(C3-F3)+ABS(F3-L3)+ABS(L3-M3) -> 1171
A4: =+A3+1 -> 3 | B4: Bemidji Composite | C4: =TeamScore(B4,"H",4,MN_7_REDHEAD!$F$4:$F$1391,MN_7_REDHEAD!$G$4:$G$1391,MN_7_REDHEAD!$C$4:$C$1391) -> 1694 | F4: =TeamScoreWithPlayers($B4,"H",4,MN_7_REDHEAD!$F$4:$F$1391,MN_7_REDHEAD!$E$4:$E$1391,MN_7_REDHEAD!$G$4:$G$1391,MN_7_REDHEAD!$C$4:$C$1391,"TS") -> 1694 | G4: =TeamScoreWithPlayers($B4,"H",4,MN_7_REDHEAD!$F$4:$F$1391,MN_7_REDHEAD!$E$4:$E$1391,MN_7_REDHEAD!$G$4:$G$1391,MN_7_REDHEAD!$C$4:$C$1391,"P1") -> (B) REED KUZEL - [508] | H4: =TeamScoreWithPlayers($B4,"H",4,MN_7_REDHEAD!$F$4:$F$1391,MN_7_REDHEAD!$E$4:$E$1391,MN_7_REDHEAD!$G$4:$G$1391,MN_7_REDHEAD!$C$4:$C$1391,"P2") -> (G) FAYE CALVERT - [453] | I4: =TeamScoreWithPlayers($B4,"H",4,MN_7_REDHEAD!$F$4:$F$1391,MN_7_REDHEAD!$E$4:$E$1391,MN_7_REDHEAD!$G$4:$G$1391,MN_7_REDHEAD!$C$4:$C$1391,"P3") -> (B) LOUIS MORRISSEY - [414] | J4: =TeamScoreWithPlayers($B4,"H",4,MN_7_REDHEAD!$F$4:$F$1391,MN_7_REDHEAD!$E$4:$E$1391,MN_7_REDHEAD!$G$4:$G$1391,MN_7_REDHEAD!$C$4:$C$1391,"P4") -> (G) JULIA CALVERT - [319] | L4: 1694 | M4: 0 | O4: 1694
A5: 4 | B5: Benilde St Margaret | C5: =TeamScore(B5,"H",4,MN_7_REDHEAD!$F$4:$F$1391,MN_7_REDHEAD!$G$4:$G$1391,MN_7_REDHEAD!$C$4:$C$1391) -> 2086 | F5: =TeamScoreWithPlayers($B5,"H",4,MN_7_REDHEAD!$F$4:$F$1391,MN_7_REDHEAD!$E$4:$E$1391,MN_7_REDHEAD!$G$4:$G$1391,MN_7_REDHEAD!$C$4:$C$1391,"TS") -> 2086 | G5: =TeamScoreWithPlayers($B5,"H",4,MN_7_REDHEAD!$F$4:$F$1391,MN_7_REDHEAD!$E$4:$E$1391,MN_7_REDHEAD!$G$4:$G$1391,MN_7_REDHEAD!$C$4:$C$1391,"P1") -> (B) TEAGUE JACKSON - [614] | H5: =TeamScoreWithPlayers($B5,"H",4,MN_7_REDHEAD!$F$4:$F$1391,MN_7_REDHEAD!$E$4:$E$1391,MN_7_REDHEAD!$G$4:$G$1391,MN_7_REDHEAD!$C$4:$C$1391,"P2") -> (B) EVAN NOWLIN - [521] | I5: =TeamScoreWithPlayers($B5,"H",4,MN_7_REDHEAD!$F$4:$F$1391,MN_7_REDHEAD!$E$4:$E$1391,MN_7_REDHEAD!$G$4:$G$1391,MN_7_REDHEAD!$C$4:$C$1391,"P3") -> (B) OWEN MARKS - [492] | J5: =TeamScoreWithPlayers($B5,"H",4,MN_7_REDHEAD!$F$4:$F$1391,MN_7_REDHEAD!$E$4:$E$1391,MN_7_REDHEAD!$G$4:$G$1391,MN_7_REDHEAD!$C$4:$C$1391,"P4") -> (G) STELLA ORDAHL - [459] | L5: 2086 | M5: 0 | O5: 2086
A6: 5 | B6: Bloomington Composite | C6: =TeamScore(B6,"H",4,MN_7_REDHEAD!$F$4:$F$1391,MN_7_REDHEAD!$G$4:$G$1391,MN_7_REDHEAD!$C$4:$C$1391) -> 1111 | F6: =TeamScoreWithPlayers($B6,"H",4,MN_7_REDHEAD!$F$4:$F$1391,MN_7_REDHEAD!$E$4:$E$1391,MN_7_REDHEAD!$G$4:$G$1391,MN_7_REDHEAD!$C$4:$C$1391,"TS") -> 1111 | G6: =TeamScoreWithPlayers($B6,"H",4,MN_7_REDHEAD!$F$4:$F$1391,MN_7_REDHEAD!$E$4:$E$1391,MN_7_REDHEAD!$G$4:$G$1391,MN_7_REDHEAD!$C$4:$C$1391,"P1") -> (G) MAGGIE WEISS - [389] | H6: =TeamScoreWithPlayers($B6,"H",4,MN_7_REDHEAD!$F$4:$F$1391,MN_7_REDHEAD!$E$4:$E$1391,MN_7_REDHEAD!$G$4:$G$1391,MN_7_REDHEAD!$C$4:$C$1391,"P2") -> (B) MAX HARTMANN - [266] | I6: =TeamScoreWithPlayers($B6,"H",4,MN_7_REDHEAD!$F$4:$F$1391,MN_7_REDHEAD!$E$4:$E$1391,MN_7_REDHEAD!$G$4:$G$1391,MN_7_REDHEAD!$C$4:$C$1391,"P3") -> (B) JACK SQUIRES - [233] | J6: =TeamScoreWithPlayers($B6,"H",4,MN_7_REDHEAD!$F$4:$F$1391,MN_7_REDHEAD!$E$4:$E$1391,MN_7_REDHEAD!$G$4:$G$1391,MN_7_REDHEAD!$C$4:$C$1391,"P4") -> (B) BRADEN THORNBURG - [223] | L6: 1111 | M6: 0 | O6: 1111
A7: 6 | B7: Borealis Composite | C7: =TeamScore(B7,"H",4,MN_7_REDHEAD!$F$4:$F$1391,MN_7_REDHEAD!$G$4:$G$1391,MN_7_REDHEAD!$C$4:$C$1391) -> 943 | F7: =TeamScoreWithPlayers($B7,"H",4,MN_7_REDHEAD!$F$4:$F$1391,MN_7_REDHEAD!$E$4:$E$1391,MN_7_REDHEAD!$G$4:$G$1391,MN_7_REDHEAD!$C$4:$C$1391,"TS") -> 943 | G7: =TeamScoreWithPlayers($B7,"H",4,MN_7_REDHEAD!$F$4:$F$1391,MN_7_REDHEAD!$E$4:$E$1391,MN_7_REDHEAD!$G$4:$G$1391,MN_7_REDHEAD!$C$4:$C$1391,"P1") -> (G) RENA JOHNSTON - [354] | H7: =TeamScoreWithPlayers($B7,"H",4,MN_7_REDHEAD!$F$4:$F$1391,MN_7_REDHEAD!$E$4:$E$1391,MN_7_REDHEAD!$G$4:$G$1391,MN_7_REDHEAD!$C$4:$C$1391,"P2") -> (G) AILA HARDING - [322] | I7: =TeamScoreWithPlayers($B7,"H",4,MN_7_REDHEAD!$F$4:$F$1391,MN_7_REDHEAD!$E$4:$E$1391,MN_7_REDHEAD!$G$4:$G$1391,MN_7_REDHEAD!$C$4:$C$1391,"P3") -> (B) BLAKE HEGFORS - [267] | J7: =TeamScoreWithPlayers($B7,"H",4,MN_7_REDHEAD!$F$4:$F$1391,MN_7_REDHEAD!$E$4:$E$1391,MN_7_REDHEAD!$G$4:$G$1391,MN_7_REDHEAD!$C$4:$C$1391,"P4") -> () - [0] | L7: 943 | M7: 0 | O7: 943
A8: 7 | B8: Breck/Blake | C8: =TeamScore(B8,"H",4,MN_7_REDHEAD!$F$4:$F$1391,MN_7_REDHEAD!$G$4:$G$1391,MN_7_REDHEAD!$C$4:$C$1391) -> 1177 | F8: =TeamScoreWithPlayers($B8,"H",4,MN_7_REDHEAD!$F$4:$F$1391,MN_7_REDHEAD!$E$4:$E$1391,MN_7_REDHEAD!$G$4:$G$1391,MN_7_REDHEAD!$C$4:$C$1391,"TS") -> 1177 | G8: =TeamScoreWithPlayers($B8,"H",4,MN_7_REDHEAD!$F$4:$F$1391,MN_7_REDHEAD!$E$4:$E$1391,MN_7_REDHEAD!$G$4:$G$1391,MN_7_REDHEAD!$C$4:$C$1391,"P1") -> (G) ALYSSA KRIG - [432] | H8: =TeamScoreWithPlayers($B8,"H",4,MN_7_REDHEAD!$F$4:$F$1391,MN_7_REDHEAD!$E$4:$E$1391,MN_7_REDHEAD!$G$4:$G$1391,MN_7_REDHEAD!$C$4:$C$1391,"P2") -> (B) JOSH FRETT - [379] | I8: =TeamScoreWithPlayers($B8,"H",4,MN_7_REDHEAD!$F$4:$F$1391,MN_7_REDHEAD!$E$4:$E$1391,MN_7_REDHEAD!$G$4:$G$1391,MN_7_REDHEAD!$C$4:$C$1391,"P3") -> (B) DUNCAN ARMOUR - [366] | J8: =TeamScoreWithPlayers($B8,"H",4,MN_7_REDHEAD!$F$4:$F$1391,MN_7_REDHEAD!$E$4:$E$1391,MN_7_REDHEAD!$G$4:$G$1391,MN_7_REDHEAD!$C$4:$C$1391,"P4") -> () - [0] | L8: 1177 | M8: 0 | O8: 1177
A9: 8 | B9: Cannon Valley Composite | C9: =TeamScore(B9,"H",4,MN_7_REDHEAD!$F$4:$F$1391,MN_7_REDHEAD!$G$4:$G$1391,MN_7_REDHEAD!$C$4:$C$1391) -> 1804 | F9: =TeamScoreWithPlayers($B9,"H",4,MN_7_REDHEAD!$F$4:$F$1391,MN_7_REDHEAD!$E$4:$E$1391,MN_7_REDHEAD!$G$4:$G$1391,MN_7_REDHEAD!$C$4:$C$1391,"TS") -> 1804 | G9: =TeamScoreWithPlayers($B9,"H",4,MN_7_REDHEAD!$F$4:$F$1391,MN_7_REDHEAD!$E$4:$E$1391,MN_7_REDHEAD!$G$4:$G$1391,MN_7_REDHEAD!$C$4:$C$1391,"P1") -> (G) KATE BITTENBENDER - [569] | H9: =TeamScoreWithPlayers($B9,"H",4,MN_7_REDHEAD!$F$4:$F$1391,MN_7_REDHEAD!$E$4:$E$1391,MN_7_REDHEAD!$G$4:$G$1391,MN_7_REDHEAD!$C$4:$C$1391,"P2") -> (G) ELOISE DEBUS - [460] | I9: =TeamScoreWithPlayers($B9,"H",4,MN_7_REDHEAD!$F$4:$F$1391,MN_7_REDHEAD!$E$4:$E$1391,MN_7_REDHEAD!$G$4:$G$1391,MN_7_REDHEAD!$C$4:$C$1391,"P3") -> (B) ANDY AMUNDSON - [389] | J9: =TeamScoreWithPlayers($B9,"H",4,MN_7_REDHEAD!$F$4:$F$1391,MN_7_REDHEAD!$E$4:$E$1391,MN_7_REDHEAD!$G$4:$G$1391,MN_7_REDHEAD!$C$4:$C$1391,"P4") -> (B) BEN POWNELL - [386] | L9: 1804 | M9: 0 | O9: 1804
A10: 9 | B10: Chisago Lakes Composite | C10: =TeamScore(B10,"H",4,MN_7_REDHEAD!$F$4:$F$1391,MN_7_REDHEAD!$G$4:$G$1391,MN_7_REDHEAD!$C$4:$C$1391) -> 1272 | F10: =TeamScoreWithPlayers($B10,"H",4,MN_7_REDHEAD!$F$4:$F$1391,MN_7_REDHEAD!$E$4:$E$1391,MN_7_REDHEAD!$G$4:$G$1391,MN_7_REDHEAD!$C$4:$C$1391,"TS") -> 1272 | G10: =TeamScoreWithPlayers($B10,"H",4,MN_7_REDHEAD!$F$4:$F$1391,MN_7_REDHEAD!$E$4:$E$1391,MN_7_REDHEAD!$G$4:$G$1391,MN_7_REDHEAD!$C$4:$C$1391,"P1") -> (B) KYLE HAMLIN - [529] | H10: =TeamScoreWithPlayers($B10,"H",4,MN_7_REDHEAD!$F$4:$F$1391,MN_7_REDHEAD!$E$4:$E$1391,MN_7_REDHEAD!$G$4:$G$1391,MN_7_REDHEAD!$C$4:$C$1391,"P2") -> (B) CARTER SCHILDGEN - [460] | I10: =TeamScoreWithPlayers($B10,"H",4,MN_7_REDHEAD!$F$4:$F$1391,MN_7_REDHEAD!$E$4:$E$1391,MN_7_REDHEAD!$G$4:$G$1391,MN_7_REDHEAD!$C$4:$C$1391,"P3") -> (B) DALTON MULLIN - [283] | J10: =TeamScoreWithPlayers($B10,"H",4,MN_7_REDHEAD!$F$4:$F$1391,MN_7_REDHEAD!$E$4:$E$1391,MN_7_REDHEAD!$G$4:$G$1391,MN_7_REDHEAD!$C$4:$C$1391,"P4") -> () - [0] | L10: 1272 | M10: 0 | O10: 1272
A11: 10 | B11: Duluth Composite | C11: =TeamScore(B11,"H",4,MN_7_REDHEAD!$F$4:$F$1391,MN_7_REDHEAD!$G$4:$G$1391,MN_7_REDHEAD!$C$4:$C$1391) -> 2038 | F11: =TeamScoreWithPlayers($B11,"H",4,MN_7_REDHEAD!$F$4:$F$1391,MN_7_REDHEAD!$E$4:$E$1391,MN_7_REDHEAD!$G$4:$G$1391,MN_7_REDHEAD!$C$4:$C$1391,"TS") -> 2038 | G11: =TeamScoreWithPlayers($B11,"H",4,MN_7_REDHEAD!$F$4:$F$1391,MN_7_REDHEAD!$E$4:$E$1391,MN_7_REDHEAD!$G$4:$G$1391,MN_7_REDHEAD!$C$4:$C$1391,"P1") -> (B) OWEN VANDAL - [550] | H11: =TeamScoreWithPlayers($B11,"H",4,MN_7_REDHEAD!$F$4:$F$1391,MN_7_REDHEAD!$E$4:$E$1391,MN_7_REDHEAD!$G$4:$G$1391,MN_7_REDHEAD!$C$4:$C$1391,"P2") -> (B) BODEE MCFADDEN - [550] | I11: =TeamScoreWithPlayers($B11,"H",4,MN_7_REDHEAD!$F$4:$F$1391,MN_7_REDHEAD!$E$4:$E$1391,MN_7_REDHEAD!$G$4:$G$1391,MN_7_REDHEAD!$C$4:$C$1391,"P3") -> (G) NATALIA KUNZE - [492] | J11: =TeamScoreWithPlayers($B11,"H",4,MN_7_REDHEAD!$F$4:$F$1391,MN_7_REDHEAD!$E$4:$E$1391,MN_7_REDHEAD!$G$4:$G$1391,MN_7_REDHEAD!$C$4:$C$1391,"P4") -> (B) QUINN SPOHN - [446] | L11: 2038 | M11: 0 | O11: 2038
